Workbook

Sheet Title
C17: =region_selection&" Service Report" -> Kent Service Report
D23: =reporting_month -> 2014-12-01

Sheet Dashboard
B2: Select Region: | D2: Kent | G2: Select Sector: | I2: All | L2: Select Usage Data: | O2: 90th Percentile | R2: Show SLA Failures:
N4: ="Summary Statistics for "&region_selection -> Summary Statistics for Kent
B6: Service Reliability | E6: The SLA sets a target minimum of 99.7% availability for each service averaged over a 12 month rolling period
B27: NB: Periods of scheduled and emergency maintenance are not included in reliability performance statistics
B29: Connection Usage | E29: =usage_explanation -> Traffic usage is expressed as the sum, in megabits per second, of 90th percentile readings taken during the month, in whichever direction is the greater, for all links being charted
E30: =usage_graph1_title -> All Traffic - Kent | P30: Usage by Connection - % of Available Bandwidth at 90th Percentile
E42: =usage_graph2_title -> Kent Traffic Against Janet Traffic

Sheet Service Availability
D1: Service Availability
D2: The SLA target sets a minimum of 99.7% availability for each customer, averaged over a 12 month rolling period
D3: Periods of scheduled and emergency maintenance are discounted when calculating availability of services
A4: Column Header | B4: Service in selected region this month? | D4: Where an organisation retains connectivity during an outage period by means of a second connection, the outage is not counted against its availability figures
A5: Column Number | B5: =SUBSTITUTE(ADDRESS(1,MATCH(B4,CA_Rolling!1:1,0),4),"1","") -> W | D5: Monthly and annual availabilities falling below 99.7% are highlighted
B6: Row Index
A7: Adjusted Range | B7: 0 | C7: CA_ID | D7: Service | E7: =DATE(YEAR(F7),MONTH(F7)-1, DAY(F7)) -> 2014-01-01 | F7: 2014-02-01 | G7: 2014-03-01 | H7: 2014-04-01 | I7: 2014-05-01 | J7: 2014-06-01 | K7: 2014-07-01 | L7: 2014-08-01 | M7: 2014-09-01 | N7: 2014-10-01 | O7: =DATE(YEAR(P7),MONTH(P7)-1, DAY(P7)) -> 2014-11-01 | P7: =reporting_month -> 2014-12-01 | Q7: 12 Month Rolling Availability
A8: =IF(B7="","","'CA_Rolling'!"&$B$5&B7+1&":"&$B$5&"30000") -> 'CA_Rolling'!W1:W30000 | B8: =IF(ISERROR(MATCH("yes",INDIRECT(A8),0)),"",MATCH("yes",INDIRECT(A8),0)+B7) -> 103 | C8: =IF($B8="","",(INDEX(INDIRECT(rolling_availability_caid_col),$B8,1))) -> CA00165 | D8: =IF($B8="","",(INDEX(CA_Rolling!$C:$C,$B8,1))) -> Canterbury Christ Church University | E8: =IF($B8="","",(SUMIFS(INDIRECT(availability_col),INDIRECT(availability_caid_col),$C8,INDIRECT(availability_month_col),E$7))) -> 1 | F8: 1 | G8: 1 | H8: 1 | I8: 1 | J8: 1 | K8: 1 | L8: 0.9979390681 | M8: 1 | N8: 1 | O8: 1 | P8: 1 | Q8: =IF($B8="","",IF(COUNTIF(E8:P8,"<>"&0)<12,"<12 Months",AVERAGE(E8:P8))) -> 0.9998282557
A9: =IF(B8="","","'CA_Rolling'!"&$B$5&B8+1&":"&$B$5&"30000") -> 'CA_Rolling'!W104:W30000 | B9: =IF(ISERROR(MATCH("yes",INDIRECT(A9),0)),"",MATCH("yes",INDIRECT(A9),0)+B8) -> 104 | C9: CA01129 | D9: =IF($B9="","",(INDEX(CA_Rolling!$C:$C,$B9,1))) -> Canterbury Christ Church University | E9: 1 | F9: 1 | G9: 1 | H9: 1 | I9: 1 | J9: 1 | K9: 1 | L9: 0.9979390681 | M9: 1 | N9: 1 | O9: 1 | P9: 1 | Q9: =IF($B9="","",IF(COUNTIF(E9:P9,"<>"&0)<12,"<12 Months",AVERAGE(E9:P9))) -> 0.9998282557
A10: 'CA_Rolling'!W105:W30000 | B10: 105 | C10: CA01133 | D10: =IF($B10="","",(INDEX(CA_Rolling!$C:$C,$B10,1))) -> Canterbury Christ Church University | E10: 1 | F10: 1 | G10: 1 | H10: 1 | I10: 1 | J10: 1 | K10: 1 | L10: 0.9963037634 | M10: 1 | N10: 1 | O10: 1 | P10: 1 | Q10: 0.9996919803
A11: 'CA_Rolling'!W106:W30000 | B11: 106 | C11: CA01165 | D11: =IF($B11="","",(INDEX(CA_Rolling!$C:$C,$B11,1))) -> Canterbury College | E11: 1 | F11: 1 | G11: 1 | H11: 1 | I11: 1 | J11: 1 | K11: 1 | L11: 1 | M11: 1 | N11: 1 | O11: 1 | P11: 1 | Q11: 1
A12: 'CA_Rolling'!W107:W30000 | B12: 107 | C12: CA00166 | D12: =IF($B12="","",(INDEX(CA_Rolling!$C:$C,$B12,1))) -> Canterbury College | E12: 1 | F12: 1 | G12: 1 | H12: 1 | I12: 1 | J12: 1 | K12: 1 | L12: 0.9979390681 | M12: 1 | N12: 1 | O12: 1 | P12: 1 | Q12: 0.9998282557
A13: 'CA_Rolling'!W108:W30000 | B13: 203 | C13: CA00178 | D13: =IF($B13="","",(INDEX(CA_Rolling!$C:$C,$B13,1))) -> East Kent College | E13: 1 | F13: 1 | G13: 1 | H13: 1 | I13: 1 | J13: 1 | K13: 1 | L13: 1 | M13: 1 | N13: 1 | O13: 1 | P13: 1 | Q13: 1
A14: 'CA_Rolling'!W204:W30000 | B14: 204 | C14: CA01262 | D14: =IF($B14="","",(INDEX(CA_Rolling!$C:$C,$B14,1))) -> East Kent College | E14: 0 | F14: 0 | G14: 0 | H14: 0 | I14: 0 | J14: 0 | K14: 1 | L14: 1 | M14: 1 | N14: 1 | O14: 1 | P14: 1 | Q14: <12 Months
A15: 'CA_Rolling'!W205:W30000 | B15: 205 | C15: CA01156 | D15: =IF($B15="","",(INDEX(CA_Rolling!$C:$C,$B15,1))) -> East Malling Research | E15: 1 | F15: 1 | G15: 1 | H15: 1 | I15: 1 | J15: 1 | K15: 1 | L15: 0.9979390681 | M15: 1 | N15: 1 | O15: 1 | P15: 1 | Q15: 0.9998282557
A16: 'CA_Rolling'!W206:W30000 | B16: 292 | C16: CA00168 | D16: =IF($B16="","",(INDEX(CA_Rolling!$C:$C,$B16,1))) -> Hadlow College | E16: 1 | F16: 1 | G16: 1 | H16: 1 | I16: 1 | J16: 1 | K16: 1 | L16: 0.9979390681 | M16: 1 | N16: 1 | O16: 1 | P16: 1 | Q16: 0.9998282557
A17: 'CA_Rolling'!W293:W30000 | B17: 293 | C17: CA01233 | D17: =IF($B17="","",(INDEX(CA_Rolling!$C:$C,$B17,1))) -> Hadlow College | E17: 0.9737007168 | F17: 1 | G17: 1 | H17: 0.9861574074 | I17: 1 | J17: 1 | K17: 1 | L17: 1 | M17: 1 | N17: 1 | O17: 1 | P17: 1 | Q17: 0.9966548437
A18: 'CA_Rolling'!W294:W30000 | B18: 294 | C18: CA01127 | D18: =IF($B18="","",(INDEX(CA_Rolling!$C:$C,$B18,1))) -> Hadlow College | E18: 1 | F18: 1 | G18: 1 | H18: 1 | I18: 1 | J18: 1 | K18: 1 | L18: 1 | M18: 1 | N18: 1 | O18: 1 | P18: 1 | Q18: 1
A19: 'CA_Rolling'!W295:W30000 | B19: 295 | C19: CA01128 | D19: =IF($B19="","",(INDEX(CA_Rolling!$C:$C,$B19,1))) -> Hadlow College | E19: 1 | F19: 1 | G19: 1 | H19: 1 | I19: 1 | J19: 1 | K19: 1 | L19: 1 | M19: 1 | N19: 1 | O19: 1 | P19: 1 | Q19: 1
A20: 'CA_Rolling'!W296:W30000 | B20: 326 | C20: CA00169 | D20: =IF($B20="","",(INDEX(CA_Rolling!$C:$C,$B20,1))) -> Hilderstone College | E20: 1 | F20: 1 | G20: 1 | H20: 1 | I20: 1 | J20: 1 | K20: 1 | L20: 1 | M20: 1 | N20: 1 | O20: 1 | P20: 1 | Q20: 1
A21: 'CA_Rolling'!W327:W30000 | B21: 339 | C21: CA00170 | D21: =IF($B21="","",(INDEX(CA_Rolling!$C:$C,$B21,1))) -> ifs University College | E21: 1 | F21: 1 | G21: 1 | H21: =IF($B21="","",(SUMIFS(INDIRECT(availability_col),INDIRECT(availability_caid_col),$C21,INDIRECT(availability_month_col),H$7))) -> 1 | I21: 1 | J21: 1 | K21: 1 | L21: 1 | M21: 1 | N21: 1 | O21: 1 | P21: 1 | Q21: 1
A22: 'CA_Rolling'!W340:W30000 | B22: 358 | C22: CA01003 | D22: =IF($B22="","",(INDEX(CA_Rolling!$C:$C,$B22,1))) -> Kent County Council | E22: 1 | F22: 1 | G22: 1 | H22: 1 | I22: 1 | J22: 1 | K22: 1 | L22: 1 | M22: 1 | N22: 1 | O22: 1 | P22: 1 | Q22: 1
A23: 'CA_Rolling'!W359:W30000 | B23: 443 | C23: CA00174 | D23: =IF($B23="","",(INDEX(CA_Rolling!$C:$C,$B23,1))) -> Medway Council | E23: 1 | F23: 1 | G23: 1 | H23: 1 | I23: 1 | J23: 1 | K23: 1 | L23: 1 | M23: 1 | N23: 1 | O23: 0.9973842593 | P23: 1 | Q23: 0.9997820216
A24: 'CA_Rolling'!W444:W30000 | B24: 451 | C24: CA00175 | D24: =IF($B24="","",(INDEX(CA_Rolling!$C:$C,$B24,1))) -> MidKent College | E24: 1 | F24: 1 | G24: 1 | H24: 1 | I24: 1 | J24: 1 | K24: 1 | L24: 1 | M24: 1 | N24: 1 | O24: 1 | P24: 1 | Q24: 1
A25: 'CA_Rolling'!W452:W30000 | B25: 516 | C25: CA00176 | D25: =IF($B25="","",(INDEX(CA_Rolling!$C:$C,$B25,1))) -> North West Kent College of Technology | E25: 1 | F25: 1 | G25: 1 | H25: 1 | I25: 1 | J25: 1 | K25: 1 | L25: 1 | M25: 1 | N25: 1 | O25: 1 | P25: 1 | Q25: 1
A26: 'CA_Rolling'!W517:W30000 | B26: 608 | C26: CA00167 | D26: =IF($B26="","",(INDEX(CA_Rolling!$C:$C,$B26,1))) -> Royal London Society for the Blind | E26: 1 | F26: 1 | G26: 1 | H26: 1 | I26: 1 | J26: 1 | K26: 1 | L26: 1 | M26: 1 | N26: 1 | O26: 1 | P26: 1 | Q26: 1
A27: 'CA_Rolling'!W609:W30000 | B27: 813 | C27: CA01214 | D27: =IF($B27="","",(INDEX(CA_Rolling!$C:$C,$B27,1))) -> University for the Creative Arts | E27: 1 | F27: 1 | G27: 1 | H27: 1 | I27: 1 | J27: 1 | K27: 1 | L27: 1 | M27: 1 | N27: 0.9565636201 | O27: 1 | P27: 1 | Q27: 0.9963803017
A28: 'CA_Rolling'!W814:W30000 | B28: 817 | C28: CA01166 | D28: =IF($B28="","",(INDEX(CA_Rolling!$C:$C,$B28,1))) -> University for the Creative Arts | E28: 1 | F28: 1 | G28: 1 | H28: 1 | I28: 1 | J28: 1 | K28: 1 | L28: 1 | M28: 1 | N28: 1 | O28: 1 | P28: 1 | Q28: 1
A29: 'CA_Rolling'!W818:W30000 | B29: 854 | C29: CA01153 | D29: =IF($B29="","",(INDEX(CA_Rolling!$C:$C,$B29,1))) -> University of Greenwich | E29: 1 | F29: 1 | G29: 1 | H29: 1 | I29: 1 | J29: 1 | K29: 1 | L29: 1 | M29: 1 | N29: 1 | O29: 1 | P29: 1 | Q29: 1
A30: 'CA_Rolling'!W855:W30000 | B30: 861 | C30: CA00171 | D30: =IF($B30="","",(INDEX(CA_Rolling!$C:$C,$B30,1))) -> University of Kent | E30: 1 | F30: 1 | G30: 1 | H30: 1 | I30: 1 | J30: 1 | K30: 1 | L30: 1 | M30: 1 | N30: 1 | O30: 1 | P30: 1 | Q30: 1
A31: 'CA_Rolling'!W862:W30000 | B31: 862 | C31: CA01151 | D31: =IF($B31="","",(INDEX(CA_Rolling!$C:$C,$B31,1))) -> University of Kent | E31: 1 | F31: 1 | G31: 1 | H31: 1 | I31: 1 | J31: 1 | K31: 1 | L31: 0.9979390681 | M31: 1 | N31: 1 | O31: 1 | P31: 1 | Q31: 0.9998282557
A32: 'CA_Rolling'!W863:W30000 | B32: 933 | C32: CA01193 | D32: =IF($B32="","",(INDEX(CA_Rolling!$C:$C,$B32,1))) -> West Kent and Ashford College | E32: 1 | F32: 1 | G32: 1 | H32: 1 | I32: 1 | J32: 1 | K32: 1 | L32: 1 | M32: 0 | N32: 0 | O32: 0 | P32: 1 | Q32: <12 Months
A33: 'CA_Rolling'!W934:W30000 | B33: 934 | C33: CA00180 | D33: =IF($B33="","",(INDEX(CA_Rolling!$C:$C,$B33,1))) -> West Kent and Ashford College | E33: 1 | F33: 1 | G33: 1 | H33: 1 | I33: 1 | J33: 1 | K33: 1 | L33: 0.9979390681 | M33: 1 | N33: 1 | O33: 1 | P33: 1 | Q33: 0.9998282557
A34: 'CA_Rolling'!W935:W30000 | B34: 935 | C34: CA00177 | D34: =IF($B34="","",(INDEX(CA_Rolling!$C:$C,$B34,1))) -> West Kent and Ashford College | E34: 1 | F34: 1 | G34: 1 | H34: 1 | I34: 1 | J34: 1 | K34: 1 | L34: 0.9979390681 | M34: 1 | N34: 1 | O34: 1 | P34: 1 | Q34: 0.9998282557
A35: 'CA_Rolling'!W936:W30000 | B35: 972 | C35: CA00181 | D35: =IF($B35="","",(INDEX(CA_Rolling!$C:$C,$B35,1))) -> Workers' Educational Association | E35: 1 | F35: 1 | G35: 1 | H35: 1 | I35: 1 | J35: 1 | K35: 1 | L35: 1 | M35: 1 | N35: 1 | O35: 0.9991666667 | P35: 1 | Q35: 0.9999305556
A36: 'CA_Rolling'!W973:W30000 | D36: =IF($B36="","",(INDEX(CA_Rolling!$C:$C,$B36,1))) -> 
D37: =IF($B37="","",(INDEX(CA_Rolling!$C:$C,$B37,1))) -> 
D38: =IF($B38="","",(INDEX(CA_Rolling!$C:$C,$B38,1))) -> 
D39: =IF($B39="","",(INDEX(CA_Rolling!$C:$C,$B39,1))) -> 
D40: =IF($B40="","",(INDEX(CA_Rolling!$C:$C,$B40,1))) -> 
D41: =IF($B41="","",(INDEX(CA_Rolling!$C:$C,$B41,1))) -> 
D42: =IF($B42="","",(INDEX(CA_Rolling!$C:$C,$B42,1))) ->  | K42: =IF($B42="","",(SUMIFS(INDIRECT(availability_col),INDIRECT(availability_caid_col),$C42,INDIRECT(availability_month_col),K$7))) -> 
D43: =IF($B43="","",(INDEX(CA_Rolling!$C:$C,$B43,1))) -> 
D44: =IF($B44="","",(INDEX(CA_Rolling!$C:$C,$B44,1))) -> 
D45: =IF($B45="","",(INDEX(CA_Rolling!$C:$C,$B45,1))) -> 
D46: =IF($B46="","",(INDEX(CA_Rolling!$C:$C,$B46,1))) -> 
D47: =IF($B47="","",(INDEX(CA_Rolling!$C:$C,$B47,1))) -> 
D48: =IF($B48="","",(INDEX(CA_Rolling!$C:$C,$B48,1))) -> 
D49: =IF($B49="","",(INDEX(CA_Rolling!$C:$C,$B49,1))) -> 
D50: =IF($B50="","",(INDEX(CA_Rolling!$C:$C,$B50,1))) -> 
D51: =IF($B51="","",(INDEX(CA_Rolling!$C:$C,$B51,1))) -> 
D52: =IF($B52="","",(INDEX(CA_Rolling!$C:$C,$B52,1))) -> 
D53: =IF($B53="","",(INDEX(CA_Rolling!$C:$C,$B53,1))) -> 
D54: =IF($B54="","",(INDEX(CA_Rolling!$C:$C,$B54,1))) -> 
D55: =IF($B55="","",(INDEX(CA_Rolling!$C:$C,$B55,1))) -> 
D56: =IF($B56="","",(INDEX(CA_Rolling!$C:$C,$B56,1))) -> 
D57: =IF($B57="","",(INDEX(CA_Rolling!$C:$C,$B57,1))) -> 
D58: =IF($B58="","",(INDEX(CA_Rolling!$C:$C,$B58,1))) -> 
D59: =IF($B59="","",(INDEX(CA_Rolling!$C:$C,$B59,1))) -> 
D60: =IF($B60="","",(INDEX(CA_Rolling!$C:$C,$B60,1))) -> 
D61: =IF($B61="","",(INDEX(CA_Rolling!$C:$C,$B61,1))) -> 
D62: =IF($B62="","",(INDEX(CA_Rolling!$C:$C,$B62,1))) -> 
D63: =IF($B63="","",(INDEX(CA_Rolling!$C:$C,$B63,1))) ->  | N63: =IF($B63="","",(SUMIFS(INDIRECT(availability_col),INDIRECT(availability_caid_col),$C63,INDIRECT(availability_month_col),N$7))) -> 
D64: =IF($B64="","",(INDEX(CA_Rolling!$C:$C,$B64,1))) -> 
D65: =IF($B65="","",(INDEX(CA_Rolling!$C:$C,$B65,1))) -> 
D66: =IF($B66="","",(INDEX(CA_Rolling!$C:$C,$B66,1))) -> 
D67: =IF($B67="","",(INDEX(CA_Rolling!$C:$C,$B67,1))) -> 
D68: =IF($B68="","",(INDEX(CA_Rolling!$C:$C,$B68,1))) -> 
D69: =IF($B69="","",(INDEX(CA_Rolling!$C:$C,$B69,1))) -> 
D70: =IF($B70="","",(INDEX(CA_Rolling!$C:$C,$B70,1))) -> 
D71: =IF($B71="","",(INDEX(CA_Rolling!$C:$C,$B71,1))) -> 
C72: =IF($B72="","",(INDEX(INDIRECT(rolling_availability_caid_col),$B72,1))) ->  | D72: =IF($B72="","",(INDEX(CA_Rolling!$C:$C,$B72,1))) -> 
A73: =IF(B72="","","'CA_Rolling'!"&$B$5&B72+1&":"&$B$5&"30000") ->  | B73: =IF(ISERROR(MATCH("yes",INDIRECT(A73),0)),"",MATCH("yes",INDIRECT(A73),0)+B72) ->  | D73: =IF($B73="","",(INDEX(CA_Rolling!$C:$C,$B73,1))) ->  | Q73: =IF($B73="","",IF(COUNTIF(E73:P73,"<>"&0)<12,"<12 Months",AVERAGE(E73:P73))) -> 
D74: =IF($B74="","",(INDEX(CA_Rolling!$C:$C,$B74,1))) -> 
D75: =IF($B75="","",(INDEX(CA_Rolling!$C:$C,$B75,1))) -> 
D76: =IF($B76="","",(INDEX(CA_Rolling!$C:$C,$B76,1))) -> 
D77: =IF($B77="","",(INDEX(CA_Rolling!$C:$C,$B77,1))) -> 
D78: =IF($B78="","",(INDEX(CA_Rolling!$C:$C,$B78,1))) -> 
D79: =IF($B79="","",(INDEX(CA_Rolling!$C:$C,$B79,1))) -> 
D80: =IF($B80="","",(INDEX(CA_Rolling!$C:$C,$B80,1))) -> 
D81: =IF($B81="","",(INDEX(CA_Rolling!$C:$C,$B81,1))) -> 
D82: =IF($B82="","",(INDEX(CA_Rolling!$C:$C,$B82,1))) -> 
D83: =IF($B83="","",(INDEX(CA_Rolling!$C:$C,$B83,1))) -> 
D84: =IF($B84="","",(INDEX(CA_Rolling!$C:$C,$B84,1))) -> 
D85: =IF($B85="","",(INDEX(CA_Rolling!$C:$C,$B85,1))) ->  | E85: =IF($B85="","",(SUMIFS(INDIRECT(availability_col),INDIRECT(availability_caid_col),$C85,INDIRECT(availability_month_col),E$7))) -> 
D86: =IF($B86="","",(INDEX(CA_Rolling!$C:$C,$B86,1))) -> 
D87: =IF($B87="","",(INDEX(CA_Rolling!$C:$C,$B87,1))) -> 
D88: =IF($B88="","",(INDEX(CA_Rolling!$C:$C,$B88,1))) -> 
D89: =IF($B89="","",(INDEX(CA_Rolling!$C:$C,$B89,1))) -> 
D90: =IF($B90="","",(INDEX(CA_Rolling!$C:$C,$B90,1))) -> 
D91: =IF($B91="","",(INDEX(CA_Rolling!$C:$C,$B91,1))) -> 
D92: =IF($B92="","",(INDEX(CA_Rolling!$C:$C,$B92,1))) -> 
D93: =IF($B93="","",(INDEX(CA_Rolling!$C:$C,$B93,1))) -> 
D94: =IF($B94="","",(INDEX(CA_Rolling!$C:$C,$B94,1))) -> 
D95: =IF($B95="","",(INDEX(CA_Rolling!$C:$C,$B95,1))) -> 
D96: =IF($B96="","",(INDEX(CA_Rolling!$C:$C,$B96,1))) -> 
D97: =IF($B97="","",(INDEX(CA_Rolling!$C:$C,$B97,1))) -> 
D98: =IF($B98="","",(INDEX(CA_Rolling!$C:$C,$B98,1))) -> 
D99: =IF($B99="","",(INDEX(CA_Rolling!$C:$C,$B99,1))) -> 
D100: =IF($B100="","",(INDEX(CA_Rolling!$C:$C,$B100,1))) -> 
D101: =IF($B101="","",(INDEX(CA_Rolling!$C:$C,$B101,1))) -> 
D102: =IF($B102="","",(INDEX(CA_Rolling!$C:$C,$B102,1))) -> 
D103: =IF($B103="","",(INDEX(CA_Rolling!$C:$C,$B103,1))) -> 
D104: =IF($B104="","",(INDEX(CA_Rolling!$C:$C,$B104,1))) -> 
D105: =IF($B105="","",(INDEX(CA_Rolling!$C:$C,$B105,1))) -> 
D106: =IF($B106="","",(INDEX(CA_Rolling!$C:$C,$B106,1))) ->  | H106: =IF($B106="","",(SUMIFS(INDIRECT(availability_col),INDIRECT(availability_caid_col),$C106,INDIRECT(availability_month_col),H$7))) -> 
D107: =IF($B107="","",(INDEX(CA_Rolling!$C:$C,$B107,1))) -> 
D108: =IF($B108="","",(INDEX(CA_Rolling!$C:$C,$B108,1))) -> 
D109: =IF($B109="","",(INDEX(CA_Rolling!$C:$C,$B109,1))) -> 
D110: =IF($B110="","",(INDEX(CA_Rolling!$C:$C,$B110,1))) -> 
D111: =IF($B111="","",(INDEX(CA_Rolling!$C:$C,$B111,1))) -> 
D112: =IF($B112="","",(INDEX(CA_Rolling!$C:$C,$B112,1))) -> 
D113: =IF($B113="","",(INDEX(CA_Rolling!$C:$C,$B113,1))) -> 
D114: =IF($B114="","",(INDEX(CA_Rolling!$C:$C,$B114,1))) -> 
D115: =IF($B115="","",(INDEX(CA_Rolling!$C:$C,$B115,1))) -> 
D116: =IF($B116="","",(INDEX(CA_Rolling!$C:$C,$B116,1))) -> 
D117: =IF($B117="","",(INDEX(CA_Rolling!$C:$C,$B117,1))) -> 
D118: =IF($B118="","",(INDEX(CA_Rolling!$C:$C,$B118,1))) -> 
D119: =IF($B119="","",(INDEX(CA_Rolling!$C:$C,$B119,1))) -> 
D120: =IF($B120="","",(INDEX(CA_Rolling!$C:$C,$B120,1))) -> 
D121: =IF($B121="","",(INDEX(CA_Rolling!$C:$C,$B121,1))) -> 
D122: =IF($B122="","",(INDEX(CA_Rolling!$C:$C,$B122,1))) -> 
D123: =IF($B123="","",(INDEX(CA_Rolling!$C:$C,$B123,1))) -> 
D124: =IF($B124="","",(INDEX(CA_Rolling!$C:$C,$B124,1))) -> 
D125: =IF($B125="","",(INDEX(CA_Rolling!$C:$C,$B125,1))) -> 
D126: =IF($B126="","",(INDEX(CA_Rolling!$C:$C,$B126,1))) -> 
D127: =IF($B127="","",(INDEX(CA_Rolling!$C:$C,$B127,1))) ->  | K127: =IF($B127="","",(SUMIFS(INDIRECT(availability_col),INDIRECT(availability_caid_col),$C127,INDIRECT(availability_month_col),K$7))) -> 
D128: =IF($B128="","",(INDEX(CA_Rolling!$C:$C,$B128,1))) -> 
D129: =IF($B129="","",(INDEX(CA_Rolling!$C:$C,$B129,1))) -> 
D130: =IF($B130="","",(INDEX(CA_Rolling!$C:$C,$B130,1))) -> 
D131: =IF($B131="","",(INDEX(CA_Rolling!$C:$C,$B131,1))) -> 
D132: =IF($B132="","",(INDEX(CA_Rolling!$C:$C,$B132,1))) -> 
D133: =IF($B133="","",(INDEX(CA_Rolling!$C:$C,$B133,1))) -> 
D134: =IF($B134="","",(INDEX(CA_Rolling!$C:$C,$B134,1))) -> 
D135: =IF($B135="","",(INDEX(CA_Rolling!$C:$C,$B135,1))) -> 
C136: =IF($B136="","",(INDEX(INDIRECT(rolling_availability_caid_col),$B136,1))) ->  | D136: =IF($B136="","",(INDEX(CA_Rolling!$C:$C,$B136,1))) -> 
A137: =IF(B136="","","'CA_Rolling'!"&$B$5&B136+1&":"&$B$5&"30000") ->  | B137: =IF(ISERROR(MATCH("yes",INDIRECT(A137),0)),"",MATCH("yes",INDIRECT(A137),0)+B136) ->  | D137: =IF($B137="","",(INDEX(CA_Rolling!$C:$C,$B137,1))) ->  | Q137: =IF($B137="","",IF(COUNTIF(E137:P137,"<>"&0)<12,"<12 Months",AVERAGE(E137:P137))) -> 
D138: =IF($B138="","",(INDEX(CA_Rolling!$C:$C,$B138,1))) -> 
D139: =IF($B139="","",(INDEX(CA_Rolling!$C:$C,$B139,1))) -> 
D140: =IF($B140="","",(INDEX(CA_Rolling!$C:$C,$B140,1))) -> 
D141: =IF($B141="","",(INDEX(CA_Rolling!$C:$C,$B141,1))) -> 
D142: =IF($B142="","",(INDEX(CA_Rolling!$C:$C,$B142,1))) -> 
D143: =IF($B143="","",(INDEX(CA_Rolling!$C:$C,$B143,1))) -> 
D144: =IF($B144="","",(INDEX(CA_Rolling!$C:$C,$B144,1))) -> 
D145: =IF($B145="","",(INDEX(CA_Rolling!$C:$C,$B145,1))) -> 
D146: =IF($B146="","",(INDEX(CA_Rolling!$C:$C,$B146,1))) -> 
D147: =IF($B147="","",(INDEX(CA_Rolling!$C:$C,$B147,1))) -> 
D148: =IF($B148="","",(INDEX(CA_Rolling!$C:$C,$B148,1))) ->  | N148: =IF($B148="","",(SUMIFS(INDIRECT(availability_col),INDIRECT(availability_caid_col),$C148,INDIRECT(availability_month_col),N$7))) -> 
D149: =IF($B149="","",(INDEX(CA_Rolling!$C:$C,$B149,1))) -> 
D150: =IF($B150="","",(INDEX(CA_Rolling!$C:$C,$B150,1))) -> 
D151: =IF($B151="","",(INDEX(CA_Rolling!$C:$C,$B151,1))) -> 
D152: =IF($B152="","",(INDEX(CA_Rolling!$C:$C,$B152,1))) -> 
D153: =IF($B153="","",(INDEX(CA_Rolling!$C:$C,$B153,1))) -> 
D154: =IF($B154="","",(INDEX(CA_Rolling!$C:$C,$B154,1))) -> 
D155: =IF($B155="","",(INDEX(CA_Rolling!$C:$C,$B155,1))) -> 
D156: =IF($B156="","",(INDEX(CA_Rolling!$C:$C,$B156,1))) -> 
D157: =IF($B157="","",(INDEX(CA_Rolling!$C:$C,$B157,1))) -> 
D158: =IF($B158="","",(INDEX(CA_Rolling!$C:$C,$B158,1))) -> 
D159: =IF($B159="","",(INDEX(CA_Rolling!$C:$C,$B159,1))) -> 
D160: =IF($B160="","",(INDEX(CA_Rolling!$C:$C,$B160,1))) -> 
D161: =IF($B161="","",(INDEX(CA_Rolling!$C:$C,$B161,1))) -> 
D162: =IF($B162="","",(INDEX(CA_Rolling!$C:$C,$B162,1))) -> 
D163: =IF($B163="","",(INDEX(CA_Rolling!$C:$C,$B163,1))) -> 
D164: =IF($B164="","",(INDEX(CA_Rolling!$C:$C,$B164,1))) -> 
D165: =IF($B165="","",(INDEX(CA_Rolling!$C:$C,$B165,1))) -> 
D166: =IF($B166="","",(INDEX(CA_Rolling!$C:$C,$B166,1))) -> 
D167: =IF($B167="","",(INDEX(CA_Rolling!$C:$C,$B167,1))) -> 
D168: =IF($B168="","",(INDEX(CA_Rolling!$C:$C,$B168,1))) -> 
D169: =IF($B169="","",(INDEX(CA_Rolling!$C:$C,$B169,1))) -> 
D170: =IF($B170="","",(INDEX(CA_Rolling!$C:$C,$B170,1))) ->  | E170: =IF($B170="","",(SUMIFS(INDIRECT(availability_col),INDIRECT(availability_caid_col),$C170,INDIRECT(availability_month_col),E$7))) -> 
D171: =IF($B171="","",(INDEX(CA_Rolling!$C:$C,$B171,1))) -> 
D172: =IF($B172="","",(INDEX(CA_Rolling!$C:$C,$B172,1))) -> 
D173: =IF($B173="","",(INDEX(CA_Rolling!$C:$C,$B173,1))) -> 
D174: =IF($B174="","",(INDEX(CA_Rolling!$C:$C,$B174,1))) -> 
D175: =IF($B175="","",(INDEX(CA_Rolling!$C:$C,$B175,1))) -> 
D176: =IF($B176="","",(INDEX(CA_Rolling!$C:$C,$B176,1))) -> 
D177: =IF($B177="","",(INDEX(CA_Rolling!$C:$C,$B177,1))) -> 
D178: =IF($B178="","",(INDEX(CA_Rolling!$C:$C,$B178,1))) -> 
D179: =IF($B179="","",(INDEX(CA_Rolling!$C:$C,$B179,1))) -> 
D180: =IF($B180="","",(INDEX(CA_Rolling!$C:$C,$B180,1))) -> 
D181: =IF($B181="","",(INDEX(CA_Rolling!$C:$C,$B181,1))) -> 
D182: =IF($B182="","",(INDEX(CA_Rolling!$C:$C,$B182,1))) -> 
D183: =IF($B183="","",(INDEX(CA_Rolling!$C:$C,$B183,1))) -> 
D184: =IF($B184="","",(INDEX(CA_Rolling!$C:$C,$B184,1))) -> 
D185: =IF($B185="","",(INDEX(CA_Rolling!$C:$C,$B185,1))) -> 
D186: =IF($B186="","",(INDEX(CA_Rolling!$C:$C,$B186,1))) -> 
D187: =IF($B187="","",(INDEX(CA_Rolling!$C:$C,$B187,1))) -> 
D188: =IF($B188="","",(INDEX(CA_Rolling!$C:$C,$B188,1))) -> 
D189: =IF($B189="","",(INDEX(CA_Rolling!$C:$C,$B189,1))) -> 
D190: =IF($B190="","",(INDEX(CA_Rolling!$C:$C,$B190,1))) -> 
D191: =IF($B191="","",(INDEX(CA_Rolling!$C:$C,$B191,1))) ->  | H191: =IF($B191="","",(SUMIFS(INDIRECT(availability_col),INDIRECT(availability_caid_col),$C191,INDIRECT(availability_month_col),H$7))) -> 
D192: =IF($B192="","",(INDEX(CA_Rolling!$C:$C,$B192,1))) -> 
D193: =IF($B193="","",(INDEX(CA_Rolling!$C:$C,$B193,1))) -> 
D194: =IF($B194="","",(INDEX(CA_Rolling!$C:$C,$B194,1))) -> 
D195: =IF($B195="","",(INDEX(CA_Rolling!$C:$C,$B195,1))) -> 
D196: =IF($B196="","",(INDEX(CA_Rolling!$C:$C,$B196,1))) -> 
D197: =IF($B197="","",(INDEX(CA_Rolling!$C:$C,$B197,1))) -> 
D198: =IF($B198="","",(INDEX(CA_Rolling!$C:$C,$B198,1))) -> 
D199: =IF($B199="","",(INDEX(CA_Rolling!$C:$C,$B199,1))) -> 
C200: =IF($B200="","",(INDEX(INDIRECT(rolling_availability_caid_col),$B200,1))) ->  | D200: =IF($B200="","",(INDEX(CA_Rolling!$C:$C,$B200,1))) -> 
... 103 more rows

Sheet Outages
A1: Column Header | B1: Outage_in_selected_region_this_month | D1: Connection outages this month
A2: Column Number | B2: =SUBSTITUTE(ADDRESS(1,MATCH(B1,'AD Outage data'!1:1,0),4),"1","") -> AA | D2: Maintenance outages are included in this table - only unscheduled maintenance is counted against availability.
B3: Row Index
A4: Adjusted Range | B4: 0 | C4: AD_ID | D4: Connection | E4: Start Date and Time | F4: End Date and Time | G4: Parking hh:mm | H4: Duration hh:mm | I4: Fault Type | J4: Description
A5: =IF(B4="","","'AD Outage data'!"&$B$2&B4+1&":"&$B$2&"30000") -> 'AD Outage data'!AA1:AA30000 | B5: =IF(ISERROR(MATCH("yes",INDIRECT(A5),0)),"",MATCH("yes",INDIRECT(A5),0)+B4) -> 5531 | C5: =IF($B5="","",(INDEX(INDIRECT(outage_adid_col),$B5,1))) -> AD01234 | D5: =IF($B5="","No outages",(INDEX('AD Outage data'!D:D,$B5,1))) -> Canterbury Christ Church University, Tunbridge Wells | E5: =IF($B5="","",(INDEX('AD Outage data'!G:G,$B5,1))) -> 2014-12-05T16:55:00 | F5: =IF($B5="","",(INDEX('AD Outage data'!H:H,$B5,1))) -> 2014-12-05T17:59:00 | G5: =IF($B5="","",((INDEX('AD Outage data'!I:I,$B5,1))/(24*60))) -> 00:00:00 | H5: =IF($B5="","",((INDEX('AD Outage data'!J:J,$B5,1))/(24*60))) -> 01:04:00 | I5: =IF($B5="","",(INDEX('AD Outage data'!Z:Z,$B5,1))) -> Customer Environment | J5: =IF($B5="","",(INDEX('AD Outage data'!M:M,$B5,1))) -> Power issues at Canterbury Christ Church University
A6: =IF(B5="","","'AD Outage data'!"&$B$2&B5+1&":"&$B$2&"30000") -> 'AD Outage data'!AA5532:AA30000 | B6: =IF(ISERROR(MATCH("yes",INDIRECT(A6),0)),"",MATCH("yes",INDIRECT(A6),0)+B5) -> 5656 | C6: AD01366 | D6: =IF($B6="","",(INDEX('AD Outage data'!D:D,$B6,1))) -> West Kent and Ashford College, Dover Campus | E6: =IF($B6="","",(INDEX('AD Outage data'!G:G,$B6,1))) -> 2014-12-17T07:35:00 | F6: =IF($B6="","",(INDEX('AD Outage data'!H:H,$B6,1))) -> 2014-12-17T08:45:00 | G6: =IF($B6="","",((INDEX('AD Outage data'!I:I,$B6,1))/(24*60))) -> 01:10:00 | H6: =IF($B6="","",((INDEX('AD Outage data'!J:J,$B6,1))/(24*60))) -> 00:00:00 | I6: =IF($B6="","",(INDEX('AD Outage data'!Z:Z,$B6,1))) -> Regional Equipment | J6: =IF($B6="","",(INDEX('AD Outage data'!M:M,$B6,1))) -> Equipment crashed
A7: 'AD Outage data'!AA5657:AA30000 | B7: 5680 | C7: AD01366 | D7: =IF($B7="","",(INDEX('AD Outage data'!D:D,$B7,1))) -> West Kent and Ashford College, Dover Campus | E7: =IF($B7="","",(INDEX('AD Outage data'!G:G,$B7,1))) -> 2014-12-20T12:20:00 | F7: =IF($B7="","",(INDEX('AD Outage data'!H:H,$B7,1))) -> 2014-12-20T13:24:00 | G7: =IF($B7="","",((INDEX('AD Outage data'!I:I,$B7,1))/(24*60))) -> 00:00:00 | H7: =IF($B7="","",((INDEX('AD Outage data'!J:J,$B7,1))/(24*60))) -> 01:04:00 | I7: =IF($B7="","",(INDEX('AD Outage data'!Z:Z,$B7,1))) -> Customer Maintenance | J7: =IF($B7="","",(INDEX('AD Outage data'!M:M,$B7,1))) -> Site building work cut off the kit (64, 40, 25 & 8 minutes)
A8: 'AD Outage data'!AA5681:AA30000 | B8: 5688 | C8: AD01366 | D8: =IF($B8="","",(INDEX('AD Outage data'!D:D,$B8,1))) -> West Kent and Ashford College, Dover Campus | E8: =IF($B8="","",(INDEX('AD Outage data'!G:G,$B8,1))) -> 2014-12-22T09:50:00 | F8: =IF($B8="","",(INDEX('AD Outage data'!H:H,$B8,1))) -> 2014-12-22T10:15:00 | G8: =IF($B8="","",((INDEX('AD Outage data'!I:I,$B8,1))/(24*60))) -> 00:00:00 | H8: =IF($B8="","",((INDEX('AD Outage data'!J:J,$B8,1))/(24*60))) -> 00:25:00 | I8: =IF($B8="","",(INDEX('AD Outage data'!Z:Z,$B8,1))) -> Customer Maintenance | J8: =IF($B8="","",(INDEX('AD Outage data'!M:M,$B8,1))) -> Site building work cut off the kit
A9: 'AD Outage data'!AA5689:AA30000 | B9: 5697 | C9: AD01366 | D9: =IF($B9="","",(INDEX('AD Outage data'!D:D,$B9,1))) -> West Kent and Ashford College, Dover Campus | E9: =IF($B9="","",(INDEX('AD Outage data'!G:G,$B9,1))) -> 2014-12-22T16:40:00 | F9: =IF($B9="","",(INDEX('AD Outage data'!H:H,$B9,1))) -> 2014-12-22T17:20:00 | G9: =IF($B9="","",((INDEX('AD Outage data'!I:I,$B9,1))/(24*60))) -> 00:00:00 | H9: =IF($B9="","",((INDEX('AD Outage data'!J:J,$B9,1))/(24*60))) -> 00:40:00 | I9: =IF($B9="","",(INDEX('AD Outage data'!Z:Z,$B9,1))) -> Customer Maintenance | J9: =IF($B9="","",(INDEX('AD Outage data'!M:M,$B9,1))) -> Site maintenance
A10: 'AD Outage data'!AA5698:AA30000 | B10: 5717 | C10: AD01366 | D10: =IF($B10="","",(INDEX('AD Outage data'!D:D,$B10,1))) -> West Kent and Ashford College, Dover Campus | E10: =IF($B10="","",(INDEX('AD Outage data'!G:G,$B10,1))) -> 2014-12-29T15:23:00 | F10: =IF($B10="","",(INDEX('AD Outage data'!H:H,$B10,1))) -> 2014-12-29T15:31:00 | G10: =IF($B10="","",((INDEX('AD Outage data'!I:I,$B10,1))/(24*60))) -> 00:00:00 | H10: =IF($B10="","",((INDEX('AD Outage data'!J:J,$B10,1))/(24*60))) -> 00:08:00 | I10: =IF($B10="","",(INDEX('AD Outage data'!Z:Z,$B10,1))) -> Customer Maintenance | J10: =IF($B10="","",(INDEX('AD Outage data'!M:M,$B10,1))) -> Site building work cut off the kit
A11: 'AD Outage data'!AA5718:AA30000 | D11: =IF($B11="","",(INDEX('AD Outage data'!D:D,$B11,1))) ->  | E11: =IF($B11="","",(INDEX('AD Outage data'!G:G,$B11,1))) ->  | F11: =IF($B11="","",(INDEX('AD Outage data'!H:H,$B11,1))) ->  | G11: =IF($B11="","",((INDEX('AD Outage data'!I:I,$B11,1))/(24*60))) ->  | H11: =IF($B11="","",((INDEX('AD Outage data'!J:J,$B11,1))/(24*60))) ->  | I11: =IF($B11="","",(INDEX('AD Outage data'!Z:Z,$B11,1))) ->  | J11: =IF($B11="","",(INDEX('AD Outage data'!M:M,$B11,1))) -> 
D12: =IF($B12="","",(INDEX('AD Outage data'!D:D,$B12,1))) ->  | E12: =IF($B12="","",(INDEX('AD Outage data'!G:G,$B12,1))) ->  | F12: =IF($B12="","",(INDEX('AD Outage data'!H:H,$B12,1))) ->  | G12: =IF($B12="","",((INDEX('AD Outage data'!I:I,$B12,1))/(24*60))) ->  | H12: =IF($B12="","",((INDEX('AD Outage data'!J:J,$B12,1))/(24*60))) ->  | I12: =IF($B12="","",(INDEX('AD Outage data'!Z:Z,$B12,1))) ->  | J12: =IF($B12="","",(INDEX('AD Outage data'!M:M,$B12,1))) -> 
D13: =IF($B13="","",(INDEX('AD Outage data'!D:D,$B13,1))) ->  | E13: =IF($B13="","",(INDEX('AD Outage data'!G:G,$B13,1))) ->  | F13: =IF($B13="","",(INDEX('AD Outage data'!H:H,$B13,1))) ->  | G13: =IF($B13="","",((INDEX('AD Outage data'!I:I,$B13,1))/(24*60))) ->  | H13: =IF($B13="","",((INDEX('AD Outage data'!J:J,$B13,1))/(24*60))) ->  | I13: =IF($B13="","",(INDEX('AD Outage data'!Z:Z,$B13,1))) ->  | J13: =IF($B13="","",(INDEX('AD Outage data'!M:M,$B13,1))) -> 
D14: =IF($B14="","",(INDEX('AD Outage data'!D:D,$B14,1))) ->  | E14: =IF($B14="","",(INDEX('AD Outage data'!G:G,$B14,1))) ->  | F14: =IF($B14="","",(INDEX('AD Outage data'!H:H,$B14,1))) ->  | G14: =IF($B14="","",((INDEX('AD Outage data'!I:I,$B14,1))/(24*60))) ->  | H14: =IF($B14="","",((INDEX('AD Outage data'!J:J,$B14,1))/(24*60))) ->  | I14: =IF($B14="","",(INDEX('AD Outage data'!Z:Z,$B14,1))) ->  | J14: =IF($B14="","",(INDEX('AD Outage data'!M:M,$B14,1))) -> 
D15: =IF($B15="","",(INDEX('AD Outage data'!D:D,$B15,1))) ->  | E15: =IF($B15="","",(INDEX('AD Outage data'!G:G,$B15,1))) ->  | F15: =IF($B15="","",(INDEX('AD Outage data'!H:H,$B15,1))) ->  | G15: =IF($B15="","",((INDEX('AD Outage data'!I:I,$B15,1))/(24*60))) ->  | H15: =IF($B15="","",((INDEX('AD Outage data'!J:J,$B15,1))/(24*60))) ->  | I15: =IF($B15="","",(INDEX('AD Outage data'!Z:Z,$B15,1))) ->  | J15: =IF($B15="","",(INDEX('AD Outage data'!M:M,$B15,1))) -> 
D16: =IF($B16="","",(INDEX('AD Outage data'!D:D,$B16,1))) ->  | E16: =IF($B16="","",(INDEX('AD Outage data'!G:G,$B16,1))) ->  | F16: =IF($B16="","",(INDEX('AD Outage data'!H:H,$B16,1))) ->  | G16: =IF($B16="","",((INDEX('AD Outage data'!I:I,$B16,1))/(24*60))) ->  | H16: =IF($B16="","",((INDEX('AD Outage data'!J:J,$B16,1))/(24*60))) ->  | I16: =IF($B16="","",(INDEX('AD Outage data'!Z:Z,$B16,1))) ->  | J16: =IF($B16="","",(INDEX('AD Outage data'!M:M,$B16,1))) -> 
D17: =IF($B17="","",(INDEX('AD Outage data'!D:D,$B17,1))) ->  | E17: =IF($B17="","",(INDEX('AD Outage data'!G:G,$B17,1))) ->  | F17: =IF($B17="","",(INDEX('AD Outage data'!H:H,$B17,1))) ->  | G17: =IF($B17="","",((INDEX('AD Outage data'!I:I,$B17,1))/(24*60))) ->  | H17: =IF($B17="","",((INDEX('AD Outage data'!J:J,$B17,1))/(24*60))) ->  | I17: =IF($B17="","",(INDEX('AD Outage data'!Z:Z,$B17,1))) ->  | J17: =IF($B17="","",(INDEX('AD Outage data'!M:M,$B17,1))) -> 
D18: =IF($B18="","",(INDEX('AD Outage data'!D:D,$B18,1))) ->  | E18: =IF($B18="","",(INDEX('AD Outage data'!G:G,$B18,1))) ->  | F18: =IF($B18="","",(INDEX('AD Outage data'!H:H,$B18,1))) ->  | G18: =IF($B18="","",((INDEX('AD Outage data'!I:I,$B18,1))/(24*60))) ->  | H18: =IF($B18="","",((INDEX('AD Outage data'!J:J,$B18,1))/(24*60))) ->  | I18: =IF($B18="","",(INDEX('AD Outage data'!Z:Z,$B18,1))) ->  | J18: =IF($B18="","",(INDEX('AD Outage data'!M:M,$B18,1))) -> 
D19: =IF($B19="","",(INDEX('AD Outage data'!D:D,$B19,1))) ->  | E19: =IF($B19="","",(INDEX('AD Outage data'!G:G,$B19,1))) ->  | F19: =IF($B19="","",(INDEX('AD Outage data'!H:H,$B19,1))) ->  | G19: =IF($B19="","",((INDEX('AD Outage data'!I:I,$B19,1))/(24*60))) ->  | H19: =IF($B19="","",((INDEX('AD Outage data'!J:J,$B19,1))/(24*60))) ->  | I19: =IF($B19="","",(INDEX('AD Outage data'!Z:Z,$B19,1))) ->  | J19: =IF($B19="","",(INDEX('AD Outage data'!M:M,$B19,1))) -> 
D20: =IF($B20="","",(INDEX('AD Outage data'!D:D,$B20,1))) ->  | E20: =IF($B20="","",(INDEX('AD Outage data'!G:G,$B20,1))) ->  | F20: =IF($B20="","",(INDEX('AD Outage data'!H:H,$B20,1))) ->  | G20: =IF($B20="","",((INDEX('AD Outage data'!I:I,$B20,1))/(24*60))) ->  | H20: =IF($B20="","",((INDEX('AD Outage data'!J:J,$B20,1))/(24*60))) ->  | I20: =IF($B20="","",(INDEX('AD Outage data'!Z:Z,$B20,1))) ->  | J20: =IF($B20="","",(INDEX('AD Outage data'!M:M,$B20,1))) -> 
D21: =IF($B21="","",(INDEX('AD Outage data'!D:D,$B21,1))) ->  | E21: =IF($B21="","",(INDEX('AD Outage data'!G:G,$B21,1))) ->  | F21: =IF($B21="","",(INDEX('AD Outage data'!H:H,$B21,1))) ->  | G21: =IF($B21="","",((INDEX('AD Outage data'!I:I,$B21,1))/(24*60))) ->  | H21: =IF($B21="","",((INDEX('AD Outage data'!J:J,$B21,1))/(24*60))) ->  | I21: =IF($B21="","",(INDEX('AD Outage data'!Z:Z,$B21,1))) ->  | J21: =IF($B21="","",(INDEX('AD Outage data'!M:M,$B21,1))) -> 
D22: =IF($B22="","",(INDEX('AD Outage data'!D:D,$B22,1))) ->  | E22: =IF($B22="","",(INDEX('AD Outage data'!G:G,$B22,1))) ->  | F22: =IF($B22="","",(INDEX('AD Outage data'!H:H,$B22,1))) ->  | G22: =IF($B22="","",((INDEX('AD Outage data'!I:I,$B22,1))/(24*60))) ->  | H22: =IF($B22="","",((INDEX('AD Outage data'!J:J,$B22,1))/(24*60))) ->  | I22: =IF($B22="","",(INDEX('AD Outage data'!Z:Z,$B22,1))) ->  | J22: =IF($B22="","",(INDEX('AD Outage data'!M:M,$B22,1))) -> 
D23: =IF($B23="","",(INDEX('AD Outage data'!D:D,$B23,1))) ->  | E23: =IF($B23="","",(INDEX('AD Outage data'!G:G,$B23,1))) ->  | F23: =IF($B23="","",(INDEX('AD Outage data'!H:H,$B23,1))) ->  | G23: =IF($B23="","",((INDEX('AD Outage data'!I:I,$B23,1))/(24*60))) ->  | H23: =IF($B23="","",((INDEX('AD Outage data'!J:J,$B23,1))/(24*60))) ->  | I23: =IF($B23="","",(INDEX('AD Outage data'!Z:Z,$B23,1))) ->  | J23: =IF($B23="","",(INDEX('AD Outage data'!M:M,$B23,1))) -> 
D24: =IF($B24="","",(INDEX('AD Outage data'!D:D,$B24,1))) ->  | E24: =IF($B24="","",(INDEX('AD Outage data'!G:G,$B24,1))) ->  | F24: =IF($B24="","",(INDEX('AD Outage data'!H:H,$B24,1))) ->  | G24: =IF($B24="","",((INDEX('AD Outage data'!I:I,$B24,1))/(24*60))) ->  | H24: =IF($B24="","",((INDEX('AD Outage data'!J:J,$B24,1))/(24*60))) ->  | I24: =IF($B24="","",(INDEX('AD Outage data'!Z:Z,$B24,1))) ->  | J24: =IF($B24="","",(INDEX('AD Outage data'!M:M,$B24,1))) -> 
D25: =IF($B25="","",(INDEX('AD Outage data'!D:D,$B25,1))) ->  | E25: =IF($B25="","",(INDEX('AD Outage data'!G:G,$B25,1))) ->  | F25: =IF($B25="","",(INDEX('AD Outage data'!H:H,$B25,1))) ->  | G25: =IF($B25="","",((INDEX('AD Outage data'!I:I,$B25,1))/(24*60))) ->  | H25: =IF($B25="","",((INDEX('AD Outage data'!J:J,$B25,1))/(24*60))) ->  | I25: =IF($B25="","",(INDEX('AD Outage data'!Z:Z,$B25,1))) ->  | J25: =IF($B25="","",(INDEX('AD Outage data'!M:M,$B25,1))) -> 
D26: =IF($B26="","",(INDEX('AD Outage data'!D:D,$B26,1))) ->  | E26: =IF($B26="","",(INDEX('AD Outage data'!G:G,$B26,1))) ->  | F26: =IF($B26="","",(INDEX('AD Outage data'!H:H,$B26,1))) ->  | G26: =IF($B26="","",((INDEX('AD Outage data'!I:I,$B26,1))/(24*60))) ->  | H26: =IF($B26="","",((INDEX('AD Outage data'!J:J,$B26,1))/(24*60))) ->  | I26: =IF($B26="","",(INDEX('AD Outage data'!Z:Z,$B26,1))) ->  | J26: =IF($B26="","",(INDEX('AD Outage data'!M:M,$B26,1))) -> 
D27: =IF($B27="","",(INDEX('AD Outage data'!D:D,$B27,1))) ->  | E27: =IF($B27="","",(INDEX('AD Outage data'!G:G,$B27,1))) ->  | F27: =IF($B27="","",(INDEX('AD Outage data'!H:H,$B27,1))) ->  | G27: =IF($B27="","",((INDEX('AD Outage data'!I:I,$B27,1))/(24*60))) ->  | H27: =IF($B27="","",((INDEX('AD Outage data'!J:J,$B27,1))/(24*60))) ->  | I27: =IF($B27="","",(INDEX('AD Outage data'!Z:Z,$B27,1))) ->  | J27: =IF($B27="","",(INDEX('AD Outage data'!M:M,$B27,1))) -> 
D28: =IF($B28="","",(INDEX('AD Outage data'!D:D,$B28,1))) ->  | E28: =IF($B28="","",(INDEX('AD Outage data'!G:G,$B28,1))) ->  | F28: =IF($B28="","",(INDEX('AD Outage data'!H:H,$B28,1))) ->  | G28: =IF($B28="","",((INDEX('AD Outage data'!I:I,$B28,1))/(24*60))) ->  | H28: =IF($B28="","",((INDEX('AD Outage data'!J:J,$B28,1))/(24*60))) ->  | I28: =IF($B28="","",(INDEX('AD Outage data'!Z:Z,$B28,1))) ->  | J28: =IF($B28="","",(INDEX('AD Outage data'!M:M,$B28,1))) -> 
D29: =IF($B29="","",(INDEX('AD Outage data'!D:D,$B29,1))) ->  | E29: =IF($B29="","",(INDEX('AD Outage data'!G:G,$B29,1))) ->  | F29: =IF($B29="","",(INDEX('AD Outage data'!H:H,$B29,1))) ->  | G29: =IF($B29="","",((INDEX('AD Outage data'!I:I,$B29,1))/(24*60))) ->  | H29: =IF($B29="","",((INDEX('AD Outage data'!J:J,$B29,1))/(24*60))) ->  | I29: =IF($B29="","",(INDEX('AD Outage data'!Z:Z,$B29,1))) ->  | J29: =IF($B29="","",(INDEX('AD Outage data'!M:M,$B29,1))) -> 
D30: =IF($B30="","",(INDEX('AD Outage data'!D:D,$B30,1))) ->  | E30: =IF($B30="","",(INDEX('AD Outage data'!G:G,$B30,1))) ->  | F30: =IF($B30="","",(INDEX('AD Outage data'!H:H,$B30,1))) ->  | G30: =IF($B30="","",((INDEX('AD Outage data'!I:I,$B30,1))/(24*60))) ->  | H30: =IF($B30="","",((INDEX('AD Outage data'!J:J,$B30,1))/(24*60))) ->  | I30: =IF($B30="","",(INDEX('AD Outage data'!Z:Z,$B30,1))) ->  | J30: =IF($B30="","",(INDEX('AD Outage data'!M:M,$B30,1))) -> 
D31: =IF($B31="","",(INDEX('AD Outage data'!D:D,$B31,1))) ->  | E31: =IF($B31="","",(INDEX('AD Outage data'!G:G,$B31,1))) ->  | F31: =IF($B31="","",(INDEX('AD Outage data'!H:H,$B31,1))) ->  | G31: =IF($B31="","",((INDEX('AD Outage data'!I:I,$B31,1))/(24*60))) ->  | H31: =IF($B31="","",((INDEX('AD Outage data'!J:J,$B31,1))/(24*60))) ->  | I31: =IF($B31="","",(INDEX('AD Outage data'!Z:Z,$B31,1))) ->  | J31: =IF($B31="","",(INDEX('AD Outage data'!M:M,$B31,1))) -> 
D32: =IF($B32="","",(INDEX('AD Outage data'!D:D,$B32,1))) ->  | E32: =IF($B32="","",(INDEX('AD Outage data'!G:G,$B32,1))) ->  | F32: =IF($B32="","",(INDEX('AD Outage data'!H:H,$B32,1))) ->  | G32: =IF($B32="","",((INDEX('AD Outage data'!I:I,$B32,1))/(24*60))) ->  | H32: =IF($B32="","",((INDEX('AD Outage data'!J:J,$B32,1))/(24*60))) ->  | I32: =IF($B32="","",(INDEX('AD Outage data'!Z:Z,$B32,1))) ->  | J32: =IF($B32="","",(INDEX('AD Outage data'!M:M,$B32,1))) -> 
D33: =IF($B33="","",(INDEX('AD Outage data'!D:D,$B33,1))) ->  | E33: =IF($B33="","",(INDEX('AD Outage data'!G:G,$B33,1))) ->  | F33: =IF($B33="","",(INDEX('AD Outage data'!H:H,$B33,1))) ->  | G33: =IF($B33="","",((INDEX('AD Outage data'!I:I,$B33,1))/(24*60))) ->  | H33: =IF($B33="","",((INDEX('AD Outage data'!J:J,$B33,1))/(24*60))) ->  | I33: =IF($B33="","",(INDEX('AD Outage data'!Z:Z,$B33,1))) ->  | J33: =IF($B33="","",(INDEX('AD Outage data'!M:M,$B33,1))) -> 
D34: =IF($B34="","",(INDEX('AD Outage data'!D:D,$B34,1))) ->  | E34: =IF($B34="","",(INDEX('AD Outage data'!G:G,$B34,1))) ->  | F34: =IF($B34="","",(INDEX('AD Outage data'!H:H,$B34,1))) ->  | G34: =IF($B34="","",((INDEX('AD Outage data'!I:I,$B34,1))/(24*60))) ->  | H34: =IF($B34="","",((INDEX('AD Outage data'!J:J,$B34,1))/(24*60))) ->  | I34: =IF($B34="","",(INDEX('AD Outage data'!Z:Z,$B34,1))) ->  | J34: =IF($B34="","",(INDEX('AD Outage data'!M:M,$B34,1))) -> 
D35: =IF($B35="","",(INDEX('AD Outage data'!D:D,$B35,1))) ->  | E35: =IF($B35="","",(INDEX('AD Outage data'!G:G,$B35,1))) ->  | F35: =IF($B35="","",(INDEX('AD Outage data'!H:H,$B35,1))) ->  | G35: =IF($B35="","",((INDEX('AD Outage data'!I:I,$B35,1))/(24*60))) ->  | H35: =IF($B35="","",((INDEX('AD Outage data'!J:J,$B35,1))/(24*60))) ->  | I35: =IF($B35="","",(INDEX('AD Outage data'!Z:Z,$B35,1))) ->  | J35: =IF($B35="","",(INDEX('AD Outage data'!M:M,$B35,1))) -> 
D36: =IF($B36="","",(INDEX('AD Outage data'!D:D,$B36,1))) ->  | E36: =IF($B36="","",(INDEX('AD Outage data'!G:G,$B36,1))) ->  | F36: =IF($B36="","",(INDEX('AD Outage data'!H:H,$B36,1))) ->  | G36: =IF($B36="","",((INDEX('AD Outage data'!I:I,$B36,1))/(24*60))) ->  | H36: =IF($B36="","",((INDEX('AD Outage data'!J:J,$B36,1))/(24*60))) ->  | I36: =IF($B36="","",(INDEX('AD Outage data'!Z:Z,$B36,1))) ->  | J36: =IF($B36="","",(INDEX('AD Outage data'!M:M,$B36,1))) -> 
D37: =IF($B37="","",(INDEX('AD Outage data'!D:D,$B37,1))) ->  | E37: =IF($B37="","",(INDEX('AD Outage data'!G:G,$B37,1))) ->  | F37: =IF($B37="","",(INDEX('AD Outage data'!H:H,$B37,1))) ->  | G37: =IF($B37="","",((INDEX('AD Outage data'!I:I,$B37,1))/(24*60))) ->  | H37: =IF($B37="","",((INDEX('AD Outage data'!J:J,$B37,1))/(24*60))) ->  | I37: =IF($B37="","",(INDEX('AD Outage data'!Z:Z,$B37,1))) ->  | J37: =IF($B37="","",(INDEX('AD Outage data'!M:M,$B37,1))) -> 
D38: =IF($B38="","",(INDEX('AD Outage data'!D:D,$B38,1))) ->  | E38: =IF($B38="","",(INDEX('AD Outage data'!G:G,$B38,1))) ->  | F38: =IF($B38="","",(INDEX('AD Outage data'!H:H,$B38,1))) ->  | G38: =IF($B38="","",((INDEX('AD Outage data'!I:I,$B38,1))/(24*60))) ->  | H38: =IF($B38="","",((INDEX('AD Outage data'!J:J,$B38,1))/(24*60))) ->  | I38: =IF($B38="","",(INDEX('AD Outage data'!Z:Z,$B38,1))) ->  | J38: =IF($B38="","",(INDEX('AD Outage data'!M:M,$B38,1))) -> 
D39: =IF($B39="","",(INDEX('AD Outage data'!D:D,$B39,1))) ->  | E39: =IF($B39="","",(INDEX('AD Outage data'!G:G,$B39,1))) ->  | F39: =IF($B39="","",(INDEX('AD Outage data'!H:H,$B39,1))) ->  | G39: =IF($B39="","",((INDEX('AD Outage data'!I:I,$B39,1))/(24*60))) ->  | H39: =IF($B39="","",((INDEX('AD Outage data'!J:J,$B39,1))/(24*60))) ->  | I39: =IF($B39="","",(INDEX('AD Outage data'!Z:Z,$B39,1))) ->  | J39: =IF($B39="","",(INDEX('AD Outage data'!M:M,$B39,1))) -> 
D40: =IF($B40="","",(INDEX('AD Outage data'!D:D,$B40,1))) ->  | E40: =IF($B40="","",(INDEX('AD Outage data'!G:G,$B40,1))) ->  | F40: =IF($B40="","",(INDEX('AD Outage data'!H:H,$B40,1))) ->  | G40: =IF($B40="","",((INDEX('AD Outage data'!I:I,$B40,1))/(24*60))) ->  | H40: =IF($B40="","",((INDEX('AD Outage data'!J:J,$B40,1))/(24*60))) ->  | I40: =IF($B40="","",(INDEX('AD Outage data'!Z:Z,$B40,1))) ->  | J40: =IF($B40="","",(INDEX('AD Outage data'!M:M,$B40,1))) -> 
D41: =IF($B41="","",(INDEX('AD Outage data'!D:D,$B41,1))) ->  | E41: =IF($B41="","",(INDEX('AD Outage data'!G:G,$B41,1))) ->  | F41: =IF($B41="","",(INDEX('AD Outage data'!H:H,$B41,1))) ->  | G41: =IF($B41="","",((INDEX('AD Outage data'!I:I,$B41,1))/(24*60))) ->  | H41: =IF($B41="","",((INDEX('AD Outage data'!J:J,$B41,1))/(24*60))) ->  | I41: =IF($B41="","",(INDEX('AD Outage data'!Z:Z,$B41,1))) ->  | J41: =IF($B41="","",(INDEX('AD Outage data'!M:M,$B41,1))) -> 
D42: =IF($B42="","",(INDEX('AD Outage data'!D:D,$B42,1))) ->  | E42: =IF($B42="","",(INDEX('AD Outage data'!G:G,$B42,1))) ->  | F42: =IF($B42="","",(INDEX('AD Outage data'!H:H,$B42,1))) ->  | G42: =IF($B42="","",((INDEX('AD Outage data'!I:I,$B42,1))/(24*60))) ->  | H42: =IF($B42="","",((INDEX('AD Outage data'!J:J,$B42,1))/(24*60))) ->  | I42: =IF($B42="","",(INDEX('AD Outage data'!Z:Z,$B42,1))) ->  | J42: =IF($B42="","",(INDEX('AD Outage data'!M:M,$B42,1))) -> 
D43: =IF($B43="","",(INDEX('AD Outage data'!D:D,$B43,1))) ->  | E43: =IF($B43="","",(INDEX('AD Outage data'!G:G,$B43,1))) ->  | F43: =IF($B43="","",(INDEX('AD Outage data'!H:H,$B43,1))) ->  | G43: =IF($B43="","",((INDEX('AD Outage data'!I:I,$B43,1))/(24*60))) ->  | H43: =IF($B43="","",((INDEX('AD Outage data'!J:J,$B43,1))/(24*60))) ->  | I43: =IF($B43="","",(INDEX('AD Outage data'!Z:Z,$B43,1))) ->  | J43: =IF($B43="","",(INDEX('AD Outage data'!M:M,$B43,1))) -> 
D44: =IF($B44="","",(INDEX('AD Outage data'!D:D,$B44,1))) ->  | E44: =IF($B44="","",(INDEX('AD Outage data'!G:G,$B44,1))) ->  | F44: =IF($B44="","",(INDEX('AD Outage data'!H:H,$B44,1))) ->  | G44: =IF($B44="","",((INDEX('AD Outage data'!I:I,$B44,1))/(24*60))) ->  | H44: =IF($B44="","",((INDEX('AD Outage data'!J:J,$B44,1))/(24*60))) ->  | I44: =IF($B44="","",(INDEX('AD Outage data'!Z:Z,$B44,1))) ->  | J44: =IF($B44="","",(INDEX('AD Outage data'!M:M,$B44,1))) -> 
D45: =IF($B45="","",(INDEX('AD Outage data'!D:D,$B45,1))) ->  | E45: =IF($B45="","",(INDEX('AD Outage data'!G:G,$B45,1))) ->  | F45: =IF($B45="","",(INDEX('AD Outage data'!H:H,$B45,1))) ->  | G45: =IF($B45="","",((INDEX('AD Outage data'!I:I,$B45,1))/(24*60))) ->  | H45: =IF($B45="","",((INDEX('AD Outage data'!J:J,$B45,1))/(24*60))) ->  | I45: =IF($B45="","",(INDEX('AD Outage data'!Z:Z,$B45,1))) ->  | J45: =IF($B45="","",(INDEX('AD Outage data'!M:M,$B45,1))) -> 
D46: =IF($B46="","",(INDEX('AD Outage data'!D:D,$B46,1))) ->  | E46: =IF($B46="","",(INDEX('AD Outage data'!G:G,$B46,1))) ->  | F46: =IF($B46="","",(INDEX('AD Outage data'!H:H,$B46,1))) ->  | G46: =IF($B46="","",((INDEX('AD Outage data'!I:I,$B46,1))/(24*60))) ->  | H46: =IF($B46="","",((INDEX('AD Outage data'!J:J,$B46,1))/(24*60))) ->  | I46: =IF($B46="","",(INDEX('AD Outage data'!Z:Z,$B46,1))) ->  | J46: =IF($B46="","",(INDEX('AD Outage data'!M:M,$B46,1))) -> 
D47: =IF($B47="","",(INDEX('AD Outage data'!D:D,$B47,1))) ->  | E47: =IF($B47="","",(INDEX('AD Outage data'!G:G,$B47,1))) ->  | F47: =IF($B47="","",(INDEX('AD Outage data'!H:H,$B47,1))) ->  | G47: =IF($B47="","",((INDEX('AD Outage data'!I:I,$B47,1))/(24*60))) ->  | H47: =IF($B47="","",((INDEX('AD Outage data'!J:J,$B47,1))/(24*60))) ->  | I47: =IF($B47="","",(INDEX('AD Outage data'!Z:Z,$B47,1))) ->  | J47: =IF($B47="","",(INDEX('AD Outage data'!M:M,$B47,1))) -> 
D48: =IF($B48="","",(INDEX('AD Outage data'!D:D,$B48,1))) ->  | E48: =IF($B48="","",(INDEX('AD Outage data'!G:G,$B48,1))) ->  | F48: =IF($B48="","",(INDEX('AD Outage data'!H:H,$B48,1))) ->  | G48: =IF($B48="","",((INDEX('AD Outage data'!I:I,$B48,1))/(24*60))) ->  | H48: =IF($B48="","",((INDEX('AD Outage data'!J:J,$B48,1))/(24*60))) ->  | I48: =IF($B48="","",(INDEX('AD Outage data'!Z:Z,$B48,1))) ->  | J48: =IF($B48="","",(INDEX('AD Outage data'!M:M,$B48,1))) -> 
D49: =IF($B49="","",(INDEX('AD Outage data'!D:D,$B49,1))) ->  | E49: =IF($B49="","",(INDEX('AD Outage data'!G:G,$B49,1))) ->  | F49: =IF($B49="","",(INDEX('AD Outage data'!H:H,$B49,1))) ->  | G49: =IF($B49="","",((INDEX('AD Outage data'!I:I,$B49,1))/(24*60))) ->  | H49: =IF($B49="","",((INDEX('AD Outage data'!J:J,$B49,1))/(24*60))) ->  | I49: =IF($B49="","",(INDEX('AD Outage data'!Z:Z,$B49,1))) ->  | J49: =IF($B49="","",(INDEX('AD Outage data'!M:M,$B49,1))) -> 
D50: =IF($B50="","",(INDEX('AD Outage data'!D:D,$B50,1))) ->  | E50: =IF($B50="","",(INDEX('AD Outage data'!G:G,$B50,1))) ->  | F50: =IF($B50="","",(INDEX('AD Outage data'!H:H,$B50,1))) ->  | G50: =IF($B50="","",((INDEX('AD Outage data'!I:I,$B50,1))/(24*60))) ->  | H50: =IF($B50="","",((INDEX('AD Outage data'!J:J,$B50,1))/(24*60))) ->  | I50: =IF($B50="","",(INDEX('AD Outage data'!Z:Z,$B50,1))) ->  | J50: =IF($B50="","",(INDEX('AD Outage data'!M:M,$B50,1))) -> 
D51: =IF($B51="","",(INDEX('AD Outage data'!D:D,$B51,1))) ->  | E51: =IF($B51="","",(INDEX('AD Outage data'!G:G,$B51,1))) ->  | F51: =IF($B51="","",(INDEX('AD Outage data'!H:H,$B51,1))) ->  | G51: =IF($B51="","",((INDEX('AD Outage data'!I:I,$B51,1))/(24*60))) ->  | H51: =IF($B51="","",((INDEX('AD Outage data'!J:J,$B51,1))/(24*60))) ->  | I51: =IF($B51="","",(INDEX('AD Outage data'!Z:Z,$B51,1))) ->  | J51: =IF($B51="","",(INDEX('AD Outage data'!M:M,$B51,1))) -> 
D52: =IF($B52="","",(INDEX('AD Outage data'!D:D,$B52,1))) ->  | E52: =IF($B52="","",(INDEX('AD Outage data'!G:G,$B52,1))) ->  | F52: =IF($B52="","",(INDEX('AD Outage data'!H:H,$B52,1))) ->  | G52: =IF($B52="","",((INDEX('AD Outage data'!I:I,$B52,1))/(24*60))) ->  | H52: =IF($B52="","",((INDEX('AD Outage data'!J:J,$B52,1))/(24*60))) ->  | I52: =IF($B52="","",(INDEX('AD Outage data'!Z:Z,$B52,1))) ->  | J52: =IF($B52="","",(INDEX('AD Outage data'!M:M,$B52,1))) -> 
D53: =IF($B53="","",(INDEX('AD Outage data'!D:D,$B53,1))) ->  | E53: =IF($B53="","",(INDEX('AD Outage data'!G:G,$B53,1))) ->  | F53: =IF($B53="","",(INDEX('AD Outage data'!H:H,$B53,1))) ->  | G53: =IF($B53="","",((INDEX('AD Outage data'!I:I,$B53,1))/(24*60))) ->  | H53: =IF($B53="","",((INDEX('AD Outage data'!J:J,$B53,1))/(24*60))) ->  | I53: =IF($B53="","",(INDEX('AD Outage data'!Z:Z,$B53,1))) ->  | J53: =IF($B53="","",(INDEX('AD Outage data'!M:M,$B53,1))) -> 
D54: =IF($B54="","",(INDEX('AD Outage data'!D:D,$B54,1))) ->  | E54: =IF($B54="","",(INDEX('AD Outage data'!G:G,$B54,1))) ->  | F54: =IF($B54="","",(INDEX('AD Outage data'!H:H,$B54,1))) ->  | G54: =IF($B54="","",((INDEX('AD Outage data'!I:I,$B54,1))/(24*60))) ->  | H54: =IF($B54="","",((INDEX('AD Outage data'!J:J,$B54,1))/(24*60))) ->  | I54: =IF($B54="","",(INDEX('AD Outage data'!Z:Z,$B54,1))) ->  | J54: =IF($B54="","",(INDEX('AD Outage data'!M:M,$B54,1))) -> 
D55: =IF($B55="","",(INDEX('AD Outage data'!D:D,$B55,1))) ->  | E55: =IF($B55="","",(INDEX('AD Outage data'!G:G,$B55,1))) ->  | F55: =IF($B55="","",(INDEX('AD Outage data'!H:H,$B55,1))) ->  | G55: =IF($B55="","",((INDEX('AD Outage data'!I:I,$B55,1))/(24*60))) ->  | H55: =IF($B55="","",((INDEX('AD Outage data'!J:J,$B55,1))/(24*60))) ->  | I55: =IF($B55="","",(INDEX('AD Outage data'!Z:Z,$B55,1))) ->  | J55: =IF($B55="","",(INDEX('AD Outage data'!M:M,$B55,1))) -> 
D56: =IF($B56="","",(INDEX('AD Outage data'!D:D,$B56,1))) ->  | E56: =IF($B56="","",(INDEX('AD Outage data'!G:G,$B56,1))) ->  | F56: =IF($B56="","",(INDEX('AD Outage data'!H:H,$B56,1))) ->  | G56: =IF($B56="","",((INDEX('AD Outage data'!I:I,$B56,1))/(24*60))) ->  | H56: =IF($B56="","",((INDEX('AD Outage data'!J:J,$B56,1))/(24*60))) ->  | I56: =IF($B56="","",(INDEX('AD Outage data'!Z:Z,$B56,1))) ->  | J56: =IF($B56="","",(INDEX('AD Outage data'!M:M,$B56,1))) -> 
D57: =IF($B57="","",(INDEX('AD Outage data'!D:D,$B57,1))) ->  | E57: =IF($B57="","",(INDEX('AD Outage data'!G:G,$B57,1))) ->  | F57: =IF($B57="","",(INDEX('AD Outage data'!H:H,$B57,1))) ->  | G57: =IF($B57="","",((INDEX('AD Outage data'!I:I,$B57,1))/(24*60))) ->  | H57: =IF($B57="","",((INDEX('AD Outage data'!J:J,$B57,1))/(24*60))) ->  | I57: =IF($B57="","",(INDEX('AD Outage data'!Z:Z,$B57,1))) ->  | J57: =IF($B57="","",(INDEX('AD Outage data'!M:M,$B57,1))) -> 
D58: =IF($B58="","",(INDEX('AD Outage data'!D:D,$B58,1))) ->  | E58: =IF($B58="","",(INDEX('AD Outage data'!G:G,$B58,1))) ->  | F58: =IF($B58="","",(INDEX('AD Outage data'!H:H,$B58,1))) ->  | G58: =IF($B58="","",((INDEX('AD Outage data'!I:I,$B58,1))/(24*60))) ->  | H58: =IF($B58="","",((INDEX('AD Outage data'!J:J,$B58,1))/(24*60))) ->  | I58: =IF($B58="","",(INDEX('AD Outage data'!Z:Z,$B58,1))) ->  | J58: =IF($B58="","",(INDEX('AD Outage data'!M:M,$B58,1))) -> 
D59: =IF($B59="","",(INDEX('AD Outage data'!D:D,$B59,1))) ->  | E59: =IF($B59="","",(INDEX('AD Outage data'!G:G,$B59,1))) ->  | F59: =IF($B59="","",(INDEX('AD Outage data'!H:H,$B59,1))) ->  | G59: =IF($B59="","",((INDEX('AD Outage data'!I:I,$B59,1))/(24*60))) ->  | H59: =IF($B59="","",((INDEX('AD Outage data'!J:J,$B59,1))/(24*60))) ->  | I59: =IF($B59="","",(INDEX('AD Outage data'!Z:Z,$B59,1))) ->  | J59: =IF($B59="","",(INDEX('AD Outage data'!M:M,$B59,1))) -> 
D60: =IF($B60="","",(INDEX('AD Outage data'!D:D,$B60,1))) ->  | E60: =IF($B60="","",(INDEX('AD Outage data'!G:G,$B60,1))) ->  | F60: =IF($B60="","",(INDEX('AD Outage data'!H:H,$B60,1))) ->  | G60: =IF($B60="","",((INDEX('AD Outage data'!I:I,$B60,1))/(24*60))) ->  | H60: =IF($B60="","",((INDEX('AD Outage data'!J:J,$B60,1))/(24*60))) ->  | I60: =IF($B60="","",(INDEX('AD Outage data'!Z:Z,$B60,1))) ->  | J60: =IF($B60="","",(INDEX('AD Outage data'!M:M,$B60,1))) -> 
D61: =IF($B61="","",(INDEX('AD Outage data'!D:D,$B61,1))) ->  | E61: =IF($B61="","",(INDEX('AD Outage data'!G:G,$B61,1))) ->  | F61: =IF($B61="","",(INDEX('AD Outage data'!H:H,$B61,1))) ->  | G61: =IF($B61="","",((INDEX('AD Outage data'!I:I,$B61,1))/(24*60))) ->  | H61: =IF($B61="","",((INDEX('AD Outage data'!J:J,$B61,1))/(24*60))) ->  | I61: =IF($B61="","",(INDEX('AD Outage data'!Z:Z,$B61,1))) ->  | J61: =IF($B61="","",(INDEX('AD Outage data'!M:M,$B61,1))) -> 
D62: =IF($B62="","",(INDEX('AD Outage data'!D:D,$B62,1))) ->  | E62: =IF($B62="","",(INDEX('AD Outage data'!G:G,$B62,1))) ->  | F62: =IF($B62="","",(INDEX('AD Outage data'!H:H,$B62,1))) ->  | G62: =IF($B62="","",((INDEX('AD Outage data'!I:I,$B62,1))/(24*60))) ->  | H62: =IF($B62="","",((INDEX('AD Outage data'!J:J,$B62,1))/(24*60))) ->  | I62: =IF($B62="","",(INDEX('AD Outage data'!Z:Z,$B62,1))) ->  | J62: =IF($B62="","",(INDEX('AD Outage data'!M:M,$B62,1))) -> 
D63: =IF($B63="","",(INDEX('AD Outage data'!D:D,$B63,1))) ->  | E63: =IF($B63="","",(INDEX('AD Outage data'!G:G,$B63,1))) ->  | F63: =IF($B63="","",(INDEX('AD Outage data'!H:H,$B63,1))) ->  | G63: =IF($B63="","",((INDEX('AD Outage data'!I:I,$B63,1))/(24*60))) ->  | H63: =IF($B63="","",((INDEX('AD Outage data'!J:J,$B63,1))/(24*60))) ->  | I63: =IF($B63="","",(INDEX('AD Outage data'!Z:Z,$B63,1))) ->  | J63: =IF($B63="","",(INDEX('AD Outage data'!M:M,$B63,1))) -> 
D64: =IF($B64="","",(INDEX('AD Outage data'!D:D,$B64,1))) ->  | E64: =IF($B64="","",(INDEX('AD Outage data'!G:G,$B64,1))) ->  | F64: =IF($B64="","",(INDEX('AD Outage data'!H:H,$B64,1))) ->  | G64: =IF($B64="","",((INDEX('AD Outage data'!I:I,$B64,1))/(24*60))) ->  | H64: =IF($B64="","",((INDEX('AD Outage data'!J:J,$B64,1))/(24*60))) ->  | I64: =IF($B64="","",(INDEX('AD Outage data'!Z:Z,$B64,1))) ->  | J64: =IF($B64="","",(INDEX('AD Outage data'!M:M,$B64,1))) -> 
D65: =IF($B65="","",(INDEX('AD Outage data'!D:D,$B65,1))) ->  | E65: =IF($B65="","",(INDEX('AD Outage data'!G:G,$B65,1))) ->  | F65: =IF($B65="","",(INDEX('AD Outage data'!H:H,$B65,1))) ->  | G65: =IF($B65="","",((INDEX('AD Outage data'!I:I,$B65,1))/(24*60))) ->  | H65: =IF($B65="","",((INDEX('AD Outage data'!J:J,$B65,1))/(24*60))) ->  | I65: =IF($B65="","",(INDEX('AD Outage data'!Z:Z,$B65,1))) ->  | J65: =IF($B65="","",(INDEX('AD Outage data'!M:M,$B65,1))) -> 
D66: =IF($B66="","",(INDEX('AD Outage data'!D:D,$B66,1))) ->  | E66: =IF($B66="","",(INDEX('AD Outage data'!G:G,$B66,1))) ->  | F66: =IF($B66="","",(INDEX('AD Outage data'!H:H,$B66,1))) ->  | G66: =IF($B66="","",((INDEX('AD Outage data'!I:I,$B66,1))/(24*60))) ->  | H66: =IF($B66="","",((INDEX('AD Outage data'!J:J,$B66,1))/(24*60))) ->  | I66: =IF($B66="","",(INDEX('AD Outage data'!Z:Z,$B66,1))) ->  | J66: =IF($B66="","",(INDEX('AD Outage data'!M:M,$B66,1))) -> 
D67: =IF($B67="","",(INDEX('AD Outage data'!D:D,$B67,1))) ->  | E67: =IF($B67="","",(INDEX('AD Outage data'!G:G,$B67,1))) ->  | F67: =IF($B67="","",(INDEX('AD Outage data'!H:H,$B67,1))) ->  | G67: =IF($B67="","",((INDEX('AD Outage data'!I:I,$B67,1))/(24*60))) ->  | H67: =IF($B67="","",((INDEX('AD Outage data'!J:J,$B67,1))/(24*60))) ->  | I67: =IF($B67="","",(INDEX('AD Outage data'!Z:Z,$B67,1))) ->  | J67: =IF($B67="","",(INDEX('AD Outage data'!M:M,$B67,1))) -> 
D68: =IF($B68="","",(INDEX('AD Outage data'!D:D,$B68,1))) ->  | E68: =IF($B68="","",(INDEX('AD Outage data'!G:G,$B68,1))) ->  | F68: =IF($B68="","",(INDEX('AD Outage data'!H:H,$B68,1))) ->  | G68: =IF($B68="","",((INDEX('AD Outage data'!I:I,$B68,1))/(24*60))) ->  | H68: =IF($B68="","",((INDEX('AD Outage data'!J:J,$B68,1))/(24*60))) ->  | I68: =IF($B68="","",(INDEX('AD Outage data'!Z:Z,$B68,1))) ->  | J68: =IF($B68="","",(INDEX('AD Outage data'!M:M,$B68,1))) -> 
C69: =IF($B69="","",(INDEX(INDIRECT(outage_adid_col),$B69,1))) ->  | D69: =IF($B69="","",(INDEX('AD Outage data'!D:D,$B69,1))) ->  | E69: =IF($B69="","",(INDEX('AD Outage data'!G:G,$B69,1))) ->  | F69: =IF($B69="","",(INDEX('AD Outage data'!H:H,$B69,1))) ->  | G69: =IF($B69="","",((INDEX('AD Outage data'!I:I,$B69,1))/(24*60))) ->  | H69: =IF($B69="","",((INDEX('AD Outage data'!J:J,$B69,1))/(24*60))) ->  | I69: =IF($B69="","",(INDEX('AD Outage data'!Z:Z,$B69,1))) ->  | J69: =IF($B69="","",(INDEX('AD Outage data'!M:M,$B69,1))) -> 
A70: =IF(B69="","","'AD Outage data'!"&$B$2&B69+1&":"&$B$2&"30000") ->  | B70: =IF(ISERROR(MATCH("yes",INDIRECT(A70),0)),"",MATCH("yes",INDIRECT(A70),0)+B69) ->  | D70: =IF($B70="","",(INDEX('AD Outage data'!D:D,$B70,1))) ->  | E70: =IF($B70="","",(INDEX('AD Outage data'!G:G,$B70,1))) ->  | F70: =IF($B70="","",(INDEX('AD Outage data'!H:H,$B70,1))) ->  | G70: =IF($B70="","",((INDEX('AD Outage data'!I:I,$B70,1))/(24*60))) ->  | H70: =IF($B70="","",((INDEX('AD Outage data'!J:J,$B70,1))/(24*60))) ->  | I70: =IF($B70="","",(INDEX('AD Outage data'!Z:Z,$B70,1))) ->  | J70: =IF($B70="","",(INDEX('AD Outage data'!M:M,$B70,1))) -> 
D71: =IF($B71="","",(INDEX('AD Outage data'!D:D,$B71,1))) ->  | E71: =IF($B71="","",(INDEX('AD Outage data'!G:G,$B71,1))) ->  | F71: =IF($B71="","",(INDEX('AD Outage data'!H:H,$B71,1))) ->  | G71: =IF($B71="","",((INDEX('AD Outage data'!I:I,$B71,1))/(24*60))) ->  | H71: =IF($B71="","",((INDEX('AD Outage data'!J:J,$B71,1))/(24*60))) ->  | I71: =IF($B71="","",(INDEX('AD Outage data'!Z:Z,$B71,1))) ->  | J71: =IF($B71="","",(INDEX('AD Outage data'!M:M,$B71,1))) -> 
D72: =IF($B72="","",(INDEX('AD Outage data'!D:D,$B72,1))) ->  | E72: =IF($B72="","",(INDEX('AD Outage data'!G:G,$B72,1))) ->  | F72: =IF($B72="","",(INDEX('AD Outage data'!H:H,$B72,1))) ->  | G72: =IF($B72="","",((INDEX('AD Outage data'!I:I,$B72,1))/(24*60))) ->  | H72: =IF($B72="","",((INDEX('AD Outage data'!J:J,$B72,1))/(24*60))) ->  | I72: =IF($B72="","",(INDEX('AD Outage data'!Z:Z,$B72,1))) ->  | J72: =IF($B72="","",(INDEX('AD Outage data'!M:M,$B72,1))) -> 
D73: =IF($B73="","",(INDEX('AD Outage data'!D:D,$B73,1))) ->  | E73: =IF($B73="","",(INDEX('AD Outage data'!G:G,$B73,1))) ->  | F73: =IF($B73="","",(INDEX('AD Outage data'!H:H,$B73,1))) ->  | G73: =IF($B73="","",((INDEX('AD Outage data'!I:I,$B73,1))/(24*60))) ->  | H73: =IF($B73="","",((INDEX('AD Outage data'!J:J,$B73,1))/(24*60))) ->  | I73: =IF($B73="","",(INDEX('AD Outage data'!Z:Z,$B73,1))) ->  | J73: =IF($B73="","",(INDEX('AD Outage data'!M:M,$B73,1))) -> 
D74: =IF($B74="","",(INDEX('AD Outage data'!D:D,$B74,1))) ->  | E74: =IF($B74="","",(INDEX('AD Outage data'!G:G,$B74,1))) ->  | F74: =IF($B74="","",(INDEX('AD Outage data'!H:H,$B74,1))) ->  | G74: =IF($B74="","",((INDEX('AD Outage data'!I:I,$B74,1))/(24*60))) ->  | H74: =IF($B74="","",((INDEX('AD Outage data'!J:J,$B74,1))/(24*60))) ->  | I74: =IF($B74="","",(INDEX('AD Outage data'!Z:Z,$B74,1))) ->  | J74: =IF($B74="","",(INDEX('AD Outage data'!M:M,$B74,1))) -> 
D75: =IF($B75="","",(INDEX('AD Outage data'!D:D,$B75,1))) ->  | E75: =IF($B75="","",(INDEX('AD Outage data'!G:G,$B75,1))) ->  | F75: =IF($B75="","",(INDEX('AD Outage data'!H:H,$B75,1))) ->  | G75: =IF($B75="","",((INDEX('AD Outage data'!I:I,$B75,1))/(24*60))) ->  | H75: =IF($B75="","",((INDEX('AD Outage data'!J:J,$B75,1))/(24*60))) ->  | I75: =IF($B75="","",(INDEX('AD Outage data'!Z:Z,$B75,1))) ->  | J75: =IF($B75="","",(INDEX('AD Outage data'!M:M,$B75,1))) -> 
D76: =IF($B76="","",(INDEX('AD Outage data'!D:D,$B76,1))) ->  | E76: =IF($B76="","",(INDEX('AD Outage data'!G:G,$B76,1))) ->  | F76: =IF($B76="","",(INDEX('AD Outage data'!H:H,$B76,1))) ->  | G76: =IF($B76="","",((INDEX('AD Outage data'!I:I,$B76,1))/(24*60))) ->  | H76: =IF($B76="","",((INDEX('AD Outage data'!J:J,$B76,1))/(24*60))) ->  | I76: =IF($B76="","",(INDEX('AD Outage data'!Z:Z,$B76,1))) ->  | J76: =IF($B76="","",(INDEX('AD Outage data'!M:M,$B76,1))) -> 
D77: =IF($B77="","",(INDEX('AD Outage data'!D:D,$B77,1))) ->  | E77: =IF($B77="","",(INDEX('AD Outage data'!G:G,$B77,1))) ->  | F77: =IF($B77="","",(INDEX('AD Outage data'!H:H,$B77,1))) ->  | G77: =IF($B77="","",((INDEX('AD Outage data'!I:I,$B77,1))/(24*60))) ->  | H77: =IF($B77="","",((INDEX('AD Outage data'!J:J,$B77,1))/(24*60))) ->  | I77: =IF($B77="","",(INDEX('AD Outage data'!Z:Z,$B77,1))) ->  | J77: =IF($B77="","",(INDEX('AD Outage data'!M:M,$B77,1))) -> 
D78: =IF($B78="","",(INDEX('AD Outage data'!D:D,$B78,1))) ->  | E78: =IF($B78="","",(INDEX('AD Outage data'!G:G,$B78,1))) ->  | F78: =IF($B78="","",(INDEX('AD Outage data'!H:H,$B78,1))) ->  | G78: =IF($B78="","",((INDEX('AD Outage data'!I:I,$B78,1))/(24*60))) ->  | H78: =IF($B78="","",((INDEX('AD Outage data'!J:J,$B78,1))/(24*60))) ->  | I78: =IF($B78="","",(INDEX('AD Outage data'!Z:Z,$B78,1))) ->  | J78: =IF($B78="","",(INDEX('AD Outage data'!M:M,$B78,1))) -> 
D79: =IF($B79="","",(INDEX('AD Outage data'!D:D,$B79,1))) ->  | E79: =IF($B79="","",(INDEX('AD Outage data'!G:G,$B79,1))) ->  | F79: =IF($B79="","",(INDEX('AD Outage data'!H:H,$B79,1))) ->  | G79: =IF($B79="","",((INDEX('AD Outage data'!I:I,$B79,1))/(24*60))) ->  | H79: =IF($B79="","",((INDEX('AD Outage data'!J:J,$B79,1))/(24*60))) ->  | I79: =IF($B79="","",(INDEX('AD Outage data'!Z:Z,$B79,1))) ->  | J79: =IF($B79="","",(INDEX('AD Outage data'!M:M,$B79,1))) -> 
D80: =IF($B80="","",(INDEX('AD Outage data'!D:D,$B80,1))) ->  | E80: =IF($B80="","",(INDEX('AD Outage data'!G:G,$B80,1))) ->  | F80: =IF($B80="","",(INDEX('AD Outage data'!H:H,$B80,1))) ->  | G80: =IF($B80="","",((INDEX('AD Outage data'!I:I,$B80,1))/(24*60))) ->  | H80: =IF($B80="","",((INDEX('AD Outage data'!J:J,$B80,1))/(24*60))) ->  | I80: =IF($B80="","",(INDEX('AD Outage data'!Z:Z,$B80,1))) ->  | J80: =IF($B80="","",(INDEX('AD Outage data'!M:M,$B80,1))) -> 
D81: =IF($B81="","",(INDEX('AD Outage data'!D:D,$B81,1))) ->  | E81: =IF($B81="","",(INDEX('AD Outage data'!G:G,$B81,1))) ->  | F81: =IF($B81="","",(INDEX('AD Outage data'!H:H,$B81,1))) ->  | G81: =IF($B81="","",((INDEX('AD Outage data'!I:I,$B81,1))/(24*60))) ->  | H81: =IF($B81="","",((INDEX('AD Outage data'!J:J,$B81,1))/(24*60))) ->  | I81: =IF($B81="","",(INDEX('AD Outage data'!Z:Z,$B81,1))) ->  | J81: =IF($B81="","",(INDEX('AD Outage data'!M:M,$B81,1))) -> 
D82: =IF($B82="","",(INDEX('AD Outage data'!D:D,$B82,1))) ->  | E82: =IF($B82="","",(INDEX('AD Outage data'!G:G,$B82,1))) ->  | F82: =IF($B82="","",(INDEX('AD Outage data'!H:H,$B82,1))) ->  | G82: =IF($B82="","",((INDEX('AD Outage data'!I:I,$B82,1))/(24*60))) ->  | H82: =IF($B82="","",((INDEX('AD Outage data'!J:J,$B82,1))/(24*60))) ->  | I82: =IF($B82="","",(INDEX('AD Outage data'!Z:Z,$B82,1))) ->  | J82: =IF($B82="","",(INDEX('AD Outage data'!M:M,$B82,1))) -> 
D83: =IF($B83="","",(INDEX('AD Outage data'!D:D,$B83,1))) ->  | E83: =IF($B83="","",(INDEX('AD Outage data'!G:G,$B83,1))) ->  | F83: =IF($B83="","",(INDEX('AD Outage data'!H:H,$B83,1))) ->  | G83: =IF($B83="","",((INDEX('AD Outage data'!I:I,$B83,1))/(24*60))) ->  | H83: =IF($B83="","",((INDEX('AD Outage data'!J:J,$B83,1))/(24*60))) ->  | I83: =IF($B83="","",(INDEX('AD Outage data'!Z:Z,$B83,1))) ->  | J83: =IF($B83="","",(INDEX('AD Outage data'!M:M,$B83,1))) -> 
D84: =IF($B84="","",(INDEX('AD Outage data'!D:D,$B84,1))) ->  | E84: =IF($B84="","",(INDEX('AD Outage data'!G:G,$B84,1))) ->  | F84: =IF($B84="","",(INDEX('AD Outage data'!H:H,$B84,1))) ->  | G84: =IF($B84="","",((INDEX('AD Outage data'!I:I,$B84,1))/(24*60))) ->  | H84: =IF($B84="","",((INDEX('AD Outage data'!J:J,$B84,1))/(24*60))) ->  | I84: =IF($B84="","",(INDEX('AD Outage data'!Z:Z,$B84,1))) ->  | J84: =IF($B84="","",(INDEX('AD Outage data'!M:M,$B84,1))) -> 
D85: =IF($B85="","",(INDEX('AD Outage data'!D:D,$B85,1))) ->  | E85: =IF($B85="","",(INDEX('AD Outage data'!G:G,$B85,1))) ->  | F85: =IF($B85="","",(INDEX('AD Outage data'!H:H,$B85,1))) ->  | G85: =IF($B85="","",((INDEX('AD Outage data'!I:I,$B85,1))/(24*60))) ->  | H85: =IF($B85="","",((INDEX('AD Outage data'!J:J,$B85,1))/(24*60))) ->  | I85: =IF($B85="","",(INDEX('AD Outage data'!Z:Z,$B85,1))) ->  | J85: =IF($B85="","",(INDEX('AD Outage data'!M:M,$B85,1))) -> 
D86: =IF($B86="","",(INDEX('AD Outage data'!D:D,$B86,1))) ->  | E86: =IF($B86="","",(INDEX('AD Outage data'!G:G,$B86,1))) ->  | F86: =IF($B86="","",(INDEX('AD Outage data'!H:H,$B86,1))) ->  | G86: =IF($B86="","",((INDEX('AD Outage data'!I:I,$B86,1))/(24*60))) ->  | H86: =IF($B86="","",((INDEX('AD Outage data'!J:J,$B86,1))/(24*60))) ->  | I86: =IF($B86="","",(INDEX('AD Outage data'!Z:Z,$B86,1))) ->  | J86: =IF($B86="","",(INDEX('AD Outage data'!M:M,$B86,1))) -> 
D87: =IF($B87="","",(INDEX('AD Outage data'!D:D,$B87,1))) ->  | E87: =IF($B87="","",(INDEX('AD Outage data'!G:G,$B87,1))) ->  | F87: =IF($B87="","",(INDEX('AD Outage data'!H:H,$B87,1))) ->  | G87: =IF($B87="","",((INDEX('AD Outage data'!I:I,$B87,1))/(24*60))) ->  | H87: =IF($B87="","",((INDEX('AD Outage data'!J:J,$B87,1))/(24*60))) ->  | I87: =IF($B87="","",(INDEX('AD Outage data'!Z:Z,$B87,1))) ->  | J87: =IF($B87="","",(INDEX('AD Outage data'!M:M,$B87,1))) -> 
D88: =IF($B88="","",(INDEX('AD Outage data'!D:D,$B88,1))) ->  | E88: =IF($B88="","",(INDEX('AD Outage data'!G:G,$B88,1))) ->  | F88: =IF($B88="","",(INDEX('AD Outage data'!H:H,$B88,1))) ->  | G88: =IF($B88="","",((INDEX('AD Outage data'!I:I,$B88,1))/(24*60))) ->  | H88: =IF($B88="","",((INDEX('AD Outage data'!J:J,$B88,1))/(24*60))) ->  | I88: =IF($B88="","",(INDEX('AD Outage data'!Z:Z,$B88,1))) ->  | J88: =IF($B88="","",(INDEX('AD Outage data'!M:M,$B88,1))) -> 
D89: =IF($B89="","",(INDEX('AD Outage data'!D:D,$B89,1))) ->  | E89: =IF($B89="","",(INDEX('AD Outage data'!G:G,$B89,1))) ->  | F89: =IF($B89="","",(INDEX('AD Outage data'!H:H,$B89,1))) ->  | G89: =IF($B89="","",((INDEX('AD Outage data'!I:I,$B89,1))/(24*60))) ->  | H89: =IF($B89="","",((INDEX('AD Outage data'!J:J,$B89,1))/(24*60))) ->  | I89: =IF($B89="","",(INDEX('AD Outage data'!Z:Z,$B89,1))) ->  | J89: =IF($B89="","",(INDEX('AD Outage data'!M:M,$B89,1))) -> 
D90: =IF($B90="","",(INDEX('AD Outage data'!D:D,$B90,1))) ->  | E90: =IF($B90="","",(INDEX('AD Outage data'!G:G,$B90,1))) ->  | F90: =IF($B90="","",(INDEX('AD Outage data'!H:H,$B90,1))) ->  | G90: =IF($B90="","",((INDEX('AD Outage data'!I:I,$B90,1))/(24*60))) ->  | H90: =IF($B90="","",((INDEX('AD Outage data'!J:J,$B90,1))/(24*60))) ->  | I90: =IF($B90="","",(INDEX('AD Outage data'!Z:Z,$B90,1))) ->  | J90: =IF($B90="","",(INDEX('AD Outage data'!M:M,$B90,1))) -> 
D91: =IF($B91="","",(INDEX('AD Outage data'!D:D,$B91,1))) ->  | E91: =IF($B91="","",(INDEX('AD Outage data'!G:G,$B91,1))) ->  | F91: =IF($B91="","",(INDEX('AD Outage data'!H:H,$B91,1))) ->  | G91: =IF($B91="","",((INDEX('AD Outage data'!I:I,$B91,1))/(24*60))) ->  | H91: =IF($B91="","",((INDEX('AD Outage data'!J:J,$B91,1))/(24*60))) ->  | I91: =IF($B91="","",(INDEX('AD Outage data'!Z:Z,$B91,1))) ->  | J91: =IF($B91="","",(INDEX('AD Outage data'!M:M,$B91,1))) -> 
D92: =IF($B92="","",(INDEX('AD Outage data'!D:D,$B92,1))) ->  | E92: =IF($B92="","",(INDEX('AD Outage data'!G:G,$B92,1))) ->  | F92: =IF($B92="","",(INDEX('AD Outage data'!H:H,$B92,1))) ->  | G92: =IF($B92="","",((INDEX('AD Outage data'!I:I,$B92,1))/(24*60))) ->  | H92: =IF($B92="","",((INDEX('AD Outage data'!J:J,$B92,1))/(24*60))) ->  | I92: =IF($B92="","",(INDEX('AD Outage data'!Z:Z,$B92,1))) ->  | J92: =IF($B92="","",(INDEX('AD Outage data'!M:M,$B92,1))) -> 
D93: =IF($B93="","",(INDEX('AD Outage data'!D:D,$B93,1))) ->  | E93: =IF($B93="","",(INDEX('AD Outage data'!G:G,$B93,1))) ->  | F93: =IF($B93="","",(INDEX('AD Outage data'!H:H,$B93,1))) ->  | G93: =IF($B93="","",((INDEX('AD Outage data'!I:I,$B93,1))/(24*60))) ->  | H93: =IF($B93="","",((INDEX('AD Outage data'!J:J,$B93,1))/(24*60))) ->  | I93: =IF($B93="","",(INDEX('AD Outage data'!Z:Z,$B93,1))) ->  | J93: =IF($B93="","",(INDEX('AD Outage data'!M:M,$B93,1))) -> 
D94: =IF($B94="","",(INDEX('AD Outage data'!D:D,$B94,1))) ->  | E94: =IF($B94="","",(INDEX('AD Outage data'!G:G,$B94,1))) ->  | F94: =IF($B94="","",(INDEX('AD Outage data'!H:H,$B94,1))) ->  | G94: =IF($B94="","",((INDEX('AD Outage data'!I:I,$B94,1))/(24*60))) ->  | H94: =IF($B94="","",((INDEX('AD Outage data'!J:J,$B94,1))/(24*60))) ->  | I94: =IF($B94="","",(INDEX('AD Outage data'!Z:Z,$B94,1))) ->  | J94: =IF($B94="","",(INDEX('AD Outage data'!M:M,$B94,1))) -> 
D95: =IF($B95="","",(INDEX('AD Outage data'!D:D,$B95,1))) ->  | E95: =IF($B95="","",(INDEX('AD Outage data'!G:G,$B95,1))) ->  | F95: =IF($B95="","",(INDEX('AD Outage data'!H:H,$B95,1))) ->  | G95: =IF($B95="","",((INDEX('AD Outage data'!I:I,$B95,1))/(24*60))) ->  | H95: =IF($B95="","",((INDEX('AD Outage data'!J:J,$B95,1))/(24*60))) ->  | I95: =IF($B95="","",(INDEX('AD Outage data'!Z:Z,$B95,1))) ->  | J95: =IF($B95="","",(INDEX('AD Outage data'!M:M,$B95,1))) -> 
D96: =IF($B96="","",(INDEX('AD Outage data'!D:D,$B96,1))) ->  | E96: =IF($B96="","",(INDEX('AD Outage data'!G:G,$B96,1))) ->  | F96: =IF($B96="","",(INDEX('AD Outage data'!H:H,$B96,1))) ->  | G96: =IF($B96="","",((INDEX('AD Outage data'!I:I,$B96,1))/(24*60))) ->  | H96: =IF($B96="","",((INDEX('AD Outage data'!J:J,$B96,1))/(24*60))) ->  | I96: =IF($B96="","",(INDEX('AD Outage data'!Z:Z,$B96,1))) ->  | J96: =IF($B96="","",(INDEX('AD Outage data'!M:M,$B96,1))) -> 
D97: =IF($B97="","",(INDEX('AD Outage data'!D:D,$B97,1))) ->  | E97: =IF($B97="","",(INDEX('AD Outage data'!G:G,$B97,1))) ->  | F97: =IF($B97="","",(INDEX('AD Outage data'!H:H,$B97,1))) ->  | G97: =IF($B97="","",((INDEX('AD Outage data'!I:I,$B97,1))/(24*60))) ->  | H97: =IF($B97="","",((INDEX('AD Outage data'!J:J,$B97,1))/(24*60))) ->  | I97: =IF($B97="","",(INDEX('AD Outage data'!Z:Z,$B97,1))) ->  | J97: =IF($B97="","",(INDEX('AD Outage data'!M:M,$B97,1))) -> 
D98: =IF($B98="","",(INDEX('AD Outage data'!D:D,$B98,1))) ->  | E98: =IF($B98="","",(INDEX('AD Outage data'!G:G,$B98,1))) ->  | F98: =IF($B98="","",(INDEX('AD Outage data'!H:H,$B98,1))) ->  | G98: =IF($B98="","",((INDEX('AD Outage data'!I:I,$B98,1))/(24*60))) ->  | H98: =IF($B98="","",((INDEX('AD Outage data'!J:J,$B98,1))/(24*60))) ->  | I98: =IF($B98="","",(INDEX('AD Outage data'!Z:Z,$B98,1))) ->  | J98: =IF($B98="","",(INDEX('AD Outage data'!M:M,$B98,1))) -> 
D99: =IF($B99="","",(INDEX('AD Outage data'!D:D,$B99,1))) ->  | E99: =IF($B99="","",(INDEX('AD Outage data'!G:G,$B99,1))) ->  | F99: =IF($B99="","",(INDEX('AD Outage data'!H:H,$B99,1))) ->  | G99: =IF($B99="","",((INDEX('AD Outage data'!I:I,$B99,1))/(24*60))) ->  | H99: =IF($B99="","",((INDEX('AD Outage data'!J:J,$B99,1))/(24*60))) ->  | I99: =IF($B99="","",(INDEX('AD Outage data'!Z:Z,$B99,1))) ->  | J99: =IF($B99="","",(INDEX('AD Outage data'!M:M,$B99,1))) -> 
D100: =IF($B100="","",(INDEX('AD Outage data'!D:D,$B100,1))) ->  | E100: =IF($B100="","",(INDEX('AD Outage data'!G:G,$B100,1))) ->  | F100: =IF($B100="","",(INDEX('AD Outage data'!H:H,$B100,1))) ->  | G100: =IF($B100="","",((INDEX('AD Outage data'!I:I,$B100,1))/(24*60))) ->  | H100: =IF($B100="","",((INDEX('AD Outage data'!J:J,$B100,1))/(24*60))) ->  | I100: =IF($B100="","",(INDEX('AD Outage data'!Z:Z,$B100,1))) ->  | J100: =IF($B100="","",(INDEX('AD Outage data'!M:M,$B100,1))) -> 
D101: =IF($B101="","",(INDEX('AD Outage data'!D:D,$B101,1))) ->  | E101: =IF($B101="","",(INDEX('AD Outage data'!G:G,$B101,1))) ->  | F101: =IF($B101="","",(INDEX('AD Outage data'!H:H,$B101,1))) ->  | G101: =IF($B101="","",((INDEX('AD Outage data'!I:I,$B101,1))/(24*60))) ->  | H101: =IF($B101="","",((INDEX('AD Outage data'!J:J,$B101,1))/(24*60))) ->  | I101: =IF($B101="","",(INDEX('AD Outage data'!Z:Z,$B101,1))) ->  | J101: =IF($B101="","",(INDEX('AD Outage data'!M:M,$B101,1))) -> 
D102: =IF($B102="","",(INDEX('AD Outage data'!D:D,$B102,1))) ->  | E102: =IF($B102="","",(INDEX('AD Outage data'!G:G,$B102,1))) ->  | F102: =IF($B102="","",(INDEX('AD Outage data'!H:H,$B102,1))) ->  | G102: =IF($B102="","",((INDEX('AD Outage data'!I:I,$B102,1))/(24*60))) ->  | H102: =IF($B102="","",((INDEX('AD Outage data'!J:J,$B102,1))/(24*60))) ->  | I102: =IF($B102="","",(INDEX('AD Outage data'!Z:Z,$B102,1))) ->  | J102: =IF($B102="","",(INDEX('AD Outage data'!M:M,$B102,1))) -> 
D103: =IF($B103="","",(INDEX('AD Outage data'!D:D,$B103,1))) ->  | E103: =IF($B103="","",(INDEX('AD Outage data'!G:G,$B103,1))) ->  | F103: =IF($B103="","",(INDEX('AD Outage data'!H:H,$B103,1))) ->  | G103: =IF($B103="","",((INDEX('AD Outage data'!I:I,$B103,1))/(24*60))) ->  | H103: =IF($B103="","",((INDEX('AD Outage data'!J:J,$B103,1))/(24*60))) ->  | I103: =IF($B103="","",(INDEX('AD Outage data'!Z:Z,$B103,1))) ->  | J103: =IF($B103="","",(INDEX('AD Outage data'!M:M,$B103,1))) -> 
D104: =IF($B104="","",(INDEX('AD Outage data'!D:D,$B104,1))) ->  | E104: =IF($B104="","",(INDEX('AD Outage data'!G:G,$B104,1))) ->  | F104: =IF($B104="","",(INDEX('AD Outage data'!H:H,$B104,1))) ->  | G104: =IF($B104="","",((INDEX('AD Outage data'!I:I,$B104,1))/(24*60))) ->  | H104: =IF($B104="","",((INDEX('AD Outage data'!J:J,$B104,1))/(24*60))) ->  | I104: =IF($B104="","",(INDEX('AD Outage data'!Z:Z,$B104,1))) ->  | J104: =IF($B104="","",(INDEX('AD Outage data'!M:M,$B104,1))) -> 
D105: =IF($B105="","",(INDEX('AD Outage data'!D:D,$B105,1))) ->  | E105: =IF($B105="","",(INDEX('AD Outage data'!G:G,$B105,1))) ->  | F105: =IF($B105="","",(INDEX('AD Outage data'!H:H,$B105,1))) ->  | G105: =IF($B105="","",((INDEX('AD Outage data'!I:I,$B105,1))/(24*60))) ->  | H105: =IF($B105="","",((INDEX('AD Outage data'!J:J,$B105,1))/(24*60))) ->  | I105: =IF($B105="","",(INDEX('AD Outage data'!Z:Z,$B105,1))) ->  | J105: =IF($B105="","",(INDEX('AD Outage data'!M:M,$B105,1))) -> 
D106: =IF($B106="","",(INDEX('AD Outage data'!D:D,$B106,1))) ->  | E106: =IF($B106="","",(INDEX('AD Outage data'!G:G,$B106,1))) ->  | F106: =IF($B106="","",(INDEX('AD Outage data'!H:H,$B106,1))) ->  | G106: =IF($B106="","",((INDEX('AD Outage data'!I:I,$B106,1))/(24*60))) ->  | H106: =IF($B106="","",((INDEX('AD Outage data'!J:J,$B106,1))/(24*60))) ->  | I106: =IF($B106="","",(INDEX('AD Outage data'!Z:Z,$B106,1))) ->  | J106: =IF($B106="","",(INDEX('AD Outage data'!M:M,$B106,1))) -> 
D107: =IF($B107="","",(INDEX('AD Outage data'!D:D,$B107,1))) ->  | E107: =IF($B107="","",(INDEX('AD Outage data'!G:G,$B107,1))) ->  | F107: =IF($B107="","",(INDEX('AD Outage data'!H:H,$B107,1))) ->  | G107: =IF($B107="","",((INDEX('AD Outage data'!I:I,$B107,1))/(24*60))) ->  | H107: =IF($B107="","",((INDEX('AD Outage data'!J:J,$B107,1))/(24*60))) ->  | I107: =IF($B107="","",(INDEX('AD Outage data'!Z:Z,$B107,1))) ->  | J107: =IF($B107="","",(INDEX('AD Outage data'!M:M,$B107,1))) -> 
D108: =IF($B108="","",(INDEX('AD Outage data'!D:D,$B108,1))) ->  | E108: =IF($B108="","",(INDEX('AD Outage data'!G:G,$B108,1))) ->  | F108: =IF($B108="","",(INDEX('AD Outage data'!H:H,$B108,1))) ->  | G108: =IF($B108="","",((INDEX('AD Outage data'!I:I,$B108,1))/(24*60))) ->  | H108: =IF($B108="","",((INDEX('AD Outage data'!J:J,$B108,1))/(24*60))) ->  | I108: =IF($B108="","",(INDEX('AD Outage data'!Z:Z,$B108,1))) ->  | J108: =IF($B108="","",(INDEX('AD Outage data'!M:M,$B108,1))) -> 
D109: =IF($B109="","",(INDEX('AD Outage data'!D:D,$B109,1))) ->  | E109: =IF($B109="","",(INDEX('AD Outage data'!G:G,$B109,1))) ->  | F109: =IF($B109="","",(INDEX('AD Outage data'!H:H,$B109,1))) ->  | G109: =IF($B109="","",((INDEX('AD Outage data'!I:I,$B109,1))/(24*60))) ->  | H109: =IF($B109="","",((INDEX('AD Outage data'!J:J,$B109,1))/(24*60))) ->  | I109: =IF($B109="","",(INDEX('AD Outage data'!Z:Z,$B109,1))) ->  | J109: =IF($B109="","",(INDEX('AD Outage data'!M:M,$B109,1))) -> 
D110: =IF($B110="","",(INDEX('AD Outage data'!D:D,$B110,1))) ->  | E110: =IF($B110="","",(INDEX('AD Outage data'!G:G,$B110,1))) ->  | F110: =IF($B110="","",(INDEX('AD Outage data'!H:H,$B110,1))) ->  | G110: =IF($B110="","",((INDEX('AD Outage data'!I:I,$B110,1))/(24*60))) ->  | H110: =IF($B110="","",((INDEX('AD Outage data'!J:J,$B110,1))/(24*60))) ->  | I110: =IF($B110="","",(INDEX('AD Outage data'!Z:Z,$B110,1))) ->  | J110: =IF($B110="","",(INDEX('AD Outage data'!M:M,$B110,1))) -> 
D111: =IF($B111="","",(INDEX('AD Outage data'!D:D,$B111,1))) ->  | E111: =IF($B111="","",(INDEX('AD Outage data'!G:G,$B111,1))) ->  | F111: =IF($B111="","",(INDEX('AD Outage data'!H:H,$B111,1))) ->  | G111: =IF($B111="","",((INDEX('AD Outage data'!I:I,$B111,1))/(24*60))) ->  | H111: =IF($B111="","",((INDEX('AD Outage data'!J:J,$B111,1))/(24*60))) ->  | I111: =IF($B111="","",(INDEX('AD Outage data'!Z:Z,$B111,1))) ->  | J111: =IF($B111="","",(INDEX('AD Outage data'!M:M,$B111,1))) -> 
D112: =IF($B112="","",(INDEX('AD Outage data'!D:D,$B112,1))) ->  | E112: =IF($B112="","",(INDEX('AD Outage data'!G:G,$B112,1))) ->  | F112: =IF($B112="","",(INDEX('AD Outage data'!H:H,$B112,1))) ->  | G112: =IF($B112="","",((INDEX('AD Outage data'!I:I,$B112,1))/(24*60))) ->  | H112: =IF($B112="","",((INDEX('AD Outage data'!J:J,$B112,1))/(24*60))) ->  | I112: =IF($B112="","",(INDEX('AD Outage data'!Z:Z,$B112,1))) ->  | J112: =IF($B112="","",(INDEX('AD Outage data'!M:M,$B112,1))) -> 
D113: =IF($B113="","",(INDEX('AD Outage data'!D:D,$B113,1))) ->  | E113: =IF($B113="","",(INDEX('AD Outage data'!G:G,$B113,1))) ->  | F113: =IF($B113="","",(INDEX('AD Outage data'!H:H,$B113,1))) ->  | G113: =IF($B113="","",((INDEX('AD Outage data'!I:I,$B113,1))/(24*60))) ->  | H113: =IF($B113="","",((INDEX('AD Outage data'!J:J,$B113,1))/(24*60))) ->  | I113: =IF($B113="","",(INDEX('AD Outage data'!Z:Z,$B113,1))) ->  | J113: =IF($B113="","",(INDEX('AD Outage data'!M:M,$B113,1))) -> 
D114: =IF($B114="","",(INDEX('AD Outage data'!D:D,$B114,1))) ->  | E114: =IF($B114="","",(INDEX('AD Outage data'!G:G,$B114,1))) ->  | F114: =IF($B114="","",(INDEX('AD Outage data'!H:H,$B114,1))) ->  | G114: =IF($B114="","",((INDEX('AD Outage data'!I:I,$B114,1))/(24*60))) ->  | H114: =IF($B114="","",((INDEX('AD Outage data'!J:J,$B114,1))/(24*60))) ->  | I114: =IF($B114="","",(INDEX('AD Outage data'!Z:Z,$B114,1))) ->  | J114: =IF($B114="","",(INDEX('AD Outage data'!M:M,$B114,1))) -> 
D115: =IF($B115="","",(INDEX('AD Outage data'!D:D,$B115,1))) ->  | E115: =IF($B115="","",(INDEX('AD Outage data'!G:G,$B115,1))) ->  | F115: =IF($B115="","",(INDEX('AD Outage data'!H:H,$B115,1))) ->  | G115: =IF($B115="","",((INDEX('AD Outage data'!I:I,$B115,1))/(24*60))) ->  | H115: =IF($B115="","",((INDEX('AD Outage data'!J:J,$B115,1))/(24*60))) ->  | I115: =IF($B115="","",(INDEX('AD Outage data'!Z:Z,$B115,1))) ->  | J115: =IF($B115="","",(INDEX('AD Outage data'!M:M,$B115,1))) -> 
D116: =IF($B116="","",(INDEX('AD Outage data'!D:D,$B116,1))) ->  | E116: =IF($B116="","",(INDEX('AD Outage data'!G:G,$B116,1))) ->  | F116: =IF($B116="","",(INDEX('AD Outage data'!H:H,$B116,1))) ->  | G116: =IF($B116="","",((INDEX('AD Outage data'!I:I,$B116,1))/(24*60))) ->  | H116: =IF($B116="","",((INDEX('AD Outage data'!J:J,$B116,1))/(24*60))) ->  | I116: =IF($B116="","",(INDEX('AD Outage data'!Z:Z,$B116,1))) ->  | J116: =IF($B116="","",(INDEX('AD Outage data'!M:M,$B116,1))) -> 
D117: =IF($B117="","",(INDEX('AD Outage data'!D:D,$B117,1))) ->  | E117: =IF($B117="","",(INDEX('AD Outage data'!G:G,$B117,1))) ->  | F117: =IF($B117="","",(INDEX('AD Outage data'!H:H,$B117,1))) ->  | G117: =IF($B117="","",((INDEX('AD Outage data'!I:I,$B117,1))/(24*60))) ->  | H117: =IF($B117="","",((INDEX('AD Outage data'!J:J,$B117,1))/(24*60))) ->  | I117: =IF($B117="","",(INDEX('AD Outage data'!Z:Z,$B117,1))) ->  | J117: =IF($B117="","",(INDEX('AD Outage data'!M:M,$B117,1))) -> 
D118: =IF($B118="","",(INDEX('AD Outage data'!D:D,$B118,1))) ->  | E118: =IF($B118="","",(INDEX('AD Outage data'!G:G,$B118,1))) ->  | F118: =IF($B118="","",(INDEX('AD Outage data'!H:H,$B118,1))) ->  | G118: =IF($B118="","",((INDEX('AD Outage data'!I:I,$B118,1))/(24*60))) ->  | H118: =IF($B118="","",((INDEX('AD Outage data'!J:J,$B118,1))/(24*60))) ->  | I118: =IF($B118="","",(INDEX('AD Outage data'!Z:Z,$B118,1))) ->  | J118: =IF($B118="","",(INDEX('AD Outage data'!M:M,$B118,1))) -> 
D119: =IF($B119="","",(INDEX('AD Outage data'!D:D,$B119,1))) ->  | E119: =IF($B119="","",(INDEX('AD Outage data'!G:G,$B119,1))) ->  | F119: =IF($B119="","",(INDEX('AD Outage data'!H:H,$B119,1))) ->  | G119: =IF($B119="","",((INDEX('AD Outage data'!I:I,$B119,1))/(24*60))) ->  | H119: =IF($B119="","",((INDEX('AD Outage data'!J:J,$B119,1))/(24*60))) ->  | I119: =IF($B119="","",(INDEX('AD Outage data'!Z:Z,$B119,1))) ->  | J119: =IF($B119="","",(INDEX('AD Outage data'!M:M,$B119,1))) -> 
D120: =IF($B120="","",(INDEX('AD Outage data'!D:D,$B120,1))) ->  | E120: =IF($B120="","",(INDEX('AD Outage data'!G:G,$B120,1))) ->  | F120: =IF($B120="","",(INDEX('AD Outage data'!H:H,$B120,1))) ->  | G120: =IF($B120="","",((INDEX('AD Outage data'!I:I,$B120,1))/(24*60))) ->  | H120: =IF($B120="","",((INDEX('AD Outage data'!J:J,$B120,1))/(24*60))) ->  | I120: =IF($B120="","",(INDEX('AD Outage data'!Z:Z,$B120,1))) ->  | J120: =IF($B120="","",(INDEX('AD Outage data'!M:M,$B120,1))) -> 
D121: =IF($B121="","",(INDEX('AD Outage data'!D:D,$B121,1))) ->  | E121: =IF($B121="","",(INDEX('AD Outage data'!G:G,$B121,1))) ->  | F121: =IF($B121="","",(INDEX('AD Outage data'!H:H,$B121,1))) ->  | G121: =IF($B121="","",((INDEX('AD Outage data'!I:I,$B121,1))/(24*60))) ->  | H121: =IF($B121="","",((INDEX('AD Outage data'!J:J,$B121,1))/(24*60))) ->  | I121: =IF($B121="","",(INDEX('AD Outage data'!Z:Z,$B121,1))) ->  | J121: =IF($B121="","",(INDEX('AD Outage data'!M:M,$B121,1))) -> 
D122: =IF($B122="","",(INDEX('AD Outage data'!D:D,$B122,1))) ->  | E122: =IF($B122="","",(INDEX('AD Outage data'!G:G,$B122,1))) ->  | F122: =IF($B122="","",(INDEX('AD Outage data'!H:H,$B122,1))) ->  | G122: =IF($B122="","",((INDEX('AD Outage data'!I:I,$B122,1))/(24*60))) ->  | H122: =IF($B122="","",((INDEX('AD Outage data'!J:J,$B122,1))/(24*60))) ->  | I122: =IF($B122="","",(INDEX('AD Outage data'!Z:Z,$B122,1))) ->  | J122: =IF($B122="","",(INDEX('AD Outage data'!M:M,$B122,1))) -> 
D123: =IF($B123="","",(INDEX('AD Outage data'!D:D,$B123,1))) ->  | E123: =IF($B123="","",(INDEX('AD Outage data'!G:G,$B123,1))) ->  | F123: =IF($B123="","",(INDEX('AD Outage data'!H:H,$B123,1))) ->  | G123: =IF($B123="","",((INDEX('AD Outage data'!I:I,$B123,1))/(24*60))) ->  | H123: =IF($B123="","",((INDEX('AD Outage data'!J:J,$B123,1))/(24*60))) ->  | I123: =IF($B123="","",(INDEX('AD Outage data'!Z:Z,$B123,1))) ->  | J123: =IF($B123="","",(INDEX('AD Outage data'!M:M,$B123,1))) -> 
D124: =IF($B124="","",(INDEX('AD Outage data'!D:D,$B124,1))) ->  | E124: =IF($B124="","",(INDEX('AD Outage data'!G:G,$B124,1))) ->  | F124: =IF($B124="","",(INDEX('AD Outage data'!H:H,$B124,1))) ->  | G124: =IF($B124="","",((INDEX('AD Outage data'!I:I,$B124,1))/(24*60))) ->  | H124: =IF($B124="","",((INDEX('AD Outage data'!J:J,$B124,1))/(24*60))) ->  | I124: =IF($B124="","",(INDEX('AD Outage data'!Z:Z,$B124,1))) ->  | J124: =IF($B124="","",(INDEX('AD Outage data'!M:M,$B124,1))) -> 
D125: =IF($B125="","",(INDEX('AD Outage data'!D:D,$B125,1))) ->  | E125: =IF($B125="","",(INDEX('AD Outage data'!G:G,$B125,1))) ->  | F125: =IF($B125="","",(INDEX('AD Outage data'!H:H,$B125,1))) ->  | G125: =IF($B125="","",((INDEX('AD Outage data'!I:I,$B125,1))/(24*60))) ->  | H125: =IF($B125="","",((INDEX('AD Outage data'!J:J,$B125,1))/(24*60))) ->  | I125: =IF($B125="","",(INDEX('AD Outage data'!Z:Z,$B125,1))) ->  | J125: =IF($B125="","",(INDEX('AD Outage data'!M:M,$B125,1))) -> 
D126: =IF($B126="","",(INDEX('AD Outage data'!D:D,$B126,1))) ->  | E126: =IF($B126="","",(INDEX('AD Outage data'!G:G,$B126,1))) ->  | F126: =IF($B126="","",(INDEX('AD Outage data'!H:H,$B126,1))) ->  | G126: =IF($B126="","",((INDEX('AD Outage data'!I:I,$B126,1))/(24*60))) ->  | H126: =IF($B126="","",((INDEX('AD Outage data'!J:J,$B126,1))/(24*60))) ->  | I126: =IF($B126="","",(INDEX('AD Outage data'!Z:Z,$B126,1))) ->  | J126: =IF($B126="","",(INDEX('AD Outage data'!M:M,$B126,1))) -> 
D127: =IF($B127="","",(INDEX('AD Outage data'!D:D,$B127,1))) ->  | E127: =IF($B127="","",(INDEX('AD Outage data'!G:G,$B127,1))) ->  | F127: =IF($B127="","",(INDEX('AD Outage data'!H:H,$B127,1))) ->  | G127: =IF($B127="","",((INDEX('AD Outage data'!I:I,$B127,1))/(24*60))) ->  | H127: =IF($B127="","",((INDEX('AD Outage data'!J:J,$B127,1))/(24*60))) ->  | I127: =IF($B127="","",(INDEX('AD Outage data'!Z:Z,$B127,1))) ->  | J127: =IF($B127="","",(INDEX('AD Outage data'!M:M,$B127,1))) -> 
D128: =IF($B128="","",(INDEX('AD Outage data'!D:D,$B128,1))) ->  | E128: =IF($B128="","",(INDEX('AD Outage data'!G:G,$B128,1))) ->  | F128: =IF($B128="","",(INDEX('AD Outage data'!H:H,$B128,1))) ->  | G128: =IF($B128="","",((INDEX('AD Outage data'!I:I,$B128,1))/(24*60))) ->  | H128: =IF($B128="","",((INDEX('AD Outage data'!J:J,$B128,1))/(24*60))) ->  | I128: =IF($B128="","",(INDEX('AD Outage data'!Z:Z,$B128,1))) ->  | J128: =IF($B128="","",(INDEX('AD Outage data'!M:M,$B128,1))) -> 
D129: =IF($B129="","",(INDEX('AD Outage data'!D:D,$B129,1))) ->  | E129: =IF($B129="","",(INDEX('AD Outage data'!G:G,$B129,1))) ->  | F129: =IF($B129="","",(INDEX('AD Outage data'!H:H,$B129,1))) ->  | G129: =IF($B129="","",((INDEX('AD Outage data'!I:I,$B129,1))/(24*60))) ->  | H129: =IF($B129="","",((INDEX('AD Outage data'!J:J,$B129,1))/(24*60))) ->  | I129: =IF($B129="","",(INDEX('AD Outage data'!Z:Z,$B129,1))) ->  | J129: =IF($B129="","",(INDEX('AD Outage data'!M:M,$B129,1))) -> 
D130: =IF($B130="","",(INDEX('AD Outage data'!D:D,$B130,1))) ->  | E130: =IF($B130="","",(INDEX('AD Outage data'!G:G,$B130,1))) ->  | F130: =IF($B130="","",(INDEX('AD Outage data'!H:H,$B130,1))) ->  | G130: =IF($B130="","",((INDEX('AD Outage data'!I:I,$B130,1))/(24*60))) ->  | H130: =IF($B130="","",((INDEX('AD Outage data'!J:J,$B130,1))/(24*60))) ->  | I130: =IF($B130="","",(INDEX('AD Outage data'!Z:Z,$B130,1))) ->  | J130: =IF($B130="","",(INDEX('AD Outage data'!M:M,$B130,1))) -> 
D131: =IF($B131="","",(INDEX('AD Outage data'!D:D,$B131,1))) ->  | E131: =IF($B131="","",(INDEX('AD Outage data'!G:G,$B131,1))) ->  | F131: =IF($B131="","",(INDEX('AD Outage data'!H:H,$B131,1))) ->  | G131: =IF($B131="","",((INDEX('AD Outage data'!I:I,$B131,1))/(24*60))) ->  | H131: =IF($B131="","",((INDEX('AD Outage data'!J:J,$B131,1))/(24*60))) ->  | I131: =IF($B131="","",(INDEX('AD Outage data'!Z:Z,$B131,1))) ->  | J131: =IF($B131="","",(INDEX('AD Outage data'!M:M,$B131,1))) -> 
D132: =IF($B132="","",(INDEX('AD Outage data'!D:D,$B132,1))) ->  | E132: =IF($B132="","",(INDEX('AD Outage data'!G:G,$B132,1))) ->  | F132: =IF($B132="","",(INDEX('AD Outage data'!H:H,$B132,1))) ->  | G132: =IF($B132="","",((INDEX('AD Outage data'!I:I,$B132,1))/(24*60))) ->  | H132: =IF($B132="","",((INDEX('AD Outage data'!J:J,$B132,1))/(24*60))) ->  | I132: =IF($B132="","",(INDEX('AD Outage data'!Z:Z,$B132,1))) ->  | J132: =IF($B132="","",(INDEX('AD Outage data'!M:M,$B132,1))) -> 
C133: =IF($B133="","",(INDEX(INDIRECT(outage_adid_col),$B133,1))) ->  | D133: =IF($B133="","",(INDEX('AD Outage data'!D:D,$B133,1))) ->  | E133: =IF($B133="","",(INDEX('AD Outage data'!G:G,$B133,1))) ->  | F133: =IF($B133="","",(INDEX('AD Outage data'!H:H,$B133,1))) ->  | G133: =IF($B133="","",((INDEX('AD Outage data'!I:I,$B133,1))/(24*60))) ->  | H133: =IF($B133="","",((INDEX('AD Outage data'!J:J,$B133,1))/(24*60))) ->  | I133: =IF($B133="","",(INDEX('AD Outage data'!Z:Z,$B133,1))) ->  | J133: =IF($B133="","",(INDEX('AD Outage data'!M:M,$B133,1))) -> 
A134: =IF(B133="","","'AD Outage data'!"&$B$2&B133+1&":"&$B$2&"30000") ->  | B134: =IF(ISERROR(MATCH("yes",INDIRECT(A134),0)),"",MATCH("yes",INDIRECT(A134),0)+B133) ->  | D134: =IF($B134="","",(INDEX('AD Outage data'!D:D,$B134,1))) ->  | E134: =IF($B134="","",(INDEX('AD Outage data'!G:G,$B134,1))) ->  | F134: =IF($B134="","",(INDEX('AD Outage data'!H:H,$B134,1))) ->  | G134: =IF($B134="","",((INDEX('AD Outage data'!I:I,$B134,1))/(24*60))) ->  | H134: =IF($B134="","",((INDEX('AD Outage data'!J:J,$B134,1))/(24*60))) ->  | I134: =IF($B134="","",(INDEX('AD Outage data'!Z:Z,$B134,1))) ->  | J134: =IF($B134="","",(INDEX('AD Outage data'!M:M,$B134,1))) -> 
D135: =IF($B135="","",(INDEX('AD Outage data'!D:D,$B135,1))) ->  | E135: =IF($B135="","",(INDEX('AD Outage data'!G:G,$B135,1))) ->  | F135: =IF($B135="","",(INDEX('AD Outage data'!H:H,$B135,1))) ->  | G135: =IF($B135="","",((INDEX('AD Outage data'!I:I,$B135,1))/(24*60))) ->  | H135: =IF($B135="","",((INDEX('AD Outage data'!J:J,$B135,1))/(24*60))) ->  | I135: =IF($B135="","",(INDEX('AD Outage data'!Z:Z,$B135,1))) ->  | J135: =IF($B135="","",(INDEX('AD Outage data'!M:M,$B135,1))) -> 
D136: =IF($B136="","",(INDEX('AD Outage data'!D:D,$B136,1))) ->  | E136: =IF($B136="","",(INDEX('AD Outage data'!G:G,$B136,1))) ->  | F136: =IF($B136="","",(INDEX('AD Outage data'!H:H,$B136,1))) ->  | G136: =IF($B136="","",((INDEX('AD Outage data'!I:I,$B136,1))/(24*60))) ->  | H136: =IF($B136="","",((INDEX('AD Outage data'!J:J,$B136,1))/(24*60))) ->  | I136: =IF($B136="","",(INDEX('AD Outage data'!Z:Z,$B136,1))) ->  | J136: =IF($B136="","",(INDEX('AD Outage data'!M:M,$B136,1))) -> 
D137: =IF($B137="","",(INDEX('AD Outage data'!D:D,$B137,1))) ->  | E137: =IF($B137="","",(INDEX('AD Outage data'!G:G,$B137,1))) ->  | F137: =IF($B137="","",(INDEX('AD Outage data'!H:H,$B137,1))) ->  | G137: =IF($B137="","",((INDEX('AD Outage data'!I:I,$B137,1))/(24*60))) ->  | H137: =IF($B137="","",((INDEX('AD Outage data'!J:J,$B137,1))/(24*60))) ->  | I137: =IF($B137="","",(INDEX('AD Outage data'!Z:Z,$B137,1))) ->  | J137: =IF($B137="","",(INDEX('AD Outage data'!M:M,$B137,1))) -> 
D138: =IF($B138="","",(INDEX('AD Outage data'!D:D,$B138,1))) ->  | E138: =IF($B138="","",(INDEX('AD Outage data'!G:G,$B138,1))) ->  | F138: =IF($B138="","",(INDEX('AD Outage data'!H:H,$B138,1))) ->  | G138: =IF($B138="","",((INDEX('AD Outage data'!I:I,$B138,1))/(24*60))) ->  | H138: =IF($B138="","",((INDEX('AD Outage data'!J:J,$B138,1))/(24*60))) ->  | I138: =IF($B138="","",(INDEX('AD Outage data'!Z:Z,$B138,1))) ->  | J138: =IF($B138="","",(INDEX('AD Outage data'!M:M,$B138,1))) -> 
D139: =IF($B139="","",(INDEX('AD Outage data'!D:D,$B139,1))) ->  | E139: =IF($B139="","",(INDEX('AD Outage data'!G:G,$B139,1))) ->  | F139: =IF($B139="","",(INDEX('AD Outage data'!H:H,$B139,1))) ->  | G139: =IF($B139="","",((INDEX('AD Outage data'!I:I,$B139,1))/(24*60))) ->  | H139: =IF($B139="","",((INDEX('AD Outage data'!J:J,$B139,1))/(24*60))) ->  | I139: =IF($B139="","",(INDEX('AD Outage data'!Z:Z,$B139,1))) ->  | J139: =IF($B139="","",(INDEX('AD Outage data'!M:M,$B139,1))) -> 
D140: =IF($B140="","",(INDEX('AD Outage data'!D:D,$B140,1))) ->  | E140: =IF($B140="","",(INDEX('AD Outage data'!G:G,$B140,1))) ->  | F140: =IF($B140="","",(INDEX('AD Outage data'!H:H,$B140,1))) ->  | G140: =IF($B140="","",((INDEX('AD Outage data'!I:I,$B140,1))/(24*60))) ->  | H140: =IF($B140="","",((INDEX('AD Outage data'!J:J,$B140,1))/(24*60))) ->  | I140: =IF($B140="","",(INDEX('AD Outage data'!Z:Z,$B140,1))) ->  | J140: =IF($B140="","",(INDEX('AD Outage data'!M:M,$B140,1))) -> 
D141: =IF($B141="","",(INDEX('AD Outage data'!D:D,$B141,1))) ->  | E141: =IF($B141="","",(INDEX('AD Outage data'!G:G,$B141,1))) ->  | F141: =IF($B141="","",(INDEX('AD Outage data'!H:H,$B141,1))) ->  | G141: =IF($B141="","",((INDEX('AD Outage data'!I:I,$B141,1))/(24*60))) ->  | H141: =IF($B141="","",((INDEX('AD Outage data'!J:J,$B141,1))/(24*60))) ->  | I141: =IF($B141="","",(INDEX('AD Outage data'!Z:Z,$B141,1))) ->  | J141: =IF($B141="","",(INDEX('AD Outage data'!M:M,$B141,1))) -> 
D142: =IF($B142="","",(INDEX('AD Outage data'!D:D,$B142,1))) ->  | E142: =IF($B142="","",(INDEX('AD Outage data'!G:G,$B142,1))) ->  | F142: =IF($B142="","",(INDEX('AD Outage data'!H:H,$B142,1))) ->  | G142: =IF($B142="","",((INDEX('AD Outage data'!I:I,$B142,1))/(24*60))) ->  | H142: =IF($B142="","",((INDEX('AD Outage data'!J:J,$B142,1))/(24*60))) ->  | I142: =IF($B142="","",(INDEX('AD Outage data'!Z:Z,$B142,1))) ->  | J142: =IF($B142="","",(INDEX('AD Outage data'!M:M,$B142,1))) -> 
D143: =IF($B143="","",(INDEX('AD Outage data'!D:D,$B143,1))) ->  | E143: =IF($B143="","",(INDEX('AD Outage data'!G:G,$B143,1))) ->  | F143: =IF($B143="","",(INDEX('AD Outage data'!H:H,$B143,1))) ->  | G143: =IF($B143="","",((INDEX('AD Outage data'!I:I,$B143,1))/(24*60))) ->  | H143: =IF($B143="","",((INDEX('AD Outage data'!J:J,$B143,1))/(24*60))) ->  | I143: =IF($B143="","",(INDEX('AD Outage data'!Z:Z,$B143,1))) ->  | J143: =IF($B143="","",(INDEX('AD Outage data'!M:M,$B143,1))) -> 
D144: =IF($B144="","",(INDEX('AD Outage data'!D:D,$B144,1))) ->  | E144: =IF($B144="","",(INDEX('AD Outage data'!G:G,$B144,1))) ->  | F144: =IF($B144="","",(INDEX('AD Outage data'!H:H,$B144,1))) ->  | G144: =IF($B144="","",((INDEX('AD Outage data'!I:I,$B144,1))/(24*60))) ->  | H144: =IF($B144="","",((INDEX('AD Outage data'!J:J,$B144,1))/(24*60))) ->  | I144: =IF($B144="","",(INDEX('AD Outage data'!Z:Z,$B144,1))) ->  | J144: =IF($B144="","",(INDEX('AD Outage data'!M:M,$B144,1))) -> 
D145: =IF($B145="","",(INDEX('AD Outage data'!D:D,$B145,1))) ->  | E145: =IF($B145="","",(INDEX('AD Outage data'!G:G,$B145,1))) ->  | F145: =IF($B145="","",(INDEX('AD Outage data'!H:H,$B145,1))) ->  | G145: =IF($B145="","",((INDEX('AD Outage data'!I:I,$B145,1))/(24*60))) ->  | H145: =IF($B145="","",((INDEX('AD Outage data'!J:J,$B145,1))/(24*60))) ->  | I145: =IF($B145="","",(INDEX('AD Outage data'!Z:Z,$B145,1))) ->  | J145: =IF($B145="","",(INDEX('AD Outage data'!M:M,$B145,1))) -> 
D146: =IF($B146="","",(INDEX('AD Outage data'!D:D,$B146,1))) ->  | E146: =IF($B146="","",(INDEX('AD Outage data'!G:G,$B146,1))) ->  | F146: =IF($B146="","",(INDEX('AD Outage data'!H:H,$B146,1))) ->  | G146: =IF($B146="","",((INDEX('AD Outage data'!I:I,$B146,1))/(24*60))) ->  | H146: =IF($B146="","",((INDEX('AD Outage data'!J:J,$B146,1))/(24*60))) ->  | I146: =IF($B146="","",(INDEX('AD Outage data'!Z:Z,$B146,1))) ->  | J146: =IF($B146="","",(INDEX('AD Outage data'!M:M,$B146,1))) -> 
D147: =IF($B147="","",(INDEX('AD Outage data'!D:D,$B147,1))) ->  | E147: =IF($B147="","",(INDEX('AD Outage data'!G:G,$B147,1))) ->  | F147: =IF($B147="","",(INDEX('AD Outage data'!H:H,$B147,1))) ->  | G147: =IF($B147="","",((INDEX('AD Outage data'!I:I,$B147,1))/(24*60))) ->  | H147: =IF($B147="","",((INDEX('AD Outage data'!J:J,$B147,1))/(24*60))) ->  | I147: =IF($B147="","",(INDEX('AD Outage data'!Z:Z,$B147,1))) ->  | J147: =IF($B147="","",(INDEX('AD Outage data'!M:M,$B147,1))) -> 
D148: =IF($B148="","",(INDEX('AD Outage data'!D:D,$B148,1))) ->  | E148: =IF($B148="","",(INDEX('AD Outage data'!G:G,$B148,1))) ->  | F148: =IF($B148="","",(INDEX('AD Outage data'!H:H,$B148,1))) ->  | G148: =IF($B148="","",((INDEX('AD Outage data'!I:I,$B148,1))/(24*60))) ->  | H148: =IF($B148="","",((INDEX('AD Outage data'!J:J,$B148,1))/(24*60))) ->  | I148: =IF($B148="","",(INDEX('AD Outage data'!Z:Z,$B148,1))) ->  | J148: =IF($B148="","",(INDEX('AD Outage data'!M:M,$B148,1))) -> 
D149: =IF($B149="","",(INDEX('AD Outage data'!D:D,$B149,1))) ->  | E149: =IF($B149="","",(INDEX('AD Outage data'!G:G,$B149,1))) ->  | F149: =IF($B149="","",(INDEX('AD Outage data'!H:H,$B149,1))) ->  | G149: =IF($B149="","",((INDEX('AD Outage data'!I:I,$B149,1))/(24*60))) ->  | H149: =IF($B149="","",((INDEX('AD Outage data'!J:J,$B149,1))/(24*60))) ->  | I149: =IF($B149="","",(INDEX('AD Outage data'!Z:Z,$B149,1))) ->  | J149: =IF($B149="","",(INDEX('AD Outage data'!M:M,$B149,1))) -> 
D150: =IF($B150="","",(INDEX('AD Outage data'!D:D,$B150,1))) ->  | E150: =IF($B150="","",(INDEX('AD Outage data'!G:G,$B150,1))) ->  | F150: =IF($B150="","",(INDEX('AD Outage data'!H:H,$B150,1))) ->  | G150: =IF($B150="","",((INDEX('AD Outage data'!I:I,$B150,1))/(24*60))) ->  | H150: =IF($B150="","",((INDEX('AD Outage data'!J:J,$B150,1))/(24*60))) ->  | I150: =IF($B150="","",(INDEX('AD Outage data'!Z:Z,$B150,1))) ->  | J150: =IF($B150="","",(INDEX('AD Outage data'!M:M,$B150,1))) -> 
D151: =IF($B151="","",(INDEX('AD Outage data'!D:D,$B151,1))) ->  | E151: =IF($B151="","",(INDEX('AD Outage data'!G:G,$B151,1))) ->  | F151: =IF($B151="","",(INDEX('AD Outage data'!H:H,$B151,1))) ->  | G151: =IF($B151="","",((INDEX('AD Outage data'!I:I,$B151,1))/(24*60))) ->  | H151: =IF($B151="","",((INDEX('AD Outage data'!J:J,$B151,1))/(24*60))) ->  | I151: =IF($B151="","",(INDEX('AD Outage data'!Z:Z,$B151,1))) ->  | J151: =IF($B151="","",(INDEX('AD Outage data'!M:M,$B151,1))) -> 
D152: =IF($B152="","",(INDEX('AD Outage data'!D:D,$B152,1))) ->  | E152: =IF($B152="","",(INDEX('AD Outage data'!G:G,$B152,1))) ->  | F152: =IF($B152="","",(INDEX('AD Outage data'!H:H,$B152,1))) ->  | G152: =IF($B152="","",((INDEX('AD Outage data'!I:I,$B152,1))/(24*60))) ->  | H152: =IF($B152="","",((INDEX('AD Outage data'!J:J,$B152,1))/(24*60))) ->  | I152: =IF($B152="","",(INDEX('AD Outage data'!Z:Z,$B152,1))) ->  | J152: =IF($B152="","",(INDEX('AD Outage data'!M:M,$B152,1))) -> 
D153: =IF($B153="","",(INDEX('AD Outage data'!D:D,$B153,1))) ->  | E153: =IF($B153="","",(INDEX('AD Outage data'!G:G,$B153,1))) ->  | F153: =IF($B153="","",(INDEX('AD Outage data'!H:H,$B153,1))) ->  | G153: =IF($B153="","",((INDEX('AD Outage data'!I:I,$B153,1))/(24*60))) ->  | H153: =IF($B153="","",((INDEX('AD Outage data'!J:J,$B153,1))/(24*60))) ->  | I153: =IF($B153="","",(INDEX('AD Outage data'!Z:Z,$B153,1))) ->  | J153: =IF($B153="","",(INDEX('AD Outage data'!M:M,$B153,1))) -> 
D154: =IF($B154="","",(INDEX('AD Outage data'!D:D,$B154,1))) ->  | E154: =IF($B154="","",(INDEX('AD Outage data'!G:G,$B154,1))) ->  | F154: =IF($B154="","",(INDEX('AD Outage data'!H:H,$B154,1))) ->  | G154: =IF($B154="","",((INDEX('AD Outage data'!I:I,$B154,1))/(24*60))) ->  | H154: =IF($B154="","",((INDEX('AD Outage data'!J:J,$B154,1))/(24*60))) ->  | I154: =IF($B154="","",(INDEX('AD Outage data'!Z:Z,$B154,1))) ->  | J154: =IF($B154="","",(INDEX('AD Outage data'!M:M,$B154,1))) -> 
D155: =IF($B155="","",(INDEX('AD Outage data'!D:D,$B155,1))) ->  | E155: =IF($B155="","",(INDEX('AD Outage data'!G:G,$B155,1))) ->  | F155: =IF($B155="","",(INDEX('AD Outage data'!H:H,$B155,1))) ->  | G155: =IF($B155="","",((INDEX('AD Outage data'!I:I,$B155,1))/(24*60))) ->  | H155: =IF($B155="","",((INDEX('AD Outage data'!J:J,$B155,1))/(24*60))) ->  | I155: =IF($B155="","",(INDEX('AD Outage data'!Z:Z,$B155,1))) ->  | J155: =IF($B155="","",(INDEX('AD Outage data'!M:M,$B155,1))) -> 
D156: =IF($B156="","",(INDEX('AD Outage data'!D:D,$B156,1))) ->  | E156: =IF($B156="","",(INDEX('AD Outage data'!G:G,$B156,1))) ->  | F156: =IF($B156="","",(INDEX('AD Outage data'!H:H,$B156,1))) ->  | G156: =IF($B156="","",((INDEX('AD Outage data'!I:I,$B156,1))/(24*60))) ->  | H156: =IF($B156="","",((INDEX('AD Outage data'!J:J,$B156,1))/(24*60))) ->  | I156: =IF($B156="","",(INDEX('AD Outage data'!Z:Z,$B156,1))) ->  | J156: =IF($B156="","",(INDEX('AD Outage data'!M:M,$B156,1))) -> 
D157: =IF($B157="","",(INDEX('AD Outage data'!D:D,$B157,1))) ->  | E157: =IF($B157="","",(INDEX('AD Outage data'!G:G,$B157,1))) ->  | F157: =IF($B157="","",(INDEX('AD Outage data'!H:H,$B157,1))) ->  | G157: =IF($B157="","",((INDEX('AD Outage data'!I:I,$B157,1))/(24*60))) ->  | H157: =IF($B157="","",((INDEX('AD Outage data'!J:J,$B157,1))/(24*60))) ->  | I157: =IF($B157="","",(INDEX('AD Outage data'!Z:Z,$B157,1))) ->  | J157: =IF($B157="","",(INDEX('AD Outage data'!M:M,$B157,1))) -> 
D158: =IF($B158="","",(INDEX('AD Outage data'!D:D,$B158,1))) ->  | E158: =IF($B158="","",(INDEX('AD Outage data'!G:G,$B158,1))) ->  | F158: =IF($B158="","",(INDEX('AD Outage data'!H:H,$B158,1))) ->  | G158: =IF($B158="","",((INDEX('AD Outage data'!I:I,$B158,1))/(24*60))) ->  | H158: =IF($B158="","",((INDEX('AD Outage data'!J:J,$B158,1))/(24*60))) ->  | I158: =IF($B158="","",(INDEX('AD Outage data'!Z:Z,$B158,1))) ->  | J158: =IF($B158="","",(INDEX('AD Outage data'!M:M,$B158,1))) -> 
D159: =IF($B159="","",(INDEX('AD Outage data'!D:D,$B159,1))) ->  | E159: =IF($B159="","",(INDEX('AD Outage data'!G:G,$B159,1))) ->  | F159: =IF($B159="","",(INDEX('AD Outage data'!H:H,$B159,1))) ->  | G159: =IF($B159="","",((INDEX('AD Outage data'!I:I,$B159,1))/(24*60))) ->  | H159: =IF($B159="","",((INDEX('AD Outage data'!J:J,$B159,1))/(24*60))) ->  | I159: =IF($B159="","",(INDEX('AD Outage data'!Z:Z,$B159,1))) ->  | J159: =IF($B159="","",(INDEX('AD Outage data'!M:M,$B159,1))) -> 
D160: =IF($B160="","",(INDEX('AD Outage data'!D:D,$B160,1))) ->  | E160: =IF($B160="","",(INDEX('AD Outage data'!G:G,$B160,1))) ->  | F160: =IF($B160="","",(INDEX('AD Outage data'!H:H,$B160,1))) ->  | G160: =IF($B160="","",((INDEX('AD Outage data'!I:I,$B160,1))/(24*60))) ->  | H160: =IF($B160="","",((INDEX('AD Outage data'!J:J,$B160,1))/(24*60))) ->  | I160: =IF($B160="","",(INDEX('AD Outage data'!Z:Z,$B160,1))) ->  | J160: =IF($B160="","",(INDEX('AD Outage data'!M:M,$B160,1))) -> 
D161: =IF($B161="","",(INDEX('AD Outage data'!D:D,$B161,1))) ->  | E161: =IF($B161="","",(INDEX('AD Outage data'!G:G,$B161,1))) ->  | F161: =IF($B161="","",(INDEX('AD Outage data'!H:H,$B161,1))) ->  | G161: =IF($B161="","",((INDEX('AD Outage data'!I:I,$B161,1))/(24*60))) ->  | H161: =IF($B161="","",((INDEX('AD Outage data'!J:J,$B161,1))/(24*60))) ->  | I161: =IF($B161="","",(INDEX('AD Outage data'!Z:Z,$B161,1))) ->  | J161: =IF($B161="","",(INDEX('AD Outage data'!M:M,$B161,1))) -> 
D162: =IF($B162="","",(INDEX('AD Outage data'!D:D,$B162,1))) ->  | E162: =IF($B162="","",(INDEX('AD Outage data'!G:G,$B162,1))) ->  | F162: =IF($B162="","",(INDEX('AD Outage data'!H:H,$B162,1))) ->  | G162: =IF($B162="","",((INDEX('AD Outage data'!I:I,$B162,1))/(24*60))) ->  | H162: =IF($B162="","",((INDEX('AD Outage data'!J:J,$B162,1))/(24*60))) ->  | I162: =IF($B162="","",(INDEX('AD Outage data'!Z:Z,$B162,1))) ->  | J162: =IF($B162="","",(INDEX('AD Outage data'!M:M,$B162,1))) -> 
D163: =IF($B163="","",(INDEX('AD Outage data'!D:D,$B163,1))) ->  | E163: =IF($B163="","",(INDEX('AD Outage data'!G:G,$B163,1))) ->  | F163: =IF($B163="","",(INDEX('AD Outage data'!H:H,$B163,1))) ->  | G163: =IF($B163="","",((INDEX('AD Outage data'!I:I,$B163,1))/(24*60))) ->  | H163: =IF($B163="","",((INDEX('AD Outage data'!J:J,$B163,1))/(24*60))) ->  | I163: =IF($B163="","",(INDEX('AD Outage data'!Z:Z,$B163,1))) ->  | J163: =IF($B163="","",(INDEX('AD Outage data'!M:M,$B163,1))) -> 
D164: =IF($B164="","",(INDEX('AD Outage data'!D:D,$B164,1))) ->  | E164: =IF($B164="","",(INDEX('AD Outage data'!G:G,$B164,1))) ->  | F164: =IF($B164="","",(INDEX('AD Outage data'!H:H,$B164,1))) ->  | G164: =IF($B164="","",((INDEX('AD Outage data'!I:I,$B164,1))/(24*60))) ->  | H164: =IF($B164="","",((INDEX('AD Outage data'!J:J,$B164,1))/(24*60))) ->  | I164: =IF($B164="","",(INDEX('AD Outage data'!Z:Z,$B164,1))) ->  | J164: =IF($B164="","",(INDEX('AD Outage data'!M:M,$B164,1))) -> 
D165: =IF($B165="","",(INDEX('AD Outage data'!D:D,$B165,1))) ->  | E165: =IF($B165="","",(INDEX('AD Outage data'!G:G,$B165,1))) ->  | F165: =IF($B165="","",(INDEX('AD Outage data'!H:H,$B165,1))) ->  | G165: =IF($B165="","",((INDEX('AD Outage data'!I:I,$B165,1))/(24*60))) ->  | H165: =IF($B165="","",((INDEX('AD Outage data'!J:J,$B165,1))/(24*60))) ->  | I165: =IF($B165="","",(INDEX('AD Outage data'!Z:Z,$B165,1))) ->  | J165: =IF($B165="","",(INDEX('AD Outage data'!M:M,$B165,1))) -> 
D166: =IF($B166="","",(INDEX('AD Outage data'!D:D,$B166,1))) ->  | E166: =IF($B166="","",(INDEX('AD Outage data'!G:G,$B166,1))) ->  | F166: =IF($B166="","",(INDEX('AD Outage data'!H:H,$B166,1))) ->  | G166: =IF($B166="","",((INDEX('AD Outage data'!I:I,$B166,1))/(24*60))) ->  | H166: =IF($B166="","",((INDEX('AD Outage data'!J:J,$B166,1))/(24*60))) ->  | I166: =IF($B166="","",(INDEX('AD Outage data'!Z:Z,$B166,1))) ->  | J166: =IF($B166="","",(INDEX('AD Outage data'!M:M,$B166,1))) -> 
D167: =IF($B167="","",(INDEX('AD Outage data'!D:D,$B167,1))) ->  | E167: =IF($B167="","",(INDEX('AD Outage data'!G:G,$B167,1))) ->  | F167: =IF($B167="","",(INDEX('AD Outage data'!H:H,$B167,1))) ->  | G167: =IF($B167="","",((INDEX('AD Outage data'!I:I,$B167,1))/(24*60))) ->  | H167: =IF($B167="","",((INDEX('AD Outage data'!J:J,$B167,1))/(24*60))) ->  | I167: =IF($B167="","",(INDEX('AD Outage data'!Z:Z,$B167,1))) ->  | J167: =IF($B167="","",(INDEX('AD Outage data'!M:M,$B167,1))) -> 
D168: =IF($B168="","",(INDEX('AD Outage data'!D:D,$B168,1))) ->  | E168: =IF($B168="","",(INDEX('AD Outage data'!G:G,$B168,1))) ->  | F168: =IF($B168="","",(INDEX('AD Outage data'!H:H,$B168,1))) ->  | G168: =IF($B168="","",((INDEX('AD Outage data'!I:I,$B168,1))/(24*60))) ->  | H168: =IF($B168="","",((INDEX('AD Outage data'!J:J,$B168,1))/(24*60))) ->  | I168: =IF($B168="","",(INDEX('AD Outage data'!Z:Z,$B168,1))) ->  | J168: =IF($B168="","",(INDEX('AD Outage data'!M:M,$B168,1))) -> 
D169: =IF($B169="","",(INDEX('AD Outage data'!D:D,$B169,1))) ->  | E169: =IF($B169="","",(INDEX('AD Outage data'!G:G,$B169,1))) ->  | F169: =IF($B169="","",(INDEX('AD Outage data'!H:H,$B169,1))) ->  | G169: =IF($B169="","",((INDEX('AD Outage data'!I:I,$B169,1))/(24*60))) ->  | H169: =IF($B169="","",((INDEX('AD Outage data'!J:J,$B169,1))/(24*60))) ->  | I169: =IF($B169="","",(INDEX('AD Outage data'!Z:Z,$B169,1))) ->  | J169: =IF($B169="","",(INDEX('AD Outage data'!M:M,$B169,1))) -> 
D170: =IF($B170="","",(INDEX('AD Outage data'!D:D,$B170,1))) ->  | E170: =IF($B170="","",(INDEX('AD Outage data'!G:G,$B170,1))) ->  | F170: =IF($B170="","",(INDEX('AD Outage data'!H:H,$B170,1))) ->  | G170: =IF($B170="","",((INDEX('AD Outage data'!I:I,$B170,1))/(24*60))) ->  | H170: =IF($B170="","",((INDEX('AD Outage data'!J:J,$B170,1))/(24*60))) ->  | I170: =IF($B170="","",(INDEX('AD Outage data'!Z:Z,$B170,1))) ->  | J170: =IF($B170="","",(INDEX('AD Outage data'!M:M,$B170,1))) -> 
D171: =IF($B171="","",(INDEX('AD Outage data'!D:D,$B171,1))) ->  | E171: =IF($B171="","",(INDEX('AD Outage data'!G:G,$B171,1))) ->  | F171: =IF($B171="","",(INDEX('AD Outage data'!H:H,$B171,1))) ->  | G171: =IF($B171="","",((INDEX('AD Outage data'!I:I,$B171,1))/(24*60))) ->  | H171: =IF($B171="","",((INDEX('AD Outage data'!J:J,$B171,1))/(24*60))) ->  | I171: =IF($B171="","",(INDEX('AD Outage data'!Z:Z,$B171,1))) ->  | J171: =IF($B171="","",(INDEX('AD Outage data'!M:M,$B171,1))) -> 
D172: =IF($B172="","",(INDEX('AD Outage data'!D:D,$B172,1))) ->  | E172: =IF($B172="","",(INDEX('AD Outage data'!G:G,$B172,1))) ->  | F172: =IF($B172="","",(INDEX('AD Outage data'!H:H,$B172,1))) ->  | G172: =IF($B172="","",((INDEX('AD Outage data'!I:I,$B172,1))/(24*60))) ->  | H172: =IF($B172="","",((INDEX('AD Outage data'!J:J,$B172,1))/(24*60))) ->  | I172: =IF($B172="","",(INDEX('AD Outage data'!Z:Z,$B172,1))) ->  | J172: =IF($B172="","",(INDEX('AD Outage data'!M:M,$B172,1))) -> 
D173: =IF($B173="","",(INDEX('AD Outage data'!D:D,$B173,1))) ->  | E173: =IF($B173="","",(INDEX('AD Outage data'!G:G,$B173,1))) ->  | F173: =IF($B173="","",(INDEX('AD Outage data'!H:H,$B173,1))) ->  | G173: =IF($B173="","",((INDEX('AD Outage data'!I:I,$B173,1))/(24*60))) ->  | H173: =IF($B173="","",((INDEX('AD Outage data'!J:J,$B173,1))/(24*60))) ->  | I173: =IF($B173="","",(INDEX('AD Outage data'!Z:Z,$B173,1))) ->  | J173: =IF($B173="","",(INDEX('AD Outage data'!M:M,$B173,1))) -> 
D174: =IF($B174="","",(INDEX('AD Outage data'!D:D,$B174,1))) ->  | E174: =IF($B174="","",(INDEX('AD Outage data'!G:G,$B174,1))) ->  | F174: =IF($B174="","",(INDEX('AD Outage data'!H:H,$B174,1))) ->  | G174: =IF($B174="","",((INDEX('AD Outage data'!I:I,$B174,1))/(24*60))) ->  | H174: =IF($B174="","",((INDEX('AD Outage data'!J:J,$B174,1))/(24*60))) ->  | I174: =IF($B174="","",(INDEX('AD Outage data'!Z:Z,$B174,1))) ->  | J174: =IF($B174="","",(INDEX('AD Outage data'!M:M,$B174,1))) -> 
D175: =IF($B175="","",(INDEX('AD Outage data'!D:D,$B175,1))) ->  | E175: =IF($B175="","",(INDEX('AD Outage data'!G:G,$B175,1))) ->  | F175: =IF($B175="","",(INDEX('AD Outage data'!H:H,$B175,1))) ->  | G175: =IF($B175="","",((INDEX('AD Outage data'!I:I,$B175,1))/(24*60))) ->  | H175: =IF($B175="","",((INDEX('AD Outage data'!J:J,$B175,1))/(24*60))) ->  | I175: =IF($B175="","",(INDEX('AD Outage data'!Z:Z,$B175,1))) ->  | J175: =IF($B175="","",(INDEX('AD Outage data'!M:M,$B175,1))) -> 
D176: =IF($B176="","",(INDEX('AD Outage data'!D:D,$B176,1))) ->  | E176: =IF($B176="","",(INDEX('AD Outage data'!G:G,$B176,1))) ->  | F176: =IF($B176="","",(INDEX('AD Outage data'!H:H,$B176,1))) ->  | G176: =IF($B176="","",((INDEX('AD Outage data'!I:I,$B176,1))/(24*60))) ->  | H176: =IF($B176="","",((INDEX('AD Outage data'!J:J,$B176,1))/(24*60))) ->  | I176: =IF($B176="","",(INDEX('AD Outage data'!Z:Z,$B176,1))) ->  | J176: =IF($B176="","",(INDEX('AD Outage data'!M:M,$B176,1))) -> 
D177: =IF($B177="","",(INDEX('AD Outage data'!D:D,$B177,1))) ->  | E177: =IF($B177="","",(INDEX('AD Outage data'!G:G,$B177,1))) ->  | F177: =IF($B177="","",(INDEX('AD Outage data'!H:H,$B177,1))) ->  | G177: =IF($B177="","",((INDEX('AD Outage data'!I:I,$B177,1))/(24*60))) ->  | H177: =IF($B177="","",((INDEX('AD Outage data'!J:J,$B177,1))/(24*60))) ->  | I177: =IF($B177="","",(INDEX('AD Outage data'!Z:Z,$B177,1))) ->  | J177: =IF($B177="","",(INDEX('AD Outage data'!M:M,$B177,1))) -> 
D178: =IF($B178="","",(INDEX('AD Outage data'!D:D,$B178,1))) ->  | E178: =IF($B178="","",(INDEX('AD Outage data'!G:G,$B178,1))) ->  | F178: =IF($B178="","",(INDEX('AD Outage data'!H:H,$B178,1))) ->  | G178: =IF($B178="","",((INDEX('AD Outage data'!I:I,$B178,1))/(24*60))) ->  | H178: =IF($B178="","",((INDEX('AD Outage data'!J:J,$B178,1))/(24*60))) ->  | I178: =IF($B178="","",(INDEX('AD Outage data'!Z:Z,$B178,1))) ->  | J178: =IF($B178="","",(INDEX('AD Outage data'!M:M,$B178,1))) -> 
D179: =IF($B179="","",(INDEX('AD Outage data'!D:D,$B179,1))) ->  | E179: =IF($B179="","",(INDEX('AD Outage data'!G:G,$B179,1))) ->  | F179: =IF($B179="","",(INDEX('AD Outage data'!H:H,$B179,1))) ->  | G179: =IF($B179="","",((INDEX('AD Outage data'!I:I,$B179,1))/(24*60))) ->  | H179: =IF($B179="","",((INDEX('AD Outage data'!J:J,$B179,1))/(24*60))) ->  | I179: =IF($B179="","",(INDEX('AD Outage data'!Z:Z,$B179,1))) ->  | J179: =IF($B179="","",(INDEX('AD Outage data'!M:M,$B179,1))) -> 
D180: =IF($B180="","",(INDEX('AD Outage data'!D:D,$B180,1))) ->  | E180: =IF($B180="","",(INDEX('AD Outage data'!G:G,$B180,1))) ->  | F180: =IF($B180="","",(INDEX('AD Outage data'!H:H,$B180,1))) ->  | G180: =IF($B180="","",((INDEX('AD Outage data'!I:I,$B180,1))/(24*60))) ->  | H180: =IF($B180="","",((INDEX('AD Outage data'!J:J,$B180,1))/(24*60))) ->  | I180: =IF($B180="","",(INDEX('AD Outage data'!Z:Z,$B180,1))) ->  | J180: =IF($B180="","",(INDEX('AD Outage data'!M:M,$B180,1))) -> 
D181: =IF($B181="","",(INDEX('AD Outage data'!D:D,$B181,1))) ->  | E181: =IF($B181="","",(INDEX('AD Outage data'!G:G,$B181,1))) ->  | F181: =IF($B181="","",(INDEX('AD Outage data'!H:H,$B181,1))) ->  | G181: =IF($B181="","",((INDEX('AD Outage data'!I:I,$B181,1))/(24*60))) ->  | H181: =IF($B181="","",((INDEX('AD Outage data'!J:J,$B181,1))/(24*60))) ->  | I181: =IF($B181="","",(INDEX('AD Outage data'!Z:Z,$B181,1))) ->  | J181: =IF($B181="","",(INDEX('AD Outage data'!M:M,$B181,1))) -> 
D182: =IF($B182="","",(INDEX('AD Outage data'!D:D,$B182,1))) ->  | E182: =IF($B182="","",(INDEX('AD Outage data'!G:G,$B182,1))) ->  | F182: =IF($B182="","",(INDEX('AD Outage data'!H:H,$B182,1))) ->  | G182: =IF($B182="","",((INDEX('AD Outage data'!I:I,$B182,1))/(24*60))) ->  | H182: =IF($B182="","",((INDEX('AD Outage data'!J:J,$B182,1))/(24*60))) ->  | I182: =IF($B182="","",(INDEX('AD Outage data'!Z:Z,$B182,1))) ->  | J182: =IF($B182="","",(INDEX('AD Outage data'!M:M,$B182,1))) -> 
D183: =IF($B183="","",(INDEX('AD Outage data'!D:D,$B183,1))) ->  | E183: =IF($B183="","",(INDEX('AD Outage data'!G:G,$B183,1))) ->  | F183: =IF($B183="","",(INDEX('AD Outage data'!H:H,$B183,1))) ->  | G183: =IF($B183="","",((INDEX('AD Outage data'!I:I,$B183,1))/(24*60))) ->  | H183: =IF($B183="","",((INDEX('AD Outage data'!J:J,$B183,1))/(24*60))) ->  | I183: =IF($B183="","",(INDEX('AD Outage data'!Z:Z,$B183,1))) ->  | J183: =IF($B183="","",(INDEX('AD Outage data'!M:M,$B183,1))) -> 
D184: =IF($B184="","",(INDEX('AD Outage data'!D:D,$B184,1))) ->  | E184: =IF($B184="","",(INDEX('AD Outage data'!G:G,$B184,1))) ->  | F184: =IF($B184="","",(INDEX('AD Outage data'!H:H,$B184,1))) ->  | G184: =IF($B184="","",((INDEX('AD Outage data'!I:I,$B184,1))/(24*60))) ->  | H184: =IF($B184="","",((INDEX('AD Outage data'!J:J,$B184,1))/(24*60))) ->  | I184: =IF($B184="","",(INDEX('AD Outage data'!Z:Z,$B184,1))) ->  | J184: =IF($B184="","",(INDEX('AD Outage data'!M:M,$B184,1))) -> 
D185: =IF($B185="","",(INDEX('AD Outage data'!D:D,$B185,1))) ->  | E185: =IF($B185="","",(INDEX('AD Outage data'!G:G,$B185,1))) ->  | F185: =IF($B185="","",(INDEX('AD Outage data'!H:H,$B185,1))) ->  | G185: =IF($B185="","",((INDEX('AD Outage data'!I:I,$B185,1))/(24*60))) ->  | H185: =IF($B185="","",((INDEX('AD Outage data'!J:J,$B185,1))/(24*60))) ->  | I185: =IF($B185="","",(INDEX('AD Outage data'!Z:Z,$B185,1))) ->  | J185: =IF($B185="","",(INDEX('AD Outage data'!M:M,$B185,1))) -> 
D186: =IF($B186="","",(INDEX('AD Outage data'!D:D,$B186,1))) ->  | E186: =IF($B186="","",(INDEX('AD Outage data'!G:G,$B186,1))) ->  | F186: =IF($B186="","",(INDEX('AD Outage data'!H:H,$B186,1))) ->  | G186: =IF($B186="","",((INDEX('AD Outage data'!I:I,$B186,1))/(24*60))) ->  | H186: =IF($B186="","",((INDEX('AD Outage data'!J:J,$B186,1))/(24*60))) ->  | I186: =IF($B186="","",(INDEX('AD Outage data'!Z:Z,$B186,1))) ->  | J186: =IF($B186="","",(INDEX('AD Outage data'!M:M,$B186,1))) -> 
D187: =IF($B187="","",(INDEX('AD Outage data'!D:D,$B187,1))) ->  | E187: =IF($B187="","",(INDEX('AD Outage data'!G:G,$B187,1))) ->  | F187: =IF($B187="","",(INDEX('AD Outage data'!H:H,$B187,1))) ->  | G187: =IF($B187="","",((INDEX('AD Outage data'!I:I,$B187,1))/(24*60))) ->  | H187: =IF($B187="","",((INDEX('AD Outage data'!J:J,$B187,1))/(24*60))) ->  | I187: =IF($B187="","",(INDEX('AD Outage data'!Z:Z,$B187,1))) ->  | J187: =IF($B187="","",(INDEX('AD Outage data'!M:M,$B187,1))) -> 
D188: =IF($B188="","",(INDEX('AD Outage data'!D:D,$B188,1))) ->  | E188: =IF($B188="","",(INDEX('AD Outage data'!G:G,$B188,1))) ->  | F188: =IF($B188="","",(INDEX('AD Outage data'!H:H,$B188,1))) ->  | G188: =IF($B188="","",((INDEX('AD Outage data'!I:I,$B188,1))/(24*60))) ->  | H188: =IF($B188="","",((INDEX('AD Outage data'!J:J,$B188,1))/(24*60))) ->  | I188: =IF($B188="","",(INDEX('AD Outage data'!Z:Z,$B188,1))) ->  | J188: =IF($B188="","",(INDEX('AD Outage data'!M:M,$B188,1))) -> 
D189: =IF($B189="","",(INDEX('AD Outage data'!D:D,$B189,1))) ->  | E189: =IF($B189="","",(INDEX('AD Outage data'!G:G,$B189,1))) ->  | F189: =IF($B189="","",(INDEX('AD Outage data'!H:H,$B189,1))) ->  | G189: =IF($B189="","",((INDEX('AD Outage data'!I:I,$B189,1))/(24*60))) ->  | H189: =IF($B189="","",((INDEX('AD Outage data'!J:J,$B189,1))/(24*60))) ->  | I189: =IF($B189="","",(INDEX('AD Outage data'!Z:Z,$B189,1))) ->  | J189: =IF($B189="","",(INDEX('AD Outage data'!M:M,$B189,1))) -> 
D190: =IF($B190="","",(INDEX('AD Outage data'!D:D,$B190,1))) ->  | E190: =IF($B190="","",(INDEX('AD Outage data'!G:G,$B190,1))) ->  | F190: =IF($B190="","",(INDEX('AD Outage data'!H:H,$B190,1))) ->  | G190: =IF($B190="","",((INDEX('AD Outage data'!I:I,$B190,1))/(24*60))) ->  | H190: =IF($B190="","",((INDEX('AD Outage data'!J:J,$B190,1))/(24*60))) ->  | I190: =IF($B190="","",(INDEX('AD Outage data'!Z:Z,$B190,1))) ->  | J190: =IF($B190="","",(INDEX('AD Outage data'!M:M,$B190,1))) -> 
D191: =IF($B191="","",(INDEX('AD Outage data'!D:D,$B191,1))) ->  | E191: =IF($B191="","",(INDEX('AD Outage data'!G:G,$B191,1))) ->  | F191: =IF($B191="","",(INDEX('AD Outage data'!H:H,$B191,1))) ->  | G191: =IF($B191="","",((INDEX('AD Outage data'!I:I,$B191,1))/(24*60))) ->  | H191: =IF($B191="","",((INDEX('AD Outage data'!J:J,$B191,1))/(24*60))) ->  | I191: =IF($B191="","",(INDEX('AD Outage data'!Z:Z,$B191,1))) ->  | J191: =IF($B191="","",(INDEX('AD Outage data'!M:M,$B191,1))) -> 
D192: =IF($B192="","",(INDEX('AD Outage data'!D:D,$B192,1))) ->  | E192: =IF($B192="","",(INDEX('AD Outage data'!G:G,$B192,1))) ->  | F192: =IF($B192="","",(INDEX('AD Outage data'!H:H,$B192,1))) ->  | G192: =IF($B192="","",((INDEX('AD Outage data'!I:I,$B192,1))/(24*60))) ->  | H192: =IF($B192="","",((INDEX('AD Outage data'!J:J,$B192,1))/(24*60))) ->  | I192: =IF($B192="","",(INDEX('AD Outage data'!Z:Z,$B192,1))) ->  | J192: =IF($B192="","",(INDEX('AD Outage data'!M:M,$B192,1))) -> 
D193: =IF($B193="","",(INDEX('AD Outage data'!D:D,$B193,1))) ->  | E193: =IF($B193="","",(INDEX('AD Outage data'!G:G,$B193,1))) ->  | F193: =IF($B193="","",(INDEX('AD Outage data'!H:H,$B193,1))) ->  | G193: =IF($B193="","",((INDEX('AD Outage data'!I:I,$B193,1))/(24*60))) ->  | H193: =IF($B193="","",((INDEX('AD Outage data'!J:J,$B193,1))/(24*60))) ->  | I193: =IF($B193="","",(INDEX('AD Outage data'!Z:Z,$B193,1))) ->  | J193: =IF($B193="","",(INDEX('AD Outage data'!M:M,$B193,1))) -> 
D194: =IF($B194="","",(INDEX('AD Outage data'!D:D,$B194,1))) ->  | E194: =IF($B194="","",(INDEX('AD Outage data'!G:G,$B194,1))) ->  | F194: =IF($B194="","",(INDEX('AD Outage data'!H:H,$B194,1))) ->  | G194: =IF($B194="","",((INDEX('AD Outage data'!I:I,$B194,1))/(24*60))) ->  | H194: =IF($B194="","",((INDEX('AD Outage data'!J:J,$B194,1))/(24*60))) ->  | I194: =IF($B194="","",(INDEX('AD Outage data'!Z:Z,$B194,1))) ->  | J194: =IF($B194="","",(INDEX('AD Outage data'!M:M,$B194,1))) -> 
D195: =IF($B195="","",(INDEX('AD Outage data'!D:D,$B195,1))) ->  | E195: =IF($B195="","",(INDEX('AD Outage data'!G:G,$B195,1))) ->  | F195: =IF($B195="","",(INDEX('AD Outage data'!H:H,$B195,1))) ->  | G195: =IF($B195="","",((INDEX('AD Outage data'!I:I,$B195,1))/(24*60))) ->  | H195: =IF($B195="","",((INDEX('AD Outage data'!J:J,$B195,1))/(24*60))) ->  | I195: =IF($B195="","",(INDEX('AD Outage data'!Z:Z,$B195,1))) ->  | J195: =IF($B195="","",(INDEX('AD Outage data'!M:M,$B195,1))) -> 
D196: =IF($B196="","",(INDEX('AD Outage data'!D:D,$B196,1))) ->  | E196: =IF($B196="","",(INDEX('AD Outage data'!G:G,$B196,1))) ->  | F196: =IF($B196="","",(INDEX('AD Outage data'!H:H,$B196,1))) ->  | G196: =IF($B196="","",((INDEX('AD Outage data'!I:I,$B196,1))/(24*60))) ->  | H196: =IF($B196="","",((INDEX('AD Outage data'!J:J,$B196,1))/(24*60))) ->  | I196: =IF($B196="","",(INDEX('AD Outage data'!Z:Z,$B196,1))) ->  | J196: =IF($B196="","",(INDEX('AD Outage data'!M:M,$B196,1))) -> 
C197: =IF($B197="","",(INDEX(INDIRECT(outage_adid_col),$B197,1))) ->  | D197: =IF($B197="","",(INDEX('AD Outage data'!D:D,$B197,1))) ->  | E197: =IF($B197="","",(INDEX('AD Outage data'!G:G,$B197,1))) ->  | F197: =IF($B197="","",(INDEX('AD Outage data'!H:H,$B197,1))) ->  | G197: =IF($B197="","",((INDEX('AD Outage data'!I:I,$B197,1))/(24*60))) ->  | H197: =IF($B197="","",((INDEX('AD Outage data'!J:J,$B197,1))/(24*60))) ->  | I197: =IF($B197="","",(INDEX('AD Outage data'!Z:Z,$B197,1))) ->  | J197: =IF($B197="","",(INDEX('AD Outage data'!M:M,$B197,1))) -> 
A198: =IF(B197="","","'AD Outage data'!"&$B$2&B197+1&":"&$B$2&"30000") ->  | B198: =IF(ISERROR(MATCH("yes",INDIRECT(A198),0)),"",MATCH("yes",INDIRECT(A198),0)+B197) ->  | D198: =IF($B198="","",(INDEX('AD Outage data'!D:D,$B198,1))) ->  | E198: =IF($B198="","",(INDEX('AD Outage data'!G:G,$B198,1))) ->  | F198: =IF($B198="","",(INDEX('AD Outage data'!H:H,$B198,1))) ->  | G198: =IF($B198="","",((INDEX('AD Outage data'!I:I,$B198,1))/(24*60))) ->  | H198: =IF($B198="","",((INDEX('AD Outage data'!J:J,$B198,1))/(24*60))) ->  | I198: =IF($B198="","",(INDEX('AD Outage data'!Z:Z,$B198,1))) ->  | J198: =IF($B198="","",(INDEX('AD Outage data'!M:M,$B198,1))) -> 
D199: =IF($B199="","",(INDEX('AD Outage data'!D:D,$B199,1))) ->  | E199: =IF($B199="","",(INDEX('AD Outage data'!G:G,$B199,1))) ->  | F199: =IF($B199="","",(INDEX('AD Outage data'!H:H,$B199,1))) ->  | G199: =IF($B199="","",((INDEX('AD Outage data'!I:I,$B199,1))/(24*60))) ->  | H199: =IF($B199="","",((INDEX('AD Outage data'!J:J,$B199,1))/(24*60))) ->  | I199: =IF($B199="","",(INDEX('AD Outage data'!Z:Z,$B199,1))) ->  | J199: =IF($B199="","",(INDEX('AD Outage data'!M:M,$B199,1))) -> 
D200: =IF($B200="","",(INDEX('AD Outage data'!D:D,$B200,1))) ->  | E200: =IF($B200="","",(INDEX('AD Outage data'!G:G,$B200,1))) ->  | F200: =IF($B200="","",(INDEX('AD Outage data'!H:H,$B200,1))) ->  | G200: =IF($B200="","",((INDEX('AD Outage data'!I:I,$B200,1))/(24*60))) ->  | H200: =IF($B200="","",((INDEX('AD Outage data'!J:J,$B200,1))/(24*60))) ->  | I200: =IF($B200="","",(INDEX('AD Outage data'!Z:Z,$B200,1))) ->  | J200: =IF($B200="","",(INDEX('AD Outage data'!M:M,$B200,1))) -> 
... 100 more rows

Sheet Summary Tables (hidden)
B2: Traffic Totals
B3: Last 12 months dates | C3: =DATE(YEAR(D3),MONTH(D3)-1, DAY(D3)) -> 2014-01-01 | D3: 2014-02-01 | E3: 2014-03-01 | F3: 2014-04-01 | G3: 2014-05-01 | H3: 2014-06-01 | I3: 2014-07-01 | J3: 2014-08-01 | K3: 2014-09-01 | L3: 2014-10-01 | M3: =DATE(YEAR(N3),MONTH(N3)-1, DAY(N3)) -> 2014-11-01 | N3: =reporting_month -> 2014-12-01
B4: Previous 12 months dates | C4: =DATE(YEAR(C3)-1,MONTH(C3), DAY(C3)) -> 2013-01-01 | D4: 2013-02-01 | E4: 2013-03-01 | F4: 2013-04-01 | G4: 2013-05-01 | H4: 2013-06-01 | I4: 2013-07-01 | J4: 2013-08-01 | K4: 2013-09-01 | L4: 2013-10-01 | M4: 2013-11-01 | N4: 2013-12-01
B5: Month | C5: =C3 -> 2014-01-01 | D5: =D3 -> 2014-02-01 | E5: 2014-03-01 | F5: 2014-04-01 | G5: 2014-05-01 | H5: 2014-06-01 | I5: 2014-07-01 | J5: 2014-08-01 | K5: 2014-09-01 | L5: 2014-10-01 | M5: 2014-11-01 | N5: 2014-12-01
B6: Last 12 months | C6: =SUMIFS(INDIRECT(usage_traffic_col),INDIRECT(usage_region_col),region_selection,INDIRECT(usage_month_col),C3,INDIRECT(usage_sector_col),sector_selection) -> 4308.232268 | D6: 4675.131792 | E6: 4815.447796 | F6: 3945.903652 | G6: 4536.629844 | H6: 4257.919884 | I6: 2485.567856 | J6: 1194.526656 | K6: 3880.800024 | L6: 4879.052056 | M6: 5551.775526 | N6: 5191.683504
B7: Previous 12 months | C7: =SUMIFS(INDIRECT(usage_traffic_col),INDIRECT(usage_region_col),region_selection,INDIRECT(usage_month_col),C4,INDIRECT(usage_sector_col),sector_selection) -> 2656.51416 | D7: 2971.22216 | E7: 3662.334868 | F7: 2609.56196 | G7: 2914.305444 | H7: 2516.954728 | I7: 1450.323298 | J7: 893.401644 | K7: 2806.063754 | L7: 3877.41456 | M7: 4224.171228 | N7: 3970.449824
B8: =IF(sector_selection="All","Janet Traffic","Janet "&sector_selection&" Traffic") -> Janet Traffic | C8: =SUMIFS(INDIRECT(usage_traffic_col),INDIRECT(usage_region_col),"*",INDIRECT(usage_month_col),C3,INDIRECT(usage_sector_col),sector_selection) -> 180376.403 | D8: 203647.6344 | E8: 201905.7335 | F8: 168994.1778 | G8: 183560.2038 | H8: 151488.3831 | I8: 126681.8587 | J8: 100536.0394 | K8: 163233.6647 | L8: 215649.1808 | M8: 229172.43 | N8: 205794.4028
B9: =IF(sector_selection="All",region_selection&" Traffic",region_selection&" "&sector_selection&" Traffic") -> Kent Traffic | C9: =C6 -> 4308.232268 | D9: =D6 -> 4675.131792 | E9: 4815.447796 | F9: 3945.903652 | G9: 4536.629844 | H9: 4257.919884 | I9: 2485.567856 | J9: 1194.526656 | K9: 3880.800024 | L9: 4879.052056 | M9: 5551.775526 | N9: 5191.683504
B10: =IF(sector_selection="All","% of Janet Traffic from "&region_selection,"% of Janet "&sector_selection&" Traffic from "&region_selection) -> % of Janet Traffic from Kent | C10: =C9/C8 -> 0.0238846778 | D10: 0.02295696586 | E10: 0.02384998045 | F10: 0.02334934672 | G10: 0.0247146699 | H10: 0.02810723698 | I10: 0.01962055089 | J10: 0.01188157663 | K10: 0.02377450774 | L10: 0.02262495057 | M10: 0.02422532032 | N10: 0.02522752531 | Q10: This section is here to allow the user to switch between the graph showing service outages on the dashboard and the list of sites in the selected region failing the SLA target, as generated below left. Overlaid on the graph is an excel camera image, a live link to cells elsewhere in the workbook. The selection checkbox "Show SLA Failures" changes the # Columns to Offset Camera Image parameter (cell K15), which is used in the dynamic range reference for a range named Picture_source. This range therefore refers to either the list of failing sites, or is offset to the right to display he cells below, which contain a transparent shape, the same height and width as the table, which functions as a "window" to allow the graph underneath to be revealed when these cells are used as the reference for the camera image. The table currently shows 13 rows - a warning will display if there are any regions with more failures to be displayed. When adjusting the size of the table, be aware that if rows are added or removed, then the range definition of Picture_source will need to be edited to show the appropriate number of rows (maximum number of sites failing in a region plus one for the header row).If the image becomes distorted and needs to be refreshed (i.e. delete the old one and "take the picture" again), then once it is placed in the dashboard, you will need to re-establish the link with the dynamic range (click on the image, then enter "=Picture_source" in the formula bar).
B11: % Change from 12 Months Previously | C11: =(C6-C7)/C7 -> 0.6217614545 | D11: =(D6-D7)/D7 -> 0.5734709625 | E11: 0.3148573163 | F11: 0.5120942566 | G11: 0.5566761725 | H11: 0.6916950617 | I11: 0.7138026118 | J11: 0.3370544637 | K11: 0.3830049365 | L11: 0.2583261296 | M11: 0.3142875197 | N11: 0.3075806859
B13: ="Connections in "&region_selection&" by Bandwidth" -> Connections in Kent by Bandwidth
B14: Connections by Bandwidth | C14: Other | D14: Research | E14: Further Education | F14: Higher Education | H14: Services Failing SLA
B15: ≤10 Mbit/s | C15: =COUNTIFS(INDIRECT(percentile_bin_col),"="&$B15,INDIRECT(percentile_region_col),region_selection, INDIRECT(percentile_month_col),reporting_month,INDIRECT(percentile_sector_col),C$14) -> 1 | D15: 0 | E15: 0 | F15: 0 | H15: Check box cell link: | I15: FALSE | J15: # Columns to Offset Camera Image: | K15: =IF(I15=FALSE,8,1) -> 8
B16: ≤100 Mbit/s | C16: 2 | D16: 1 | E16: 5 | F16: 2 | I16: Row Index | J16: Organisation | K16: Rolling Availability
B17: ≤1 Gbit/s | C17: 4 | D17: 0 | E17: 9 | F17: 4 | H17: Adjusted Range | I17: 0 | L17: =IF(sector_selection="All","Services in "&region_selection&" Failing SLA Target",sector_selection&" Services in "&region_selection&" Failing SLA Target") -> Services in Kent Failing SLA Target
B18: >1 Gbit/s | C18: 1 | D18: 0 | E18: 0 | F18: 2 | H18: =IF(I17="","","'CA_Rolling'!V"&I17+1&":V30000") -> 'CA_Rolling'!V1:V30000 | I18: =IF(ISERROR(MATCH("yes",INDIRECT(H18),0)),"",MATCH("yes",INDIRECT(H18),0)+I17) -> 293 | J18: =IF($I18="","",(INDEX((INDIRECT(rolling_availability_servicename_col)),$I18,1))) -> Hadlow College, Greenwich Campus | K18: =IF($I18="","",(INDEX(INDIRECT(rolling_availability_rolling_pcent_col),$I18,1))*1) -> 0.9967 | L18: =IF($J18="","None",$J18) -> Hadlow College, Greenwich Campus | Q18: =IF($L18="","None",TEXT($K18,"#0.00%")) -> 99.67%
B19: Dark Fibre | C19: 0 | D19: 0 | E19: 0 | F19: 0 | H19: =IF(I18="","","'CA_Rolling'!V"&I18+1&":V30000") -> 'CA_Rolling'!V294:V30000 | I19: =IF(ISERROR(MATCH("yes",INDIRECT(H19),0)),"",MATCH("yes",INDIRECT(H19),0)+I18) -> 813 | J19: University for the Creative Arts, Canterbury Campus | K19: 0.9964 | L19: =IF($J19=""," ",$J19) -> University for the Creative Arts, Canterbury Campus | Q19: =IF($L19="","None",TEXT($K19,"#0.00%")) -> 99.64%
H20: 'CA_Rolling'!V814:V30000 | I20: =IF(ISERROR(MATCH("yes",INDIRECT(H20),0)),"",MATCH("yes",INDIRECT(H20),0)+I19) ->  | L20: =IF($J20=""," ",$J20) -> 
I21: =IF(ISERROR(MATCH("yes",INDIRECT(H21),0)),"",MATCH("yes",INDIRECT(H21),0)+I20) -> 
B22: Connections by % Utilisation | I22: =IF(ISERROR(MATCH("yes",INDIRECT(H22),0)),"",MATCH("yes",INDIRECT(H22),0)+I21) -> 
C23: Higher Education | D23: Further Education | E23: Research | F23: Other | I23: =IF(ISERROR(MATCH("yes",INDIRECT(H23),0)),"",MATCH("yes",INDIRECT(H23),0)+I22) -> 
B24: 0-25% | C24: =COUNTIFS(INDIRECT(percentile_region_col),region_selection,INDIRECT(percentile_month_col),reporting_month,INDIRECT(percentile_sector_col),C$23,INDIRECT(percentile_util_bin_col),"="&$B24) -> 7 | D24: 14 | E24: 1 | F24: 7
B25: 25-50% | C25: 0 | D25: 0 | E25: 0 | F25: 0
B26: 50-75% | C26: 1 | D26: 0 | E26: 0 | F26: 0
B27: >75% | C27: 0 | D27: 0 | E27: 0 | F27: 1
I28: =IF(ISERROR(MATCH("yes",INDIRECT(H28),0)),"",MATCH("yes",INDIRECT(H28),0)+I27) -> 
I30: =IF(ISERROR(MATCH("yes",INDIRECT(H30),0)),"",MATCH("yes",INDIRECT(H30),0)+I29) -> 
I31: =IF(ISERROR(MATCH("yes",INDIRECT(H31),0)),"",MATCH("yes",INDIRECT(H31),0)+I30) -> 
B33: Availability Breakdown | C33: This section appears in the dashboard using the camera tool - changes made to formatting here will translate to presentation
A34: Sector: | B34: =IF(sector_selection="Higher Education","HE",IF(sector_selection="Further Education","FE",sector_selection)) -> All | C34: ="Average Availability of "&B34&" Services in "&region_selection -> Average Availability of All Services in Kent | G34: ="Average Availability of "&B34&" Services in Janet" -> Average Availability of All Services in Janet | L34: CA_Rolling'!v1:v30000
A35: Count of services in this region and sector this month: | B35: =COUNTIFS(INDIRECT(availability_sector_col),sector_selection,INDIRECT(availability_region_col),region_selection,INDIRECT(availability_month_col),reporting_month) -> 28 | C35: =reporting_month -> 2014-12-01 | D35: Equivalent Unavailability in Minutes per Service | E35: 12 Months Rolling | F35: Equivalent Unavailability in Minutes per Service | G35: =reporting_month -> 2014-12-01 | H35: Equivalent Unavailability in Minutes per Service | I35: 12 Months Rolling | J35: Equivalent Unavailability in Minutes per Service | L35: CA_Rolling'!V16088:V30000
A36: Count of services in this sector on Janet this month: | B36: =COUNTIFS(INDIRECT(availability_sector_col),sector_selection,INDIRECT(availability_month_col),reporting_month) -> 986 | C36: =IF(B35=0,"~",(((AVERAGEIFS(INDIRECT(availability_col),INDIRECT(availability_month_col),reporting_month,INDIRECT(availability_region_col),region_selection,INDIRECT(availability_sector_col),sector_selection))))) -> 1 | D36: =IF(C36="~","~",mins_in_month-(mins_in_month*C36)) -> 0 | E36: =IF(B35=0,"~",(((AVERAGEIFS(INDIRECT(availability_col),INDIRECT(availability_month_col),">="&one_year_ago,INDIRECT(availability_region_col),region_selection,INDIRECT(availability_sector_col),sector_selection))))) -> 0.999678045 | F36: =IF(E36="~","~",(mins_in_year)-(mins_in_year*E36)) -> 169.2195583 | G36: =(((AVERAGEIFS(INDIRECT(availability_col),INDIRECT(availability_month_col),reporting_month,INDIRECT(availability_sector_col),sector_selection)))) -> 0.9995998186 | H36: =mins_in_month-(mins_in_month*G36) -> 17.86409736 | I36: =(((AVERAGEIFS(INDIRECT(availability_col),INDIRECT(availability_month_col),">="&one_year_ago,INDIRECT(availability_sector_col),sector_selection)))) -> 0.9995788634 | J36: =IF(I36="~","~",mins_in_year-(mins_in_year*I36)) -> 221.3493785
A37: Count of JANET outages in this sector in the last 24 months: | B37: =SUMIF(INDIRECT(availability_sector_col),sector_selection,INDIRECT(availability_breaks_col)) -> 1221 | C37: Mean Time to Repair | E37: Average Faults per Service per Year | G37: Mean Time to Repair | I37: Average Faults per Service per Year
A38: Count of outages in this region/sector in the last 24 months: | B38: =SUMIFS(INDIRECT(availability_breaks_col),INDIRECT(availability_region_col),region_selection,INDIRECT(availability_sector_col),sector_selection) -> 19 | C38: =IF(B35=0,"~",IF(B38=0,"No outages",(SUMIFS(INDIRECT(availability_duration_col),INDIRECT(availability_region_col),region_selection,INDIRECT(availability_sector_col),sector_selection)/SUMIFS(INDIRECT(availability_breaks_col),INDIRECT(availability_region_col),region_selection,INDIRECT(availability_sector_col),sector_selection))/(24*60))) -> 0.2070540936 | E38: =IF(B35=0,"~",IF(B38=0,"No outages",B38/B35/2)) -> 0.3392857143 | G38: =IF(B37=0,"No outages",(SUMIFS(INDIRECT(availability_duration_col),INDIRECT(availability_sector_col),sector_selection)/SUMIFS(INDIRECT(availability_breaks_col),INDIRECT(availability_sector_col),sector_selection))/(24*60)) -> 0.2521885522 | I38: =IF(B37=0,"No outages",(B37/B36/2)) -> 0.619168357
C39: ="Based on "&B38&(IF(B38=1," fault"," faults"))&" over the last 24 months" -> Based on 19 faults over the last 24 months | G39: ="Based on "&B37&(IF(B37=1," fault"," faults"))&" over the last 24 months" -> Based on 1221 faults over the last 24 months
B41: =IF(sector_selection="All","Average Availability","Average Availability - "&sector_selection) -> Average Availability
B42: Last 12 months dates | C42: =DATE(YEAR(D42),MONTH(D42)-1, DAY(D42)) -> 2014-01-01 | D42: =DATE(YEAR(E42),MONTH(E42)-1, DAY(E42)) -> 2014-02-01 | E42: =DATE(YEAR(F42),MONTH(F42)-1, DAY(F42)) -> 2014-03-01 | F42: =DATE(YEAR(G42),MONTH(G42)-1, DAY(G42)) -> 2014-04-01 | G42: =DATE(YEAR(H42),MONTH(H42)-1, DAY(H42)) -> 2014-05-01 | H42: =DATE(YEAR(I42),MONTH(I42)-1, DAY(I42)) -> 2014-06-01 | I42: =DATE(YEAR(J42),MONTH(J42)-1, DAY(J42)) -> 2014-07-01 | J42: =DATE(YEAR(K42),MONTH(K42)-1, DAY(K42)) -> 2014-08-01 | K42: =DATE(YEAR(L42),MONTH(L42)-1, DAY(L42)) -> 2014-09-01 | L42: =DATE(YEAR(M42),MONTH(M42)-1, DAY(M42)) -> 2014-10-01 | M42: =DATE(YEAR(N42),MONTH(N42)-1, DAY(N42)) -> 2014-11-01 | N42: =reporting_month -> 2014-12-01
B43: =region_selection -> Kent | C43: =IF(C46=0,#N/A,(((AVERAGEIFS(INDIRECT(availability_col),INDIRECT(availability_month_col),C$42,INDIRECT(availability_region_col),region_selection,INDIRECT(availability_sector_col),sector_selection))))) -> 0.9990607399 | D43: 1 | E43: 1 | F43: 0.9995056217 | G43: 1 | H43: 1 | I43: 1 | J43: 0.9992791539 | K43: 1 | L43: 0.9983912452 | M43: 0.9998722565 | N43: 1
B44: JANET | C44: =(((AVERAGEIFS(INDIRECT(availability_col),INDIRECT(availability_month_col),C$42,INDIRECT(availability_region_col),"*",INDIRECT(availability_sector_col),sector_selection)))) -> 0.9995340593 | D44: 0.9992688704 | E44: 0.9998615724 | F44: 0.9997687535 | G44: 0.9994884854 | H44: 0.9999337239 | I44: 0.9994249307 | J44: 0.9997079313 | K44: 0.999331212 | L44: 0.9991039887 | M44: 0.9999195406 | N44: 0.9995998186
B45: For shading | C45: =SLA_target -> 0.997 | D45: 0.997 | E45: 0.997 | F45: 0.997 | G45: 0.997 | H45: 0.997 | I45: 0.997 | J45: 0.997 | K45: 0.997 | L45: 0.997 | M45: 0.997 | N45: 0.997
A46: Services in region/sector/month | B46: =sector_selection -> All | C46: =COUNTIFS(INDIRECT(availability_sector_col),$B46,INDIRECT(availability_region_col),region_selection,INDIRECT(availability_month_col),C$42) -> 28 | D46: 28 | E46: 28 | F46: 28 | G46: 28 | H46: 28 | I46: 28 | J46: 28 | K46: 27 | L46: 27 | M46: 27 | N46: 28
B50: =region_selection&" Service Outages - Last 12 Months" -> Kent Service Outages - Last 12 Months
A51: Availability % | B51: 0.997 | C51: Other | D51: Research | E51: Further Education | F51: Higher Education
A52: 1 | B52: Services with no outage | C52: =COUNTIFS(INDIRECT(rolling_availability_region_col),region_selection,INDIRECT(rolling_availability_breakdown_sector_col),C$51,INDIRECT(rolling_availability_rolling_pcent_col),$A52) -> 3 | D52: =COUNTIFS(INDIRECT(rolling_availability_region_col),region_selection,INDIRECT(rolling_availability_breakdown_sector_col),D$51,INDIRECT(rolling_availability_rolling_pcent_col),$A52) -> 0 | E52: =COUNTIFS(INDIRECT(rolling_availability_region_col),region_selection,INDIRECT(rolling_availability_breakdown_sector_col),E$51,INDIRECT(rolling_availability_rolling_pcent_col),$A52) -> 7 | F52: =COUNTIFS(INDIRECT(rolling_availability_region_col),region_selection,INDIRECT(rolling_availability_breakdown_sector_col),F$51,INDIRECT(rolling_availability_rolling_pcent_col),$A52) -> 3
A53: 0.997 | B53: Services with outage | C53: =COUNTIFS(INDIRECT(rolling_availability_region_col),region_selection,INDIRECT(rolling_availability_breakdown_sector_col),C$51,INDIRECT(rolling_availability_rolling_pcent_col),"<"&$A52,INDIRECT(rolling_availability_rolling_pcent_col),">="&$A53) -> 2 | D53: =COUNTIFS(INDIRECT(rolling_availability_region_col),region_selection,INDIRECT(rolling_availability_breakdown_sector_col),D$51,INDIRECT(rolling_availability_rolling_pcent_col),"<"&$A52,INDIRECT(rolling_availability_rolling_pcent_col),">="&$A53) -> 1 | E53: =COUNTIFS(INDIRECT(rolling_availability_region_col),region_selection,INDIRECT(rolling_availability_breakdown_sector_col),E$51,INDIRECT(rolling_availability_rolling_pcent_col),"<"&$A52,INDIRECT(rolling_availability_rolling_pcent_col),">="&$A53) -> 4 | F53: =COUNTIFS(INDIRECT(rolling_availability_region_col),region_selection,INDIRECT(rolling_availability_breakdown_sector_col),F$51,INDIRECT(rolling_availability_rolling_pcent_col),"<"&$A52,INDIRECT(rolling_availability_rolling_pcent_col),">="&$A53) -> 4
A54: 0.997 | B54: Services failing SLA | C54: =COUNTIFS(INDIRECT(rolling_availability_region_col),region_selection,INDIRECT(rolling_availability_breakdown_sector_col),C$51,INDIRECT(rolling_availability_rolling_pcent_col),"<"&$A54) -> 0 | D54: =COUNTIFS(INDIRECT(rolling_availability_region_col),region_selection,INDIRECT(rolling_availability_breakdown_sector_col),D$51,INDIRECT(rolling_availability_rolling_pcent_col),"<"&$A54) -> 0 | E54: =COUNTIFS(INDIRECT(rolling_availability_region_col),region_selection,INDIRECT(rolling_availability_breakdown_sector_col),E$51,INDIRECT(rolling_availability_rolling_pcent_col),"<"&$A54) -> 1 | F54: =COUNTIFS(INDIRECT(rolling_availability_region_col),region_selection,INDIRECT(rolling_availability_breakdown_sector_col),F$51,INDIRECT(rolling_availability_rolling_pcent_col),"<"&$A54) -> 1
A58: Janet benchmarks for RNO, NOC Networks, PSBA and KPSN Reports
A59: 12 Monthly Rolling Availability | B59: =I36 -> 0.9995788634
A60: 12 Monthly Average Failure Rate | B60: =(SUM(INDIRECT(availability_breaks_col))/((COUNTIF(INDIRECT(availability_month_col),reporting_month)*days_in_year*24)))*1000 -> 0.1413626386
H66: Further Education | K66: Further Education
G67: 10 | H67: =COUNTIFS(INDIRECT(dashboard_bandwidth_col),"="&$G67,INDIRECT(percentile_month_col),reporting_month,INDIRECT(percentile_sector_col),H$66) -> 3 | J67: ≤10 Mbit/s | K67: =COUNTIFS(INDIRECT(percentile_bin_col),"="&$J67,INDIRECT(percentile_month_col),reporting_month,INDIRECT(percentile_sector_col),K$66) -> 3
G68: 45 | H68: 4 | J68: ≤100 Mbit/s | K68: =COUNTIFS(INDIRECT(percentile_bin_col),"="&$J68, INDIRECT(percentile_month_col),reporting_month,INDIRECT(percentile_sector_col),K$66) -> 289
G69: 100 | H69: 285 | J69: ≤1 Gbit/s | K69: =COUNTIFS(INDIRECT(percentile_bin_col),"="&$J69, INDIRECT(percentile_month_col),reporting_month,INDIRECT(percentile_sector_col),K$66) -> 238
G70: 155 | H70: 4 | J70: >1 Gbit/s | K70: =COUNTIFS(INDIRECT(percentile_bin_col),"="&$J70, INDIRECT(percentile_month_col),reporting_month,INDIRECT(percentile_sector_col),K$66) -> 0
G71: 500 | H71: 27 | J71: Dark Fibre | K71: =COUNTIFS(INDIRECT(percentile_bin_col),"="&$J71, INDIRECT(percentile_month_col),reporting_month,INDIRECT(percentile_sector_col),K$66) -> 1
G72: 1000 | H72: 176 | K72: Higher Education
J73: ≤10 Mbit/s | K73: =COUNTIFS(INDIRECT(percentile_bin_col),"="&$J73, INDIRECT(percentile_month_col),reporting_month,INDIRECT(percentile_sector_col),K$72) -> 1
J74: ≤100 Mbit/s | K74: =COUNTIFS(INDIRECT(percentile_bin_col),"="&$J74, INDIRECT(percentile_month_col),reporting_month,INDIRECT(percentile_sector_col),K$72) -> 47
J75: ≤1 Gbit/s | K75: =COUNTIFS(INDIRECT(percentile_bin_col),"="&$J75, INDIRECT(percentile_month_col),reporting_month,INDIRECT(percentile_sector_col),K$72) -> 192
J76: >1 Gbit/s | K76: =COUNTIFS(INDIRECT(percentile_bin_col),"="&$J76, INDIRECT(percentile_month_col),reporting_month,INDIRECT(percentile_sector_col),K$72) -> 109
J77: Dark Fibre | K77: =COUNTIFS(INDIRECT(percentile_bin_col),"="&$J77, INDIRECT(percentile_month_col),reporting_month,INDIRECT(percentile_sector_col),K$72) -> 2
K78: Research
J79: ≤10 Mbit/s | K79: =COUNTIFS(INDIRECT(percentile_bin_col),"="&$J79, INDIRECT(percentile_month_col),reporting_month,INDIRECT(percentile_sector_col),K$78) -> 7
J80: ≤100 Mbit/s | K80: =COUNTIFS(INDIRECT(percentile_bin_col),"="&$J80, INDIRECT(percentile_month_col),reporting_month,INDIRECT(percentile_sector_col),K$78) -> 20
J81: ≤1 Gbit/s | K81: =COUNTIFS(INDIRECT(percentile_bin_col),"="&$J81, INDIRECT(percentile_month_col),reporting_month,INDIRECT(percentile_sector_col),K$78) -> 23
J82: >1 Gbit/s | K82: =COUNTIFS(INDIRECT(percentile_bin_col),"="&$J82, INDIRECT(percentile_month_col),reporting_month,INDIRECT(percentile_sector_col),K$78) -> 8
J83: Dark Fibre | K83: =COUNTIFS(INDIRECT(percentile_bin_col),"="&$J83, INDIRECT(percentile_month_col),reporting_month,INDIRECT(percentile_sector_col),K$78) -> 0
K84: Other
J85: ≤10 Mbit/s | K85: =COUNTIFS(INDIRECT(percentile_bin_col),"="&$J85, INDIRECT(percentile_month_col),reporting_month,INDIRECT(percentile_sector_col),K$84) -> 46
J86: ≤100 Mbit/s | K86: =COUNTIFS(INDIRECT(percentile_bin_col),"="&$J86, INDIRECT(percentile_month_col),reporting_month,INDIRECT(percentile_sector_col),K$84) -> 95
J87: ≤1 Gbit/s | K87: =COUNTIFS(INDIRECT(percentile_bin_col),"="&$J87, INDIRECT(percentile_month_col),reporting_month,INDIRECT(percentile_sector_col),K$84) -> 78
J88: >1 Gbit/s | K88: =COUNTIFS(INDIRECT(percentile_bin_col),"="&$J88, INDIRECT(percentile_month_col),reporting_month,INDIRECT(percentile_sector_col),K$84) -> 24
J89: Dark Fibre | K89: =COUNTIFS(INDIRECT(percentile_bin_col),"="&$J89, INDIRECT(percentile_month_col),reporting_month,INDIRECT(percentile_sector_col),K$84) -> 0

Sheet Traffic Volume (hidden)
A1: Full_Name | B1: Organisation_Type | C1: Raw_Bandwidth_Mbits | D1: Contract_Bandwidth_Mbits | E1: Regional_Network | F1: Managing_Organisation | G1: To_Traffic | H1: From_Traffic | I1: Reporting_Month | J1: Line_Code | K1: CA_ID | L1: AD_ID | M1: Aggregate_Link | N1: IntMonth | O1: Traffic_for_Dashboard | P1: Dashboard_Sector
A2: Aberdeen College, Aberdeen City Campus | B2: Further Education | D2: 1000 | E2: Aberdeen | F2: NOC | G2: 15500000 | H2: 1380000 | I2: 2013-01-01 | J2: L02273 | K2: CA00101 | L2: AD00101 | M2: FALSE | N2: 2013-01-01 | O2: 16484 | P2: =IF(sector_selection="All","All",B2) -> All
A3: Aberdeen College, Aberdeen City Campus | B3: Further Education | D3: 1000 | E3: Aberdeen | F3: NOC | G3: 13800000 | H3: 1870000 | I3: 2013-02-01 | J3: L02273 | K3: CA00101 | L3: AD00101 | M3: FALSE | N3: 2013-02-01 | O3: 15303 | P3: All
A4: Aberdeen College, Aberdeen City Campus | B4: Further Education | D4: 1000 | E4: Aberdeen | F4: NOC | G4: 20700000 | H4: 2760000 | I4: 2013-03-01 | J4: L02273 | K4: CA00101 | L4: AD00101 | M4: FALSE | N4: 2013-03-01 | O4: 22910 | P4: All
A5: Aberdeen College, Aberdeen City Campus | B5: Further Education | D5: 1000 | E5: Aberdeen | F5: NOC | G5: 18200000 | H5: 2200000 | I5: 2013-04-01 | J5: L02273 | K5: CA00101 | L5: AD00101 | M5: FALSE | N5: 2013-04-01 | O5: 19922 | P5: All
A6: Aberdeen College, Aberdeen City Campus | B6: Further Education | D6: 1000 | E6: Aberdeen | F6: NOC | G6: 24400000 | H6: 2910000 | I6: 2013-05-01 | J6: L02273 | K6: CA00101 | L6: AD00101 | M6: FALSE | N6: 2013-05-01 | O6: 26670 | P6: All
A7: Aberdeen College, Aberdeen City Campus | B7: Further Education | D7: 1000 | E7: Aberdeen | F7: NOC | G7: 20200000 | H7: 2440000 | I7: 2013-06-01 | J7: L02273 | K7: CA00101 | L7: AD00101 | M7: FALSE | N7: 2013-06-01 | O7: 22109 | P7: All
A8: Aberdeen College, Aberdeen City Campus | B8: Further Education | D8: 1000 | E8: Aberdeen | F8: NOC | G8: 7390000 | H8: 924000 | I8: 2013-07-01 | J8: L02273 | K8: CA00101 | L8: AD00101 | M8: FALSE | N8: 2013-07-01 | O8: 8119 | P8: All
A9: Aberdeen College, Aberdeen City Campus | B9: Further Education | D9: 1000 | E9: Aberdeen | F9: NOC | G9: 2970000 | H9: 646000 | I9: 2013-08-01 | J9: L02273 | K9: CA00101 | L9: AD00101 | M9: FALSE | N9: 2013-08-01 | O9: 3531 | P9: All
A10: Aberdeen College, Aberdeen City Campus | B10: Further Education | D10: 1000 | E10: Aberdeen | F10: NOC | G10: 7910000 | H10: 1500000 | I10: 2013-09-01 | J10: L02273 | K10: CA00101 | L10: AD00101 | M10: FALSE | N10: 2013-09-01 | O10: 9189 | P10: All
A11: Aberdeen College, Aberdeen City Campus | B11: Further Education | D11: 1000 | E11: Aberdeen | F11: NOC | G11: 9290000 | H11: 1190000 | I11: 2013-10-01 | J11: L02273 | K11: CA00101 | L11: AD00101 | M11: FALSE | N11: 2013-10-01 | O11: 10234 | P11: All
A12: Aberdeen College, Aberdeen City Campus | B12: Further Education | D12: 1000 | E12: Aberdeen | F12: NOC | G12: 11200000 | H12: 1530000 | I12: 2013-11-01 | J12: L02273 | K12: CA00101 | L12: AD00101 | M12: FALSE | N12: 2013-11-01 | O12: 12432 | P12: All
A13: Aberdeen College, Aberdeen City Campus | B13: Further Education | D13: 1000 | E13: Aberdeen | F13: NOC | G13: 8230000 | H13: 1430000 | I13: 2013-12-01 | J13: L02273 | K13: CA00101 | L13: AD00101 | M13: FALSE | N13: 2013-12-01 | O13: 9434 | P13: All
A14: Aberdeen College, Aberdeen City Campus | B14: Further Education | D14: 1000 | E14: Aberdeen | F14: NOC | G14: 10900000 | H14: 1670000 | I14: 2014-01-01 | J14: L02273 | K14: CA00101 | L14: AD00101 | M14: FALSE | N14: 2014-01-01 | O14: 12275 | P14: All
A15: Aberdeen College, Aberdeen City Campus | B15: Further Education | D15: 1000 | E15: Aberdeen | F15: NOC | G15: 9870000 | H15: 1570000 | I15: 2014-02-01 | J15: L02273 | K15: CA00101 | L15: AD00101 | M15: FALSE | N15: 2014-02-01 | O15: 11172 | P15: All
A16: Aberdeen College, Aberdeen City Campus | B16: Further Education | D16: 1000 | E16: Aberdeen | F16: NOC | G16: 11000000 | H16: 1620000 | I16: 2014-03-01 | J16: L02273 | K16: CA00101 | L16: AD00101 | M16: FALSE | N16: 2014-03-01 | O16: 12324 | P16: All
A17: Aberdeen College, Aberdeen City Campus | B17: Further Education | D17: 1000 | E17: Aberdeen | F17: NOC | G17: 7880000 | H17: 1110000 | I17: 2014-04-01 | J17: L02273 | K17: CA00101 | L17: AD00101 | M17: FALSE | N17: 2014-04-01 | O17: 8779 | P17: All
A18: Aberdeen College, Aberdeen City Campus | B18: Further Education | D18: 1000 | E18: Aberdeen | F18: NOC | G18: 11300000 | H18: 1620000 | I18: 2014-05-01 | J18: L02273 | K18: CA00101 | L18: AD00101 | M18: FALSE | N18: 2014-05-01 | O18: 12617 | P18: All
A19: Aberdeen College, Aberdeen City Campus | B19: Further Education | D19: 1000 | E19: Aberdeen | F19: NOC | G19: 8310000 | H19: 1180000 | I19: 2014-06-01 | J19: L02273 | K19: CA00101 | L19: AD00101 | M19: FALSE | N19: 2014-06-01 | O19: 9268 | P19: All
A20: Aberdeen College, Aberdeen City Campus | B20: Further Education | D20: 1000 | E20: Aberdeen | F20: NOC | G20: 3320000 | H20: 482000 | I20: 2014-07-01 | J20: L02273 | K20: CA00101 | L20: AD00101 | M20: FALSE | N20: 2014-07-01 | O20: 3713 | P20: All
A21: Aberdeen College, Aberdeen City Campus | B21: Further Education | D21: 1000 | E21: Aberdeen | F21: NOC | G21: 4420000 | H21: 669000 | I21: 2014-08-01 | J21: L02273 | K21: CA00101 | L21: AD00101 | M21: FALSE | N21: 2014-08-01 | O21: 4970 | P21: All
A22: Aberdeen College, Aberdeen City Campus | B22: Further Education | D22: 1000 | E22: Aberdeen | F22: NOC | G22: 11500000 | H22: 1850000 | I22: 2014-09-01 | J22: L02273 | K22: CA00101 | L22: AD00101 | M22: FALSE | N22: 2014-09-01 | O22: 13037 | P22: All
A23: Aberdeen College, Aberdeen City Campus | B23: Further Education | D23: 1000 | E23: Aberdeen | F23: NOC | G23: 12200000 | H23: 1890000 | I23: 2014-10-01 | J23: L02273 | K23: CA00101 | L23: AD00101 | M23: FALSE | N23: 2014-10-01 | O23: 13760 | P23: All
A24: Aberdeen College, Aberdeen City Campus | B24: Further Education | D24: 1000 | E24: Aberdeen | F24: NOC | G24: 14000000 | H24: 1780000 | I24: 2014-11-01 | J24: L02273 | K24: CA00101 | L24: AD00101 | M24: FALSE | N24: 2014-11-01 | O24: 15410 | P24: All
A25: Aberdeen College, Aberdeen City Campus | B25: Further Education | D25: 1000 | E25: Aberdeen | F25: NOC | G25: 11500000 | H25: 1710000 | I25: 2014-12-01 | J25: L02273 | K25: CA00101 | L25: AD00101 | M25: FALSE | N25: 2014-12-01 | O25: 12900 | P25: All
A26: Aberdeen College, Altens Centre | B26: Further Education | E26: Aberdeen | F26: NOC | G26: 42 | H26: 56 | I26: 2013-01-01 | J26: L05338 | K26: CA00101 | L26: AD01013 | M26: FALSE | N26: 2013-01-01 | O26: 0 | P26: All
A27: Aberdeen College, Altens Centre | B27: Further Education | E27: Aberdeen | F27: NOC | G27: 39 | H27: 51 | I27: 2013-02-01 | J27: L05338 | K27: CA00101 | L27: AD01013 | M27: FALSE | N27: 2013-02-01 | O27: 0 | P27: All
A28: Aberdeen College, Altens Centre | B28: Further Education | E28: Aberdeen | F28: NOC | G28: 43 | H28: 57 | I28: 2013-03-01 | J28: L05338 | K28: CA00101 | L28: AD01013 | M28: FALSE | N28: 2013-03-01 | O28: 0 | P28: All
A29: Aberdeen College, Altens Centre | B29: Further Education | E29: Aberdeen | F29: NOC | G29: 41 | H29: 55 | I29: 2013-04-01 | J29: L05338 | K29: CA00101 | L29: AD01013 | M29: FALSE | N29: 2013-04-01 | O29: 0 | P29: All
A30: Aberdeen College, Altens Centre | B30: Further Education | E30: Aberdeen | F30: NOC | G30: 37 | H30: 49 | I30: 2013-05-01 | J30: L05338 | K30: CA00101 | L30: AD01013 | M30: FALSE | N30: 2013-05-01 | O30: 0 | P30: All
A31: Aberdeen College, Altens Centre | B31: Further Education | E31: Aberdeen | F31: NOC | G31: 24 | H31: 78 | I31: 2013-06-01 | J31: L05338 | K31: CA00101 | L31: AD01013 | M31: FALSE | N31: 2013-06-01 | O31: 0 | P31: All
A32: Aberdeen College, Altens Centre | B32: Further Education | E32: Aberdeen | F32: NOC | G32: 43 | H32: 181 | I32: 2013-07-01 | J32: L05338 | K32: CA00101 | L32: AD01013 | M32: FALSE | N32: 2013-07-01 | O32: 0 | P32: All
A33: Aberdeen College, Altens Centre | B33: Further Education | E33: Aberdeen | F33: NOC | G33: 43 | H33: 181 | I33: 2013-08-01 | J33: L05338 | K33: CA00101 | L33: AD01013 | M33: FALSE | N33: 2013-08-01 | O33: 0 | P33: All
A34: Aberdeen College, Altens Centre | B34: Further Education | E34: Aberdeen | F34: NOC | G34: 42 | H34: 175 | I34: 2013-09-01 | J34: L05338 | K34: CA00101 | L34: AD01013 | M34: FALSE | N34: 2013-09-01 | O34: 0 | P34: All
A35: Aberdeen College, Altens Centre | B35: Further Education | E35: Aberdeen | F35: NOC | G35: 43 | H35: 181 | I35: 2013-10-01 | J35: L05338 | K35: CA00101 | L35: AD01013 | M35: FALSE | N35: 2013-10-01 | O35: 0 | P35: All
A36: Aberdeen College, Altens Centre | B36: Further Education | E36: Aberdeen | F36: NOC | G36: 42 | H36: 175 | I36: 2013-11-01 | J36: L05338 | K36: CA00101 | L36: AD01013 | M36: FALSE | N36: 2013-11-01 | O36: 0 | P36: All
A37: Aberdeen College, Altens Centre | B37: Further Education | E37: Aberdeen | F37: NOC | G37: 43 | H37: 181 | I37: 2013-12-01 | J37: L05338 | K37: CA00101 | L37: AD01013 | M37: FALSE | N37: 2013-12-01 | O37: 0 | P37: All
A38: Aberdeen College, Altens Centre | B38: Further Education | E38: Aberdeen | F38: NOC | G38: 43 | H38: 181 | I38: 2014-01-01 | J38: L05338 | K38: CA00101 | L38: AD01013 | M38: FALSE | N38: 2014-01-01 | O38: 0 | P38: All
A39: Aberdeen College, Altens Centre | B39: Further Education | E39: Aberdeen | F39: NOC | G39: 39 | H39: 163 | I39: 2014-02-01 | J39: L05338 | K39: CA00101 | L39: AD01013 | M39: FALSE | N39: 2014-02-01 | O39: 0 | P39: All
A40: Aberdeen College, Altens Centre | B40: Further Education | E40: Aberdeen | F40: NOC | G40: 43 | H40: 181 | I40: 2014-03-01 | J40: L05338 | K40: CA00101 | L40: AD01013 | M40: FALSE | N40: 2014-03-01 | O40: 0 | P40: All
A41: Aberdeen College, Altens Centre | B41: Further Education | E41: Aberdeen | F41: NOC | G41: 41 | H41: 175 | I41: 2014-04-01 | J41: L05338 | K41: CA00101 | L41: AD01013 | M41: FALSE | N41: 2014-04-01 | O41: 0 | P41: All
A42: Aberdeen College, Altens Centre | B42: Further Education | E42: Aberdeen | F42: NOC | G42: 43 | H42: 181 | I42: 2014-05-01 | J42: L05338 | K42: CA00101 | L42: AD01013 | M42: FALSE | N42: 2014-05-01 | O42: 0 | P42: All
A43: Aberdeen College, Altens Centre | B43: Further Education | E43: Aberdeen | F43: NOC | G43: 42 | H43: 175 | I43: 2014-06-01 | J43: L05338 | K43: CA00101 | L43: AD01013 | M43: FALSE | N43: 2014-06-01 | O43: 0 | P43: All
A44: Aberdeen College, Altens Centre | B44: Further Education | E44: Aberdeen | F44: NOC | G44: 43 | H44: 181 | I44: 2014-07-01 | J44: L05338 | K44: CA00101 | L44: AD01013 | M44: FALSE | N44: 2014-07-01 | O44: 0 | P44: All
A45: Aberdeen College, Altens Centre | B45: Further Education | E45: Aberdeen | F45: NOC | G45: 43 | H45: 181 | I45: 2014-08-01 | J45: L05338 | K45: CA00101 | L45: AD01013 | M45: FALSE | N45: 2014-08-01 | O45: 0 | P45: All
A46: Aberdeen College, Altens Centre | B46: Further Education | E46: Aberdeen | F46: NOC | G46: 42 | H46: 175 | I46: 2014-09-01 | J46: L05338 | K46: CA00101 | L46: AD01013 | M46: FALSE | N46: 2014-09-01 | O46: 0 | P46: All
A47: Aberdeen College, Altens Centre | B47: Further Education | E47: Aberdeen | F47: NOC | G47: 43 | H47: 181 | I47: 2014-10-01 | J47: L05338 | K47: CA00101 | L47: AD01013 | M47: FALSE | N47: 2014-10-01 | O47: 0 | P47: All
A48: Aberdeen College, Altens Centre | B48: Further Education | E48: Aberdeen | F48: NOC | G48: 47 | H48: 177 | I48: 2014-11-01 | J48: L05338 | K48: CA00101 | L48: AD01013 | M48: FALSE | N48: 2014-11-01 | O48: 0 | P48: All
A49: Aberdeen College, Altens Centre | B49: Further Education | E49: Aberdeen | F49: NOC | G49: 65 | H49: 183 | I49: 2014-12-01 | J49: L05338 | K49: CA00101 | L49: AD01013 | M49: FALSE | N49: 2014-12-01 | O49: 0 | P49: All
A50: Aberystwyth University, Llandinam Building | B50: Higher Education | C50: 1000 | D50: 100 | E50: Wales | F50: PSBA | G50: 145000000 | H50: 13200000 | I50: 2013-01-01 | J50: L02717 | K50: CA00865 | L50: AD00891 | M50: FALSE | N50: 2013-01-01 | O50: 154492 | P50: All
A51: Aberystwyth University, Llandinam Building | B51: Higher Education | C51: 1000 | D51: 100 | E51: Wales | F51: PSBA | G51: 170000000 | H51: 15200000 | I51: 2013-02-01 | J51: L02717 | K51: CA00865 | L51: AD00891 | M51: FALSE | N51: 2013-02-01 | O51: 180859 | P51: All
A52: Aberystwyth University, Llandinam Building | B52: Higher Education | C52: 1000 | D52: 100 | E52: Wales | F52: PSBA | G52: 107000000 | H52: 10900000 | I52: 2013-03-01 | J52: L02717 | K52: CA00865 | L52: AD00891 | M52: FALSE | N52: 2013-03-01 | O52: 115137 | P52: All
A53: Aberystwyth University, Llandinam Building | B53: Higher Education | C53: 1000 | D53: 100 | E53: Wales | F53: PSBA | G53: 80300000 | H53: 11700000 | I53: 2013-04-01 | J53: L02717 | K53: CA00865 | L53: AD00891 | M53: FALSE | N53: 2013-04-01 | O53: 89844 | P53: All
A54: Aberystwyth University, Llandinam Building | B54: Higher Education | C54: 1000 | D54: 100 | E54: Wales | F54: PSBA | G54: 103000000 | H54: 11400000 | I54: 2013-05-01 | J54: L02717 | K54: CA00865 | L54: AD00891 | M54: FALSE | N54: 2013-05-01 | O54: 111719 | P54: All
A55: Aberystwyth University, Llandinam Building | B55: Higher Education | C55: 1000 | D55: 100 | E55: Wales | F55: PSBA | G55: 29000000 | H55: 8690000 | I55: 2013-06-01 | J55: L02717 | K55: CA00865 | L55: AD00891 | M55: FALSE | N55: 2013-06-01 | O55: 36807 | P55: All
A56: Aberystwyth University, Llandinam Building | B56: Higher Education | C56: 1000 | D56: 100 | E56: Wales | F56: PSBA | G56: 18000000 | H56: 8500000 | I56: 2013-07-01 | J56: L02717 | K56: CA00865 | L56: AD00891 | M56: FALSE | N56: 2013-07-01 | O56: 25879 | P56: All
A57: Aberystwyth University, Llandinam Building | B57: Higher Education | C57: 1000 | D57: 100 | E57: Wales | F57: PSBA | G57: 17900000 | H57: 6180000 | I57: 2013-08-01 | J57: L02717 | K57: CA00865 | L57: AD00891 | M57: FALSE | N57: 2013-08-01 | O57: 23516 | P57: All
A58: Aberystwyth University, Llandinam Building | B58: Higher Education | C58: 1000 | D58: 100 | E58: Wales | F58: PSBA | G58: 43100000 | H58: 8000000 | I58: 2013-09-01 | J58: L02717 | K58: CA00865 | L58: AD00891 | M58: FALSE | N58: 2013-09-01 | O58: 49902 | P58: All
A59: Aberystwyth University, Llandinam Building | B59: Higher Education | C59: 1000 | D59: 100 | E59: Wales | F59: PSBA | G59: 134000000 | H59: 15300000 | I59: 2013-10-01 | J59: L02717 | K59: CA00865 | L59: AD00891 | M59: FALSE | N59: 2013-10-01 | O59: 145801 | P59: All
A60: Aberystwyth University, Llandinam Building | B60: Higher Education | C60: 1000 | D60: 100 | E60: Wales | F60: PSBA | G60: 147000000 | H60: 17900000 | I60: 2013-11-01 | J60: L02717 | K60: CA00865 | L60: AD00891 | M60: FALSE | N60: 2013-11-01 | O60: 161035 | P60: All
A61: Aberystwyth University, Llandinam Building | B61: Higher Education | C61: 1000 | D61: 100 | E61: Wales | F61: PSBA | G61: 81600000 | H61: 12300000 | I61: 2013-12-01 | J61: L02717 | K61: CA00865 | L61: AD00891 | M61: FALSE | N61: 2013-12-01 | O61: 91699 | P61: All
A62: Aberystwyth University, Llandinam Building | B62: Higher Education | C62: 1000 | D62: 100 | E62: Wales | F62: PSBA | G62: 138000000 | H62: 16200000 | I62: 2014-01-01 | J62: L02717 | K62: CA00865 | L62: AD00891 | M62: FALSE | N62: 2014-01-01 | O62: 150586 | P62: All
A63: Aberystwyth University, Llandinam Building | B63: Higher Education | C63: 1000 | D63: 100 | E63: Wales | F63: PSBA | G63: 149000000 | H63: 17300000 | I63: 2014-02-01 | J63: L02717 | K63: CA00865 | L63: AD00891 | M63: FALSE | N63: 2014-02-01 | O63: 162402 | P63: All
A64: Aberystwyth University, Llandinam Building | B64: Higher Education | C64: 1000 | D64: 100 | E64: Wales | F64: PSBA | G64: 171000000 | H64: 21100000 | I64: 2014-03-01 | J64: L02717 | K64: CA00865 | L64: AD00891 | M64: FALSE | N64: 2014-03-01 | O64: 187598 | P64: All
A65: Aberystwyth University, Llandinam Building | B65: Higher Education | C65: 1000 | D65: 100 | E65: Wales | F65: PSBA | G65: 98400000 | H65: 15300000 | I65: 2014-04-01 | J65: L02717 | K65: CA00865 | L65: AD00891 | M65: FALSE | N65: 2014-04-01 | O65: 111035 | P65: All
A66: Aberystwyth University, Llandinam Building | B66: Higher Education | C66: 1000 | D66: 100 | E66: Wales | F66: PSBA | G66: 152000000 | H66: 18500000 | I66: 2014-05-01 | J66: L02717 | K66: CA00865 | L66: AD00891 | M66: FALSE | N66: 2014-05-01 | O66: 166504 | P66: =IF(sector_selection="All","All",B66) -> All
A67: Aberystwyth University, Llandinam Building | B67: Higher Education | C67: 1000 | D67: 100 | E67: Wales | F67: PSBA | G67: 34600000 | H67: 9220000 | I67: 2014-06-01 | J67: L02717 | K67: CA00865 | L67: AD00891 | M67: FALSE | N67: 2014-06-01 | O67: 42793 | P67: All
A68: Aberystwyth University, Llandinam Building | B68: Higher Education | C68: 1000 | D68: 100 | E68: Wales | F68: PSBA | G68: 24200000 | H68: 10500000 | I68: 2014-07-01 | J68: L02717 | K68: CA00865 | L68: AD00891 | M68: FALSE | N68: 2014-07-01 | O68: 33887 | P68: All
A69: Aberystwyth University, Llandinam Building | B69: Higher Education | C69: 1000 | D69: 100 | E69: Wales | F69: PSBA | G69: 19400000 | H69: 7030000 | I69: 2014-08-01 | J69: L02717 | K69: CA00865 | L69: AD00891 | M69: FALSE | N69: 2014-08-01 | O69: 25811 | P69: All
A70: Aberystwyth University, Llandinam Building | B70: Higher Education | C70: 1000 | D70: 100 | E70: Wales | F70: PSBA | G70: 49900000 | H70: 9790000 | I70: 2014-09-01 | J70: L02717 | K70: CA00865 | L70: AD00891 | M70: FALSE | N70: 2014-09-01 | O70: 58291 | P70: All
A71: Aberystwyth University, Llandinam Building | B71: Higher Education | C71: 1000 | D71: 100 | E71: Wales | F71: PSBA | G71: 130000000 | H71: 18000000 | I71: 2014-10-01 | J71: L02717 | K71: CA00865 | L71: AD00891 | M71: FALSE | N71: 2014-10-01 | O71: 144531 | P71: All
A72: Aberystwyth University, Llandinam Building | B72: Higher Education | C72: 1000 | D72: 100 | E72: Wales | F72: PSBA | G72: 136000000 | H72: 19500000 | I72: 2014-11-01 | J72: L02717 | K72: CA00865 | L72: AD00891 | M72: FALSE | N72: 2014-11-01 | O72: 151855 | P72: All
A73: Aberystwyth University, Llandinam Building | B73: Higher Education | C73: 1000 | D73: 100 | E73: Wales | F73: PSBA | G73: 72900000 | H73: 14100000 | I73: 2014-12-01 | J73: L02717 | K73: CA00865 | L73: AD00891 | M73: FALSE | N73: 2014-12-01 | O73: 84961 | P73: All
A74: Aberystwyth University, Visualisation Centre | B74: Higher Education | C74: 1000 | D74: 1000 | E74: Wales | F74: PSBA | G74: 58600000 | H74: 3750000 | I74: 2013-04-01 | J74: L06505 | K74: CA01201 | L74: AD01393 | M74: FALSE | N74: 2013-04-01 | O74: 60889 | P74: All
A75: Aberystwyth University, Visualisation Centre | B75: Higher Education | C75: 1000 | D75: 1000 | E75: Wales | F75: PSBA | G75: 93700000 | H75: 5960000 | I75: 2013-05-01 | J75: L06505 | K75: CA01201 | L75: AD01393 | M75: FALSE | N75: 2013-05-01 | O75: 97324 | P75: All
A76: Aberystwyth University, Visualisation Centre | B76: Higher Education | C76: 1000 | D76: 1000 | E76: Wales | F76: PSBA | G76: 18700000 | H76: 1440000 | I76: 2013-06-01 | J76: L06505 | K76: CA01201 | L76: AD01393 | M76: FALSE | N76: 2013-06-01 | O76: 19668 | P76: All
A77: Aberystwyth University, Visualisation Centre | B77: Higher Education | C77: 1000 | D77: 1000 | E77: Wales | F77: PSBA | G77: 10700000 | H77: 1340000 | I77: 2013-07-01 | J77: L06505 | K77: CA01201 | L77: AD01393 | M77: FALSE | N77: 2013-07-01 | O77: 11758 | P77: All
A78: Aberystwyth University, Visualisation Centre | B78: Higher Education | C78: 1000 | D78: 1000 | E78: Wales | F78: PSBA | G78: 10000000 | H78: 1290000 | I78: 2013-08-01 | J78: L06505 | K78: CA01201 | L78: AD01393 | M78: FALSE | N78: 2013-08-01 | O78: 11025 | P78: All
A79: Aberystwyth University, Visualisation Centre | B79: Higher Education | C79: 1000 | D79: 1000 | E79: Wales | F79: PSBA | G79: 22800000 | H79: 2280000 | I79: 2013-09-01 | J79: L06505 | K79: CA01201 | L79: AD01393 | M79: FALSE | N79: 2013-09-01 | O79: 24492 | P79: All
A80: Aberystwyth University, Visualisation Centre | B80: Higher Education | C80: 1000 | D80: 1000 | E80: Wales | F80: PSBA | G80: 65200000 | H80: 4510000 | I80: 2013-10-01 | J80: L06505 | K80: CA01201 | L80: AD01393 | M80: FALSE | N80: 2013-10-01 | O80: 68076 | P80: All
A81: Aberystwyth University, Visualisation Centre | B81: Higher Education | C81: 1000 | D81: 1000 | E81: Wales | F81: PSBA | G81: 70100000 | H81: 4890000 | I81: 2013-11-01 | J81: L06505 | K81: CA01201 | L81: AD01393 | M81: FALSE | N81: 2013-11-01 | O81: 73232 | P81: All
A82: Aberystwyth University, Visualisation Centre | B82: Higher Education | C82: 1000 | D82: 1000 | E82: Wales | F82: PSBA | G82: 39100000 | H82: 2830000 | I82: 2013-12-01 | J82: L06505 | K82: CA01201 | L82: AD01393 | M82: FALSE | N82: 2013-12-01 | O82: 40947 | P82: All
A83: Aberystwyth University, Visualisation Centre | B83: Higher Education | C83: 1000 | D83: 1000 | E83: Wales | F83: PSBA | G83: 64900000 | H83: 4400000 | I83: 2014-01-01 | J83: L06505 | K83: CA01201 | L83: AD01393 | M83: FALSE | N83: 2014-01-01 | O83: 67676 | P83: All
A84: Aberystwyth University, Visualisation Centre | B84: Higher Education | C84: 1000 | D84: 1000 | E84: Wales | F84: PSBA | G84: 72300000 | H84: 5020000 | I84: 2014-02-01 | J84: L06505 | K84: CA01201 | L84: AD01393 | M84: FALSE | N84: 2014-02-01 | O84: 75508 | P84: All
A85: Aberystwyth University, Visualisation Centre | B85: Higher Education | C85: 1000 | D85: 1000 | E85: Wales | F85: PSBA | G85: 83300000 | H85: 5410000 | I85: 2014-03-01 | J85: L06505 | K85: CA01201 | L85: AD01393 | M85: FALSE | N85: 2014-03-01 | O85: 86631 | P85: All
A86: Aberystwyth University, Visualisation Centre | B86: Higher Education | C86: 1000 | D86: 1000 | E86: Wales | F86: PSBA | G86: 48800000 | H86: 3350000 | I86: 2014-04-01 | J86: L06505 | K86: CA01201 | L86: AD01393 | M86: FALSE | N86: 2014-04-01 | O86: 50928 | P86: All
A87: Aberystwyth University, Visualisation Centre | B87: Higher Education | C87: 1000 | D87: 1000 | E87: Wales | F87: PSBA | G87: 73400000 | H87: 4450000 | I87: 2014-05-01 | J87: L06505 | K87: CA01201 | L87: AD01393 | M87: FALSE | N87: 2014-05-01 | O87: 76025 | P87: All
A88: Aberystwyth University, Visualisation Centre | B88: Higher Education | C88: 1000 | D88: 1000 | E88: Wales | F88: PSBA | G88: 18500000 | H88: 1570000 | I88: 2014-06-01 | J88: L06505 | K88: CA01201 | L88: AD01393 | M88: FALSE | N88: 2014-06-01 | O88: 19600 | P88: All
A89: Aberystwyth University, Visualisation Centre | B89: Higher Education | C89: 1000 | D89: 1000 | E89: Wales | F89: PSBA | G89: 17000000 | H89: 1680000 | I89: 2014-07-01 | J89: L06505 | K89: CA01201 | L89: AD01393 | M89: FALSE | N89: 2014-07-01 | O89: 18242 | P89: All
A90: Aberystwyth University, Visualisation Centre | B90: Higher Education | C90: 1000 | D90: 1000 | E90: Wales | F90: PSBA | G90: 16700000 | H90: 1920000 | I90: 2014-08-01 | J90: L06505 | K90: CA01201 | L90: AD01393 | M90: FALSE | N90: 2014-08-01 | O90: 18184 | P90: All
A91: Aberystwyth University, Visualisation Centre | B91: Higher Education | C91: 1000 | D91: 1000 | E91: Wales | F91: PSBA | G91: 43600000 | H91: 3950000 | I91: 2014-09-01 | J91: L06505 | K91: CA01201 | L91: AD01393 | M91: FALSE | N91: 2014-09-01 | O91: 46436 | P91: All
A92: Aberystwyth University, Visualisation Centre | B92: Higher Education | C92: 1000 | D92: 1000 | E92: Wales | F92: PSBA | G92: 127000000 | H92: 9220000 | I92: 2014-10-01 | J92: L06505 | K92: CA01201 | L92: AD01393 | M92: FALSE | N92: 2014-10-01 | O92: 133027 | P92: All
A93: Aberystwyth University, Visualisation Centre | B93: Higher Education | C93: 1000 | D93: 1000 | E93: Wales | F93: PSBA | G93: 132000000 | H93: 9010000 | I93: 2014-11-01 | J93: L06505 | K93: CA01201 | L93: AD01393 | M93: FALSE | N93: 2014-11-01 | O93: 137705 | P93: All
A94: Aberystwyth University, Visualisation Centre | B94: Higher Education | C94: 1000 | D94: 1000 | E94: Wales | F94: PSBA | G94: 67800000 | H94: 5060000 | I94: 2014-12-01 | J94: L06505 | K94: CA01201 | L94: AD01393 | M94: FALSE | N94: 2014-12-01 | O94: 71152 | P94: All
A95: Abingdon and Witney College | B95: Further Education | C95: 100 | D95: 100 | E95: TVN | F95: NOC | G95: 7520000 | H95: 227000 | I95: 2013-01-01 | J95: L04543 | K95: CA00470 | L95: AD00476 | M95: FALSE | N95: 2013-01-01 | O95: 7565 | P95: All
A96: Abingdon and Witney College | B96: Further Education | C96: 100 | D96: 100 | E96: TVN | F96: NOC | G96: 3170000 | H96: 199000 | I96: 2013-02-01 | J96: L04543 | K96: CA00470 | L96: AD00476 | M96: FALSE | N96: 2013-02-01 | O96: 3290 | P96: All
A97: Abingdon and Witney College | B97: Further Education | C97: 100 | D97: 100 | E97: TVN | F97: NOC | G97: 2780000 | H97: 217000 | I97: 2013-03-01 | J97: L04543 | K97: CA00470 | L97: AD00476 | M97: FALSE | N97: 2013-03-01 | O97: 2927 | P97: All
A98: Abingdon and Witney College | B98: Further Education | C98: 100 | D98: 100 | E98: TVN | F98: NOC | G98: 2240000 | H98: 164000 | I98: 2013-04-01 | J98: L04543 | K98: CA00470 | L98: AD00476 | M98: FALSE | N98: 2013-04-01 | O98: 2348 | P98: All
A99: Abingdon and Witney College | B99: Further Education | C99: 100 | D99: 100 | E99: TVN | F99: NOC | G99: 2750000 | H99: 223000 | I99: 2013-05-01 | J99: L04543 | K99: CA00470 | L99: AD00476 | M99: FALSE | N99: 2013-05-01 | O99: 2903 | P99: All
A100: Abingdon and Witney College | B100: Further Education | C100: 100 | D100: 100 | E100: TVN | F100: NOC | G100: 2730000 | H100: 216000 | I100: 2013-06-01 | J100: L04543 | K100: CA00470 | L100: AD00476 | M100: FALSE | N100: 2013-06-01 | O100: 2877 | P100: All
A101: Abingdon and Witney College | B101: Further Education | C101: 100 | D101: 100 | E101: TVN | F101: NOC | G101: 1020000 | H101: 100000 | I101: 2013-07-01 | J101: L04543 | K101: CA00470 | L101: AD00476 | M101: FALSE | N101: 2013-07-01 | O101: 1094 | P101: All
A102: Abingdon and Witney College | B102: Further Education | C102: 100 | D102: 100 | E102: TVN | F102: NOC | G102: 605000 | H102: 96900 | I102: 2013-08-01 | J102: L04543 | K102: CA00470 | L102: AD00476 | M102: FALSE | N102: 2013-08-01 | O102: 685 | P102: All
A103: Abingdon and Witney College | B103: Further Education | C103: 100 | D103: 100 | E103: TVN | F103: NOC | G103: 1480000 | H103: 155000 | I103: 2013-09-01 | J103: L04543 | K103: CA00470 | L103: AD00476 | M103: FALSE | N103: 2013-09-01 | O103: 1597 | P103: All
A104: Abingdon and Witney College | B104: Further Education | C104: 100 | D104: 100 | E104: TVN | F104: NOC | G104: 2970000 | H104: 282000 | I104: 2013-10-01 | J104: L04543 | K104: CA00470 | L104: AD00476 | M104: FALSE | N104: 2013-10-01 | O104: 3176 | P104: All
A105: Abingdon and Witney College | B105: Further Education | C105: 100 | D105: 100 | E105: TVN | F105: NOC | G105: 3830000 | H105: 296000 | I105: 2013-11-01 | J105: L04543 | K105: CA00470 | L105: AD00476 | M105: FALSE | N105: 2013-11-01 | O105: 4029 | P105: All
A106: Abingdon and Witney College | B106: Further Education | C106: 100 | D106: 100 | E106: TVN | F106: NOC | G106: 2860000 | H106: 264000 | I106: 2013-12-01 | J106: L04543 | K106: CA00470 | L106: AD00476 | M106: FALSE | N106: 2013-12-01 | O106: 3051 | P106: All
A107: Abingdon and Witney College | B107: Further Education | C107: 100 | D107: 100 | E107: TVN | F107: NOC | G107: 3930000 | H107: 328000 | I107: 2014-01-01 | J107: L04543 | K107: CA00470 | L107: AD00476 | M107: FALSE | N107: 2014-01-01 | O107: 4158 | P107: All
A108: Abingdon and Witney College | B108: Further Education | C108: 100 | D108: 100 | E108: TVN | F108: NOC | G108: 3400000 | H108: 275000 | I108: 2014-02-01 | J108: L04543 | K108: CA00470 | L108: AD00476 | M108: FALSE | N108: 2014-02-01 | O108: 3589 | P108: All
A109: Abingdon and Witney College | B109: Further Education | C109: 100 | D109: 100 | E109: TVN | F109: NOC | G109: 5160000 | H109: 393000 | I109: 2014-03-01 | J109: L04543 | K109: CA00470 | L109: AD00476 | M109: FALSE | N109: 2014-03-01 | O109: 5423 | P109: All
A110: Abingdon and Witney College | B110: Further Education | C110: 100 | D110: 100 | E110: TVN | F110: NOC | G110: 3350000 | H110: 272000 | I110: 2014-04-01 | J110: L04543 | K110: CA00470 | L110: AD00476 | M110: FALSE | N110: 2014-04-01 | O110: 3537 | P110: All
A111: Abingdon and Witney College | B111: Further Education | C111: 100 | D111: 100 | E111: TVN | F111: NOC | G111: 4720000 | H111: 422000 | I111: 2014-05-01 | J111: L04543 | K111: CA00470 | L111: AD00476 | M111: FALSE | N111: 2014-05-01 | O111: 5021 | P111: All
A112: Abingdon and Witney College | B112: Further Education | C112: 100 | D112: 100 | E112: TVN | F112: NOC | G112: 4610000 | H112: 483000 | I112: 2014-06-01 | J112: L04543 | K112: CA00470 | L112: AD00476 | M112: FALSE | N112: 2014-06-01 | O112: 4974 | P112: All
A113: Abingdon and Witney College | B113: Further Education | C113: 100 | D113: 100 | E113: TVN | F113: NOC | G113: 1380000 | H113: 314000 | I113: 2014-07-01 | J113: L04543 | K113: CA00470 | L113: AD00476 | M113: FALSE | N113: 2014-07-01 | O113: 1654 | P113: All
A114: Abingdon and Witney College | B114: Further Education | C114: 100 | D114: 100 | E114: TVN | F114: NOC | G114: 854000 | H114: 909000 | I114: 2014-08-01 | J114: L04543 | K114: CA00470 | L114: AD00476 | M114: FALSE | N114: 2014-08-01 | O114: 1722 | P114: All
A115: Abingdon and Witney College | B115: Further Education | C115: 100 | D115: 100 | E115: TVN | F115: NOC | G115: 3120000 | H115: 586000 | I115: 2014-09-01 | J115: L04543 | K115: CA00470 | L115: AD00476 | M115: FALSE | N115: 2014-09-01 | O115: 3619 | P115: All
A116: Abingdon and Witney College | B116: Further Education | C116: 100 | D116: 100 | E116: TVN | F116: NOC | G116: 4800000 | H116: 589000 | I116: 2014-10-01 | J116: L04543 | K116: CA00470 | L116: AD00476 | M116: FALSE | N116: 2014-10-01 | O116: 5263 | P116: All
A117: Abingdon and Witney College | B117: Further Education | C117: 100 | D117: 100 | E117: TVN | F117: NOC | G117: 5700000 | H117: 540000 | I117: 2014-11-01 | J117: L04543 | K117: CA00470 | L117: AD00476 | M117: FALSE | N117: 2014-11-01 | O117: 6094 | P117: All
A118: Abingdon and Witney College | B118: Further Education | C118: 100 | D118: 100 | E118: TVN | F118: NOC | G118: 4510000 | H118: 455000 | I118: 2014-12-01 | J118: L04543 | K118: CA00470 | L118: AD00476 | M118: FALSE | N118: 2014-12-01 | O118: 4849 | P118: All
A119: Accrington and Rossendale College | B119: Further Education | C119: 100 | D119: 100 | E119: North West | F119: NNW | G119: 2840000 | H119: 2710000 | I119: 2013-01-01 | J119: L04488 | K119: CA00764 | L119: AD00789 | M119: FALSE | N119: 2013-01-01 | O119: 5420 | P119: All
A120: Accrington and Rossendale College | B120: Further Education | C120: 100 | D120: 100 | E120: North West | F120: NNW | G120: 2650000 | H120: 1530000 | I120: 2013-02-01 | J120: L04488 | K120: CA00764 | L120: AD00789 | M120: FALSE | N120: 2013-02-01 | O120: 4082 | P120: All
A121: Accrington and Rossendale College | B121: Further Education | C121: 100 | D121: 100 | E121: North West | F121: NNW | G121: 3300000 | H121: 3180000 | I121: 2013-03-01 | J121: L04488 | K121: CA00764 | L121: AD00789 | M121: FALSE | N121: 2013-03-01 | O121: 6328 | P121: All
A122: Accrington and Rossendale College | B122: Further Education | C122: 100 | D122: 100 | E122: North West | F122: NNW | G122: 2700000 | H122: 1320000 | I122: 2013-04-01 | J122: L04488 | K122: CA00764 | L122: AD00789 | M122: FALSE | N122: 2013-04-01 | O122: 3926 | P122: All
A123: Accrington and Rossendale College | B123: Further Education | C123: 100 | D123: 100 | E123: North West | F123: NNW | G123: 3750000 | H123: 1680000 | I123: 2013-05-01 | J123: L04488 | K123: CA00764 | L123: AD00789 | M123: FALSE | N123: 2013-05-01 | O123: 5303 | P123: All
A124: Accrington and Rossendale College | B124: Further Education | C124: 100 | D124: 100 | E124: North West | F124: NNW | G124: 3020000 | H124: 1430000 | I124: 2013-06-01 | J124: L04488 | K124: CA00764 | L124: AD00789 | M124: FALSE | N124: 2013-06-01 | O124: 4346 | P124: All
A125: Accrington and Rossendale College | B125: Further Education | C125: 100 | D125: 100 | E125: North West | F125: NNW | G125: 1950000 | H125: 1540000 | I125: 2013-07-01 | J125: L04488 | K125: CA00764 | L125: AD00789 | M125: FALSE | N125: 2013-07-01 | O125: 3408 | P125: All
A126: Accrington and Rossendale College | B126: Further Education | C126: 100 | D126: 100 | E126: North West | F126: NOC | G126: 62 | H126: 1830000 | I126: 2013-08-01 | J126: L04488 | K126: CA00764 | L126: AD00789 | M126: FALSE | N126: 2013-08-01 | O126: 1787 | P126: All
A127: Accrington and Rossendale College | B127: Further Education | C127: 100 | D127: 100 | E127: North West | F127: NOC | G127: 4230000 | H127: 1400000 | I127: 2013-09-01 | J127: L04488 | K127: CA00764 | L127: AD00789 | M127: FALSE | N127: 2013-09-01 | O127: 5498 | P127: All
A128: Accrington and Rossendale College | B128: Further Education | C128: 100 | D128: 100 | E128: North West | F128: NOC | G128: 3920000 | H128: 1940000 | I128: 2013-10-01 | J128: L04488 | K128: CA00764 | L128: AD00789 | M128: FALSE | N128: 2013-10-01 | O128: 5723 | P128: All
A129: Accrington and Rossendale College | B129: Further Education | C129: 100 | D129: 100 | E129: North West | F129: NOC | G129: 4050000 | H129: 1230000 | I129: 2013-11-01 | J129: L04488 | K129: CA00764 | L129: AD00789 | M129: FALSE | N129: 2013-11-01 | O129: 5156 | P129: All
A130: Accrington and Rossendale College | B130: Further Education | C130: 100 | D130: 100 | E130: North West | F130: NOC | G130: 3230000 | H130: 1660000 | I130: 2013-12-01 | J130: L04488 | K130: CA00764 | L130: AD00789 | M130: FALSE | N130: 2013-12-01 | O130: 4775 | P130: =IF(sector_selection="All","All",B130) -> All
A131: Accrington and Rossendale College | B131: Further Education | C131: 100 | D131: 100 | E131: North West | F131: NOC | G131: 4280000 | H131: 2010000 | I131: 2014-01-01 | J131: L04488 | K131: CA00764 | L131: AD00789 | M131: FALSE | N131: 2014-01-01 | O131: 6143 | P131: All
A132: Accrington and Rossendale College | B132: Further Education | C132: 100 | D132: 100 | E132: North West | F132: NOC | G132: 3770000 | H132: 1650000 | I132: 2014-02-01 | J132: L04488 | K132: CA00764 | L132: AD00789 | M132: FALSE | N132: 2014-02-01 | O132: 5293 | P132: All
A133: Accrington and Rossendale College | B133: Further Education | C133: 100 | D133: 100 | E133: North West | F133: NOC | G133: 4690000 | H133: 1460000 | I133: 2014-03-01 | J133: L04488 | K133: CA00764 | L133: AD00789 | M133: FALSE | N133: 2014-03-01 | O133: 6006 | P133: All
A134: Accrington and Rossendale College | B134: Further Education | C134: 100 | D134: 100 | E134: North West | F134: NOC | G134: 4350000 | H134: 2280000 | I134: 2014-04-01 | J134: L04488 | K134: CA00764 | L134: AD00789 | M134: FALSE | N134: 2014-04-01 | O134: 6475 | P134: All
A135: Accrington and Rossendale College | B135: Further Education | C135: 100 | D135: 100 | E135: North West | F135: NOC | G135: 4580000 | H135: 1930000 | I135: 2014-05-01 | J135: L04488 | K135: CA00764 | L135: AD00789 | M135: FALSE | N135: 2014-05-01 | O135: 6357 | P135: All
A136: Accrington and Rossendale College | B136: Further Education | C136: 100 | D136: 100 | E136: North West | F136: NOC | G136: 3680000 | H136: 1180000 | I136: 2014-06-01 | J136: L04488 | K136: CA00764 | L136: AD00789 | M136: FALSE | N136: 2014-06-01 | O136: 4746 | P136: All
A137: Accrington and Rossendale College | B137: Further Education | C137: 100 | D137: 100 | E137: North West | F137: NOC | G137: 1810000 | H137: 1710000 | I137: 2014-07-01 | J137: L04488 | K137: CA00764 | L137: AD00789 | M137: FALSE | N137: 2014-07-01 | O137: 3438 | P137: All
A138: Accrington and Rossendale College | B138: Further Education | C138: 100 | D138: 100 | E138: North West | F138: NOC | G138: 2030000 | H138: 2050000 | I138: 2014-08-01 | J138: L04488 | K138: CA00764 | L138: AD00789 | M138: FALSE | N138: 2014-08-01 | O138: 3984 | P138: All
A139: Accrington and Rossendale College | B139: Further Education | C139: 100 | D139: 100 | E139: North West | F139: NOC | G139: 4880000 | H139: 1230000 | I139: 2014-09-01 | J139: L04488 | K139: CA00764 | L139: AD00789 | M139: FALSE | N139: 2014-09-01 | O139: 5967 | P139: All
A140: Accrington and Rossendale College | B140: Further Education | C140: 100 | D140: 100 | E140: North West | F140: NOC | G140: 5170000 | H140: 1390000 | I140: 2014-10-01 | J140: L04488 | K140: CA00764 | L140: AD00789 | M140: FALSE | N140: 2014-10-01 | O140: 6406 | P140: All
A141: Accrington and Rossendale College | B141: Further Education | C141: 100 | D141: 100 | E141: North West | F141: NOC | G141: 5290000 | H141: 1420000 | I141: 2014-11-01 | J141: L04488 | K141: CA00764 | L141: AD00789 | M141: FALSE | N141: 2014-11-01 | O141: 6553 | P141: All
A142: Accrington and Rossendale College | B142: Further Education | C142: 100 | D142: 100 | E142: North West | F142: NOC | G142: 3820000 | H142: 1450000 | I142: 2014-12-01 | J142: L04488 | K142: CA00764 | L142: AD00789 | M142: FALSE | N142: 2014-12-01 | O142: 5146 | P142: All
A143: Activate Learning, Oxford Campus | B143: Further Education | C143: 1000 | D143: 1000 | E143: TVN | F143: NOC | G143: 5630000 | H143: 654000 | I143: 2013-01-01 | J143: L05919 | K143: CA00481 | L143: AD00489 | M143: FALSE | N143: 2013-01-01 | O143: 6137 | P143: All
A144: Activate Learning, Oxford Campus | B144: Further Education | C144: 1000 | D144: 1000 | E144: TVN | F144: NOC | G144: 5100000 | H144: 522000 | I144: 2013-02-01 | J144: L05919 | K144: CA00481 | L144: AD00489 | M144: FALSE | N144: 2013-02-01 | O144: 5490 | P144: All
A145: Activate Learning, Oxford Campus | B145: Further Education | C145: 1000 | D145: 1000 | E145: TVN | F145: NOC | G145: 6230000 | H145: 686000 | I145: 2013-03-01 | J145: L05919 | K145: CA00481 | L145: AD00489 | M145: FALSE | N145: 2013-03-01 | O145: 6754 | P145: All
A146: Activate Learning, Oxford Campus | B146: Further Education | C146: 1000 | D146: 1000 | E146: TVN | F146: NOC | G146: 4790000 | H146: 510000 | I146: 2013-04-01 | J146: L05919 | K146: CA00481 | L146: AD00489 | M146: FALSE | N146: 2013-04-01 | O146: 5176 | P146: All
A147: Activate Learning, Oxford Campus | B147: Further Education | C147: 1000 | D147: 1000 | E147: TVN | F147: NOC | G147: 6080000 | H147: 653000 | I147: 2013-05-01 | J147: L05919 | K147: CA00481 | L147: AD00489 | M147: FALSE | N147: 2013-05-01 | O147: 6575 | P147: All
A148: Activate Learning, Oxford Campus | B148: Further Education | C148: 1000 | D148: 1000 | E148: TVN | F148: NOC | G148: 5760000 | H148: 615000 | I148: 2013-06-01 | J148: L05919 | K148: CA00481 | L148: AD00489 | M148: FALSE | N148: 2013-06-01 | O148: 6226 | P148: All
A149: Activate Learning, Oxford Campus | B149: Further Education | C149: 1000 | D149: 1000 | E149: TVN | F149: NOC | G149: 2370000 | H149: 512000 | I149: 2013-07-01 | J149: L05919 | K149: CA00481 | L149: AD00489 | M149: FALSE | N149: 2013-07-01 | O149: 2814 | P149: All
A150: Activate Learning, Oxford Campus | B150: Further Education | C150: 1000 | D150: 1000 | E150: TVN | F150: NOC | G150: 1200000 | H150: 337000 | I150: 2013-08-01 | J150: L05919 | K150: CA00481 | L150: AD00489 | M150: FALSE | N150: 2013-08-01 | O150: 1501 | P150: All
A151: Activate Learning, Oxford Campus | B151: Further Education | C151: 1000 | D151: 1000 | E151: TVN | F151: NOC | G151: 4580000 | H151: 568000 | I151: 2013-09-01 | J151: L05919 | K151: CA00481 | L151: AD00489 | M151: FALSE | N151: 2013-09-01 | O151: 5027 | P151: All
A152: Activate Learning, Oxford Campus | B152: Further Education | C152: 1000 | D152: 1000 | E152: TVN | F152: NOC | G152: 6280000 | H152: 701000 | I152: 2013-10-01 | J152: L05919 | K152: CA00481 | L152: AD00489 | M152: FALSE | N152: 2013-10-01 | O152: 6817 | P152: All
A153: Activate Learning, Oxford Campus | B153: Further Education | C153: 1000 | D153: 1000 | E153: TVN | F153: NOC | G153: 7190000 | H153: 779000 | I153: 2013-11-01 | J153: L05919 | K153: CA00481 | L153: AD00489 | M153: FALSE | N153: 2013-11-01 | O153: 7782 | P153: All
A154: Activate Learning, Oxford Campus | B154: Further Education | C154: 1000 | D154: 1000 | E154: TVN | F154: NOC | G154: 6230000 | H154: 640000 | I154: 2013-12-01 | J154: L05919 | K154: CA00481 | L154: AD00489 | M154: FALSE | N154: 2013-12-01 | O154: 6709 | P154: All
A155: Activate Learning, Oxford Campus | B155: Further Education | C155: 1000 | D155: 1000 | E155: TVN | F155: NOC | G155: 8250000 | H155: 734000 | I155: 2014-01-01 | J155: L05919 | K155: CA00481 | L155: AD00489 | M155: FALSE | N155: 2014-01-01 | O155: 8773 | P155: All
A156: Activate Learning, Oxford Campus | B156: Further Education | C156: 1000 | D156: 1000 | E156: TVN | F156: NOC | G156: 8030000 | H156: 697000 | I156: 2014-02-01 | J156: L05919 | K156: CA00481 | L156: AD00489 | M156: FALSE | N156: 2014-02-01 | O156: 8522 | P156: All
A157: Activate Learning, Oxford Campus | B157: Further Education | C157: 1000 | D157: 1000 | E157: TVN | F157: NOC | G157: 10500000 | H157: 987000 | I157: 2014-03-01 | J157: L05919 | K157: CA00481 | L157: AD00489 | M157: FALSE | N157: 2014-03-01 | O157: 11218 | P157: All
A158: Activate Learning, Oxford Campus | B158: Further Education | C158: 1000 | D158: 1000 | E158: TVN | F158: NOC | G158: 6090000 | H158: 627000 | I158: 2014-04-01 | J158: L05919 | K158: CA00481 | L158: AD00489 | M158: FALSE | N158: 2014-04-01 | O158: 6560 | P158: All
A159: Activate Learning, Oxford Campus | B159: Further Education | C159: 1000 | D159: 1000 | E159: TVN | F159: NOC | G159: 8280000 | H159: 984000 | I159: 2014-05-01 | J159: L05919 | K159: CA00481 | L159: AD00489 | M159: FALSE | N159: 2014-05-01 | O159: 9047 | P159: All
A160: Activate Learning, Oxford Campus | B160: Further Education | C160: 1000 | D160: 1000 | E160: TVN | F160: NOC | G160: 7910000 | H160: 977000 | I160: 2014-06-01 | J160: L05919 | K160: CA00481 | L160: AD00489 | M160: FALSE | N160: 2014-06-01 | O160: 8679 | P160: All
A161: Activate Learning, Oxford Campus | B161: Further Education | C161: 1000 | D161: 1000 | E161: TVN | F161: NOC | G161: 2290000 | H161: 597000 | I161: 2014-07-01 | J161: L05919 | K161: CA00481 | L161: AD00489 | M161: FALSE | N161: 2014-07-01 | O161: 2819 | P161: All
A162: Activate Learning, Oxford Campus | B162: Further Education | C162: 1000 | D162: 1000 | E162: TVN | F162: NOC | G162: 1480000 | H162: 407000 | I162: 2014-08-01 | J162: L05919 | K162: CA00481 | L162: AD00489 | M162: FALSE | N162: 2014-08-01 | O162: 1843 | P162: All
A163: Activate Learning, Oxford Campus | B163: Further Education | C163: 1000 | D163: 1000 | E163: TVN | F163: NOC | G163: 7580000 | H163: 1020000 | I163: 2014-09-01 | J163: L05919 | K163: CA00481 | L163: AD00489 | M163: FALSE | N163: 2014-09-01 | O163: 8398 | P163: All
A164: Activate Learning, Oxford Campus | B164: Further Education | C164: 1000 | D164: 1000 | E164: TVN | F164: NOC | G164: 11300000 | H164: 1430000 | I164: 2014-10-01 | J164: L05919 | K164: CA00481 | L164: AD00489 | M164: FALSE | N164: 2014-10-01 | O164: 12432 | P164: All
A165: Activate Learning, Oxford Campus | B165: Further Education | C165: 1000 | D165: 1000 | E165: TVN | F165: NOC | G165: 9710000 | H165: 1210000 | I165: 2014-11-01 | J165: L05919 | K165: CA00481 | L165: AD00489 | M165: FALSE | N165: 2014-11-01 | O165: 10664 | P165: All
A166: Activate Learning, Oxford Campus | B166: Further Education | C166: 1000 | D166: 1000 | E166: TVN | F166: NOC | G166: 5280000 | H166: 1230000 | I166: 2014-12-01 | J166: L05919 | K166: CA00481 | L166: AD00489 | M166: FALSE | N166: 2014-12-01 | O166: 6357 | P166: All
A167: Activate Learning, Reading College Campus | B167: Further Education | C167: 100 | D167: 100 | E167: TVN | F167: NOC | G167: 2330000 | H167: 266000 | I167: 2013-01-01 | J167: L05634 | K167: CA01138 | L167: AD01254 | M167: FALSE | N167: 2013-01-01 | O167: 2535 | P167: All
A168: Activate Learning, Reading College Campus | B168: Further Education | C168: 100 | D168: 100 | E168: TVN | F168: NOC | G168: 2570000 | H168: 261000 | I168: 2013-02-01 | J168: L05634 | K168: CA01138 | L168: AD01254 | M168: FALSE | N168: 2013-02-01 | O168: 2765 | P168: All
A169: Activate Learning, Reading College Campus | B169: Further Education | C169: 100 | D169: 100 | E169: TVN | F169: NOC | G169: 2890000 | H169: 377000 | I169: 2013-03-01 | J169: L05634 | K169: CA01138 | L169: AD01254 | M169: FALSE | N169: 2013-03-01 | O169: 3190 | P169: All
A170: Activate Learning, Reading College Campus | B170: Further Education | C170: 100 | D170: 100 | E170: TVN | F170: NOC | G170: 2250000 | H170: 290000 | I170: 2013-04-01 | J170: L05634 | K170: CA01138 | L170: AD01254 | M170: FALSE | N170: 2013-04-01 | O170: 2480 | P170: All
A171: Activate Learning, Reading College Campus | B171: Further Education | C171: 100 | D171: 100 | E171: TVN | F171: NOC | G171: 2790000 | H171: 331000 | I171: 2013-05-01 | J171: L05634 | K171: CA01138 | L171: AD01254 | M171: FALSE | N171: 2013-05-01 | O171: 3048 | P171: All
A172: Activate Learning, Reading College Campus | B172: Further Education | C172: 100 | D172: 100 | E172: TVN | F172: NOC | G172: 3170000 | H172: 486000 | I172: 2013-06-01 | J172: L05634 | K172: CA01138 | L172: AD01254 | M172: FALSE | N172: 2013-06-01 | O172: 3570 | P172: All
A173: Activate Learning, Reading College Campus | B173: Further Education | C173: 100 | D173: 100 | E173: TVN | F173: NOC | G173: 1270000 | H173: 245000 | I173: 2013-07-01 | J173: L05634 | K173: CA01138 | L173: AD01254 | M173: FALSE | N173: 2013-07-01 | O173: 1479 | P173: All
A174: Activate Learning, Reading College Campus | B174: Further Education | C174: 100 | D174: 100 | E174: TVN | F174: NOC | G174: 633000 | H174: 162000 | I174: 2013-08-01 | J174: L05634 | K174: CA01138 | L174: AD01254 | M174: FALSE | N174: 2013-08-01 | O174: 776 | P174: All
A175: Activate Learning, Reading College Campus | B175: Further Education | C175: 100 | D175: 100 | E175: TVN | F175: NOC | G175: 1960000 | H175: 272000 | I175: 2013-09-01 | J175: L05634 | K175: CA01138 | L175: AD01254 | M175: FALSE | N175: 2013-09-01 | O175: 2180 | P175: All
A176: Activate Learning, Reading College Campus | B176: Further Education | C176: 100 | D176: 100 | E176: TVN | F176: NOC | G176: 3230000 | H176: 416000 | I176: 2013-10-01 | J176: L05634 | K176: CA01138 | L176: AD01254 | M176: FALSE | N176: 2013-10-01 | O176: 3561 | P176: All
A177: Activate Learning, Reading College Campus | B177: Further Education | C177: 100 | D177: 100 | E177: TVN | F177: NOC | G177: 3750000 | H177: 436000 | I177: 2013-11-01 | J177: L05634 | K177: CA01138 | L177: AD01254 | M177: FALSE | N177: 2013-11-01 | O177: 4088 | P177: All
A178: Activate Learning, Reading College Campus | B178: Further Education | C178: 100 | D178: 100 | E178: TVN | F178: NOC | G178: 2930000 | H178: 415000 | I178: 2013-12-01 | J178: L05634 | K178: CA01138 | L178: AD01254 | M178: FALSE | N178: 2013-12-01 | O178: 3267 | P178: All
A179: Activate Learning, Reading College Campus | B179: Further Education | C179: 100 | D179: 100 | E179: TVN | F179: NOC | G179: 3840000 | H179: 458000 | I179: 2014-01-01 | J179: L05634 | K179: CA01138 | L179: AD01254 | M179: FALSE | N179: 2014-01-01 | O179: 4197 | P179: All
A180: Activate Learning, Reading College Campus | B180: Further Education | C180: 100 | D180: 100 | E180: TVN | F180: NOC | G180: 3620000 | H180: 378000 | I180: 2014-02-01 | J180: L05634 | K180: CA01138 | L180: AD01254 | M180: FALSE | N180: 2014-02-01 | O180: 3904 | P180: All
A181: Activate Learning, Reading College Campus | B181: Further Education | C181: 100 | D181: 1000 | E181: TVN | F181: NOC | G181: 4580000 | H181: 453000 | I181: 2014-03-01 | J181: L05634 | K181: CA01138 | L181: AD01254 | M181: FALSE | N181: 2014-03-01 | O181: 4915 | P181: All
A182: Activate Learning, Reading College Campus | B182: Further Education | C182: 100 | D182: 1000 | E182: TVN | F182: NOC | G182: 3010000 | H182: 349000 | I182: 2014-04-01 | J182: L05634 | K182: CA01138 | L182: AD01254 | M182: FALSE | N182: 2014-04-01 | O182: 3280 | P182: All
A183: Activate Learning, Reading College Campus | B183: Further Education | C183: 100 | D183: 1000 | E183: TVN | F183: NOC | G183: 4030000 | H183: 408000 | I183: 2014-05-01 | J183: L05634 | K183: CA01138 | L183: AD01254 | M183: FALSE | N183: 2014-05-01 | O183: 4334 | P183: All
A184: Activate Learning, Reading College Campus | B184: Further Education | C184: 100 | D184: 1000 | E184: TVN | F184: NOC | G184: 5110000 | H184: 788000 | I184: 2014-06-01 | J184: L05634 | K184: CA01138 | L184: AD01254 | M184: FALSE | N184: 2014-06-01 | O184: 5760 | P184: All
A185: Activate Learning, Reading College Campus | B185: Further Education | C185: 1000 | D185: 1000 | E185: TVN | F185: NOC | G185: 2330000 | H185: 359000 | I185: 2014-07-01 | J185: L07264 | K185: CA01138 | L185: AD01254 | M185: FALSE | N185: 2014-07-01 | O185: 2626 | P185: All
A186: Activate Learning, Reading College Campus | B186: Further Education | C186: 1000 | D186: 1000 | E186: TVN | F186: NOC | G186: 1250000 | H186: 225000 | I186: 2014-08-01 | J186: L07264 | K186: CA01138 | L186: AD01254 | M186: FALSE | N186: 2014-08-01 | O186: 1440 | P186: All
A187: Activate Learning, Reading College Campus | B187: Further Education | C187: 1000 | D187: 1000 | E187: TVN | F187: NOC | G187: 1910000 | H187: 337000 | I187: 2014-09-01 | J187: L07264 | K187: CA01138 | L187: AD01254 | M187: FALSE | N187: 2014-09-01 | O187: 2194 | P187: All
A188: Activate Learning, Reading College Campus | B188: Further Education | C188: 1000 | D188: 1000 | E188: TVN | F188: NOC | G188: 3760000 | H188: 446000 | I188: 2014-10-01 | J188: L07264 | K188: CA01138 | L188: AD01254 | M188: FALSE | N188: 2014-10-01 | O188: 4107 | P188: All
A189: Activate Learning, Reading College Campus | B189: Further Education | C189: 1000 | D189: 1000 | E189: TVN | F189: NOC | G189: 7240000 | H189: 939000 | I189: 2014-11-01 | J189: L07264 | K189: CA01138 | L189: AD01254 | M189: FALSE | N189: 2014-11-01 | O189: 7987 | P189: All
A190: Activate Learning, Reading College Campus | B190: Further Education | C190: 1000 | D190: 1000 | E190: TVN | F190: NOC | G190: 8700000 | H190: 1130000 | I190: 2014-12-01 | J190: L07264 | K190: CA01138 | L190: AD01254 | M190: FALSE | N190: 2014-12-01 | O190: 9600 | P190: All
A191: Alton College | B191: Further Education | C191: 100 | D191: 100 | E191: South | F191: NOC | G191: 2070000 | H191: 304000 | I191: 2013-01-01 | J191: L04449 | K191: CA00289 | L191: AD00291 | M191: FALSE | N191: 2013-01-01 | O191: 2318 | P191: All
A192: Alton College | B192: Further Education | C192: 100 | D192: 100 | E192: South | F192: NOC | G192: 1940000 | H192: 255000 | I192: 2013-02-01 | J192: L04449 | K192: CA00289 | L192: AD00291 | M192: FALSE | N192: 2013-02-01 | O192: 2144 | P192: All
A193: Alton College | B193: Further Education | C193: 100 | D193: 100 | E193: South | F193: NOC | G193: 2690000 | H193: 373000 | I193: 2013-03-01 | J193: L04449 | K193: CA00289 | L193: AD00291 | M193: FALSE | N193: 2013-03-01 | O193: 2991 | P193: All
A194: Alton College | B194: Further Education | C194: 100 | D194: 100 | E194: South | F194: NOC | G194: 1710000 | H194: 241000 | I194: 2013-04-01 | J194: L04449 | K194: CA00289 | L194: AD00291 | M194: FALSE | N194: 2013-04-01 | O194: 1905 | P194: =IF(sector_selection="All","All",B194) -> All
A195: Alton College | B195: Further Education | C195: 100 | D195: 100 | E195: South | F195: NOC | G195: 1940000 | H195: 331000 | I195: 2013-05-01 | J195: L04449 | K195: CA00289 | L195: AD00291 | M195: FALSE | N195: 2013-05-01 | O195: 2218 | P195: All
A196: Alton College | B196: Further Education | C196: 100 | D196: 100 | E196: South | F196: NOC | G196: 2050000 | H196: 271000 | I196: 2013-06-01 | J196: L04449 | K196: CA00289 | L196: AD00291 | M196: FALSE | N196: 2013-06-01 | O196: 2267 | P196: All
A197: Alton College | B197: Further Education | C197: 100 | D197: 100 | E197: South | F197: NOC | G197: 830000 | H197: 153000 | I197: 2013-07-01 | J197: L04449 | K197: CA00289 | L197: AD00291 | M197: FALSE | N197: 2013-07-01 | O197: 960 | P197: All
A198: Alton College | B198: Further Education | C198: 100 | D198: 100 | E198: South | F198: NOC | G198: 198000 | H198: 114000 | I198: 2013-08-01 | J198: L04449 | K198: CA00289 | L198: AD00291 | M198: FALSE | N198: 2013-08-01 | O198: 305 | P198: All
A199: Alton College | B199: Further Education | C199: 100 | D199: 100 | E199: South | F199: NOC | G199: 1860000 | H199: 302000 | I199: 2013-09-01 | J199: L04449 | K199: CA00289 | L199: AD00291 | M199: FALSE | N199: 2013-09-01 | O199: 2111 | P199: All
A200: Alton College | B200: Further Education | C200: 100 | D200: 100 | E200: South | F200: NOC | G200: 2600000 | H200: 365000 | I200: 2013-10-01 | J200: L04449 | K200: CA00289 | L200: AD00291 | M200: FALSE | N200: 2013-10-01 | O200: 2896 | P200: All
... 4300 more rows

Sheet CA_Rolling (hidden)
A1: AD_ID | B1: CA_ID | C1: Organisation_Name | D1: Customer_Access_Name | E1: Availability_Region | F1: Managing_Organisation | G1: Line_Code | H1: Reporting_Month | I1: Inaccessibility_Count | J1: Inaccessibility_Mins | K1: Availability_Count | L1: Availability_Mins | M1: Availability_Pcent | N1: Resilience_Count | O1: Availability_Breakdown_Sector | P1: Rolling_Pcent | Q1: organisation_service_name | R1: Country | S1: More_than_6_connections_this_month | T1: int_Rolling_Pcent | U1: Availability_Sector | V1: SLA Failure for Selected Region and Sector | W1: Service in selected region this month?
A2: AD00101 | B2: CA00101 | C2: Aberdeen College | E2: Aberdeen | F2: NOC | G2: L02273 | H2: 2014-12-01 | I2: 0 | J2: 0 | K2: 0 | L2: 0 | M2: 1 | N2: 2 | O2: Further Education | P2: 1 | Q2: Aberdeen College | R2: Scotland | S2: 0 | T2: =IFERROR(Table_SAG_DB2.accdb3[[#This Row],[Rolling_Pcent]]*1,"~") -> 1 | U2: =IF(sector_selection="All","All",O2) -> All | V2: =IF(AND(T2<=0.997,E2=region_selection,U2=sector_selection,H2=reporting_month),"Yes","") ->  | W2: =IF(AND(H2=reporting_month,E2=region_selection),"yes","") -> 
A3: AD01393 | B3: CA01201 | C3: Aberystwyth University | D3: Visualisation Centre | E3: Wales | F3: PSBA | G3: L06505 | H3: 2014-12-01 | I3: 0 | J3: 0 | K3: 0 | L3: 0 | M3: 1 | N3: 1 | O3: Higher Education | P3: 1 | Q3: Aberystwyth University, Visualisation Centre | R3: Wales | S3: 0 | T3: =IFERROR(Table_SAG_DB2.accdb3[[#This Row],[Rolling_Pcent]]*1,"~") -> 1 | U3: All
A4: AD00891 | B4: CA00865 | C4: Aberystwyth University | D4: Llandinam Building | E4: Wales | F4: PSBA | G4: L02717 | H4: 2014-12-01 | I4: 1 | J4: 29 | K4: 0 | L4: 0 | M4: 1 | N4: 1 | O4: Higher Education | P4: 1 | Q4: Aberystwyth University, Llandinam Building | R4: Wales | S4: 0 | T4: =IFERROR(Table_SAG_DB2.accdb3[[#This Row],[Rolling_Pcent]]*1,"~") -> 1 | U4: All
A5: AD00476 | B5: CA00470 | C5: Abingdon and Witney College | E5: TVN | F5: NOC | G5: L04543 | H5: 2014-12-01 | I5: 0 | J5: 0 | K5: 0 | L5: 0 | M5: 1 | N5: 1 | O5: Further Education | P5: 1 | Q5: Abingdon and Witney College | R5: England | S5: 0 | T5: =IFERROR(Table_SAG_DB2.accdb3[[#This Row],[Rolling_Pcent]]*1,"~") -> 1 | U5: All
A6: AD00789 | B6: CA00764 | C6: Accrington and Rossendale College | E6: North West | F6: NOC | G6: L04488 | H6: 2014-12-01 | I6: 0 | J6: 0 | K6: 0 | L6: 0 | M6: 1 | N6: 1 | O6: Further Education | P6: 1 | Q6: Accrington and Rossendale College | R6: England | S6: 0 | T6: =IFERROR(Table_SAG_DB2.accdb3[[#This Row],[Rolling_Pcent]]*1,"~") -> 1 | U6: All
A7: AD01254 | B7: CA01138 | C7: Activate Learning | D7: Reading College Campus | E7: TVN | F7: NOC | G7: L07264 | H7: 2014-12-01 | I7: 0 | J7: 0 | K7: 0 | L7: 0 | M7: 1 | N7: 1 | O7: Further Education | P7: 1 | Q7: Activate Learning, Reading College Campus | R7: England | S7: 0 | T7: =IFERROR(Table_SAG_DB2.accdb3[[#This Row],[Rolling_Pcent]]*1,"~") -> 1 | U7: All
A8: AD00489 | B8: CA00481 | C8: Activate Learning | D8: Oxford Campus | E8: TVN | F8: NOC | G8: L05919 | H8: 2014-12-01 | I8: 0 | J8: 0 | K8: 0 | L8: 0 | M8: 1 | N8: 1 | O8: Further Education | P8: 1 | Q8: Activate Learning, Oxford Campus | R8: England | S8: 0 | T8: =IFERROR(Table_SAG_DB2.accdb3[[#This Row],[Rolling_Pcent]]*1,"~") -> 1 | U8: All
A9: AD00291 | B9: CA00289 | C9: Alton College | E9: South | F9: NOC | G9: L07029 | H9: 2014-12-01 | I9: 0 | J9: 0 | K9: 0 | L9: 0 | M9: 1 | N9: 1 | O9: Further Education | P9: 1 | Q9: Alton College | R9: England | S9: 0 | T9: =IFERROR(Table_SAG_DB2.accdb3[[#This Row],[Rolling_Pcent]]*1,"~") -> 1 | U9: All
A10: AD00933 | B10: CA00906 | C10: Amersham and Wycombe College | E10: London | F10: NOC | G10: L06639 | H10: 2014-12-01 | I10: 0 | J10: 0 | K10: 0 | L10: 0 | M10: 1 | N10: 1 | O10: Further Education | P10: 1 | Q10: Amersham and Wycombe College | R10: England | S10: 0 | T10: =IFERROR(Table_SAG_DB2.accdb3[[#This Row],[Rolling_Pcent]]*1,"~") -> 1 | U10: All
A11: AD00664 | B11: CA00646 | C11: Anglia Ruskin University | D11: Chelmsford Campus | E11: EastERN | F11: NOC | G11: L02281 | H11: 2014-12-01 | I11: 0 | J11: 0 | K11: 0 | L11: 0 | M11: 1 | N11: 1 | O11: Higher Education | P11: 0.9984 | Q11: Anglia Ruskin University, Chelmsford Campus | R11: England | S11: 0 | T11: =IFERROR(Table_SAG_DB2.accdb3[[#This Row],[Rolling_Pcent]]*1,"~") -> 0.9984 | U11: All
A12: AD01220 | B12: CA01121 | C12: Anglia Ruskin University | D12: Peterborough Campus | E12: EastERN | F12: NOC | G12: L05685 | H12: 2014-12-01 | I12: 0 | J12: 0 | K12: 0 | L12: 0 | M12: 1 | N12: 1 | O12: Higher Education | P12: 1 | Q12: Anglia Ruskin University, Peterborough Campus | R12: England | S12: 0 | T12: =IFERROR(Table_SAG_DB2.accdb3[[#This Row],[Rolling_Pcent]]*1,"~") -> 1 | U12: All
A13: AD00663 | B13: CA00645 | C13: Anglia Ruskin University | D13: Cambridge Campus | E13: EastERN | F13: NOC | G13: L02280 | H13: 2014-12-01 | I13: 0 | J13: 0 | K13: 0 | L13: 0 | M13: 1 | N13: 1 | O13: Higher Education | P13: 1 | Q13: Anglia Ruskin University, Cambridge Campus | R13: England | S13: 0 | T13: =IFERROR(Table_SAG_DB2.accdb3[[#This Row],[Rolling_Pcent]]*1,"~") -> 1 | U13: All
A14: AD01021 | B14: CA00977 | C14: Anglia Ruskin University | D14: University Centre Peterborough | E14: EastERN | F14: NOC | G14: L05654 | H14: 2014-12-01 | I14: 0 | J14: 0 | K14: 0 | L14: 0 | M14: 1 | N14: 1 | O14: Higher Education | P14: 1 | Q14: Anglia Ruskin University, University Centre Peterborough | R14: England | S14: 0 | T14: =IFERROR(Table_SAG_DB2.accdb3[[#This Row],[Rolling_Pcent]]*1,"~") -> 1 | U14: All
A15: AD00790 | B15: CA00765 | C15: Aquinas College | E15: North West | F15: NOC | G15: L04465 | H15: 2014-12-01 | I15: 0 | J15: 0 | K15: 0 | L15: 0 | M15: 1 | N15: 1 | O15: Further Education | P15: 1 | Q15: Aquinas College | R15: England | S15: 0 | T15: =IFERROR(Table_SAG_DB2.accdb3[[#This Row],[Rolling_Pcent]]*1,"~") -> 1 | U15: All
A16: AD00791 | B16: CA00766 | C16: Arden College | E16: North West | F16: NOC | G16: L02286 | H16: 2014-12-01 | I16: 0 | J16: 0 | K16: 0 | L16: 0 | M16: 1 | N16: 1 | O16: Other | P16: 0.999 | Q16: Arden College | R16: England | S16: 0 | T16: =IFERROR(Table_SAG_DB2.accdb3[[#This Row],[Rolling_Pcent]]*1,"~") -> 0.999 | U16: All
A17: AD00293 | B17: CA00291 | C17: Arts University Bournemouth | E17: South | F17: NOC | G17: L06135 | H17: 2014-12-01 | I17: 0 | J17: 0 | K17: 0 | L17: 0 | M17: 1 | N17: 1 | O17: Higher Education | P17: 1 | Q17: Arts University Bournemouth | R17: England | S17: 0 | T17: =IFERROR(Table_SAG_DB2.accdb3[[#This Row],[Rolling_Pcent]]*1,"~") -> 1 | U17: All
A18: AD00792 | B18: CA00767 | C18: Ashton Sixth Form College | E18: North West | F18: NOC | G18: L04491 | H18: 2014-12-01 | I18: 1 | J18: 39 | K18: 1 | L18: 39 | M18: 0.9991263441 | N18: 1 | O18: Further Education | P18: 0.9998 | Q18: Ashton Sixth Form College | R18: England | S18: 0 | T18: =IFERROR(Table_SAG_DB2.accdb3[[#This Row],[Rolling_Pcent]]*1,"~") -> 0.9998 | U18: All
A19: AD00192 | B19: CA00190 | C19: Askham Bryan College | E19: Yorkshire Humberside | F19: NOC | G19: L07268 | H19: 2014-12-01 | I19: 0 | J19: 0 | K19: 0 | L19: 0 | M19: 1 | N19: 1 | O19: Further Education | P19: 0.9928 | Q19: Askham Bryan College | R19: England | S19: 0 | T19: =IFERROR(Table_SAG_DB2.accdb3[[#This Row],[Rolling_Pcent]]*1,"~") -> 0.9928 | U19: All
A20: AD01463 | B20: CA01247 | C20: Askham Bryan College | D20: Newton Rigg Campus | E20: Cumbria and North Lancashire | F20: NOC | G20: L07275 | H20: 2014-12-01 | I20: 0 | J20: 0 | K20: 0 | L20: 0 | M20: 1 | N20: 1 | O20: Further Education | P20: <12 Months | Q20: Askham Bryan College, Newton Rigg Campus | R20: England | S20: 0 | T20: =IFERROR(Table_SAG_DB2.accdb3[[#This Row],[Rolling_Pcent]]*1,"~") -> ~ | U20: All
A21: AD00503 | B21: CA00492 | C21: Association of Colleges | E21: London | F21: NOC | G21: L05360 | H21: 2014-12-01 | I21: 0 | J21: 0 | K21: 0 | L21: 0 | M21: 1 | N21: 1 | O21: Other | P21: 0.9993 | Q21: Association of Colleges | R21: England | S21: 0 | T21: =IFERROR(Table_SAG_DB2.accdb3[[#This Row],[Rolling_Pcent]]*1,"~") -> 0.9993 | U21: All
A22: AD00382 | B22: CA00380 | C22: Aston University | E22: WMRN | F22: NOC | G22: L04612 | H22: 2014-12-01 | I22: 0 | J22: 0 | K22: 0 | L22: 0 | M22: 1 | N22: 2 | O22: Higher Education | P22: 1 | Q22: Aston University | R22: England | S22: 0 | T22: =IFERROR(Table_SAG_DB2.accdb3[[#This Row],[Rolling_Pcent]]*1,"~") -> 1 | U22: All
A23: AD01380 | B23: CA00907 | C23: Aylesbury College | E23: TVN | F23: NOC | G23: L06399 | H23: 2014-12-01 | I23: 0 | J23: 0 | K23: 0 | L23: 0 | M23: 1 | N23: 2 | O23: Further Education | P23: 1 | Q23: Aylesbury College | R23: England | S23: 0 | T23: =IFERROR(Table_SAG_DB2.accdb3[[#This Row],[Rolling_Pcent]]*1,"~") -> 1 | U23: All
A24: AD00356 | B24: CA00354 | C24: Ayrshire College | D24: Ayr Campus | E24: ClydeNET | F24: ClydeNET | G24: L06603 | H24: 2014-12-01 | I24: 0 | J24: 0 | K24: 0 | L24: 0 | M24: 1 | N24: 1 | O24: Further Education | P24: 1 | Q24: Ayrshire College, Ayr Campus | R24: Scotland | S24: 0 | T24: =IFERROR(Table_SAG_DB2.accdb3[[#This Row],[Rolling_Pcent]]*1,"~") -> 1 | U24: All
A25: AD00362 | B25: CA00360 | C25: Ayrshire College | D25: Kilmarnock Campus | E25: ClydeNET | F25: ClydeNET | G25: L02467 | H25: 2014-12-01 | I25: 0 | J25: 0 | K25: 0 | L25: 0 | M25: 1 | N25: 1 | O25: Further Education | P25: 1 | Q25: Ayrshire College, Kilmarnock Campus | R25: Scotland | S25: 0 | T25: =IFERROR(Table_SAG_DB2.accdb3[[#This Row],[Rolling_Pcent]]*1,"~") -> 1 | U25: All
A26: AD00102 | B26: CA00102 | C26: Banff and Buchan College of Further Education | E26: Aberdeen | F26: NOC | G26: L07501 | H26: 2014-12-01 | I26: 0 | J26: 0 | K26: 0 | L26: 0 | M26: 1 | N26: 1 | O26: Further Education | P26: 0.9999 | Q26: Banff and Buchan College of Further Education | R26: Scotland | S26: 0 | T26: =IFERROR(Table_SAG_DB2.accdb3[[#This Row],[Rolling_Pcent]]*1,"~") -> 0.9999 | U26: All
A27: AD01464 | B27: CA01248 | C27: Bangor University | D27: Bangor Business School | E27: London | F27: NOC | G27: L06921 | H27: 2014-12-01 | I27: 0 | J27: 0 | K27: 0 | L27: 0 | M27: 1 | N27: 1 | O27: Higher Education | P27: <12 Months | Q27: Bangor University, Bangor Business School | R27: England | S27: 0 | T27: =IFERROR(Table_SAG_DB2.accdb3[[#This Row],[Rolling_Pcent]]*1,"~") -> ~ | U27: All
A28: AD00892 | B28: CA00866 | C28: Bangor University | E28: Wales | F28: PSBA | G28: L03153 | H28: 2014-12-01 | I28: 0 | J28: 0 | K28: 0 | L28: 0 | M28: 1 | N28: 1 | O28: Higher Education | P28: 0.9997 | Q28: Bangor University | R28: Wales | S28: 0 | T28: =IFERROR(Table_SAG_DB2.accdb3[[#This Row],[Rolling_Pcent]]*1,"~") -> 0.9997 | U28: All
A29: AD01454 | B29: CA01244 | C29: Barking and Dagenham College | D29: Technical Skills Academy | E29: London | F29: NOC | G29: L06555 | H29: 2014-12-01 | I29: 0 | J29: 0 | K29: 0 | L29: 0 | M29: 1 | N29: 1 | O29: Further Education | P29: <12 Months | Q29: Barking and Dagenham College, Technical Skills Academy | R29: England | S29: 0 | T29: =IFERROR(Table_SAG_DB2.accdb3[[#This Row],[Rolling_Pcent]]*1,"~") -> ~ | U29: All
A30: AD00504 | B30: CA00493 | C30: Barking and Dagenham College | E30: London | F30: NOC | G30: L07503 | H30: 2014-12-01 | I30: 0 | J30: 0 | K30: 0 | L30: 0 | M30: 1 | N30: 1 | O30: Further Education | P30: 1 | Q30: Barking and Dagenham College | R30: England | S30: 0 | T30: =IFERROR(Table_SAG_DB2.accdb3[[#This Row],[Rolling_Pcent]]*1,"~") -> 1 | U30: All
A31: AD00505 | B31: CA00494 | C31: Barnet and Southgate College | D31: Barnet Campus | E31: London | F31: NOC | G31: L07242 | H31: 2014-12-01 | I31: 0 | J31: 0 | K31: 0 | L31: 0 | M31: 1 | N31: 1 | O31: Further Education | P31: 1 | Q31: Barnet and Southgate College, Barnet Campus | R31: England | S31: 0 | T31: =IFERROR(Table_SAG_DB2.accdb3[[#This Row],[Rolling_Pcent]]*1,"~") -> 1 | U31: All
A32: AD00614 | B32: CA00596 | C32: Barnet and Southgate College | D32: Southgate Campus | E32: London | F32: NOC | G32: L07471 | H32: 2014-12-01 | I32: 0 | J32: 0 | K32: 0 | L32: 0 | M32: 1 | N32: 1 | O32: Further Education | P32: 1 | Q32: Barnet and Southgate College, Southgate Campus | R32: England | S32: 0 | T32: =IFERROR(Table_SAG_DB2.accdb3[[#This Row],[Rolling_Pcent]]*1,"~") -> 1 | U32: All
A33: AD00665 | B33: CA00647 | C33: Barnfield College | E33: EastERN | F33: NOC | G33: L05561 | H33: 2014-12-01 | I33: 0 | J33: 0 | K33: 0 | L33: 0 | M33: 1 | N33: 1 | O33: Further Education | P33: 1 | Q33: Barnfield College | R33: England | S33: 0 | T33: =IFERROR(Table_SAG_DB2.accdb3[[#This Row],[Rolling_Pcent]]*1,"~") -> 1 | U33: All
A34: AD00475 | B34: CA00469 | C34: Barnsley College | E34: Yorkshire Humberside | F34: NOC | G34: L06583 | H34: 2014-12-01 | I34: 2 | J34: 15 | K34: 1 | L34: 2 | M34: 0.9999551971 | N34: 1 | O34: Further Education | P34: 0.9996 | Q34: Barnsley College | R34: England | S34: 0 | T34: =IFERROR(Table_SAG_DB2.accdb3[[#This Row],[Rolling_Pcent]]*1,"~") -> 0.9996 | U34: All
A35: AD00194 | B35: CA00192 | C35: Barnsley Metropolitan Borough Council | D35: Personal & Community Development | E35: Yorkshire Humberside | F35: NOC | G35: L06217 | H35: 2014-12-01 | I35: 1 | J35: 2 | K35: 1 | L35: 2 | M35: 0.9999551971 | N35: 1 | O35: Other | P35: 0.9996 | Q35: Barnsley Metropolitan Borough Council, Personal & Community Development | R35: England | S35: 0 | T35: =IFERROR(Table_SAG_DB2.accdb3[[#This Row],[Rolling_Pcent]]*1,"~") -> 0.9996 | U35: All
A36: AD00724 | B36: CA00699 | C36: Barrow-in-Furness Sixth Form College | E36: Cumbria and North Lancashire | F36: NOC | G36: L06048 | H36: 2014-12-01 | I36: 0 | J36: 0 | K36: 0 | L36: 0 | M36: 1 | N36: 1 | O36: Further Education | P36: 0.9997 | Q36: Barrow-in-Furness Sixth Form College | R36: England | S36: 0 | T36: =IFERROR(Table_SAG_DB2.accdb3[[#This Row],[Rolling_Pcent]]*1,"~") -> 0.9997 | U36: All
A37: AD00294 | B37: CA00292 | C37: Barton Peveril Sixth Form College | E37: South | F37: NOC | G37: L07016 | H37: 2014-12-01 | I37: 0 | J37: 0 | K37: 0 | L37: 0 | M37: 1 | N37: 1 | O37: Further Education | P37: 1 | Q37: Barton Peveril Sixth Form College | R37: England | S37: 0 | T37: =IFERROR(Table_SAG_DB2.accdb3[[#This Row],[Rolling_Pcent]]*1,"~") -> 1 | U37: All
A38: AD00295 | B38: CA00293 | C38: Basingstoke College of Technology | E38: South | F38: NOC | G38: L07118 | H38: 2014-12-01 | I38: 0 | J38: 0 | K38: 0 | L38: 0 | M38: 1 | N38: 1 | O38: Further Education | P38: 1 | Q38: Basingstoke College of Technology | R38: England | S38: 0 | T38: =IFERROR(Table_SAG_DB2.accdb3[[#This Row],[Rolling_Pcent]]*1,"~") -> 1 | U38: All
A39: AD00107 | B39: CA00107 | C39: Bath Spa University | E39: South West | F39: NOC | G39: L06029 | H39: 2014-12-01 | I39: 0 | J39: 0 | K39: 0 | L39: 0 | M39: 1 | N39: 2 | O39: Higher Education | P39: 1 | Q39: Bath Spa University | R39: England | S39: 0 | T39: =IFERROR(Table_SAG_DB2.accdb3[[#This Row],[Rolling_Pcent]]*1,"~") -> 1 | U39: All
A40: AD00725 | B40: CA00700 | C40: Beaumont College - A Scope College | E40: Cumbria and North Lancashire | F40: NOC | G40: L06622 | H40: 2014-12-01 | I40: 0 | J40: 0 | K40: 0 | L40: 0 | M40: 1 | N40: 1 | O40: Other | P40: 0.9994 | Q40: Beaumont College - A Scope College | R40: England | S40: 0 | T40: =IFERROR(Table_SAG_DB2.accdb3[[#This Row],[Rolling_Pcent]]*1,"~") -> 0.9994 | U40: All
A41: AD00666 | B41: CA00648 | C41: Bedford College | E41: EastERN | F41: NOC | G41: L06169 | H41: 2014-12-01 | I41: 0 | J41: 0 | K41: 0 | L41: 0 | M41: 1 | N41: 1 | O41: Further Education | P41: 1 | Q41: Bedford College | R41: England | S41: 0 | T41: =IFERROR(Table_SAG_DB2.accdb3[[#This Row],[Rolling_Pcent]]*1,"~") -> 1 | U41: All
A42: AD01434 | B42: CA01232 | C42: Belfast Metropolitan College | D42: NICIS | E42: Northern Ireland | F42: NOC | G42: L06965 | H42: 2014-12-01 | I42: 1 | J42: 16 | K42: 0 | L42: 0 | M42: 1 | N42: 1 | O42: Further Education | P42: 1 | Q42: Belfast Metropolitan College, NICIS | R42: Northern Ireland | S42: 0 | T42: =IFERROR(Table_SAG_DB2.accdb3[[#This Row],[Rolling_Pcent]]*1,"~") -> 1 | U42: All
A43: AD00456 | B43: CA00450 | C43: Belfast Metropolitan College | D43: E3 campus | E43: Northern Ireland | F43: NOC | G43: L02758 | H43: 2014-12-01 | I43: 0 | J43: 0 | K43: 0 | L43: 0 | M43: 1 | N43: 1 | O43: Further Education | P43: 1 | Q43: Belfast Metropolitan College, E3 campus | R43: Northern Ireland | S43: 0 | T43: =IFERROR(Table_SAG_DB2.accdb3[[#This Row],[Rolling_Pcent]]*1,"~") -> 1 | U43: All
A44: AD00455 | B44: CA00449 | C44: Belfast Metropolitan College | D44: Castlereagh Campus | E44: Northern Ireland | F44: NOC | G44: L02797 | H44: 2014-12-01 | I44: 0 | J44: 0 | K44: 0 | L44: 0 | M44: 1 | N44: 1 | O44: Further Education | P44: 1 | Q44: Belfast Metropolitan College, Castlereagh Campus | R44: Northern Ireland | S44: 0 | T44: =IFERROR(Table_SAG_DB2.accdb3[[#This Row],[Rolling_Pcent]]*1,"~") -> 1 | U44: All
A45: AD00935 | B45: CA00908 | C45: Berkshire College of Agriculture | E45: Docklands | F45: NOC | G45: L05918 | H45: 2014-12-01 | I45: 0 | J45: 0 | K45: 0 | L45: 0 | M45: 1 | N45: 1 | O45: Further Education | P45: 1 | Q45: Berkshire College of Agriculture | R45: England | S45: 0 | T45: =IFERROR(Table_SAG_DB2.accdb3[[#This Row],[Rolling_Pcent]]*1,"~") -> 1 | U45: All
A46: AD00296 | B46: CA00294 | C46: Bexhill College | E46: South | F46: NOC | G46: L07011 | H46: 2014-12-01 | I46: 0 | J46: 0 | K46: 0 | L46: 0 | M46: 1 | N46: 1 | O46: Further Education | P46: 1 | Q46: Bexhill College | R46: England | S46: 0 | T46: =IFERROR(Table_SAG_DB2.accdb3[[#This Row],[Rolling_Pcent]]*1,"~") -> 1 | U46: All
A47: AD00506 | B47: CA00495 | C47: Bexley College | E47: Docklands | F47: NOC | G47: L07239 | H47: 2014-12-01 | I47: 0 | J47: 0 | K47: 0 | L47: 0 | M47: 1 | N47: 1 | O47: Further Education | P47: 0.9983 | Q47: Bexley College | R47: England | S47: 0 | T47: =IFERROR(Table_SAG_DB2.accdb3[[#This Row],[Rolling_Pcent]]*1,"~") -> 0.9983 | U47: All
A48: AD00109 | B48: CA00109 | C48: Bicton College | E48: South West | F48: NOC | G48: L06032 | H48: 2014-12-01 | I48: 0 | J48: 0 | K48: 0 | L48: 0 | M48: 1 | N48: 1 | O48: Further Education | P48: 1 | Q48: Bicton College | R48: England | S48: 0 | T48: =IFERROR(Table_SAG_DB2.accdb3[[#This Row],[Rolling_Pcent]]*1,"~") -> 1 | U48: All
A49: AD00742 | B49: CA00717 | C49: Bilborough Sixth Form College | E49: East Midlands | F49: NOC | G49: L07608 | H49: 2014-12-01 | I49: 0 | J49: 0 | K49: 0 | L49: 0 | M49: 1 | N49: 1 | O49: Further Education | P49: 1 | Q49: Bilborough Sixth Form College | R49: England | S49: 0 | T49: =IFERROR(Table_SAG_DB2.accdb3[[#This Row],[Rolling_Pcent]]*1,"~") -> 1 | U49: All
A50: AD00507 | B50: CA00496 | C50: Birkbeck College | E50: London | F50: NOC | G50: L02763 | H50: 2014-12-01 | I50: 0 | J50: 0 | K50: 0 | L50: 0 | M50: 1 | N50: 2 | O50: Higher Education | P50: 1 | Q50: Birkbeck College | R50: England | S50: 0 | T50: =IFERROR(Table_SAG_DB2.accdb3[[#This Row],[Rolling_Pcent]]*1,"~") -> 1 | U50: All
A51: AD00793 | B51: CA00768 | C51: Birkenhead Sixth Form College | E51: North West | F51: NOC | G51: L05444 | H51: 2014-12-01 | I51: 0 | J51: 0 | K51: 0 | L51: 0 | M51: 1 | N51: 1 | O51: Further Education | P51: 1 | Q51: Birkenhead Sixth Form College | R51: England | S51: 0 | T51: =IFERROR(Table_SAG_DB2.accdb3[[#This Row],[Rolling_Pcent]]*1,"~") -> 1 | U51: All
A52: AD00385 | B52: CA00382 | C52: Birmingham City Council | E52: WMRN | F52: NOC | G52: L06280 | H52: 2014-12-01 | I52: 0 | J52: 0 | K52: 0 | L52: 0 | M52: 1 | N52: 1 | O52: Other | P52: 1 | Q52: Birmingham City Council | R52: England | S52: 0 | T52: =IFERROR(Table_SAG_DB2.accdb3[[#This Row],[Rolling_Pcent]]*1,"~") -> 1 | U52: All
A53: AD00386 | B53: CA00383 | C53: Birmingham City University | E53: WMRN | F53: NOC | G53: L07424 | H53: 2014-12-01 | I53: 0 | J53: 0 | K53: 0 | L53: 0 | M53: 1 | N53: 2 | O53: Higher Education | P53: 1 | Q53: Birmingham City University | R53: England | S53: 0 | T53: =IFERROR(Table_SAG_DB2.accdb3[[#This Row],[Rolling_Pcent]]*1,"~") -> 1 | U53: All
A54: AD00412 | B54: CA00406 | C54: Birmingham Metropolitan College | D54: Matthew Boulton Campus | E54: WMRN | F54: NOC | G54: L04505 | H54: 2014-12-01 | I54: 0 | J54: 0 | K54: 0 | L54: 0 | M54: 1 | N54: 1 | O54: Further Education | P54: 1 | Q54: Birmingham Metropolitan College, Matthew Boulton Campus | R54: England | S54: 0 | T54: =IFERROR(Table_SAG_DB2.accdb3[[#This Row],[Rolling_Pcent]]*1,"~") -> 1 | U54: All
A55: AD00434 | B55: CA00428 | C55: Birmingham Metropolitan College | D55: Sutton Coldfield Campus | E55: WMRN | F55: NOC | G55: L04502 | H55: 2014-12-01 | I55: 0 | J55: 0 | K55: 0 | L55: 0 | M55: 1 | N55: 1 | O55: Further Education | P55: 1 | Q55: Birmingham Metropolitan College, Sutton Coldfield Campus | R55: England | S55: 0 | T55: =IFERROR(Table_SAG_DB2.accdb3[[#This Row],[Rolling_Pcent]]*1,"~") -> 1 | U55: All
A56: AD00255 | B56: CA00253 | C56: Bishop Auckland College | E56: North East | F56: NOC | G56: L05993 | H56: 2014-12-01 | I56: 2 | J56: 25 | K56: 0 | L56: 0 | M56: 1 | N56: 1 | O56: Further Education | P56: 1 | Q56: Bishop Auckland College | R56: England | S56: 0 | T56: =IFERROR(Table_SAG_DB2.accdb3[[#This Row],[Rolling_Pcent]]*1,"~") -> 1 | U56: All
A57: AD00193 | B57: CA00191 | C57: Bishop Burton College | D57: Bishop Burton | E57: Yorkshire Humberside | F57: NOC | G57: L06664 | H57: 2014-12-01 | I57: 0 | J57: 0 | K57: 0 | L57: 0 | M57: 1 | N57: 1 | O57: Further Education | P57: 0.9996 | Q57: Bishop Burton College, Bishop Burton | R57: England | S57: 0 | T57: =IFERROR(Table_SAG_DB2.accdb3[[#This Row],[Rolling_Pcent]]*1,"~") -> 0.9996 | U57: All
A58: AD01436 | B58: CA01234 | C58: Bishop Burton College | D58: Riseholme | E58: East Midlands | F58: NOC | G58: L07107 | H58: 2014-12-01 | I58: 1 | J58: 52 | K58: 0 | L58: 0 | M58: 1 | N58: 1 | O58: Further Education | P58: 1 | Q58: Bishop Burton College, Riseholme | R58: England | S58: 0 | T58: =IFERROR(Table_SAG_DB2.accdb3[[#This Row],[Rolling_Pcent]]*1,"~") -> 1 | U58: All
A59: AD00743 | B59: CA00718 | C59: Bishop Grosseteste University | E59: East Midlands | F59: NOC | G59: L07019 | H59: 2014-12-01 | I59: 1 | J59: 511 | K59: 0 | L59: 0 | M59: 1 | N59: 1 | O59: Higher Education | P59: 1 | Q59: Bishop Grosseteste University | R59: England | S59: 0 | T59: =IFERROR(Table_SAG_DB2.accdb3[[#This Row],[Rolling_Pcent]]*1,"~") -> 1 | U59: All
A60: AD00794 | B60: CA00769 | C60: Blackburn College | E60: North West | F60: NOC | G60: L04264 | H60: 2014-12-01 | I60: 0 | J60: 0 | K60: 0 | L60: 0 | M60: 1 | N60: 1 | O60: Further Education | P60: 0.9998 | Q60: Blackburn College | R60: England | S60: 0 | T60: =IFERROR(Table_SAG_DB2.accdb3[[#This Row],[Rolling_Pcent]]*1,"~") -> 0.9998 | U60: All
A61: AD01121 | B61: CA01059 | C61: Blackburn with Darwen Borough Council | D61: North West Learning Grid | E61: North West | F61: NOC | G61: L06623 | H61: 2014-12-01 | I61: 1 | J61: 183 | K61: 0 | L61: 0 | M61: 1 | N61: 1 | O61: Other | P61: 0.9997 | Q61: Blackburn with Darwen Borough Council, North West Learning Grid | R61: England | S61: 0 | T61: =IFERROR(Table_SAG_DB2.accdb3[[#This Row],[Rolling_Pcent]]*1,"~") -> 0.9997 | U61: All
A62: AD00726 | B62: CA00701 | C62: Blackpool and The Fylde College | E62: Cumbria and North Lancashire | F62: NOC | G62: L02768 | H62: 2014-12-01 | I62: 0 | J62: 0 | K62: 0 | L62: 0 | M62: 1 | N62: 1 | O62: Further Education | P62: 0.9998 | Q62: Blackpool and The Fylde College | R62: England | S62: 0 | T62: =IFERROR(Table_SAG_DB2.accdb3[[#This Row],[Rolling_Pcent]]*1,"~") -> 0.9998 | U62: All
A63: AD01519 | B63: CA01279 | C63: Blackpool and The Fylde College | D63: University Centre | E63: Cumbria and North Lancashire | F63: NOC | G63: L07002 | H63: 2014-12-01 | I63: 3 | J63: 582 | K63: 3 | L63: 582 | M63: 0.9869623656 | N63: 1 | O63: Further Education | P63: <12 Months | Q63: Blackpool and The Fylde College, University Centre | R63: England | S63: 0 | T63: =IFERROR(Table_SAG_DB2.accdb3[[#This Row],[Rolling_Pcent]]*1,"~") -> ~ | U63: All
A64: AD01311 | B64: CA01167 | C64: Board of Trustees of the Science Museum Group | D64: Museum of Science and Industry Manchester | E64: North West | F64: NOC | G64: L06185 | H64: 2014-12-01 | I64: 0 | J64: 0 | K64: 0 | L64: 0 | M64: 1 | N64: 1 | O64: Other | P64: 1 | Q64: Board of Trustees of the Science Museum Group, Museum of Science and Industry Manchester | R64: England | S64: 0 | T64: =IFERROR(Table_SAG_DB2.accdb3[[#This Row],[Rolling_Pcent]]*1,"~") -> 1 | U64: All
A65: AD01391 | B65: CA01200 | C65: Board of Trustees of the Science Museum Group | D65: NRM York | E65: Yorkshire Humberside | F65: NOC | G65: L06171 | H65: 2014-12-01 | I65: 0 | J65: 0 | K65: 0 | L65: 0 | M65: 1 | N65: 1 | O65: Other | P65: 0.9958 | Q65: Board of Trustees of the Science Museum Group, NRM York | R65: England | S65: 0 | T65: =IFERROR(Table_SAG_DB2.accdb3[[#This Row],[Rolling_Pcent]]*1,"~") -> 0.9958 | U65: All
A66: AD01318 | B66: CA01173 | C66: Board of Trustees of the Science Museum Group | D66: National Media Museum Bradford | E66: Yorkshire Humberside | F66: YHMAN | G66: L05955 | H66: 2014-12-01 | I66: 1 | J66: 246 | K66: 0 | L66: 0 | M66: 1 | N66: 1 | O66: Other | P66: 0.9956 | Q66: Board of Trustees of the Science Museum Group, National Media Museum Bradford | R66: England | S66: 0 | T66: =IFERROR(Table_SAG_DB2.accdb3[[#This Row],[Rolling_Pcent]]*1,"~") -> 0.9956 | U66: =IF(sector_selection="All","All",O66) -> All | V66: =IF(AND(T66<=0.997,E66=region_selection,U66=sector_selection,H66=reporting_month),"Yes","") ->  | W66: =IF(AND(H66=reporting_month,E66=region_selection),"yes","") -> 
A67: AD00795 | B67: CA00770 | C67: Bolton College | E67: North West | F67: NOC | G67: L05740 | H67: 2014-12-01 | I67: 0 | J67: 0 | K67: 0 | L67: 0 | M67: 1 | N67: 1 | O67: Further Education | P67: 0.9996 | Q67: Bolton College | R67: England | S67: 0 | T67: =IFERROR(Table_SAG_DB2.accdb3[[#This Row],[Rolling_Pcent]]*1,"~") -> 0.9996 | U67: All
A68: AD01050 | B68: CA01002 | C68: Bolton Metropolitan Borough Council | D68: North West Learning Grid | E68: North West | F68: NOC | G68: L05239 | H68: 2014-12-01 | I68: 2 | J68: 192 | K68: 0 | L68: 0 | M68: 1 | N68: 1 | O68: Other | P68: 0.998 | Q68: Bolton Metropolitan Borough Council, North West Learning Grid | R68: England | S68: 0 | T68: =IFERROR(Table_SAG_DB2.accdb3[[#This Row],[Rolling_Pcent]]*1,"~") -> 0.998 | U68: All
A69: AD01235 | B69: CA01130 | C69: Bolton Sixth Form College | D69: Town Centre Campus | E69: North West | F69: NOC | G69: L05839 | H69: 2014-12-01 | I69: 0 | J69: 0 | K69: 0 | L69: 0 | M69: 1 | N69: 1 | O69: Further Education | P69: 0.9996 | Q69: Bolton Sixth Form College, Town Centre Campus | R69: England | S69: 0 | T69: =IFERROR(Table_SAG_DB2.accdb3[[#This Row],[Rolling_Pcent]]*1,"~") -> 0.9996 | U69: All
A70: AD01018 | B70: CA00974 | C70: Borders College | E70: EaStMAN | F70: EaStMAN | G70: L02317 | H70: 2014-12-01 | I70: 0 | J70: 0 | K70: 0 | L70: 0 | M70: 1 | N70: 1 | O70: Further Education | P70: 1 | Q70: Borders College | R70: Scotland | S70: 0 | T70: =IFERROR(Table_SAG_DB2.accdb3[[#This Row],[Rolling_Pcent]]*1,"~") -> 1 | U70: All
A71: AD00332 | B71: CA00330 | C71: Borough of Poole | D71: Personal & Community Development | E71: South | F71: NOC | G71: L07015 | H71: 2014-12-01 | I71: 0 | J71: 0 | K71: 0 | L71: 0 | M71: 1 | N71: 1 | O71: Other | P71: 1 | Q71: Borough of Poole, Personal & Community Development | R71: England | S71: 0 | T71: =IFERROR(Table_SAG_DB2.accdb3[[#This Row],[Rolling_Pcent]]*1,"~") -> 1 | U71: All
A72: AD00744 | B72: CA00719 | C72: Boston College | E72: East Midlands | F72: NOC | G72: L07020 | H72: 2014-12-01 | I72: 0 | J72: 0 | K72: 0 | L72: 0 | M72: 1 | N72: 1 | O72: Further Education | P72: 1 | Q72: Boston College | R72: England | S72: 0 | T72: =IFERROR(Table_SAG_DB2.accdb3[[#This Row],[Rolling_Pcent]]*1,"~") -> 1 | U72: All
A73: AD01244 | B73: CA00295 | C73: Bournemouth University | E73: South | F73: NOC | G73: L07110 | H73: 2014-12-01 | I73: 0 | J73: 0 | K73: 0 | L73: 0 | M73: 1 | N73: 2 | O73: Higher Education | P73: 1 | Q73: Bournemouth University | R73: England | S73: 0 | T73: =IFERROR(Table_SAG_DB2.accdb3[[#This Row],[Rolling_Pcent]]*1,"~") -> 1 | U73: All
A74: AD01259 | B74: CA00384 | C74: Bournville College | E74: WMRN | F74: NOC | G74: L05739 | H74: 2014-12-01 | I74: 0 | J74: 0 | K74: 0 | L74: 0 | M74: 1 | N74: 1 | O74: Further Education | P74: 1 | Q74: Bournville College | R74: England | S74: 0 | T74: =IFERROR(Table_SAG_DB2.accdb3[[#This Row],[Rolling_Pcent]]*1,"~") -> 1 | U74: All
A75: AD00937 | B75: CA00910 | C75: Bracknell and Wokingham College | E75: Docklands | F75: NOC | G75: L05825 | H75: 2014-12-01 | I75: 0 | J75: 0 | K75: 0 | L75: 0 | M75: 1 | N75: 1 | O75: Further Education | P75: 1 | Q75: Bracknell and Wokingham College | R75: England | S75: 0 | T75: =IFERROR(Table_SAG_DB2.accdb3[[#This Row],[Rolling_Pcent]]*1,"~") -> 1 | U75: All
A76: AD00196 | B76: CA00194 | C76: Bradford College | E76: Yorkshire Humberside | F76: NOC | G76: L05641 | H76: 2014-12-01 | I76: 0 | J76: 0 | K76: 0 | L76: 0 | M76: 1 | N76: 1 | O76: Further Education | P76: 0.9996 | Q76: Bradford College | R76: England | S76: 0 | T76: =IFERROR(Table_SAG_DB2.accdb3[[#This Row],[Rolling_Pcent]]*1,"~") -> 0.9996 | U76: All
A77: AD00798 | B77: CA00773 | C77: Bridge College | E77: North West | F77: NOC | G77: L06176 | H77: 2014-12-01 | I77: 0 | J77: 0 | K77: 0 | L77: 0 | M77: 1 | N77: 1 | O77: Other | P77: 1 | Q77: Bridge College | R77: England | S77: 0 | T77: =IFERROR(Table_SAG_DB2.accdb3[[#This Row],[Rolling_Pcent]]*1,"~") -> 1 | U77: All
A78: AD00894 | B78: CA00868 | C78: Bridgend College | E78: Wales | F78: PSBA | G78: L05615 | H78: 2014-12-01 | I78: 0 | J78: 0 | K78: 0 | L78: 0 | M78: 1 | N78: 1 | O78: Further Education | P78: 1 | Q78: Bridgend College | R78: Wales | S78: 0 | T78: =IFERROR(Table_SAG_DB2.accdb3[[#This Row],[Rolling_Pcent]]*1,"~") -> 1 | U78: All
A79: AD00110 | B79: CA00110 | C79: Bridgwater College | E79: South West | F79: NOC | G79: L06105 | H79: 2014-12-01 | I79: 0 | J79: 0 | K79: 0 | L79: 0 | M79: 1 | N79: 1 | O79: Further Education | P79: 0.9992 | Q79: Bridgwater College | R79: England | S79: 0 | T79: =IFERROR(Table_SAG_DB2.accdb3[[#This Row],[Rolling_Pcent]]*1,"~") -> 0.9992 | U79: All
A80: AD00301 | B80: CA00299 | C80: Brighton and Hove City Council | D80: Personal & Community Development | E80: South | F80: NOC | G80: L07298 | H80: 2014-12-01 | I80: 0 | J80: 0 | K80: 0 | L80: 0 | M80: 1 | N80: 1 | O80: Other | P80: 1 | Q80: Brighton and Hove City Council, Personal & Community Development | R80: England | S80: 0 | T80: =IFERROR(Table_SAG_DB2.accdb3[[#This Row],[Rolling_Pcent]]*1,"~") -> 1 | U80: All
A81: AD00302 | B81: CA00300 | C81: Brighton, Hove and Sussex Sixth Form College | E81: South | F81: NOC | G81: L07028 | H81: 2014-12-01 | I81: 0 | J81: 0 | K81: 0 | L81: 0 | M81: 1 | N81: 1 | O81: Further Education | P81: 1 | Q81: Brighton, Hove and Sussex Sixth Form College | R81: England | S81: 0 | T81: =IFERROR(Table_SAG_DB2.accdb3[[#This Row],[Rolling_Pcent]]*1,"~") -> 1 | U81: All
A82: AD00477 | B82: CA00471 | C82: Bristol City Council | E82: South West | F82: NOC | G82: L06073 | H82: 2014-12-01 | I82: 0 | J82: 0 | K82: 0 | L82: 0 | M82: 1 | N82: 1 | O82: Other | P82: 1 | Q82: Bristol City Council | R82: England | S82: 0 | T82: =IFERROR(Table_SAG_DB2.accdb3[[#This Row],[Rolling_Pcent]]*1,"~") -> 1 | U82: All
A83: AD00513 | B83: CA00502 | C83: British Universities Film & Video Council | E83: London | F83: NOC | G83: L04710 | H83: 2014-12-01 | I83: 0 | J83: 0 | K83: 0 | L83: 0 | M83: 1 | N83: 1 | O83: Other | P83: 1 | Q83: British Universities Film & Video Council | R83: England | S83: 0 | T83: =IFERROR(Table_SAG_DB2.accdb3[[#This Row],[Rolling_Pcent]]*1,"~") -> 1 | U83: All
A84: AD00303 | B84: CA00301 | C84: Brockenhurst College | E84: South | F84: NOC | G84: L07080 | H84: 2014-12-01 | I84: 0 | J84: 0 | K84: 0 | L84: 0 | M84: 1 | N84: 1 | O84: Further Education | P84: 1 | Q84: Brockenhurst College | R84: England | S84: 0 | T84: =IFERROR(Table_SAG_DB2.accdb3[[#This Row],[Rolling_Pcent]]*1,"~") -> 1 | U84: All
A85: AD00510 | B85: CA00499 | C85: Bromley College of Further and Higher Education | D85: Bromley Campus | E85: London | F85: NOC | G85: L07233 | H85: 2014-12-01 | I85: 0 | J85: 0 | K85: 0 | L85: 0 | M85: 1 | N85: 2 | O85: Further Education | P85: 0.9993 | Q85: Bromley College of Further and Higher Education, Bromley Campus | R85: England | S85: 0 | T85: =IFERROR(Table_SAG_DB2.accdb3[[#This Row],[Rolling_Pcent]]*1,"~") -> 0.9993 | U85: All
A86: AD00511 | B86: CA00500 | C86: Brooke House Sixth Form College | E86: Docklands | F86: NOC | G86: L07356 | H86: 2014-12-01 | I86: 0 | J86: 0 | K86: 0 | L86: 0 | M86: 1 | N86: 1 | O86: Further Education | P86: 0.999 | Q86: Brooke House Sixth Form College | R86: England | S86: 0 | T86: =IFERROR(Table_SAG_DB2.accdb3[[#This Row],[Rolling_Pcent]]*1,"~") -> 0.999 | U86: All
A87: AD00938 | B87: CA00911 | C87: Brooklands College | E87: South | F87: NOC | G87: L07189 | H87: 2014-12-01 | I87: 0 | J87: 0 | K87: 0 | L87: 0 | M87: 1 | N87: 1 | O87: Further Education | P87: 1 | Q87: Brooklands College | R87: England | S87: 0 | T87: =IFERROR(Table_SAG_DB2.accdb3[[#This Row],[Rolling_Pcent]]*1,"~") -> 1 | U87: All
A88: AD00745 | B88: CA00720 | C88: Brooksby Melton College | E88: East Midlands | F88: NOC | G88: L07026 | H88: 2014-12-01 | I88: 0 | J88: 0 | K88: 0 | L88: 0 | M88: 1 | N88: 1 | O88: Further Education | P88: 1 | Q88: Brooksby Melton College | R88: England | S88: 0 | T88: =IFERROR(Table_SAG_DB2.accdb3[[#This Row],[Rolling_Pcent]]*1,"~") -> 1 | U88: All
A89: AD01512 | B89: CA01274 | C89: Brooksby Melton College | D89: Melton Campus | E89: Docklands | F89: NOC | G89: L07568 | H89: 2014-12-01 | I89: 0 | J89: 0 | K89: 0 | L89: 0 | M89: 1 | N89: 1 | O89: Further Education | P89: <12 Months | Q89: Brooksby Melton College, Melton Campus | R89: England | S89: 0 | T89: =IFERROR(Table_SAG_DB2.accdb3[[#This Row],[Rolling_Pcent]]*1,"~") -> ~ | U89: All
A90: AD01221 | B90: CA00501 | C90: Brunel University | E90: London | F90: NOC | G90: L05913 | H90: 2014-12-01 | I90: 0 | J90: 0 | K90: 0 | L90: 0 | M90: 1 | N90: 2 | O90: Higher Education | P90: 1 | Q90: Brunel University | R90: England | S90: 0 | T90: =IFERROR(Table_SAG_DB2.accdb3[[#This Row],[Rolling_Pcent]]*1,"~") -> 1 | U90: All
A91: AD00960 | B91: CA00931 | C91: Buckinghamshire County Council | E91: TVN | F91: NOC | G91: L05238 | H91: 2014-12-01 | I91: 0 | J91: 0 | K91: 0 | L91: 0 | M91: 1 | N91: 2 | O91: Other | P91: 1 | Q91: Buckinghamshire County Council | R91: England | S91: 0 | T91: =IFERROR(Table_SAG_DB2.accdb3[[#This Row],[Rolling_Pcent]]*1,"~") -> 1 | U91: All
A92: AD00479 | B92: CA00473 | C92: Buckinghamshire New University | E92: TVN | F92: NOC | G92: L04718 | H92: 2014-12-01 | I92: 0 | J92: 0 | K92: 0 | L92: 0 | M92: 1 | N92: 2 | O92: Higher Education | P92: 1 | Q92: Buckinghamshire New University | R92: England | S92: 0 | T92: =IFERROR(Table_SAG_DB2.accdb3[[#This Row],[Rolling_Pcent]]*1,"~") -> 1 | U92: All
A93: AD00728 | B93: CA00703 | C93: Burnley College | E93: North West | F93: NOC | G93: L06592 | H93: 2014-12-01 | I93: 0 | J93: 0 | K93: 0 | L93: 0 | M93: 1 | N93: 2 | O93: Further Education | P93: 1 | Q93: Burnley College | R93: England | S93: 0 | T93: =IFERROR(Table_SAG_DB2.accdb3[[#This Row],[Rolling_Pcent]]*1,"~") -> 1 | U93: All
A94: AD00799 | B94: CA00774 | C94: Burton and South Derbyshire College | E94: North West | F94: NOC | G94: L02788 | H94: 2014-12-01 | I94: 0 | J94: 0 | K94: 0 | L94: 0 | M94: 1 | N94: 1 | O94: Further Education | P94: 1 | Q94: Burton and South Derbyshire College | R94: England | S94: 0 | T94: =IFERROR(Table_SAG_DB2.accdb3[[#This Row],[Rolling_Pcent]]*1,"~") -> 1 | U94: All
A95: AD00801 | B95: CA00776 | C95: Bury College | D95: Woodbury Centre | E95: North West | F95: NOC | G95: L06349 | H95: 2014-12-01 | I95: 2 | J95: 192 | K95: 0 | L95: 0 | M95: 1 | N95: 1 | O95: Further Education | P95: 0.9997 | Q95: Bury College, Woodbury Centre | R95: England | S95: 0 | T95: =IFERROR(Table_SAG_DB2.accdb3[[#This Row],[Rolling_Pcent]]*1,"~") -> 0.9997 | U95: All
A96: AD00800 | B96: CA00775 | C96: Bury Metropolitan Borough Council | D96: Personal & Community Development | E96: North West | F96: NOC | G96: L03601 | H96: 2014-12-01 | I96: 0 | J96: 0 | K96: 0 | L96: 0 | M96: 1 | N96: 1 | O96: Other | P96: 0.9999 | Q96: Bury Metropolitan Borough Council, Personal & Community Development | R96: England | S96: 0 | T96: =IFERROR(Table_SAG_DB2.accdb3[[#This Row],[Rolling_Pcent]]*1,"~") -> 0.9999 | U96: All
A97: AD01069 | B97: CA01010 | C97: Bury Metropolitan Borough Council | D97: North West Learning Grid | E97: North West | F97: NOC | G97: L05283 | H97: 2014-12-01 | I97: 2 | J97: 192 | K97: 0 | L97: 0 | M97: 1 | N97: 1 | O97: Other | P97: 0.9997 | Q97: Bury Metropolitan Borough Council, North West Learning Grid | R97: England | S97: 0 | T97: =IFERROR(Table_SAG_DB2.accdb3[[#This Row],[Rolling_Pcent]]*1,"~") -> 0.9997 | U97: All
A98: AD00389 | B98: CA00385 | C98: Cadbury Sixth Form College | E98: WMRN | F98: NOC | G98: L04546 | H98: 2014-12-01 | I98: 0 | J98: 0 | K98: 0 | L98: 0 | M98: 1 | N98: 1 | O98: Further Education | P98: 1 | Q98: Cadbury Sixth Form College | R98: England | S98: 0 | T98: =IFERROR(Table_SAG_DB2.accdb3[[#This Row],[Rolling_Pcent]]*1,"~") -> 1 | U98: All
A99: AD00198 | B99: CA00196 | C99: Calderdale College | E99: Yorkshire Humberside | F99: NOC | G99: L04514 | H99: 2014-12-01 | I99: 0 | J99: 0 | K99: 0 | L99: 0 | M99: 1 | N99: 1 | O99: Further Education | P99: 0.9996 | Q99: Calderdale College | R99: England | S99: 0 | T99: =IFERROR(Table_SAG_DB2.accdb3[[#This Row],[Rolling_Pcent]]*1,"~") -> 0.9996 | U99: All
A100: AD00197 | B100: CA00195 | C100: Calderdale Metropolitan Borough Council | D100: Personal & Community Development | E100: Yorkshire Humberside | F100: NOC | G100: L03743 | H100: 2014-12-01 | I100: 0 | J100: 0 | K100: 0 | L100: 0 | M100: 1 | N100: 1 | O100: Other | P100: 0.9996 | Q100: Calderdale Metropolitan Borough Council, Personal & Community Development | R100: England | S100: 0 | T100: =IFERROR(Table_SAG_DB2.accdb3[[#This Row],[Rolling_Pcent]]*1,"~") -> 0.9996 | U100: All
A101: AD00670 | B101: CA00651 | C101: Cambridge Regional College | E101: EastERN | F101: NOC | G101: L07304 | H101: 2014-12-01 | I101: 0 | J101: 0 | K101: 0 | L101: 0 | M101: 1 | N101: 1 | O101: Further Education | P101: 0.9938 | Q101: Cambridge Regional College | R101: England | S101: 0 | T101: =IFERROR(Table_SAG_DB2.accdb3[[#This Row],[Rolling_Pcent]]*1,"~") -> 0.9938 | U101: All
A102: AD01389 | B102: CA01198 | C102: Cancer Research UK | D102: London Research Institute | E102: London | F102: NOC | G102: L07329 | H102: 2014-12-01 | I102: 3 | J102: 1620 | K102: 1 | L102: 831 | M102: 0.9813844086 | N102: 1 | O102: Research | P102: 0.9984 | Q102: Cancer Research UK, London Research Institute | R102: England | S102: 0 | T102: =IFERROR(Table_SAG_DB2.accdb3[[#This Row],[Rolling_Pcent]]*1,"~") -> 0.9984 | U102: All
A103: AD00167 | B103: CA00165 | C103: Canterbury Christ Church University | D103: Canterbury Campus | E103: Kent | F103: KPSN | G103: L05852 | H103: 2014-12-01 | I103: 0 | J103: 0 | K103: 0 | L103: 0 | M103: 1 | N103: 1 | O103: Higher Education | P103: 0.9998 | Q103: Canterbury Christ Church University, Canterbury Campus | R103: England | S103: 0 | T103: =IFERROR(Table_SAG_DB2.accdb3[[#This Row],[Rolling_Pcent]]*1,"~") -> 0.9998 | U103: All | W103: yes
A104: AD01234 | B104: CA01129 | C104: Canterbury Christ Church University | D104: Tunbridge Wells | E104: Kent | F104: KPSN | G104: L05865 | H104: 2014-12-01 | I104: 1 | J104: 64 | K104: 0 | L104: 0 | M104: 1 | N104: 1 | O104: Higher Education | P104: 0.9998 | Q104: Canterbury Christ Church University, Tunbridge Wells | R104: England | S104: 0 | T104: =IFERROR(Table_SAG_DB2.accdb3[[#This Row],[Rolling_Pcent]]*1,"~") -> 0.9998 | U104: All | W104: yes
A105: AD01247 | B105: CA01133 | C105: Canterbury Christ Church University | D105: Broadstairs Campus | E105: Kent | F105: KPSN | G105: L05863 | H105: 2014-12-01 | I105: 0 | J105: 0 | K105: 0 | L105: 0 | M105: 1 | N105: 1 | O105: Higher Education | P105: 0.9997 | Q105: Canterbury Christ Church University, Broadstairs Campus | R105: England | S105: 0 | T105: =IFERROR(Table_SAG_DB2.accdb3[[#This Row],[Rolling_Pcent]]*1,"~") -> 0.9997 | U105: All | W105: yes
A106: AD01308 | B106: CA01165 | C106: Canterbury College | D106: Swale Campus | E106: Kent | F106: KPSN | G106: L06106 | H106: 2014-12-01 | I106: 0 | J106: 0 | K106: 0 | L106: 0 | M106: 1 | N106: 1 | O106: Further Education | P106: 1 | Q106: Canterbury College, Swale Campus | R106: England | S106: 0 | T106: =IFERROR(Table_SAG_DB2.accdb3[[#This Row],[Rolling_Pcent]]*1,"~") -> 1 | U106: All | W106: yes
A107: AD00168 | B107: CA00166 | C107: Canterbury College | D107: Cantebury Campus | E107: Kent | F107: KPSN | G107: L05804 | H107: 2014-12-01 | I107: 0 | J107: 0 | K107: 0 | L107: 0 | M107: 1 | N107: 1 | O107: Further Education | P107: 0.9998 | Q107: Canterbury College, Cantebury Campus | R107: England | S107: 0 | T107: =IFERROR(Table_SAG_DB2.accdb3[[#This Row],[Rolling_Pcent]]*1,"~") -> 0.9998 | U107: All | W107: yes
A108: AD00515 | B108: CA00504 | C108: Capel Manor College | E108: Docklands | F108: NOC | G108: L07524 | H108: 2014-12-01 | I108: 0 | J108: 0 | K108: 0 | L108: 0 | M108: 1 | N108: 1 | O108: Further Education | P108: 0.9984 | Q108: Capel Manor College | R108: England | S108: 0 | T108: =IFERROR(Table_SAG_DB2.accdb3[[#This Row],[Rolling_Pcent]]*1,"~") -> 0.9984 | U108: All
A109: AD01345 | B109: CA01182 | C109: Cardiff Metropolitan University | D109: Cyncoed Campus | E109: Wales | F109: PSBA | G109: L06165 | H109: 2014-12-01 | I109: 0 | J109: 0 | K109: 0 | L109: 0 | M109: 1 | N109: 1 | O109: Higher Education | P109: 1 | Q109: Cardiff Metropolitan University, Cyncoed Campus | R109: Wales | S109: 0 | T109: =IFERROR(Table_SAG_DB2.accdb3[[#This Row],[Rolling_Pcent]]*1,"~") -> 1 | U109: All
A110: AD00925 | B110: CA00898 | C110: Cardiff Metropolitan University | D110: Llandaff Campus | E110: Wales | F110: PSBA | G110: L05168 | H110: 2014-12-01 | I110: 0 | J110: 0 | K110: 0 | L110: 0 | M110: 1 | N110: 1 | O110: Higher Education | P110: 1 | Q110: Cardiff Metropolitan University, Llandaff Campus | R110: Wales | S110: 0 | T110: =IFERROR(Table_SAG_DB2.accdb3[[#This Row],[Rolling_Pcent]]*1,"~") -> 1 | U110: All
A111: AD01305 | B111: CA01162 | C111: Cardiff University | D111: Trevithick Building | E111: Wales | F111: PSBA | G111: L06610 | H111: 2014-12-01 | I111: 0 | J111: 0 | K111: 0 | L111: 0 | M111: 1 | N111: 1 | O111: Higher Education | P111: 1 | Q111: Cardiff University, Trevithick Building | R111: Wales | S111: 0 | T111: =IFERROR(Table_SAG_DB2.accdb3[[#This Row],[Rolling_Pcent]]*1,"~") -> 1 | U111: All
A112: AD00895 | B112: CA00869 | C112: Cardiff University | D112: Cathays Park | E112: Wales | F112: PSBA | G112: L06605 | H112: 2014-12-01 | I112: 0 | J112: 0 | K112: 0 | L112: 0 | M112: 1 | N112: 1 | O112: Higher Education | P112: 1 | Q112: Cardiff University, Cathays Park | R112: Wales | S112: 0 | T112: =IFERROR(Table_SAG_DB2.accdb3[[#This Row],[Rolling_Pcent]]*1,"~") -> 1 | U112: All
A113: AD00802 | B113: CA00777 | C113: Cardinal Newman College, Preston | E113: North West | F113: NOC | G113: L04784 | H113: 2014-12-01 | I113: 0 | J113: 0 | K113: 0 | L113: 0 | M113: 1 | N113: 1 | O113: Further Education | P113: 1 | Q113: Cardinal Newman College, Preston | R113: England | S113: 0 | T113: =IFERROR(Table_SAG_DB2.accdb3[[#This Row],[Rolling_Pcent]]*1,"~") -> 1 | U113: All
A114: AD00729 | B114: CA00704 | C114: Carlisle College | E114: Cumbria and North Lancashire | F114: NOC | G114: L02795 | H114: 2014-12-01 | I114: 0 | J114: 0 | K114: 0 | L114: 0 | M114: 1 | N114: 1 | O114: Further Education | P114: 1 | Q114: Carlisle College | R114: England | S114: 0 | T114: =IFERROR(Table_SAG_DB2.accdb3[[#This Row],[Rolling_Pcent]]*1,"~") -> 1 | U114: All
A115: AD00803 | B115: CA00778 | C115: Carmel College | E115: North West | F115: NOC | G115: L05361 | H115: 2014-12-01 | I115: 0 | J115: 0 | K115: 0 | L115: 0 | M115: 1 | N115: 1 | O115: Further Education | P115: 1 | Q115: Carmel College | R115: England | S115: 0 | T115: =IFERROR(Table_SAG_DB2.accdb3[[#This Row],[Rolling_Pcent]]*1,"~") -> 1 | U115: All
A116: AD00516 | B116: CA00505 | C116: Carshalton College | E116: London | F116: NOC | G116: L07360 | H116: 2014-12-01 | I116: 0 | J116: 0 | K116: 0 | L116: 0 | M116: 1 | N116: 1 | O116: Further Education | P116: 0.9989 | Q116: Carshalton College | R116: England | S116: 0 | T116: =IFERROR(Table_SAG_DB2.accdb3[[#This Row],[Rolling_Pcent]]*1,"~") -> 0.9989 | U116: All
A117: AD00675 | B117: CA00655 | C117: Central Bedfordshire College | E117: EastERN | F117: NOC | G117: L05470 | H117: 2014-12-01 | I117: 0 | J117: 0 | K117: 0 | L117: 0 | M117: 1 | N117: 1 | O117: Further Education | P117: 0.9966 | Q117: Central Bedfordshire College | R117: England | S117: 0 | T117: =IFERROR(Table_SAG_DB2.accdb3[[#This Row],[Rolling_Pcent]]*1,"~") -> 0.9966 | U117: All
A118: AD00776 | B118: CA00751 | C118: Central College Nottingham | D118: West Bridgford Campus | E118: East Midlands | F118: NOC | G118: L07579 | H118: 2014-12-01 | I118: 0 | J118: 0 | K118: 0 | L118: 0 | M118: 1 | N118: 1 | O118: Further Education | P118: 1 | Q118: Central College Nottingham, West Bridgford Campus | R118: England | S118: 0 | T118: =IFERROR(Table_SAG_DB2.accdb3[[#This Row],[Rolling_Pcent]]*1,"~") -> 1 | U118: All
A119: AD00746 | B119: CA00721 | C119: Central College Nottingham | D119: Beeston Campus | E119: East Midlands | F119: NOC | G119: L07086 | H119: 2014-12-01 | I119: 0 | J119: 0 | K119: 0 | L119: 0 | M119: 1 | N119: 1 | O119: Further Education | P119: 1 | Q119: Central College Nottingham, Beeston Campus | R119: England | S119: 0 | T119: =IFERROR(Table_SAG_DB2.accdb3[[#This Row],[Rolling_Pcent]]*1,"~") -> 1 | U119: All
A120: AD00309 | B120: CA00307 | C120: Central Sussex College | E120: South | F120: NOC | G120: L07130 | H120: 2014-12-01 | I120: 0 | J120: 0 | K120: 0 | L120: 0 | M120: 1 | N120: 1 | O120: Further Education | P120: 1 | Q120: Central Sussex College | R120: England | S120: 0 | T120: =IFERROR(Table_SAG_DB2.accdb3[[#This Row],[Rolling_Pcent]]*1,"~") -> 1 | U120: All
A121: AD00804 | B121: CA00779 | C121: Cheadle and Marple Sixth Form College | E121: North West | F121: NOC | G121: L04601 | H121: 2014-12-01 | I121: 0 | J121: 0 | K121: 0 | L121: 0 | M121: 1 | N121: 1 | O121: Further Education | P121: 1 | Q121: Cheadle and Marple Sixth Form College | R121: England | S121: 0 | T121: =IFERROR(Table_SAG_DB2.accdb3[[#This Row],[Rolling_Pcent]]*1,"~") -> 1 | U121: All
A122: AD00671 | B122: CA00652 | C122: Chelmsford College | E122: EastERN | F122: NOC | G122: L05940 | H122: 2014-12-01 | I122: 0 | J122: 0 | K122: 0 | L122: 0 | M122: 1 | N122: 1 | O122: Further Education | P122: 0.9984 | Q122: Chelmsford College | R122: England | S122: 0 | T122: =IFERROR(Table_SAG_DB2.accdb3[[#This Row],[Rolling_Pcent]]*1,"~") -> 0.9984 | U122: All
A123: AD01245 | B123: CA01131 | C123: Cheshire West and Chester Council | E123: North West | F123: NOC | G123: L05844 | H123: 2014-12-01 | I123: 0 | J123: 0 | K123: 0 | L123: 0 | M123: 1 | N123: 1 | O123: Other | P123: 1 | Q123: Cheshire West and Chester Council | R123: England | S123: 0 | T123: =IFERROR(Table_SAG_DB2.accdb3[[#This Row],[Rolling_Pcent]]*1,"~") -> 1 | U123: All
A124: AD00748 | B124: CA00723 | C124: Chesterfield College | E124: East Midlands | F124: NOC | G124: L07032 | H124: 2014-12-01 | I124: 0 | J124: 0 | K124: 0 | L124: 0 | M124: 1 | N124: 1 | O124: Further Education | P124: 0.9964 | Q124: Chesterfield College | R124: England | S124: 0 | T124: =IFERROR(Table_SAG_DB2.accdb3[[#This Row],[Rolling_Pcent]]*1,"~") -> 0.9964 | U124: All
A125: AD01520 | B125: CA01280 | C125: Chesterfield College | D125: Infirmary Road | E125: Docklands | F125: NOC | G125: L07588 | H125: 2014-12-01 | I125: 0 | J125: 0 | K125: 0 | L125: 0 | M125: 1 | N125: 1 | O125: Further Education | P125: <12 Months | Q125: Chesterfield College, Infirmary Road | R125: England | S125: 0 | T125: =IFERROR(Table_SAG_DB2.accdb3[[#This Row],[Rolling_Pcent]]*1,"~") -> ~ | U125: All
A126: AD00306 | B126: CA00304 | C126: Chichester College | E126: South | F126: NOC | G126: L07444 | H126: 2014-12-01 | I126: 0 | J126: 0 | K126: 0 | L126: 0 | M126: 1 | N126: 2 | O126: Further Education | P126: 1 | Q126: Chichester College | R126: England | S126: 0 | T126: =IFERROR(Table_SAG_DB2.accdb3[[#This Row],[Rolling_Pcent]]*1,"~") -> 1 | U126: All
A127: AD00517 | B127: CA00506 | C127: Christ the King Sixth Form College | E127: Docklands | F127: NOC | G127: L07245 | H127: 2014-12-01 | I127: 0 | J127: 0 | K127: 0 | L127: 0 | M127: 1 | N127: 2 | O127: Further Education | P127: 0.9988 | Q127: Christ the King Sixth Form College | R127: England | S127: 0 | T127: =IFERROR(Table_SAG_DB2.accdb3[[#This Row],[Rolling_Pcent]]*1,"~") -> 0.9988 | U127: All
A128: AD00113 | B128: CA00112 | C128: Cirencester College | E128: South West | F128: NOC | G128: L06101 | H128: 2014-12-01 | I128: 0 | J128: 0 | K128: 0 | L128: 0 | M128: 1 | N128: 1 | O128: Further Education | P128: 1 | Q128: Cirencester College | R128: England | S128: 0 | T128: =IFERROR(Table_SAG_DB2.accdb3[[#This Row],[Rolling_Pcent]]*1,"~") -> 1 | U128: All
A129: AD00518 | B129: CA00507 | C129: City and Islington College | D129: Centre for Health, Social and Child Care | E129: London | F129: NOC | G129: L07188 | H129: 2014-12-01 | I129: 0 | J129: 0 | K129: 0 | L129: 0 | M129: 1 | N129: 2 | O129: Further Education | P129: 1 | Q129: City and Islington College, Centre for Health, Social and Child Care | R129: England | S129: 0 | T129: =IFERROR(Table_SAG_DB2.accdb3[[#This Row],[Rolling_Pcent]]*1,"~") -> 1 | U129: All
A130: AD00391 | B130: CA00387 | C130: City College Coventry | E130: WMRN | F130: NOC | G130: L04503 | H130: 2014-12-01 | I130: 0 | J130: 0 | K130: 0 | L130: 0 | M130: 1 | N130: 1 | O130: Further Education | P130: 1 | Q130: City College Coventry | R130: England | S130: 0 | T130: =IFERROR(Table_SAG_DB2.accdb3[[#This Row],[Rolling_Pcent]]*1,"~") -> 1 | U130: =IF(sector_selection="All","All",O130) -> All | V130: =IF(AND(T130<=0.997,E130=region_selection,U130=sector_selection,H130=reporting_month),"Yes","") ->  | W130: =IF(AND(H130=reporting_month,E130=region_selection),"yes","") -> 
A131: AD00672 | B131: CA00653 | C131: City College Norwich | E131: EastERN | F131: NOC | G131: L06345 | H131: 2014-12-01 | I131: 0 | J131: 0 | K131: 0 | L131: 0 | M131: 1 | N131: 1 | O131: Further Education | P131: 0.9986 | Q131: City College Norwich | R131: England | S131: 0 | T131: =IFERROR(Table_SAG_DB2.accdb3[[#This Row],[Rolling_Pcent]]*1,"~") -> 0.9986 | U131: All
A132: AD00116 | B132: CA00115 | C132: City College Plymouth | E132: South West | F132: NOC | G132: L06076 | H132: 2014-12-01 | I132: 0 | J132: 0 | K132: 0 | L132: 0 | M132: 1 | N132: 1 | O132: Further Education | P132: 1 | Q132: City College Plymouth | R132: England | S132: 0 | T132: =IFERROR(Table_SAG_DB2.accdb3[[#This Row],[Rolling_Pcent]]*1,"~") -> 1 | U132: All
A133: AD00390 | B133: CA00386 | C133: City College, Birmingham | E133: WMRN | F133: NOC | G133: L07506 | H133: 2014-12-01 | I133: 0 | J133: 0 | K133: 0 | L133: 0 | M133: 1 | N133: 1 | O133: Further Education | P133: 1 | Q133: City College, Birmingham | R133: England | S133: 0 | T133: =IFERROR(Table_SAG_DB2.accdb3[[#This Row],[Rolling_Pcent]]*1,"~") -> 1 | U133: All
A134: AD00307 | B134: CA00305 | C134: City College, Brighton and Hove | E134: South | F134: NOC | G134: L07545 | H134: 2014-12-01 | I134: 1 | J134: 238 | K134: 0 | L134: 0 | M134: 1 | N134: 1 | O134: Further Education | P134: 1 | Q134: City College, Brighton and Hove | R134: England | S134: 0 | T134: =IFERROR(Table_SAG_DB2.accdb3[[#This Row],[Rolling_Pcent]]*1,"~") -> 1 | U134: All
A135: AD00114 | B135: CA00113 | C135: City of Bath College | E135: South West | F135: NOC | G135: L02348 | H135: 2014-12-01 | I135: 0 | J135: 0 | K135: 0 | L135: 0 | M135: 1 | N135: 2 | O135: Further Education | P135: 1 | Q135: City of Bath College | R135: England | S135: 0 | T135: =IFERROR(Table_SAG_DB2.accdb3[[#This Row],[Rolling_Pcent]]*1,"~") -> 1 | U135: All
A136: AD00980 | B136: CA00950 | C136: City of Bradford Metropolitan District Council | D136: Personal & Community Development | E136: Yorkshire Humberside | F136: NOC | G136: L05546 | H136: 2014-12-01 | I136: 0 | J136: 0 | K136: 0 | L136: 0 | M136: 1 | N136: 1 | O136: Other | P136: 0.9982 | Q136: City of Bradford Metropolitan District Council, Personal & Community Development | R136: England | S136: 0 | T136: =IFERROR(Table_SAG_DB2.accdb3[[#This Row],[Rolling_Pcent]]*1,"~") -> 0.9982 | U136: All
A137: AD00115 | B137: CA00114 | C137: City of Bristol College | E137: South West | F137: NOC | G137: L06102 | H137: 2014-12-01 | I137: 0 | J137: 0 | K137: 0 | L137: 0 | M137: 1 | N137: 2 | O137: Further Education | P137: 1 | Q137: City of Bristol College | R137: England | S137: 0 | T137: =IFERROR(Table_SAG_DB2.accdb3[[#This Row],[Rolling_Pcent]]*1,"~") -> 1 | U137: All
A138: AD00371 | B138: CA00369 | C138: City of Glasgow College | D138: Central College Glasgow | E138: ClydeNET | F138: ClydeNET | G138: L02803 | H138: 2014-12-01 | I138: 0 | J138: 0 | K138: 0 | L138: 0 | M138: 1 | N138: 2 | O138: Further Education | P138: 1 | Q138: City of Glasgow College, Central College Glasgow | R138: Scotland | S138: 0 | T138: =IFERROR(Table_SAG_DB2.accdb3[[#This Row],[Rolling_Pcent]]*1,"~") -> 1 | U138: All
A139: AD00374 | B139: CA00372 | C139: City of Glasgow College | D139: Glasgow College of Nautical Studies | E139: ClydeNET | F139: ClydeNET | G139: L02874 | H139: 2014-12-01 | I139: 0 | J139: 0 | K139: 0 | L139: 0 | M139: 1 | N139: 2 | O139: Further Education | P139: 1 | Q139: City of Glasgow College, Glasgow College of Nautical Studies | R139: Scotland | S139: 0 | T139: =IFERROR(Table_SAG_DB2.accdb3[[#This Row],[Rolling_Pcent]]*1,"~") -> 1 | U139: All
A140: AD00380 | B140: CA00378 | C140: City of Glasgow College | D140: Glasgow Metropolitan College | E140: ClydeNET | F140: ClydeNET | G140: L03769 | H140: 2014-12-01 | I140: 0 | J140: 0 | K140: 0 | L140: 0 | M140: 1 | N140: 2 | O140: Further Education | P140: 1 | Q140: City of Glasgow College, Glasgow Metropolitan College | R140: Scotland | S140: 0 | T140: =IFERROR(Table_SAG_DB2.accdb3[[#This Row],[Rolling_Pcent]]*1,"~") -> 1 | U140: All
A141: AD00805 | B141: CA00780 | C141: City of Stoke-on-Trent Sixth Form College | E141: North West | F141: NOC | G141: L05689 | H141: 2014-12-01 | I141: 0 | J141: 0 | K141: 0 | L141: 0 | M141: 1 | N141: 2 | O141: Further Education | P141: 1 | Q141: City of Stoke-on-Trent Sixth Form College | R141: England | S141: 0 | T141: =IFERROR(Table_SAG_DB2.accdb3[[#This Row],[Rolling_Pcent]]*1,"~") -> 1 | U141: All
A142: AD00256 | B142: CA00254 | C142: City of Sunderland College | E142: North East | F142: NOC | G142: L06364 | H142: 2014-12-01 | I142: 0 | J142: 0 | K142: 0 | L142: 0 | M142: 1 | N142: 1 | O142: Further Education | P142: 1 | Q142: City of Sunderland College | R142: England | S142: 0 | T142: =IFERROR(Table_SAG_DB2.accdb3[[#This Row],[Rolling_Pcent]]*1,"~") -> 1 | U142: All
A143: AD00521 | B143: CA00510 | C143: City of Westminster College | D143: North Wharf Road Campus | E143: London | F143: NOC | G143: L06641 | H143: 2014-12-01 | I143: 0 | J143: 0 | K143: 0 | L143: 0 | M143: 1 | N143: 1 | O143: Further Education | P143: 1 | Q143: City of Westminster College, North Wharf Road Campus | R143: England | S143: 0 | T143: =IFERROR(Table_SAG_DB2.accdb3[[#This Row],[Rolling_Pcent]]*1,"~") -> 1 | U143: All
A144: AD00448 | B144: CA00442 | C144: City of Wolverhampton College | D144: Paget Road Campus | E144: WMRN | F144: NOC | G144: L05937 | H144: 2014-12-01 | I144: 0 | J144: 0 | K144: 0 | L144: 0 | M144: 1 | N144: 1 | O144: Further Education | P144: 1 | Q144: City of Wolverhampton College, Paget Road Campus | R144: England | S144: 0 | T144: =IFERROR(Table_SAG_DB2.accdb3[[#This Row],[Rolling_Pcent]]*1,"~") -> 1 | U144: All
A145: AD01390 | B145: CA01199 | C145: City of Wolverhampton College | D145: Wellington Road Campus | E145: WMRN | F145: NOC | G145: L06536 | H145: 2014-12-01 | I145: 0 | J145: 0 | K145: 0 | L145: 0 | M145: 1 | N145: 1 | O145: Further Education | P145: 1 | Q145: City of Wolverhampton College, Wellington Road Campus | R145: England | S145: 0 | T145: =IFERROR(Table_SAG_DB2.accdb3[[#This Row],[Rolling_Pcent]]*1,"~") -> 1 | U145: All
A146: AD00981 | B146: CA00951 | C146: City of York Council | D146: Personal & Community Development | E146: Yorkshire Humberside | F146: NOC | G146: L06335 | H146: 2014-12-01 | I146: 0 | J146: 0 | K146: 0 | L146: 0 | M146: 1 | N146: 1 | O146: Other | P146: 0.9992 | Q146: City of York Council, Personal & Community Development | R146: England | S146: 0 | T146: =IFERROR(Table_SAG_DB2.accdb3[[#This Row],[Rolling_Pcent]]*1,"~") -> 0.9992 | U146: All
A147: AD00519 | B147: CA00508 | C147: City University | E147: Docklands | F147: NOC | G147: L07278 | H147: 2014-12-01 | I147: 0 | J147: 0 | K147: 0 | L147: 0 | M147: 1 | N147: 2 | O147: Higher Education | P147: 1 | Q147: City University | R147: England | S147: 0 | T147: =IFERROR(Table_SAG_DB2.accdb3[[#This Row],[Rolling_Pcent]]*1,"~") -> 1 | U147: All
A148: AD00257 | B148: CA00255 | C148: Cleveland College of Art and Design | E148: North East | F148: NOC | G148: L05591 | H148: 2014-12-01 | I148: 0 | J148: 0 | K148: 0 | L148: 0 | M148: 1 | N148: 1 | O148: Further Education | P148: 1 | Q148: Cleveland College of Art and Design | R148: England | S148: 0 | T148: =IFERROR(Table_SAG_DB2.accdb3[[#This Row],[Rolling_Pcent]]*1,"~") -> 1 | U148: All
A149: AD00669 | B149: CA00650 | C149: Colchester Institute Enterprises Limited | D149: The College at Braintree campus | E149: EastERN | F149: NOC | G149: L05704 | H149: 2014-12-01 | I149: 0 | J149: 0 | K149: 0 | L149: 0 | M149: 1 | N149: 1 | O149: Further Education | P149: 0.9984 | Q149: Colchester Institute Enterprises Limited, The College at Braintree campus | R149: England | S149: 0 | T149: =IFERROR(Table_SAG_DB2.accdb3[[#This Row],[Rolling_Pcent]]*1,"~") -> 0.9984 | U149: All
A150: AD00940 | B150: CA00912 | C150: Colchester Institute Enterprises Limited | D150: Sheepen Road | E150: EastERN | F150: NOC | G150: L05509 | H150: 2014-12-01 | I150: 1 | J150: 44 | K150: 0 | L150: 0 | M150: 1 | N150: 1 | O150: Further Education | P150: 0.9956 | Q150: Colchester Institute Enterprises Limited, Sheepen Road | R150: England | S150: 0 | T150: =IFERROR(Table_SAG_DB2.accdb3[[#This Row],[Rolling_Pcent]]*1,"~") -> 0.9956 | U150: All
A151: AD00901 | B151: CA00875 | C151: Coleg Cambria | D151: Llysfasi | E151: Wales | F151: PSBA | G151: L05602 | H151: 2014-12-01 | I151: 0 | J151: 0 | K151: 0 | L151: 0 | M151: 1 | N151: 1 | O151: Further Education | P151: 0.9999 | Q151: Coleg Cambria, Llysfasi | R151: Wales | S151: 0 | T151: =IFERROR(Table_SAG_DB2.accdb3[[#This Row],[Rolling_Pcent]]*1,"~") -> 0.9999 | U151: All
A152: AD00928 | B152: CA00901 | C152: Coleg Cambria | D152: Northop | E152: Wales | F152: PSBA | G152: L03161 | H152: 2014-12-01 | I152: 0 | J152: 0 | K152: 0 | L152: 0 | M152: 1 | N152: 1 | O152: Further Education | P152: 0.9999 | Q152: Coleg Cambria, Northop | R152: Wales | S152: 0 | T152: =IFERROR(Table_SAG_DB2.accdb3[[#This Row],[Rolling_Pcent]]*1,"~") -> 0.9999 | U152: All
A153: AD00929 | B153: CA00902 | C153: Coleg Cambria | E153: Wales | F153: PSBA | G153: L06439 | H153: 2014-12-01 | I153: 0 | J153: 0 | K153: 0 | L153: 0 | M153: 1 | N153: 1 | O153: Further Education | P153: 0.9999 | Q153: Coleg Cambria | R153: Wales | S153: 0 | T153: =IFERROR(Table_SAG_DB2.accdb3[[#This Row],[Rolling_Pcent]]*1,"~") -> 0.9999 | U153: All
A154: AD00907 | B154: CA00881 | C154: Coleg Cambria | D154: Deeside | E154: Wales | F154: PSBA | G154: L05560 | H154: 2014-12-01 | I154: 0 | J154: 0 | K154: 0 | L154: 0 | M154: 1 | N154: 1 | O154: Further Education | P154: 0.9999 | Q154: Coleg Cambria, Deeside | R154: Wales | S154: 0 | T154: =IFERROR(Table_SAG_DB2.accdb3[[#This Row],[Rolling_Pcent]]*1,"~") -> 0.9999 | U154: All
A155: AD01423 | B155: CA01223 | C155: Coleg Ceredigion | D155: Aberystwyth Campus | E155: Wales | F155: PSBA | G155: L06481 | H155: 2014-12-01 | I155: 0 | J155: 0 | K155: 0 | L155: 0 | M155: 1 | N155: 1 | O155: Further Education | P155: 1 | Q155: Coleg Ceredigion, Aberystwyth Campus | R155: Wales | S155: 0 | T155: =IFERROR(Table_SAG_DB2.accdb3[[#This Row],[Rolling_Pcent]]*1,"~") -> 1 | U155: All
A156: AD00896 | B156: CA00870 | C156: Coleg Ceredigion | D156: Cardigan Campus | E156: Wales | F156: PSBA | G156: L02819 | H156: 2014-12-01 | I156: 0 | J156: 0 | K156: 0 | L156: 0 | M156: 1 | N156: 1 | O156: Further Education | P156: 1 | Q156: Coleg Ceredigion, Cardigan Campus | R156: Wales | S156: 0 | T156: =IFERROR(Table_SAG_DB2.accdb3[[#This Row],[Rolling_Pcent]]*1,"~") -> 1 | U156: All
A157: AD00990 | B157: CA00960 | C157: Coleg Elidyr | E157: Wales | F157: PSBA | G157: L07074 | H157: 2014-12-01 | I157: 0 | J157: 0 | K157: 0 | L157: 0 | M157: 1 | N157: 1 | O157: Other | P157: 1 | Q157: Coleg Elidyr | R157: Wales | S157: 0 | T157: =IFERROR(Table_SAG_DB2.accdb3[[#This Row],[Rolling_Pcent]]*1,"~") -> 1 | U157: All
A158: AD01438 | B158: CA01235 | C158: Coleg Gwent | D158: Blaenau Gwent Learning Zone | E158: Wales | F158: PSBA | G158: L06687 | H158: 2014-12-01 | I158: 0 | J158: 0 | K158: 0 | L158: 0 | M158: 1 | N158: 1 | O158: Further Education | P158: 1 | Q158: Coleg Gwent, Blaenau Gwent Learning Zone | R158: Wales | S158: 0 | T158: =IFERROR(Table_SAG_DB2.accdb3[[#This Row],[Rolling_Pcent]]*1,"~") -> 1 | U158: All
A159: AD00898 | B159: CA00872 | C159: Coleg Gwent | D159: Usk | E159: Wales | F159: PSBA | G159: L06279 | H159: 2014-12-01 | I159: 0 | J159: 0 | K159: 0 | L159: 0 | M159: 1 | N159: 1 | O159: Further Education | P159: 1 | Q159: Coleg Gwent, Usk | R159: Wales | S159: 0 | T159: =IFERROR(Table_SAG_DB2.accdb3[[#This Row],[Rolling_Pcent]]*1,"~") -> 1 | U159: All
A160: AD00899 | B160: CA00873 | C160: Coleg Harlech Workers' Educational Association | E160: Wales | F160: PSBA | G160: L05718 | H160: 2014-12-01 | I160: 0 | J160: 0 | K160: 0 | L160: 0 | M160: 1 | N160: 1 | O160: Further Education | P160: 0.9994 | Q160: Coleg Harlech Workers' Educational Association | R160: Wales | S160: 0 | T160: =IFERROR(Table_SAG_DB2.accdb3[[#This Row],[Rolling_Pcent]]*1,"~") -> 0.9994 | U160: All
A161: AD00906 | B161: CA00880 | C161: Coleg Sir Gar | E161: Wales | F161: PSBA | G161: L05737 | H161: 2014-12-01 | I161: 0 | J161: 0 | K161: 0 | L161: 0 | M161: 1 | N161: 2 | O161: Further Education | P161: 1 | Q161: Coleg Sir Gar | R161: Wales | S161: 0 | T161: =IFERROR(Table_SAG_DB2.accdb3[[#This Row],[Rolling_Pcent]]*1,"~") -> 1 | U161: All
A162: AD00904 | B162: CA00878 | C162: Coleg Y Cymoedd | D162: Nantgarw Campus | E162: Wales | F162: PSBA | G162: L06551 | H162: 2014-12-01 | I162: 0 | J162: 0 | K162: 0 | L162: 0 | M162: 1 | N162: 1 | O162: Further Education | P162: 1 | Q162: Coleg Y Cymoedd, Nantgarw Campus | R162: Wales | S162: 0 | T162: =IFERROR(Table_SAG_DB2.accdb3[[#This Row],[Rolling_Pcent]]*1,"~") -> 1 | U162: All
A163: AD00930 | B163: CA00903 | C163: Coleg Y Cymoedd | D163: Ystrad Mynach Campus | E163: Wales | F163: PSBA | G163: L06600 | H163: 2014-12-01 | I163: 0 | J163: 0 | K163: 0 | L163: 0 | M163: 1 | N163: 1 | O163: Further Education | P163: 1 | Q163: Coleg Y Cymoedd, Ystrad Mynach Campus | R163: Wales | S163: 0 | T163: =IFERROR(Table_SAG_DB2.accdb3[[#This Row],[Rolling_Pcent]]*1,"~") -> 1 | U163: All
A164: AD00524 | B164: CA00513 | C164: College of North West London | E164: London | F164: NOC | G164: L07181 | H164: 2014-12-01 | I164: 3 | J164: 37 | K164: 2 | L164: 20 | M164: 0.9995519713 | N164: 1 | O164: Further Education | P164: 1 | Q164: College of North West London | R164: England | S164: 0 | T164: =IFERROR(Table_SAG_DB2.accdb3[[#This Row],[Rolling_Pcent]]*1,"~") -> 1 | U164: All
A165: AD00118 | B165: CA00117 | C165: Cornwall College | D165: Camborne | E165: South West | F165: NOC | G165: L06033 | H165: 2014-12-01 | I165: 0 | J165: 0 | K165: 0 | L165: 0 | M165: 1 | N165: 1 | O165: Further Education | P165: 1 | Q165: Cornwall College, Camborne | R165: England | S165: 0 | T165: =IFERROR(Table_SAG_DB2.accdb3[[#This Row],[Rolling_Pcent]]*1,"~") -> 1 | U165: All
A166: AD01400 | B166: CA01210 | C166: Cornwall College | D166: Saltash | E166: South West | F166: NOC | G166: L06584 | H166: 2014-12-01 | I166: 0 | J166: 0 | K166: 0 | L166: 0 | M166: 1 | N166: 1 | O166: Further Education | P166: 1 | Q166: Cornwall College, Saltash | R166: England | S166: 0 | T166: =IFERROR(Table_SAG_DB2.accdb3[[#This Row],[Rolling_Pcent]]*1,"~") -> 1 | U166: All
A167: AD00117 | B167: CA00116 | C167: Cornwall Council | D167: Personal & Community Development | E167: South West | F167: NOC | G167: L06049 | H167: 2014-12-01 | I167: 0 | J167: 0 | K167: 0 | L167: 0 | M167: 1 | N167: 1 | O167: Other | P167: 1 | Q167: Cornwall Council, Personal & Community Development | R167: England | S167: 0 | T167: =IFERROR(Table_SAG_DB2.accdb3[[#This Row],[Rolling_Pcent]]*1,"~") -> 1 | U167: All
A168: AD00526 | B168: CA00515 | C168: Coulsdon Sixth Form College | E168: London | F168: NOC | G168: L05457 | H168: 2014-12-01 | I168: 0 | J168: 0 | K168: 0 | L168: 0 | M168: 1 | N168: 1 | O168: Further Education | P168: 1 | Q168: Coulsdon Sixth Form College | R168: England | S168: 0 | T168: =IFERROR(Table_SAG_DB2.accdb3[[#This Row],[Rolling_Pcent]]*1,"~") -> 1 | U168: All
A169: AD00402 | B169: CA00398 | C169: County of Herefordshire District Council | E169: WMRN | F169: NOC | G169: L04732 | H169: 2014-12-01 | I169: 1 | J169: 30 | K169: 0 | L169: 0 | M169: 1 | N169: 1 | O169: Other | P169: 0.9999 | Q169: County of Herefordshire District Council | R169: England | S169: 0 | T169: =IFERROR(Table_SAG_DB2.accdb3[[#This Row],[Rolling_Pcent]]*1,"~") -> 0.9999 | U169: All
A170: AD00527 | B170: CA00516 | C170: Courtauld Institute of Art | E170: London | F170: NOC | G170: L06628 | H170: 2014-12-01 | I170: 0 | J170: 0 | K170: 0 | L170: 0 | M170: 1 | N170: 1 | O170: Higher Education | P170: 1 | Q170: Courtauld Institute of Art | R170: England | S170: 0 | T170: =IFERROR(Table_SAG_DB2.accdb3[[#This Row],[Rolling_Pcent]]*1,"~") -> 1 | U170: All
A171: AD00392 | B171: CA00388 | C171: Coventry City Council | E171: WMRN | F171: NOC | G171: L04698 | H171: 2014-12-01 | I171: 0 | J171: 0 | K171: 0 | L171: 0 | M171: 1 | N171: 2 | O171: Other | P171: 1 | Q171: Coventry City Council | R171: England | S171: 0 | T171: =IFERROR(Table_SAG_DB2.accdb3[[#This Row],[Rolling_Pcent]]*1,"~") -> 1 | U171: All
A172: AD00393 | B172: CA00389 | C172: Coventry University | E172: WMRN | F172: NOC | G172: L07446 | H172: 2014-12-01 | I172: 0 | J172: 0 | K172: 0 | L172: 0 | M172: 1 | N172: 2 | O172: Higher Education | P172: 1 | Q172: Coventry University | R172: England | S172: 0 | T172: =IFERROR(Table_SAG_DB2.accdb3[[#This Row],[Rolling_Pcent]]*1,"~") -> 1 | U172: All
A173: AD01484 | B173: CA01259 | C173: Coventry University | D173: Barnsley Datacentre | E173: Yorkshire Humberside | F173: NOC | G173: L07463 | H173: 2014-12-01 | I173: 0 | J173: 0 | K173: 0 | L173: 0 | M173: 1 | N173: 1 | O173: Higher Education | P173: <12 Months | Q173: Coventry University, Barnsley Datacentre | R173: England | S173: 0 | T173: =IFERROR(Table_SAG_DB2.accdb3[[#This Row],[Rolling_Pcent]]*1,"~") -> ~ | U173: All
A174: AD01164 | B174: CA01093 | C174: Coventry University | D174: London Campus | E174: Docklands | F174: NOC | G174: L05543 | H174: 2014-12-01 | I174: 0 | J174: 0 | K174: 0 | L174: 0 | M174: 1 | N174: 2 | O174: Higher Education | P174: 1 | Q174: Coventry University, London Campus | R174: England | S174: 0 | T174: =IFERROR(Table_SAG_DB2.accdb3[[#This Row],[Rolling_Pcent]]*1,"~") -> 1 | U174: All
A175: AD01522 | B175: CA01281 | C175: Coventry University | D175: Ryton Campus | E175: WMRN | F175: NOC | G175: L07577 | H175: 2014-12-01 | I175: 0 | J175: 0 | K175: 0 | L175: 0 | M175: 1 | N175: 1 | O175: Higher Education | P175: <12 Months | Q175: Coventry University, Ryton Campus | R175: England | S175: 0 | T175: =IFERROR(Table_SAG_DB2.accdb3[[#This Row],[Rolling_Pcent]]*1,"~") -> ~ | U175: All
A176: AD00674 | B176: CA00654 | C176: Cranfield University | E176: EastERN | F176: NOC | G176: L05502 | H176: 2014-12-01 | I176: 0 | J176: 0 | K176: 0 | L176: 0 | M176: 1 | N176: 2 | O176: Higher Education | P176: 1 | Q176: Cranfield University | R176: England | S176: 0 | T176: =IFERROR(Table_SAG_DB2.accdb3[[#This Row],[Rolling_Pcent]]*1,"~") -> 1 | U176: All
A177: AD00199 | B177: CA00197 | C177: Craven College | E177: Yorkshire Humberside | F177: NOC | G177: L04705 | H177: 2014-12-01 | I177: 0 | J177: 0 | K177: 0 | L177: 0 | M177: 1 | N177: 1 | O177: Further Education | P177: 0.9994 | Q177: Craven College | R177: England | S177: 0 | T177: =IFERROR(Table_SAG_DB2.accdb3[[#This Row],[Rolling_Pcent]]*1,"~") -> 0.9994 | U177: All
A178: AD00529 | B178: CA00518 | C178: Croydon College | E178: London | F178: NOC | G178: L04437 | H178: 2014-12-01 | I178: 0 | J178: 0 | K178: 0 | L178: 0 | M178: 1 | N178: 1 | O178: Further Education | P178: 0.9993 | Q178: Croydon College | R178: England | S178: 0 | T178: =IFERROR(Table_SAG_DB2.accdb3[[#This Row],[Rolling_Pcent]]*1,"~") -> 0.9993 | U178: All
A179: AD00258 | B179: CA00256 | C179: Darlington College | E179: North East | F179: NOC | G179: L06006 | H179: 2014-12-01 | I179: 2 | J179: 25 | K179: 0 | L179: 0 | M179: 1 | N179: 1 | O179: Further Education | P179: 1 | Q179: Darlington College | R179: England | S179: 0 | T179: =IFERROR(Table_SAG_DB2.accdb3[[#This Row],[Rolling_Pcent]]*1,"~") -> 1 | U179: All
A180: AD00749 | B180: CA00724 | C180: De Montfort University | E180: East Midlands | F180: NOC | G180: L02843 | H180: 2014-12-01 | I180: 0 | J180: 0 | K180: 0 | L180: 0 | M180: 1 | N180: 2 | O180: Higher Education | P180: 1 | Q180: De Montfort University | R180: England | S180: 0 | T180: =IFERROR(Table_SAG_DB2.accdb3[[#This Row],[Rolling_Pcent]]*1,"~") -> 1 | U180: All
A181: AD00200 | B181: CA00198 | C181: Dearne Valley College | E181: Yorkshire Humberside | F181: NOC | G181: L02374 | H181: 2014-12-01 | I181: 1 | J181: 2 | K181: 1 | L181: 2 | M181: 0.9999551971 | N181: 1 | O181: Further Education | P181: 0.9996 | Q181: Dearne Valley College | R181: England | S181: 0 | T181: =IFERROR(Table_SAG_DB2.accdb3[[#This Row],[Rolling_Pcent]]*1,"~") -> 0.9996 | U181: All
A182: AD00721 | B182: CA00696 | C182: Defence Academy of the United Kingdom | E182: TVN | F182: NOC | G182: L05665 | H182: 2014-12-01 | I182: 0 | J182: 0 | K182: 0 | L182: 0 | M182: 1 | N182: 1 | O182: Other | P182: 1 | Q182: Defence Academy of the United Kingdom | R182: England | S182: 0 | T182: =IFERROR(Table_SAG_DB2.accdb3[[#This Row],[Rolling_Pcent]]*1,"~") -> 1 | U182: All
A183: AD00988 | B183: CA00958 | C183: Defence Science and Technology Laboratory | E183: Docklands | F183: NOC | G183: L04744 | H183: 2014-12-01 | I183: 0 | J183: 0 | K183: 0 | L183: 0 | M183: 1 | N183: 2 | O183: Other | P183: 1 | Q183: Defence Science and Technology Laboratory | R183: England | S183: 0 | T183: =IFERROR(Table_SAG_DB2.accdb3[[#This Row],[Rolling_Pcent]]*1,"~") -> 1 | U183: All
A184: AD00720 | B184: CA00695 | C184: Delivery of Advanced Network Technology to Europe Limited | E184: EastERN | F184: NOC | G184: L05464 | H184: 2014-12-01 | I184: 0 | J184: 0 | K184: 0 | L184: 0 | M184: 1 | N184: 2 | O184: Other | P184: 1 | Q184: Delivery of Advanced Network Technology to Europe Limited | R184: England | S184: 0 | T184: =IFERROR(Table_SAG_DB2.accdb3[[#This Row],[Rolling_Pcent]]*1,"~") -> 1 | U184: All
A185: AD00750 | B185: CA00725 | C185: Derby City Council | D185: Personal & Community Development | E185: East Midlands | F185: NOC | G185: L07033 | H185: 2014-12-01 | I185: 0 | J185: 0 | K185: 0 | L185: 0 | M185: 1 | N185: 1 | O185: Other | P185: 1 | Q185: Derby City Council, Personal & Community Development | R185: England | S185: 0 | T185: =IFERROR(Table_SAG_DB2.accdb3[[#This Row],[Rolling_Pcent]]*1,"~") -> 1 | U185: All
A186: AD00774 | B186: CA00749 | C186: Derby College | D186: Ilkeston Campus | E186: East Midlands | F186: NOC | G186: L07037 | H186: 2014-12-01 | I186: 0 | J186: 0 | K186: 0 | L186: 0 | M186: 1 | N186: 1 | O186: Further Education | P186: 1 | Q186: Derby College, Ilkeston Campus | R186: England | S186: 0 | T186: =IFERROR(Table_SAG_DB2.accdb3[[#This Row],[Rolling_Pcent]]*1,"~") -> 1 | U186: All
A187: AD00751 | B187: CA00726 | C187: Derby College | D187: Joseph Wright Centre | E187: East Midlands | F187: NOC | G187: L07106 | H187: 2014-12-01 | I187: 0 | J187: 0 | K187: 0 | L187: 0 | M187: 1 | N187: 1 | O187: Further Education | P187: 1 | Q187: Derby College, Joseph Wright Centre | R187: England | S187: 0 | T187: =IFERROR(Table_SAG_DB2.accdb3[[#This Row],[Rolling_Pcent]]*1,"~") -> 1 | U187: All
A188: AD00986 | B188: CA00956 | C188: Derwen College | E188: North West | F188: NOC | G188: L06547 | H188: 2014-12-01 | I188: 0 | J188: 0 | K188: 0 | L188: 0 | M188: 1 | N188: 1 | O188: Other | P188: 0.9979 | Q188: Derwen College | R188: England | S188: 0 | T188: =IFERROR(Table_SAG_DB2.accdb3[[#This Row],[Rolling_Pcent]]*1,"~") -> 0.9979 | U188: All
A189: AD00259 | B189: CA00257 | C189: Derwentside College | E189: North East | F189: NOC | G189: L05961 | H189: 2014-12-01 | I189: 0 | J189: 0 | K189: 0 | L189: 0 | M189: 1 | N189: 1 | O189: Further Education | P189: 1 | Q189: Derwentside College | R189: England | S189: 0 | T189: =IFERROR(Table_SAG_DB2.accdb3[[#This Row],[Rolling_Pcent]]*1,"~") -> 1 | U189: All
A190: AD00203 | B190: CA00201 | C190: Doncaster College | E190: Yorkshire Humberside | F190: NOC | G190: L02386 | H190: 2014-12-01 | I190: 1 | J190: 2 | K190: 1 | L190: 2 | M190: 0.9999551971 | N190: 1 | O190: Further Education | P190: 0.9996 | Q190: Doncaster College | R190: England | S190: 0 | T190: =IFERROR(Table_SAG_DB2.accdb3[[#This Row],[Rolling_Pcent]]*1,"~") -> 0.9996 | U190: All
A191: AD00202 | B191: CA00200 | C191: Doncaster Deaf Trust | E191: Yorkshire Humberside | F191: NOC | G191: L06730 | H191: 2014-12-01 | I191: 0 | J191: 0 | K191: 0 | L191: 0 | M191: 1 | N191: 1 | O191: Other | P191: 0.9983 | Q191: Doncaster Deaf Trust | R191: England | S191: 0 | T191: =IFERROR(Table_SAG_DB2.accdb3[[#This Row],[Rolling_Pcent]]*1,"~") -> 0.9983 | U191: All
A192: AD01191 | B192: CA01105 | C192: Doncaster Metropolitan Borough Council | E192: Yorkshire Humberside | F192: NOC | G192: L06624 | H192: 2014-12-01 | I192: 1 | J192: 2 | K192: 1 | L192: 2 | M192: 0.9999551971 | N192: 1 | O192: Other | P192: 0.9996 | Q192: Doncaster Metropolitan Borough Council | R192: England | S192: 0 | T192: =IFERROR(Table_SAG_DB2.accdb3[[#This Row],[Rolling_Pcent]]*1,"~") -> 0.9996 | U192: All
A193: AD00394 | B193: CA00390 | C193: Dudley College | E193: WMRN | F193: NOC | G193: L07519 | H193: 2014-12-01 | I193: 0 | J193: 0 | K193: 0 | L193: 0 | M193: 1 | N193: 1 | O193: Further Education | P193: 1 | Q193: Dudley College | R193: England | S193: 0 | T193: =IFERROR(Table_SAG_DB2.accdb3[[#This Row],[Rolling_Pcent]]*1,"~") -> 1 | U193: All
A194: AD01189 | B194: CA01103 | C194: Dudley Metropolitan Borough Council | E194: WMRN | F194: NOC | G194: L05551 | H194: 2014-12-01 | I194: 0 | J194: 0 | K194: 0 | L194: 0 | M194: 1 | N194: 2 | O194: Other | P194: 1 | Q194: Dudley Metropolitan Borough Council | R194: England | S194: 0 | T194: =IFERROR(Table_SAG_DB2.accdb3[[#This Row],[Rolling_Pcent]]*1,"~") -> 1 | U194: =IF(sector_selection="All","All",O194) -> All | V194: =IF(AND(T194<=0.997,E194=region_selection,U194=sector_selection,H194=reporting_month),"Yes","") ->  | W194: =IF(AND(H194=reporting_month,E194=region_selection),"yes","") -> 
A195: AD00358 | B195: CA00356 | C195: Dumfries and Galloway College | E195: ClydeNET | F195: ClydeNET | G195: L02390 | H195: 2014-12-01 | I195: 0 | J195: 0 | K195: 0 | L195: 0 | M195: 1 | N195: 2 | O195: Further Education | P195: 1 | Q195: Dumfries and Galloway College | R195: Scotland | S195: 0 | T195: =IFERROR(Table_SAG_DB2.accdb3[[#This Row],[Rolling_Pcent]]*1,"~") -> 1 | U195: All
A196: AD00185 | B196: CA00183 | C196: Dundee and Angus College | D196: Angus Campus | E196: Fife & Tayside | F196: NOC | G196: L02282 | H196: 2014-12-01 | I196: 0 | J196: 0 | K196: 0 | L196: 0 | M196: 1 | N196: 1 | O196: Further Education | P196: 1 | Q196: Dundee and Angus College, Angus Campus | R196: Scotland | S196: 0 | T196: =IFERROR(Table_SAG_DB2.accdb3[[#This Row],[Rolling_Pcent]]*1,"~") -> 1 | U196: All
A197: AD00188 | B197: CA00186 | C197: Dundee and Angus College | D197: Dundee Campus | E197: Fife & Tayside | F197: NOC | G197: L02393 | H197: 2014-12-01 | I197: 0 | J197: 0 | K197: 0 | L197: 0 | M197: 1 | N197: 1 | O197: Further Education | P197: 1 | Q197: Dundee and Angus College, Dundee Campus | R197: Scotland | S197: 0 | T197: =IFERROR(Table_SAG_DB2.accdb3[[#This Row],[Rolling_Pcent]]*1,"~") -> 1 | U197: All
A198: AD01070 | B198: CA01011 | C198: Durham County Council | E198: North East | F198: NOC | G198: L04678 | H198: 2014-12-01 | I198: 0 | J198: 0 | K198: 0 | L198: 0 | M198: 1 | N198: 1 | O198: Other | P198: 1 | Q198: Durham County Council | R198: England | S198: 0 | T198: =IFERROR(Table_SAG_DB2.accdb3[[#This Row],[Rolling_Pcent]]*1,"~") -> 1 | U198: All
A199: AD00532 | B199: CA00521 | C199: Ealing, Hammersmith and West London College | D199: Hammersmith Campus | E199: London | F199: NOC | G199: L07423 | H199: 2014-12-01 | I199: 0 | J199: 0 | K199: 0 | L199: 0 | M199: 1 | N199: 2 | O199: Further Education | P199: 1 | Q199: Ealing, Hammersmith and West London College, Hammersmith Campus | R199: England | S199: 0 | T199: =IFERROR(Table_SAG_DB2.accdb3[[#This Row],[Rolling_Pcent]]*1,"~") -> 1 | U199: All
A200: AD01402 | B200: CA01212 | C200: East Berkshire College | D200: Langley Campus | E200: London | F200: NOC | G200: L07328 | H200: 2014-12-01 | I200: 2 | J200: 23 | K200: 1 | L200: 6 | M200: 0.9998655914 | N200: 1 | O200: Further Education | P200: 1 | Q200: East Berkshire College, Langley Campus | R200: England | S200: 0 | T200: =IFERROR(Table_SAG_DB2.accdb3[[#This Row],[Rolling_Pcent]]*1,"~") -> 1 | U200: All
... 787 more rows

Sheet CA_24Months (hidden)
A1: AD_ID | B1: CA_ID | C1: Organisation_Name | D1: Customer_Access_Name | E1: Availability_Region | F1: Managing_Organisation | G1: Line_Code | H1: Reporting_Month | I1: Inaccessibility_Count | J1: Inaccessibility_Mins | K1: Availability_Count | L1: Availability_Mins | M1: Availability_Pcent | N1: Resilience_Count | O1: Availability_Breakdown_Sector | P1: Funding_Body | Q1: Organisation_Service_Name | R1: Country | S1: Availability_Sector
A2: AD00101 | B2: CA00101 | C2: Aberdeen College | E2: Aberdeen | F2: NOC | G2: L02273 | H2: 2014-07-01 | I2: 0 | J2: 0 | K2: 0 | L2: 0 | M2: 1 | N2: 2 | O2: Further Education | P2: SFEFC | Q2: Aberdeen College | R2: Scotland | S2: =IF(sector_selection="All","All",O2) -> All
A3: AD00101 | B3: CA00101 | C3: Aberdeen College | E3: Aberdeen | F3: NOC | G3: L02273 | H3: 2014-08-01 | I3: 0 | J3: 0 | K3: 0 | L3: 0 | M3: 1 | N3: 2 | O3: Further Education | P3: SFEFC | Q3: Aberdeen College | R3: Scotland | S3: All
A4: AD00101 | B4: CA00101 | C4: Aberdeen College | E4: Aberdeen | F4: NOC | G4: L02273 | H4: 2014-09-01 | I4: 0 | J4: 0 | K4: 0 | L4: 0 | M4: 1 | N4: 2 | O4: Further Education | P4: SFEFC | Q4: Aberdeen College | R4: Scotland | S4: All
A5: AD00101 | B5: CA00101 | C5: Aberdeen College | E5: Aberdeen | F5: NOC | G5: L02273 | H5: 2014-11-01 | I5: 0 | J5: 0 | K5: 0 | L5: 0 | M5: 1 | N5: 2 | O5: Further Education | P5: SFEFC | Q5: Aberdeen College | R5: Scotland | S5: All
A6: AD00101 | B6: CA00101 | C6: Aberdeen College | E6: Aberdeen | F6: NOC | G6: L02273 | H6: 2014-12-01 | I6: 0 | J6: 0 | K6: 0 | L6: 0 | M6: 1 | N6: 2 | O6: Further Education | P6: SFEFC | Q6: Aberdeen College | R6: Scotland | S6: All
A7: AD00101 | B7: CA00101 | C7: Aberdeen College | E7: Aberdeen | F7: NOC | G7: L02273 | H7: 2013-11-01 | I7: 0 | J7: 0 | K7: 0 | L7: 0 | M7: 1 | N7: 2 | O7: Further Education | P7: SFEFC | Q7: Aberdeen College | R7: Scotland | S7: All
A8: AD00101 | B8: CA00101 | C8: Aberdeen College | E8: Aberdeen | F8: NOC | G8: L02273 | H8: 2013-10-01 | I8: 0 | J8: 0 | K8: 0 | L8: 0 | M8: 1 | N8: 2 | O8: Further Education | P8: SFEFC | Q8: Aberdeen College | R8: Scotland | S8: All
A9: AD00101 | B9: CA00101 | C9: Aberdeen College | E9: Aberdeen | F9: NOC | G9: L02273 | H9: 2013-05-01 | I9: 0 | J9: 0 | K9: 0 | L9: 0 | M9: 1 | N9: 2 | O9: Further Education | P9: SFEFC | Q9: Aberdeen College | R9: Scotland | S9: All
A10: AD00101 | B10: CA00101 | C10: Aberdeen College | E10: Aberdeen | F10: NOC | G10: L02273 | H10: 2013-04-01 | I10: 0 | J10: 0 | K10: 0 | L10: 0 | M10: 1 | N10: 2 | O10: Further Education | P10: SFEFC | Q10: Aberdeen College | R10: Scotland | S10: All
A11: AD00101 | B11: CA00101 | C11: Aberdeen College | E11: Aberdeen | F11: NOC | G11: L02273 | H11: 2013-06-01 | I11: 0 | J11: 0 | K11: 0 | L11: 0 | M11: 1 | N11: 2 | O11: Further Education | P11: SFEFC | Q11: Aberdeen College | R11: Scotland | S11: All
A12: AD00101 | B12: CA00101 | C12: Aberdeen College | E12: Aberdeen | F12: NOC | G12: L02273 | H12: 2013-09-01 | I12: 0 | J12: 0 | K12: 0 | L12: 0 | M12: 1 | N12: 2 | O12: Further Education | P12: SFEFC | Q12: Aberdeen College | R12: Scotland | S12: All
A13: AD00101 | B13: CA00101 | C13: Aberdeen College | E13: Aberdeen | F13: NOC | G13: L02273 | H13: 2013-07-01 | I13: 0 | J13: 0 | K13: 0 | L13: 0 | M13: 1 | N13: 2 | O13: Further Education | P13: SFEFC | Q13: Aberdeen College | R13: Scotland | S13: All
A14: AD00101 | B14: CA00101 | C14: Aberdeen College | E14: Aberdeen | F14: NOC | G14: L02273 | H14: 2013-08-01 | I14: 0 | J14: 0 | K14: 0 | L14: 0 | M14: 1 | N14: 2 | O14: Further Education | P14: SFEFC | Q14: Aberdeen College | R14: Scotland | S14: All
A15: AD00101 | B15: CA00101 | C15: Aberdeen College | E15: Aberdeen | F15: NOC | G15: L02273 | H15: 2014-05-01 | I15: 0 | J15: 0 | K15: 0 | L15: 0 | M15: 1 | N15: 2 | O15: Further Education | P15: SFEFC | Q15: Aberdeen College | R15: Scotland | S15: All
A16: AD00101 | B16: CA00101 | C16: Aberdeen College | E16: Aberdeen | F16: NOC | G16: L02273 | H16: 2014-01-01 | I16: 0 | J16: 0 | K16: 0 | L16: 0 | M16: 1 | N16: 2 | O16: Further Education | P16: SFEFC | Q16: Aberdeen College | R16: Scotland | S16: All
A17: AD00101 | B17: CA00101 | C17: Aberdeen College | E17: Aberdeen | F17: NOC | G17: L02273 | H17: 2013-12-01 | I17: 0 | J17: 0 | K17: 0 | L17: 0 | M17: 1 | N17: 2 | O17: Further Education | P17: SFEFC | Q17: Aberdeen College | R17: Scotland | S17: All
A18: AD00101 | B18: CA00101 | C18: Aberdeen College | E18: Aberdeen | F18: NOC | G18: L02273 | H18: 2014-06-01 | I18: 0 | J18: 0 | K18: 0 | L18: 0 | M18: 1 | N18: 2 | O18: Further Education | P18: SFEFC | Q18: Aberdeen College | R18: Scotland | S18: All
A19: AD00101 | B19: CA00101 | C19: Aberdeen College | E19: Aberdeen | F19: NOC | G19: L02273 | H19: 2013-01-01 | I19: 0 | J19: 0 | K19: 0 | L19: 0 | M19: 1 | N19: 2 | O19: Further Education | P19: SFEFC | Q19: Aberdeen College | R19: Scotland | S19: All
A20: AD00101 | B20: CA00101 | C20: Aberdeen College | E20: Aberdeen | F20: NOC | G20: L02273 | H20: 2014-10-01 | I20: 0 | J20: 0 | K20: 0 | L20: 0 | M20: 1 | N20: 2 | O20: Further Education | P20: SFEFC | Q20: Aberdeen College | R20: Scotland | S20: All
A21: AD00101 | B21: CA00101 | C21: Aberdeen College | E21: Aberdeen | F21: NOC | G21: L02273 | H21: 2013-03-01 | I21: 0 | J21: 0 | K21: 0 | L21: 0 | M21: 1 | N21: 2 | O21: Further Education | P21: SFEFC | Q21: Aberdeen College | R21: Scotland | S21: All
A22: AD00101 | B22: CA00101 | C22: Aberdeen College | E22: Aberdeen | F22: NOC | G22: L02273 | H22: 2013-02-01 | I22: 0 | J22: 0 | K22: 0 | L22: 0 | M22: 1 | N22: 2 | O22: Further Education | P22: SFEFC | Q22: Aberdeen College | R22: Scotland | S22: All
A23: AD00101 | B23: CA00101 | C23: Aberdeen College | E23: Aberdeen | F23: NOC | G23: L02273 | H23: 2014-03-01 | I23: 0 | J23: 0 | K23: 0 | L23: 0 | M23: 1 | N23: 2 | O23: Further Education | P23: SFEFC | Q23: Aberdeen College | R23: Scotland | S23: All
A24: AD00101 | B24: CA00101 | C24: Aberdeen College | E24: Aberdeen | F24: NOC | G24: L02273 | H24: 2014-02-01 | I24: 0 | J24: 0 | K24: 0 | L24: 0 | M24: 1 | N24: 2 | O24: Further Education | P24: SFEFC | Q24: Aberdeen College | R24: Scotland | S24: All
A25: AD00101 | B25: CA00101 | C25: Aberdeen College | E25: Aberdeen | F25: NOC | G25: L02273 | H25: 2014-04-01 | I25: 0 | J25: 0 | K25: 0 | L25: 0 | M25: 1 | N25: 2 | O25: Further Education | P25: SFEFC | Q25: Aberdeen College | R25: Scotland | S25: All
A26: AD00891 | B26: CA00865 | C26: Aberystwyth University | D26: Llandinam Building | E26: Wales | F26: PSBA | G26: L02717 | H26: 2014-07-01 | I26: 0 | J26: 0 | K26: 0 | L26: 0 | M26: 1 | N26: 1 | O26: Higher Education | P26: HEFCW | Q26: Aberystwyth University, Llandinam Building | R26: Wales | S26: All
A27: AD01393 | B27: CA01201 | C27: Aberystwyth University | D27: Visualisation Centre | E27: Wales | F27: PSBA | G27: L06505 | H27: 2014-07-01 | I27: 0 | J27: 0 | K27: 0 | L27: 0 | M27: 1 | N27: 1 | O27: Higher Education | P27: HEFCW | Q27: Aberystwyth University, Visualisation Centre | R27: Wales | S27: All
A28: AD00891 | B28: CA00865 | C28: Aberystwyth University | D28: Llandinam Building | E28: Wales | F28: PSBA | G28: L02717 | H28: 2014-12-01 | I28: 1 | J28: 29 | K28: 0 | L28: 0 | M28: 1 | N28: 1 | O28: Higher Education | P28: HEFCW | Q28: Aberystwyth University, Llandinam Building | R28: Wales | S28: All
A29: AD00891 | B29: CA00865 | C29: Aberystwyth University | D29: Llandinam Building | E29: Wales | F29: PSBA | G29: L02717 | H29: 2014-08-01 | I29: 0 | J29: 0 | K29: 0 | L29: 0 | M29: 1 | N29: 1 | O29: Higher Education | P29: HEFCW | Q29: Aberystwyth University, Llandinam Building | R29: Wales | S29: All
A30: AD01393 | B30: CA01201 | C30: Aberystwyth University | D30: Visualisation Centre | E30: Wales | F30: PSBA | G30: L06505 | H30: 2014-09-01 | I30: 0 | J30: 0 | K30: 0 | L30: 0 | M30: 1 | N30: 1 | O30: Higher Education | P30: HEFCW | Q30: Aberystwyth University, Visualisation Centre | R30: Wales | S30: All
A31: AD00891 | B31: CA00865 | C31: Aberystwyth University | D31: Llandinam Building | E31: Wales | F31: PSBA | G31: L02717 | H31: 2014-10-01 | I31: 0 | J31: 0 | K31: 0 | L31: 0 | M31: 1 | N31: 1 | O31: Higher Education | P31: HEFCW | Q31: Aberystwyth University, Llandinam Building | R31: Wales | S31: All
A32: AD01393 | B32: CA01201 | C32: Aberystwyth University | D32: Visualisation Centre | E32: Wales | F32: PSBA | G32: L06505 | H32: 2014-10-01 | I32: 0 | J32: 0 | K32: 0 | L32: 0 | M32: 1 | N32: 1 | O32: Higher Education | P32: HEFCW | Q32: Aberystwyth University, Visualisation Centre | R32: Wales | S32: All
A33: AD00891 | B33: CA00865 | C33: Aberystwyth University | D33: Llandinam Building | E33: Wales | F33: PSBA | G33: L02717 | H33: 2014-09-01 | I33: 0 | J33: 0 | K33: 0 | L33: 0 | M33: 1 | N33: 1 | O33: Higher Education | P33: HEFCW | Q33: Aberystwyth University, Llandinam Building | R33: Wales | S33: All
A34: AD01393 | B34: CA01201 | C34: Aberystwyth University | D34: Visualisation Centre | E34: Wales | F34: PSBA | G34: L06505 | H34: 2014-08-01 | I34: 0 | J34: 0 | K34: 0 | L34: 0 | M34: 1 | N34: 1 | O34: Higher Education | P34: HEFCW | Q34: Aberystwyth University, Visualisation Centre | R34: Wales | S34: All
A35: AD00891 | B35: CA00865 | C35: Aberystwyth University | D35: Llandinam Building | E35: Wales | F35: PSBA | G35: L02717 | H35: 2014-11-01 | I35: 0 | J35: 0 | K35: 0 | L35: 0 | M35: 1 | N35: 1 | O35: Higher Education | P35: HEFCW | Q35: Aberystwyth University, Llandinam Building | R35: Wales | S35: All
A36: AD01393 | B36: CA01201 | C36: Aberystwyth University | D36: Visualisation Centre | E36: Wales | F36: PSBA | G36: L06505 | H36: 2014-11-01 | I36: 0 | J36: 0 | K36: 0 | L36: 0 | M36: 1 | N36: 1 | O36: Higher Education | P36: HEFCW | Q36: Aberystwyth University, Visualisation Centre | R36: Wales | S36: All
A37: AD01393 | B37: CA01201 | C37: Aberystwyth University | D37: Visualisation Centre | E37: Wales | F37: PSBA | G37: L06505 | H37: 2014-12-01 | I37: 0 | J37: 0 | K37: 0 | L37: 0 | M37: 1 | N37: 1 | O37: Higher Education | P37: HEFCW | Q37: Aberystwyth University, Visualisation Centre | R37: Wales | S37: All
A38: AD01393 | B38: CA01201 | C38: Aberystwyth University | D38: Visualisation Centre | E38: Wales | F38: PSBA | G38: L06505 | H38: 2013-10-01 | I38: 0 | J38: 0 | K38: 0 | L38: 0 | M38: 1 | N38: 1 | O38: Higher Education | P38: HEFCW | Q38: Aberystwyth University, Visualisation Centre | R38: Wales | S38: All
A39: AD00891 | B39: CA00865 | C39: Aberystwyth University | D39: Llandinam Building | E39: Wales | F39: PSBA | G39: L02717 | H39: 2013-10-01 | I39: 0 | J39: 0 | K39: 0 | L39: 0 | M39: 1 | N39: 1 | O39: Higher Education | P39: HEFCW | Q39: Aberystwyth University, Llandinam Building | R39: Wales | S39: All
A40: AD01393 | B40: CA01201 | C40: Aberystwyth University | D40: Visualisation Centre | E40: Wales | F40: PSBA | G40: L06505 | H40: 2013-09-01 | I40: 0 | J40: 0 | K40: 0 | L40: 0 | M40: 1 | N40: 1 | O40: Higher Education | P40: HEFCW | Q40: Aberystwyth University, Visualisation Centre | R40: Wales | S40: All
A41: AD00891 | B41: CA00865 | C41: Aberystwyth University | D41: Llandinam Building | E41: Wales | F41: PSBA | G41: L02717 | H41: 2013-09-01 | I41: 0 | J41: 0 | K41: 0 | L41: 0 | M41: 1 | N41: 1 | O41: Higher Education | P41: HEFCW | Q41: Aberystwyth University, Llandinam Building | R41: Wales | S41: All
A42: AD01393 | B42: CA01201 | C42: Aberystwyth University | D42: Visualisation Centre | E42: Wales | F42: PSBA | G42: L06505 | H42: 2013-04-01 | I42: 0 | J42: 0 | K42: 0 | L42: 0 | M42: 1 | N42: 1 | O42: Higher Education | P42: HEFCW | Q42: Aberystwyth University, Visualisation Centre | R42: Wales | S42: All
A43: AD00891 | B43: CA00865 | C43: Aberystwyth University | D43: Llandinam Building | E43: Wales | F43: PSBA | G43: L02717 | H43: 2013-05-01 | I43: 0 | J43: 0 | K43: 0 | L43: 0 | M43: 1 | N43: 1 | O43: Higher Education | P43: HEFCW | Q43: Aberystwyth University, Llandinam Building | R43: Wales | S43: All
A44: AD00891 | B44: CA00865 | C44: Aberystwyth University | D44: Llandinam Building | E44: Wales | F44: PSBA | G44: L02717 | H44: 2013-04-01 | I44: 0 | J44: 0 | K44: 0 | L44: 0 | M44: 1 | N44: 1 | O44: Higher Education | P44: HEFCW | Q44: Aberystwyth University, Llandinam Building | R44: Wales | S44: All
A45: AD01393 | B45: CA01201 | C45: Aberystwyth University | D45: Visualisation Centre | E45: Wales | F45: PSBA | G45: L06505 | H45: 2013-05-01 | I45: 0 | J45: 0 | K45: 0 | L45: 0 | M45: 1 | N45: 1 | O45: Higher Education | P45: HEFCW | Q45: Aberystwyth University, Visualisation Centre | R45: Wales | S45: All
A46: AD00891 | B46: CA00865 | C46: Aberystwyth University | D46: Llandinam Building | E46: Wales | F46: PSBA | G46: L02717 | H46: 2013-07-01 | I46: 0 | J46: 0 | K46: 0 | L46: 0 | M46: 1 | N46: 1 | O46: Higher Education | P46: HEFCW | Q46: Aberystwyth University, Llandinam Building | R46: Wales | S46: All
A47: AD01393 | B47: CA01201 | C47: Aberystwyth University | D47: Visualisation Centre | E47: Wales | F47: PSBA | G47: L06505 | H47: 2013-06-01 | I47: 0 | J47: 0 | K47: 0 | L47: 0 | M47: 1 | N47: 1 | O47: Higher Education | P47: HEFCW | Q47: Aberystwyth University, Visualisation Centre | R47: Wales | S47: All
A48: AD00891 | B48: CA00865 | C48: Aberystwyth University | D48: Llandinam Building | E48: Wales | F48: PSBA | G48: L02717 | H48: 2013-08-01 | I48: 0 | J48: 0 | K48: 0 | L48: 0 | M48: 1 | N48: 1 | O48: Higher Education | P48: HEFCW | Q48: Aberystwyth University, Llandinam Building | R48: Wales | S48: All
A49: AD01393 | B49: CA01201 | C49: Aberystwyth University | D49: Visualisation Centre | E49: Wales | F49: PSBA | G49: L06505 | H49: 2013-08-01 | I49: 0 | J49: 0 | K49: 0 | L49: 0 | M49: 1 | N49: 1 | O49: Higher Education | P49: HEFCW | Q49: Aberystwyth University, Visualisation Centre | R49: Wales | S49: All
A50: AD01393 | B50: CA01201 | C50: Aberystwyth University | D50: Visualisation Centre | E50: Wales | F50: PSBA | G50: L06505 | H50: 2013-07-01 | I50: 0 | J50: 0 | K50: 0 | L50: 0 | M50: 1 | N50: 1 | O50: Higher Education | P50: HEFCW | Q50: Aberystwyth University, Visualisation Centre | R50: Wales | S50: All
A51: AD00891 | B51: CA00865 | C51: Aberystwyth University | D51: Llandinam Building | E51: Wales | F51: PSBA | G51: L02717 | H51: 2013-06-01 | I51: 0 | J51: 0 | K51: 0 | L51: 0 | M51: 1 | N51: 1 | O51: Higher Education | P51: HEFCW | Q51: Aberystwyth University, Llandinam Building | R51: Wales | S51: All
A52: AD00891 | B52: CA00865 | C52: Aberystwyth University | D52: Llandinam Building | E52: Wales | F52: PSBA | G52: L02717 | H52: 2013-12-01 | I52: 0 | J52: 0 | K52: 0 | L52: 0 | M52: 1 | N52: 1 | O52: Higher Education | P52: HEFCW | Q52: Aberystwyth University, Llandinam Building | R52: Wales | S52: All
A53: AD01393 | B53: CA01201 | C53: Aberystwyth University | D53: Visualisation Centre | E53: Wales | F53: PSBA | G53: L06505 | H53: 2013-12-01 | I53: 0 | J53: 0 | K53: 0 | L53: 0 | M53: 1 | N53: 1 | O53: Higher Education | P53: HEFCW | Q53: Aberystwyth University, Visualisation Centre | R53: Wales | S53: All
A54: AD01393 | B54: CA01201 | C54: Aberystwyth University | D54: Visualisation Centre | E54: Wales | F54: PSBA | G54: L06505 | H54: 2013-11-01 | I54: 0 | J54: 0 | K54: 0 | L54: 0 | M54: 1 | N54: 1 | O54: Higher Education | P54: HEFCW | Q54: Aberystwyth University, Visualisation Centre | R54: Wales | S54: All
A55: AD00891 | B55: CA00865 | C55: Aberystwyth University | D55: Llandinam Building | E55: Wales | F55: PSBA | G55: L02717 | H55: 2013-11-01 | I55: 0 | J55: 0 | K55: 0 | L55: 0 | M55: 1 | N55: 1 | O55: Higher Education | P55: HEFCW | Q55: Aberystwyth University, Llandinam Building | R55: Wales | S55: All
A56: AD00891 | B56: CA00865 | C56: Aberystwyth University | D56: Llandinam Building | E56: Wales | F56: PSBA | G56: L02717 | H56: 2014-05-01 | I56: 0 | J56: 0 | K56: 0 | L56: 0 | M56: 1 | N56: 1 | O56: Higher Education | P56: HEFCW | Q56: Aberystwyth University, Llandinam Building | R56: Wales | S56: All
A57: AD01393 | B57: CA01201 | C57: Aberystwyth University | D57: Visualisation Centre | E57: Wales | F57: PSBA | G57: L06505 | H57: 2014-05-01 | I57: 0 | J57: 0 | K57: 0 | L57: 0 | M57: 1 | N57: 1 | O57: Higher Education | P57: HEFCW | Q57: Aberystwyth University, Visualisation Centre | R57: Wales | S57: All
A58: AD00891 | B58: CA00865 | C58: Aberystwyth University | D58: Llandinam Building | E58: Wales | F58: PSBA | G58: L02717 | H58: 2014-06-01 | I58: 0 | J58: 0 | K58: 0 | L58: 0 | M58: 1 | N58: 1 | O58: Higher Education | P58: HEFCW | Q58: Aberystwyth University, Llandinam Building | R58: Wales | S58: All
A59: AD01393 | B59: CA01201 | C59: Aberystwyth University | D59: Visualisation Centre | E59: Wales | F59: PSBA | G59: L06505 | H59: 2014-06-01 | I59: 0 | J59: 0 | K59: 0 | L59: 0 | M59: 1 | N59: 1 | O59: Higher Education | P59: HEFCW | Q59: Aberystwyth University, Visualisation Centre | R59: Wales | S59: All
A60: AD00891 | B60: CA00865 | C60: Aberystwyth University | D60: Llandinam Building | E60: Wales | F60: PSBA | G60: L02717 | H60: 2014-04-01 | I60: 0 | J60: 0 | K60: 0 | L60: 0 | M60: 1 | N60: 1 | O60: Higher Education | P60: HEFCW | Q60: Aberystwyth University, Llandinam Building | R60: Wales | S60: All
A61: AD01393 | B61: CA01201 | C61: Aberystwyth University | D61: Visualisation Centre | E61: Wales | F61: PSBA | G61: L06505 | H61: 2014-04-01 | I61: 0 | J61: 0 | K61: 0 | L61: 0 | M61: 1 | N61: 1 | O61: Higher Education | P61: HEFCW | Q61: Aberystwyth University, Visualisation Centre | R61: Wales | S61: All
A62: AD00891 | B62: CA00865 | C62: Aberystwyth University | D62: Llandinam Building | E62: Wales | F62: PSBA | G62: L02717 | H62: 2013-03-01 | I62: 0 | J62: 0 | K62: 0 | L62: 0 | M62: 1 | N62: 1 | O62: Higher Education | P62: HEFCW | Q62: Aberystwyth University, Llandinam Building | R62: Wales | S62: All
A63: AD00891 | B63: CA00865 | C63: Aberystwyth University | D63: Llandinam Building | E63: Wales | F63: PSBA | G63: L02717 | H63: 2013-02-01 | I63: 0 | J63: 0 | K63: 0 | L63: 0 | M63: 1 | N63: 1 | O63: Higher Education | P63: HEFCW | Q63: Aberystwyth University, Llandinam Building | R63: Wales | S63: All
A64: AD00891 | B64: CA00865 | C64: Aberystwyth University | D64: Llandinam Building | E64: Wales | F64: PSBA | G64: L02717 | H64: 2013-01-01 | I64: 0 | J64: 0 | K64: 0 | L64: 0 | M64: 1 | N64: 1 | O64: Higher Education | P64: HEFCW | Q64: Aberystwyth University, Llandinam Building | R64: Wales | S64: All
A65: AD00891 | B65: CA00865 | C65: Aberystwyth University | D65: Llandinam Building | E65: Wales | F65: PSBA | G65: L02717 | H65: 2014-03-01 | I65: 0 | J65: 0 | K65: 0 | L65: 0 | M65: 1 | N65: 1 | O65: Higher Education | P65: HEFCW | Q65: Aberystwyth University, Llandinam Building | R65: Wales | S65: All
A66: AD01393 | B66: CA01201 | C66: Aberystwyth University | D66: Visualisation Centre | E66: Wales | F66: PSBA | G66: L06505 | H66: 2014-02-01 | I66: 0 | J66: 0 | K66: 0 | L66: 0 | M66: 1 | N66: 1 | O66: Higher Education | P66: HEFCW | Q66: Aberystwyth University, Visualisation Centre | R66: Wales | S66: =IF(sector_selection="All","All",O66) -> All
A67: AD00891 | B67: CA00865 | C67: Aberystwyth University | D67: Llandinam Building | E67: Wales | F67: PSBA | G67: L02717 | H67: 2014-02-01 | I67: 0 | J67: 0 | K67: 0 | L67: 0 | M67: 1 | N67: 1 | O67: Higher Education | P67: HEFCW | Q67: Aberystwyth University, Llandinam Building | R67: Wales | S67: All
A68: AD01393 | B68: CA01201 | C68: Aberystwyth University | D68: Visualisation Centre | E68: Wales | F68: PSBA | G68: L06505 | H68: 2014-03-01 | I68: 0 | J68: 0 | K68: 0 | L68: 0 | M68: 1 | N68: 1 | O68: Higher Education | P68: HEFCW | Q68: Aberystwyth University, Visualisation Centre | R68: Wales | S68: All
A69: AD00891 | B69: CA00865 | C69: Aberystwyth University | D69: Llandinam Building | E69: Wales | F69: PSBA | G69: L02717 | H69: 2014-01-01 | I69: 0 | J69: 0 | K69: 0 | L69: 0 | M69: 1 | N69: 1 | O69: Higher Education | P69: HEFCW | Q69: Aberystwyth University, Llandinam Building | R69: Wales | S69: All
A70: AD01393 | B70: CA01201 | C70: Aberystwyth University | D70: Visualisation Centre | E70: Wales | F70: PSBA | G70: L06505 | H70: 2014-01-01 | I70: 0 | J70: 0 | K70: 0 | L70: 0 | M70: 1 | N70: 1 | O70: Higher Education | P70: HEFCW | Q70: Aberystwyth University, Visualisation Centre | R70: Wales | S70: All
A71: AD00476 | B71: CA00470 | C71: Abingdon and Witney College | E71: TVN | F71: NOC | G71: L04543 | H71: 2014-07-01 | I71: 0 | J71: 0 | K71: 0 | L71: 0 | M71: 1 | N71: 1 | O71: Further Education | P71: LSC | Q71: Abingdon and Witney College | R71: England | S71: All
A72: AD00476 | B72: CA00470 | C72: Abingdon and Witney College | E72: TVN | F72: NOC | G72: L04543 | H72: 2014-12-01 | I72: 0 | J72: 0 | K72: 0 | L72: 0 | M72: 1 | N72: 1 | O72: Further Education | P72: LSC | Q72: Abingdon and Witney College | R72: England | S72: All
A73: AD00476 | B73: CA00470 | C73: Abingdon and Witney College | E73: TVN | F73: NOC | G73: L04543 | H73: 2014-08-01 | I73: 0 | J73: 0 | K73: 0 | L73: 0 | M73: 1 | N73: 1 | O73: Further Education | P73: LSC | Q73: Abingdon and Witney College | R73: England | S73: All
A74: AD00476 | B74: CA00470 | C74: Abingdon and Witney College | E74: TVN | F74: NOC | G74: L04543 | H74: 2014-10-01 | I74: 0 | J74: 0 | K74: 0 | L74: 0 | M74: 1 | N74: 1 | O74: Further Education | P74: LSC | Q74: Abingdon and Witney College | R74: England | S74: All
A75: AD00476 | B75: CA00470 | C75: Abingdon and Witney College | E75: TVN | F75: NOC | G75: L04543 | H75: 2014-09-01 | I75: 0 | J75: 0 | K75: 0 | L75: 0 | M75: 1 | N75: 1 | O75: Further Education | P75: LSC | Q75: Abingdon and Witney College | R75: England | S75: All
A76: AD00476 | B76: CA00470 | C76: Abingdon and Witney College | E76: TVN | F76: NOC | G76: L04543 | H76: 2014-11-01 | I76: 0 | J76: 0 | K76: 0 | L76: 0 | M76: 1 | N76: 1 | O76: Further Education | P76: LSC | Q76: Abingdon and Witney College | R76: England | S76: All
A77: AD00476 | B77: CA00470 | C77: Abingdon and Witney College | E77: TVN | F77: NOC | G77: L04543 | H77: 2013-10-01 | I77: 1 | J77: 1458 | K77: 0 | L77: 0 | M77: 1 | N77: 1 | O77: Further Education | P77: LSC | Q77: Abingdon and Witney College | R77: England | S77: All
A78: AD00476 | B78: CA00470 | C78: Abingdon and Witney College | E78: TVN | F78: NOC | G78: L04543 | H78: 2013-11-01 | I78: 0 | J78: 0 | K78: 0 | L78: 0 | M78: 1 | N78: 1 | O78: Further Education | P78: LSC | Q78: Abingdon and Witney College | R78: England | S78: All
A79: AD00476 | B79: CA00470 | C79: Abingdon and Witney College | E79: TVN | F79: NOC | G79: L04543 | H79: 2013-09-01 | I79: 1 | J79: 2604 | K79: 0 | L79: 0 | M79: 1 | N79: 1 | O79: Further Education | P79: LSC | Q79: Abingdon and Witney College | R79: England | S79: All
A80: AD00476 | B80: CA00470 | C80: Abingdon and Witney College | E80: TVN | F80: NOC | G80: L04543 | H80: 2013-05-01 | I80: 0 | J80: 0 | K80: 0 | L80: 0 | M80: 1 | N80: 1 | O80: Further Education | P80: LSC | Q80: Abingdon and Witney College | R80: England | S80: All
A81: AD00476 | B81: CA00470 | C81: Abingdon and Witney College | E81: TVN | F81: NOC | G81: L04543 | H81: 2013-06-01 | I81: 0 | J81: 0 | K81: 0 | L81: 0 | M81: 1 | N81: 1 | O81: Further Education | P81: LSC | Q81: Abingdon and Witney College | R81: England | S81: All
A82: AD00476 | B82: CA00470 | C82: Abingdon and Witney College | E82: TVN | F82: NOC | G82: L04543 | H82: 2013-04-01 | I82: 0 | J82: 0 | K82: 0 | L82: 0 | M82: 1 | N82: 1 | O82: Further Education | P82: LSC | Q82: Abingdon and Witney College | R82: England | S82: All
A83: AD00476 | B83: CA00470 | C83: Abingdon and Witney College | E83: TVN | F83: NOC | G83: L04543 | H83: 2013-07-01 | I83: 0 | J83: 0 | K83: 0 | L83: 0 | M83: 1 | N83: 1 | O83: Further Education | P83: LSC | Q83: Abingdon and Witney College | R83: England | S83: All
A84: AD00476 | B84: CA00470 | C84: Abingdon and Witney College | E84: TVN | F84: NOC | G84: L04543 | H84: 2013-08-01 | I84: 1 | J84: 148 | K84: 0 | L84: 0 | M84: 1 | N84: 1 | O84: Further Education | P84: LSC | Q84: Abingdon and Witney College | R84: England | S84: All
A85: AD00476 | B85: CA00470 | C85: Abingdon and Witney College | E85: TVN | F85: NOC | G85: L04543 | H85: 2013-12-01 | I85: 0 | J85: 0 | K85: 0 | L85: 0 | M85: 1 | N85: 1 | O85: Further Education | P85: LSC | Q85: Abingdon and Witney College | R85: England | S85: All
A86: AD00476 | B86: CA00470 | C86: Abingdon and Witney College | E86: TVN | F86: NOC | G86: L04543 | H86: 2014-01-01 | I86: 0 | J86: 0 | K86: 0 | L86: 0 | M86: 1 | N86: 1 | O86: Further Education | P86: LSC | Q86: Abingdon and Witney College | R86: England | S86: All
A87: AD00476 | B87: CA00470 | C87: Abingdon and Witney College | E87: TVN | F87: NOC | G87: L04543 | H87: 2014-04-01 | I87: 3 | J87: 373 | K87: 0 | L87: 0 | M87: 1 | N87: 1 | O87: Further Education | P87: LSC | Q87: Abingdon and Witney College | R87: England | S87: All
A88: AD00476 | B88: CA00470 | C88: Abingdon and Witney College | E88: TVN | F88: NOC | G88: L04543 | H88: 2014-06-01 | I88: 1 | J88: 20 | K88: 0 | L88: 0 | M88: 1 | N88: 1 | O88: Further Education | P88: LSC | Q88: Abingdon and Witney College | R88: England | S88: All
A89: AD00476 | B89: CA00470 | C89: Abingdon and Witney College | E89: TVN | F89: NOC | G89: L04543 | H89: 2014-05-01 | I89: 1 | J89: 22 | K89: 0 | L89: 0 | M89: 1 | N89: 1 | O89: Further Education | P89: LSC | Q89: Abingdon and Witney College | R89: England | S89: All
A90: AD00476 | B90: CA00470 | C90: Abingdon and Witney College | E90: TVN | F90: NOC | G90: L04543 | H90: 2013-03-01 | I90: 0 | J90: 0 | K90: 0 | L90: 0 | M90: 1 | N90: 1 | O90: Further Education | P90: LSC | Q90: Abingdon and Witney College | R90: England | S90: All
A91: AD00476 | B91: CA00470 | C91: Abingdon and Witney College | E91: TVN | F91: NOC | G91: L04543 | H91: 2013-01-01 | I91: 0 | J91: 0 | K91: 0 | L91: 0 | M91: 1 | N91: 1 | O91: Further Education | P91: LSC | Q91: Abingdon and Witney College | R91: England | S91: All
A92: AD00476 | B92: CA00470 | C92: Abingdon and Witney College | E92: TVN | F92: NOC | G92: L04543 | H92: 2013-02-01 | I92: 0 | J92: 0 | K92: 0 | L92: 0 | M92: 1 | N92: 1 | O92: Further Education | P92: LSC | Q92: Abingdon and Witney College | R92: England | S92: All
A93: AD00476 | B93: CA00470 | C93: Abingdon and Witney College | E93: TVN | F93: NOC | G93: L04543 | H93: 2014-03-01 | I93: 0 | J93: 0 | K93: 0 | L93: 0 | M93: 1 | N93: 1 | O93: Further Education | P93: LSC | Q93: Abingdon and Witney College | R93: England | S93: All
A94: AD00476 | B94: CA00470 | C94: Abingdon and Witney College | E94: TVN | F94: NOC | G94: L04543 | H94: 2014-02-01 | I94: 0 | J94: 0 | K94: 0 | L94: 0 | M94: 1 | N94: 1 | O94: Further Education | P94: LSC | Q94: Abingdon and Witney College | R94: England | S94: All
A95: AD00789 | B95: CA00764 | C95: Accrington and Rossendale College | E95: North West | F95: NOC | G95: L04488 | H95: 2014-12-01 | I95: 0 | J95: 0 | K95: 0 | L95: 0 | M95: 1 | N95: 1 | O95: Further Education | P95: LSC | Q95: Accrington and Rossendale College | R95: England | S95: All
A96: AD00789 | B96: CA00764 | C96: Accrington and Rossendale College | E96: North West | F96: NOC | G96: L04488 | H96: 2014-08-01 | I96: 0 | J96: 0 | K96: 0 | L96: 0 | M96: 1 | N96: 1 | O96: Further Education | P96: LSC | Q96: Accrington and Rossendale College | R96: England | S96: All
A97: AD00789 | B97: CA00764 | C97: Accrington and Rossendale College | E97: North West | F97: NOC | G97: L04488 | H97: 2014-07-01 | I97: 0 | J97: 0 | K97: 0 | L97: 0 | M97: 1 | N97: 1 | O97: Further Education | P97: LSC | Q97: Accrington and Rossendale College | R97: England | S97: All
A98: AD00789 | B98: CA00764 | C98: Accrington and Rossendale College | E98: North West | F98: NOC | G98: L04488 | H98: 2014-11-01 | I98: 1 | J98: 152 | K98: 0 | L98: 0 | M98: 1 | N98: 1 | O98: Further Education | P98: LSC | Q98: Accrington and Rossendale College | R98: England | S98: All
A99: AD00789 | B99: CA00764 | C99: Accrington and Rossendale College | E99: North West | F99: NOC | G99: L04488 | H99: 2014-09-01 | I99: 1 | J99: 13 | K99: 0 | L99: 0 | M99: 1 | N99: 1 | O99: Further Education | P99: LSC | Q99: Accrington and Rossendale College | R99: England | S99: All
A100: AD00789 | B100: CA00764 | C100: Accrington and Rossendale College | E100: North West | F100: NOC | G100: L04488 | H100: 2014-10-01 | I100: 0 | J100: 0 | K100: 0 | L100: 0 | M100: 1 | N100: 1 | O100: Further Education | P100: LSC | Q100: Accrington and Rossendale College | R100: England | S100: All
A101: AD00789 | B101: CA00764 | C101: Accrington and Rossendale College | E101: North West | F101: NOC | G101: L04488 | H101: 2013-10-01 | I101: 0 | J101: 0 | K101: 0 | L101: 0 | M101: 1 | N101: 1 | O101: Further Education | P101: LSC | Q101: Accrington and Rossendale College | R101: England | S101: All
A102: AD00789 | B102: CA00764 | C102: Accrington and Rossendale College | E102: North West | F102: NOC | G102: L04488 | H102: 2013-09-01 | I102: 1 | J102: 15 | K102: 1 | L102: 15 | M102: 0.99965278 | N102: 1 | O102: Further Education | P102: LSC | Q102: Accrington and Rossendale College | R102: England | S102: All
A103: AD00789 | B103: CA00764 | C103: Accrington and Rossendale College | E103: North West | F103: NNW | G103: L04488 | H103: 2013-04-01 | I103: 0 | J103: 0 | K103: 0 | L103: 0 | M103: 1 | N103: 1 | O103: Further Education | P103: LSC | Q103: Accrington and Rossendale College | R103: England | S103: All
A104: AD00789 | B104: CA00764 | C104: Accrington and Rossendale College | E104: North West | F104: NNW | G104: L04488 | H104: 2013-05-01 | I104: 0 | J104: 0 | K104: 0 | L104: 0 | M104: 1 | N104: 1 | O104: Further Education | P104: LSC | Q104: Accrington and Rossendale College | R104: England | S104: All
